Workbook

Sheet Female (hidden)
B1: 1950 | C1: 1951 | D1: 1952 | E1: 1953 | F1: 1954 | G1: 1955 | H1: 1956 | I1: 1957 | J1: 1958 | K1: 1959 | L1: 1960 | M1: 1961 | N1: 1962 | O1: 1963 | P1: 1964 | Q1: 1965 | R1: 1966 | S1: 1967 | T1: 1968 | U1: 1969 | V1: 1970 | W1: 1971 | X1: 1972 | Y1: 1973 | Z1: 1974 | AA1: 1975 | AB1: 1976 | AC1: 1977 | AD1: 1978 | AE1: 1979 | AF1: 1980 | AG1: 1981 | AH1: 1982 | AI1: 1983 | AJ1: 1984 | AK1: 1985 | AL1: 1986 | AM1: 1987 | AN1: 1988 | AO1: 1989 | AP1: 1990 | AQ1: 1991 | AR1: 1992 | AS1: 1993 | AT1: 1994 | AU1: 1995 | AV1: 1996 | AW1: 1997 | AX1: 1998 | AY1: 1999 | AZ1: 2000 | BA1: 2001 | BB1: 2002 | BC1: 2003 | BD1: 2004 | BE1: 2005 | BF1: 2006 | BG1: 2007 | BH1: 2008 | BI1: 2009 | BJ1: 2010 | BK1: 2011 | BL1: 2012 | BM1: 2013 | BN1: 2014 | BO1: 2015
A2: 0 | B2: 78.707 | C2: 82.031 | D2: 88.454 | E2: 94.436 | F2: 97.842 | G2: 97.629 | H2: 93.354 | I2: 87.223 | J2: 81.422 | K2: 78.841 | L2: 82.158 | M2: 93.57 | N2: 110.638 | O2: 129.264 | P2: 144.043 | Q2: 151.271 | R2: 147.693 | S2: 137.085 | T2: 122.635 | U2: 109.26 | V2: 100.771 | W2: 99.468 | X2: 103.081 | Y2: 108.747 | Z2: 112.286 | AA2: 110.797 | AB2: 102.494 | AC2: 89.579 | AD2: 75.025 | AE2: 63.181 | AF2: 57.217 | AG2: 58.711 | AH2: 65.758 | AI2: 76.021 | AJ2: 86.12 | AK2: 93.588 | AL2: 97.191 | AM2: 98.415 | AN2: 97.465 | AO2: 94.885 | AP2: 91.238 | AQ2: 86.397 | AR2: 80.357 | AS2: 74.148 | AT2: 69.161 | AU2: 66.351 | AV2: 66.489 | AW2: 68.897 | AX2: 72.367 | AY2: 75.146 | AZ2: 75.981 | BA2: 74.366 | BB2: 70.907 | BC2: 66.422 | BD2: 62.146 | BE2: 59.007 | BF2: 57.279 | BG2: 56.569 | BH2: 56.725 | BI2: 57.451 | BJ2: 58.481 | BK2: 59.84 | BL2: 61.567 | BM2: 63.228 | BN2: 64.254 | BO2: 64.268
A3: 1 | B3: 77.039 | C3: 78.559 | D3: 85.487 | E3: 89.364 | F3: 91.585 | G3: 91.773 | H3: 95.728 | I3: 86.594 | J3: 84.032 | K3: 83.392 | L3: 86.105 | M3: 84.31 | N3: 104.659 | O3: 116.439 | P3: 126.393 | Q3: 132.537 | R3: 145.864 | S3: 129.399 | T3: 124.024 | U3: 118.492 | V3: 114.452 | W3: 103.904 | X3: 113.698 | Y3: 114.276 | Z3: 113.455 | AA3: 110.042 | AB3: 108.784 | AC3: 93.611 | AD3: 83.546 | AE3: 74.915 | AF3: 69.369 | AG3: 59.468 | AH3: 69.504 | AI3: 73.06 | AJ3: 77.341 | AK3: 81.297 | AL3: 90.569 | AM3: 86.881 | AN3: 88.95 | AO3: 89.939 | AP3: 89.614 | AQ3: 90.671 | AR3: 84.602 | AS3: 80.734 | AT3: 77.169 | AU3: 74.616 | AV3: 68.058 | AW3: 73.55 | AX3: 74.001 | AY3: 74.219 | AZ3: 73.656 | BA3: 74.929 | BB3: 69.883 | BC3: 67.287 | BD3: 64.741 | BE3: 62.59 | BF3: 59.404 | BG3: 59.689 | BH3: 58.821 | BI3: 58.418 | BJ3: 58.478 | BK3: 58.461 | BL3: 60.054 | BM3: 61.222 | BN3: 62.095 | BO3: 62.365
A4: 2 | B4: 75.573 | C4: 76.806 | D4: 78.126 | E4: 85.011 | F4: 86.337 | G4: 86.852 | H4: 90.773 | I4: 94.218 | J4: 85.604 | K4: 86.43 | L4: 88.662 | M4: 86.634 | N4: 85.935 | O4: 106.073 | P4: 112.26 | Q4: 117.457 | R4: 130.228 | S4: 141.451 | T4: 123.753 | U4: 124.132 | V4: 123.577 | W4: 115.275 | X4: 106.638 | Y4: 118.415 | Z4: 114.754 | AA4: 110.247 | AB4: 109.141 | AC4: 107.097 | AD4: 91.198 | AE4: 85.018 | AF4: 79.804 | AG4: 69.842 | AH4: 61.47 | AI4: 72.108 | AJ4: 71.893 | AK4: 72.988 | AL4: 80.283 | AM4: 87.853 | AN4: 82.26 | AO4: 85.564 | AP4: 87.518 | AQ4: 89.333 | AR4: 90.141 | AS4: 85.092 | AT4: 82.845 | AU4: 80.718 | AV4: 75.033 | AW4: 69.648 | AX4: 75.662 | AY4: 74.06 | AZ4: 72.5 | BA4: 73.27 | BB4: 73.939 | BC4: 68.324 | BD4: 66.973 | BE4: 65.496 | BF4: 62.477 | BG4: 59.764 | BH4: 60.649 | BI4: 59.424 | BJ4: 58.749 | BK4: 58.416 | BL4: 58.451 | BM4: 59.78 | BN4: 60.453 | BO4: 60.851
A5: 3 | B5: 74.278 | C5: 75.313 | D5: 76.294 | E5: 77.564 | F5: 82.002 | G5: 82.778 | H5: 86.444 | I5: 90.142 | J5: 92.854 | K5: 88.128 | L5: 89.987 | M5: 88.195 | N5: 86.611 | O5: 87.265 | P5: 101.276 | Q5: 105.655 | R5: 117.123 | S5: 128.79 | T5: 137.511 | U5: 126.621 | V5: 128.681 | W5: 122.967 | X5: 115.646 | Y5: 109.129 | Z5: 116.08 | AA5: 111.2 | AB5: 110.046 | AC5: 108.566 | AD5: 105.579 | AE5: 93.593 | AF5: 88.647 | AG5: 79.182 | AH5: 70.017 | AI5: 63.344 | AJ5: 69.376 | AK5: 68.208 | AL5: 73.233 | AM5: 79.532 | AN5: 85.278 | AO5: 81.791 | AP5: 85.105 | AQ5: 87.421 | AR5: 89.089 | AS5: 89.601 | AT5: 86.469 | AU5: 84.893 | AV5: 80.332 | AW5: 75.318 | AX5: 71.174 | AY5: 74.538 | AZ5: 72.335 | BA5: 72.491 | BB5: 72.945 | BC5: 72.977 | BD5: 68.878 | BE5: 67.805 | BF5: 65.028 | BG5: 62.325 | BH5: 60.109 | BI5: 60.462 | BJ5: 59.26 | BK5: 58.643 | BL5: 58.364 | BM5: 58.442 | BN5: 59.285 | BO5: 59.699
A6: 4 | B6: 73.122 | C6: 74.038 | D6: 74.78 | E6: 75.656 | F6: 77.104 | G6: 79.463 | H6: 82.702 | I6: 86.386 | J6: 89.653 | K6: 91.346 | L6: 90.238 | M6: 89.044 | N6: 87.16 | O6: 86.299 | P6: 88.688 | Q6: 96.751 | R6: 106.354 | S6: 117.561 | T6: 127.793 | U6: 133.413 | V6: 130.299 | W6: 127.366 | X6: 121.868 | Y6: 115.759 | Z6: 111.703 | AA6: 112.688 | AB6: 111.354 | AC6: 110.172 | AD6: 108.164 | AE6: 103.937 | AF6: 96.021 | AG6: 87.495 | AH6: 78.218 | AI6: 70.053 | AJ6: 65.293 | AK6: 66.501 | AL6: 69.088 | AM6: 73.714 | AN6: 78.912 | AO6: 82.665 | AP6: 82.53 | AQ6: 85.105 | AR6: 87.359 | AS6: 88.835 | AT6: 89.022 | AU6: 87.375 | AV6: 84.107 | AW6: 79.802 | AX6: 75.535 | AY6: 72.708 | AZ6: 72.986 | BA6: 72.465 | BB6: 72.541 | BC6: 72.647 | BD6: 71.986 | BE6: 69.598 | BF6: 67.116 | BG6: 64.52 | BH6: 62.157 | BI6: 60.472 | BJ6: 59.977 | BK6: 59.11 | BL6: 58.548 | BM6: 58.314 | BN6: 58.424 | BO6: 58.886
A7: 5 | B7: 72.076 | C7: 72.938 | D7: 73.529 | E7: 74.123 | F7: 75.119 | G7: 76.816 | H7: 79.507 | I7: 82.96 | J7: 86.466 | K7: 89.03 | L7: 89.571 | M7: 89.231 | N7: 87.524 | O7: 85.837 | P7: 86.088 | Q7: 90.37 | R7: 97.729 | S7: 107.749 | T7: 118.408 | U7: 126.666 | V7: 128.965 | W7: 128.859 | X7: 125.542 | Y7: 120.503 | Z7: 115.972 | AA7: 114.497 | AB7: 112.919 | AC7: 111.838 | AD7: 110.476 | AE7: 107.639 | AF7: 102.052 | AG7: 94.791 | AH7: 85.965 | AI7: 77.103 | AJ7: 70.181 | AK7: 67.414 | AL7: 67.517 | AM7: 70.189 | AN7: 74.319 | AO7: 78.262 | AP7: 79.949 | AQ7: 82.558 | AR7: 85.141 | AS7: 87.289 | AT7: 88.543 | AU7: 88.402 | AV7: 86.513 | AW7: 83.172 | AX7: 79.202 | AY7: 75.763 | AZ7: 74.275 | BA7: 73.068 | BB7: 72.654 | BC7: 72.62 | BD7: 72.322 | BE7: 70.954 | BF7: 68.798 | BG7: 66.386 | BH7: 63.997 | BI7: 62.009 | BJ7: 60.865 | BK7: 59.784 | BL7: 58.97 | BM7: 58.453 | BN7: 58.254 | BO7: 58.386
A8: 6 | B8: 71.108 | C8: 71.984 | D8: 72.488 | E8: 72.9 | F8: 73.566 | G8: 74.748 | H8: 76.773 | I8: 79.873 | J8: 83.352 | K8: 86.419 | L8: 88.145 | M8: 88.917 | N8: 87.646 | O8: 85.717 | P8: 84.622 | Q8: 86.131 | R8: 90.874 | S8: 99.343 | T8: 109.523 | U8: 119.144 | V8: 125.214 | W8: 127.983 | X8: 126.904 | Y8: 123.445 | Z8: 119.246 | AA8: 116.415 | AB8: 114.532 | AC8: 113.485 | AD8: 112.503 | AE8: 110.656 | AF8: 106.862 | AG8: 101.196 | AH8: 93.151 | AI8: 84.27 | AJ8: 76.093 | AK8: 70.493 | AL8: 68.068 | AM8: 68.748 | AN8: 71.409 | AO8: 74.898 | AP8: 77.516 | AQ8: 79.935 | AR8: 82.62 | AS8: 85.168 | AT8: 87.181 | AU8: 88.209 | AV8: 87.787 | AW8: 85.497 | AX8: 82.162 | AY8: 78.614 | AZ8: 76.027 | BA8: 74.12 | BB8: 73.211 | BC8: 72.872 | BD8: 72.671 | BE8: 71.955 | BF8: 70.152 | BG8: 67.955 | BH8: 65.639 | BI8: 63.493 | BJ8: 61.891 | BK8: 60.63 | BL8: 59.601 | BM8: 58.831 | BN8: 58.349 | BO8: 58.175
A9: 7 | B9: 70.187 | C9: 71.147 | D9: 71.629 | E9: 71.919 | F9: 72.367 | G9: 73.171 | H9: 74.412 | I9: 77.04 | J9: 80.368 | K9: 83.621 | L9: 86.117 | M9: 88.263 | N9: 87.689 | O9: 85.774 | P9: 84.021 | Q9: 83.659 | R9: 85.417 | S9: 91.973 | T9: 101.308 | U9: 111.2 | V9: 119.581 | W9: 125.279 | X9: 126.493 | Y9: 124.673 | Z9: 121.462 | AA9: 118.228 | AB9: 115.98 | AC9: 114.906 | AD9: 114.236 | AE9: 113.044 | AF9: 110.577 | AG9: 106.836 | AH9: 99.904 | AI9: 91.333 | AJ9: 82.692 | AK9: 75.283 | AL9: 70.289 | AM9: 68.939 | AN9: 70.096 | AO9: 72.607 | AP9: 75.388 | AQ9: 77.393 | AR9: 79.955 | AS9: 82.674 | AT9: 85.158 | AU9: 87.032 | AV9: 88.167 | AW9: 87.017 | AX9: 84.405 | AY9: 81.167 | AZ9: 78.064 | BA9: 75.44 | BB9: 74.026 | BC9: 73.382 | BD9: 73.063 | BE9: 72.68 | BF9: 71.257 | BG9: 69.306 | BH9: 67.096 | BI9: 64.913 | BJ9: 63.02 | BK9: 61.612 | BL9: 60.404 | BM9: 59.42 | BN9: 58.683 | BO9: 58.226
A10: 8 | B10: 69.282 | C10: 70.315 | D10: 70.927 | E10: 71.157 | F10: 71.446 | G10: 71.994 | H10: 72.621 | I10: 74.378 | J10: 77.433 | K10: 80.746 | L10: 83.645 | M10: 86.77 | N10: 87.815 | O10: 86.172 | P10: 84.013 | Q10: 82.576 | R10: 82.056 | S10: 85.268 | T10: 93.395 | U10: 103.186 | V10: 112.6 | W10: 120.373 | X10: 124.848 | Y10: 124.725 | Z10: 122.558 | AA10: 119.724 | AB10: 117.446 | AC10: 115.889 | AD10: 115.467 | AE10: 114.86 | AF10: 113.32 | AG10: 111.131 | AH10: 106.352 | AI10: 98.419 | AJ10: 89.641 | AK10: 81.332 | AL10: 74.453 | AM10: 70.313 | AN10: 69.928 | AO10: 71.423 | AP10: 73.719 | AQ10: 75.179 | AR10: 77.302 | AS10: 79.966 | AT10: 82.693 | AU10: 85.108 | AV10: 87.388 | AW10: 87.97 | AX10: 86.169 | AY10: 83.327 | AZ10: 80.211 | BA10: 77.18 | BB10: 74.915 | BC10: 73.961 | BD10: 73.526 | BE10: 73.211 | BF10: 72.065 | BG10: 70.515 | BH10: 68.443 | BI10: 66.257 | BJ10: 64.218 | BK10: 62.713 | BL10: 61.343 | BM10: 60.181 | BN10: 59.229 | BO10: 58.516
A11: 9 | B11: 68.362 | C11: 69.417 | D11: 70.187 | E11: 70.59 | F11: 70.779 | G11: 71.13 | H11: 71.453 | I11: 72.366 | J11: 74.463 | K11: 77.711 | L11: 80.886 | M11: 84.27 | N11: 86.871 | O11: 87.076 | P11: 84.764 | Q11: 82.503 | R11: 80.956 | S11: 81.003 | T11: 85.415 | U11: 94.734 | V11: 104.807 | W11: 113.35 | X11: 120.692 | Y11: 124.142 | Z11: 123.072 | AA11: 120.689 | AB11: 118.918 | AC11: 117.015 | AD11: 115.986 | AE11: 115.899 | AF11: 115.216 | AG11: 113.855 | AH11: 111.211 | AI11: 105.66 | AJ11: 97.069 | AK11: 88.185 | AL11: 80.469 | AM11: 73.865 | AN11: 70.455 | AO11: 70.894 | AP11: 72.666 | AQ11: 73.496 | AR11: 75.002 | AS11: 77.202 | AT11: 79.944 | AU11: 82.672 | AV11: 85.436 | AW11: 87.59 | AX11: 87.694 | AY11: 85.335 | AZ11: 82.29 | BA11: 79.326 | BB11: 76.359 | BC11: 74.418 | BD11: 73.867 | BE11: 73.627 | BF11: 72.589 | BG11: 71.404 | BH11: 69.756 | BI11: 67.601 | BJ11: 65.452 | BK11: 63.908 | BL11: 62.417 | BM11: 61.076 | BN11: 59.947 | BO11: 59.018
A12: 10 | B12: 67.476 | C12: 68.453 | D12: 69.3 | E12: 69.944 | F12: 70.346 | G12: 70.558 | H12: 70.729 | I12: 71.203 | J12: 72.226 | K12: 74.437 | L12: 77.762 | M12: 81.142 | N12: 84.358 | O12: 86.68 | P12: 86.441 | Q12: 83.609 | R12: 81.386 | S12: 79.879 | T12: 80.227 | U12: 85.479 | V12: 95.837 | W12: 105.052 | X12: 113.655 | Y12: 120.743 | Z12: 123.546 | AA12: 121.666 | AB12: 120.053 | AC12: 118.467 | AD12: 116.771 | AE12: 115.952 | AF12: 116.059 | AG12: 115.368 | AH12: 113.903 | AI12: 111.071 | AJ12: 105.108 | AK12: 95.974 | AL12: 87.645 | AM12: 79.869 | AN12: 73.401 | AO12: 70.572 | AP12: 71.777 | AQ12: 72.469 | AR12: 73.303 | AS12: 74.816 | AT12: 77.07 | AU12: 79.883 | AV12: 82.715 | AW12: 85.613 | AX12: 87.713 | AY12: 87.432 | AZ12: 84.542 | BA12: 81.586 | BB12: 78.506 | BC12: 75.567 | BD12: 73.894 | BE12: 73.731 | BF12: 72.952 | BG12: 71.922 | BH12: 70.727 | BI12: 69.019 | BJ12: 66.793 | BK12: 65.155 | BL12: 63.609 | BM12: 62.123 | BN12: 60.798 | BO12: 59.693
A13: 11 | B13: 66.671 | C13: 67.541 | D13: 68.295 | E13: 69.069 | F13: 69.792 | G13: 70.258 | H13: 70.193 | I13: 70.615 | J13: 71.065 | K13: 71.978 | L13: 74.193 | M13: 77.859 | N13: 80.88 | O13: 84.163 | P13: 86.59 | Q13: 86.063 | R13: 82.622 | S13: 80.812 | T13: 79.075 | U13: 79.367 | V13: 85.327 | W13: 95.871 | X13: 104.883 | Y13: 113.707 | Z13: 120.897 | AA13: 123.196 | AB13: 121.062 | AC13: 119.773 | AD13: 118.205 | AE13: 116.394 | AF13: 115.646 | AG13: 116.056 | AH13: 115.025 | AI13: 113.725 | AJ13: 111.076 | AK13: 104.833 | AL13: 95.51 | AM13: 87.39 | AN13: 79.401 | AO13: 72.907 | AP13: 70.604 | AQ13: 71.573 | AR13: 72.303 | AS13: 73.103 | AT13: 74.598 | AU13: 76.901 | AV13: 79.806 | AW13: 82.613 | AX13: 85.714 | AY13: 87.85 | AZ13: 87.21 | BA13: 83.925 | BB13: 80.951 | BC13: 77.717 | BD13: 74.746 | BE13: 73.326 | BF13: 73.055 | BG13: 72.231 | BH13: 71.238 | BI13: 70.071 | BJ13: 68.315 | BK13: 66.509 | BL13: 64.869 | BM13: 63.311 | BN13: 61.818 | BO13: 60.501
A14: 12 | B14: 65.521 | C14: 66.715 | D14: 67.36 | E14: 68.025 | F14: 68.928 | G14: 69.794 | H14: 69.872 | I14: 70.112 | J14: 70.613 | K14: 70.821 | L14: 71.52 | M14: 74.231 | N14: 77.457 | O14: 80.347 | P14: 84.067 | Q14: 86.756 | R14: 85.009 | S14: 82.184 | T14: 80.516 | U14: 78.189 | V14: 78.304 | W14: 85.291 | X14: 95.525 | Y14: 104.481 | Z14: 113.857 | AA14: 121.292 | AB14: 122.553 | AC14: 120.818 | AD14: 119.686 | AE14: 117.809 | AF14: 115.745 | AG14: 115.596 | AH14: 115.554 | AI14: 114.457 | AJ14: 113.697 | AK14: 111.373 | AL14: 104.319 | AM14: 95.357 | AN14: 87.281 | AO14: 78.902 | AP14: 72.326 | AQ14: 70.375 | AR14: 71.399 | AS14: 72.129 | AT14: 72.871 | AU14: 74.345 | AV14: 76.786 | AW14: 79.588 | AX14: 82.436 | AY14: 85.827 | AZ14: 88.027 | BA14: 86.639 | BB14: 83.377 | BC14: 80.346 | BD14: 76.897 | BE14: 73.882 | BF14: 72.672 | BG14: 72.334 | BH14: 71.493 | BI14: 70.575 | BJ14: 69.449 | BK14: 68.045 | BL14: 66.236 | BM14: 64.585 | BN14: 63.003 | BO14: 61.493
A15: 13 | B15: 63.837 | C15: 65.545 | D15: 66.516 | E15: 67.068 | F15: 67.843 | G15: 68.939 | H15: 69.39 | I15: 69.77 | J15: 70.144 | K15: 70.507 | L15: 70.37 | M15: 71.505 | N15: 73.793 | O15: 76.798 | P15: 79.912 | Q15: 84.219 | R15: 85.652 | S15: 84.522 | T15: 82.03 | U15: 80.139 | V15: 77.102 | W15: 78.212 | X15: 84.917 | Y15: 94.969 | Z15: 104.171 | AA15: 114.233 | AB15: 120.624 | AC15: 122.275 | AD15: 120.769 | AE15: 119.463 | AF15: 117.138 | AG15: 115.65 | AH15: 115.05 | AI15: 114.826 | AJ15: 114.04 | AK15: 113.968 | AL15: 110.816 | AM15: 104.143 | AN15: 95.362 | AO15: 87.139 | AP15: 78.309 | AQ15: 72.069 | AR15: 70.176 | AS15: 71.218 | AT15: 71.924 | AU15: 72.605 | AV15: 74.191 | AW15: 76.535 | AX15: 79.299 | AY15: 82.272 | AZ15: 85.981 | BA15: 87.493 | BB15: 86.139 | BC15: 82.861 | BD15: 79.71 | BE15: 76.033 | BF15: 73.281 | BG15: 71.973 | BH15: 71.594 | BI15: 70.777 | BJ15: 69.947 | BK15: 69.198 | BL15: 67.786 | BM15: 65.965 | BN15: 64.29 | BO15: 62.674
A16: 14 | B16: 61.824 | C16: 63.846 | D16: 65.331 | E16: 66.208 | F16: 66.865 | G16: 67.812 | H16: 68.525 | I16: 69.268 | J16: 69.78 | K16: 70.071 | L16: 70.193 | M16: 70.318 | N16: 71.032 | O16: 73.11 | P16: 76.232 | Q16: 79.712 | R16: 83.097 | S16: 85.119 | T16: 84.325 | U16: 81.795 | V16: 79.559 | W16: 76.978 | X16: 77.81 | Y16: 84.357 | Z16: 94.497 | AA16: 104.069 | AB16: 113.56 | AC16: 120.314 | AD16: 122.194 | AE16: 120.583 | AF16: 118.961 | AG16: 117.004 | AH16: 115.059 | AI16: 114.278 | AJ16: 114.25 | AK16: 113.924 | AL16: 113.382 | AM16: 110.619 | AN16: 104.142 | AO16: 95.333 | AP16: 86.893 | AQ16: 78.021 | AR16: 71.843 | AS16: 69.969 | AT16: 71.006 | AU16: 71.685 | AV16: 72.412 | AW16: 73.905 | AX16: 76.215 | AY16: 79.022 | AZ16: 82.147 | BA16: 85.464 | BB16: 87.032 | BC16: 85.672 | BD16: 82.314 | BE16: 79.028 | BF16: 75.528 | BG16: 72.635 | BH16: 71.257 | BI16: 70.877 | BJ16: 70.096 | BK16: 69.721 | BL16: 68.958 | BM16: 67.528 | BN16: 65.683 | BO16: 63.975
A17: 15 | B17: 59.864 | C17: 61.824 | D17: 63.624 | E17: 65.008 | F17: 65.987 | G17: 66.809 | H17: 67.393 | I17: 68.389 | J17: 69.257 | K17: 69.685 | L17: 69.793 | M17: 70.116 | N17: 69.816 | O17: 70.323 | P17: 72.516 | Q17: 75.891 | R17: 78.593 | S17: 82.529 | T17: 84.878 | U17: 84.045 | V17: 81.351 | W17: 79.419 | X17: 76.549 | Y17: 77.237 | Z17: 83.871 | AA17: 94.213 | AB17: 103.405 | AC17: 113.225 | AD17: 120.198 | AE17: 121.975 | AF17: 120.115 | AG17: 118.794 | AH17: 116.369 | AI17: 114.242 | AJ17: 113.659 | AK17: 113.976 | AL17: 113.318 | AM17: 113.164 | AN17: 110.607 | AO17: 104.103 | AP17: 95.189 | AQ17: 86.572 | AR17: 77.765 | AS17: 71.608 | AT17: 69.733 | AU17: 70.76 | AV17: 71.458 | AW17: 72.092 | AX17: 73.553 | AY17: 75.907 | AZ17: 78.783 | BA17: 81.635 | BB17: 85.017 | BC17: 86.603 | BD17: 85.173 | BE17: 81.719 | BF17: 78.64 | BG17: 74.975 | BH17: 71.971 | BI17: 70.562 | BJ17: 70.195 | BK17: 69.897 | BL17: 69.506 | BM17: 68.72 | BN17: 67.26 | BO17: 65.38
A18: 16 | B18: 57.86 | C18: 59.849 | D18: 61.598 | E18: 63.297 | F18: 64.772 | G18: 65.911 | H18: 66.38 | I18: 67.247 | J18: 68.363 | K18: 69.142 | L18: 69.387 | M18: 69.685 | N18: 69.588 | O18: 69.082 | P18: 69.7 | Q18: 72.136 | R18: 74.768 | S18: 77.999 | T18: 82.245 | U18: 84.554 | V18: 83.551 | W18: 81.192 | X18: 78.964 | Y18: 75.951 | Z18: 76.732 | AA18: 83.553 | AB18: 93.557 | AC18: 103.048 | AD18: 113.071 | AE18: 119.946 | AF18: 121.47 | AG18: 119.911 | AH18: 118.117 | AI18: 115.505 | AJ18: 113.578 | AK18: 113.339 | AL18: 113.35 | AM18: 113.08 | AN18: 113.135 | AO18: 110.554 | AP18: 103.938 | AQ18: 94.836 | AR18: 86.287 | AS18: 77.501 | AT18: 71.343 | AU18: 69.463 | AV18: 70.498 | AW18: 71.104 | AX18: 71.707 | AY18: 73.213 | AZ18: 75.635 | BA18: 78.283 | BB18: 81.19 | BC18: 84.603 | BD18: 86.142 | BE18: 84.624 | BF18: 81.447 | BG18: 78.202 | BH18: 74.405 | BI18: 71.329 | BJ18: 69.902 | BK18: 70.026 | BL18: 69.71 | BM18: 69.294 | BN18: 68.471 | BO18: 66.969
A19: 17 | B19: 56.103 | C19: 57.828 | D19: 59.616 | E19: 61.272 | F19: 63.053 | G19: 64.678 | H19: 65.471 | I19: 66.221 | J19: 67.209 | K19: 68.234 | L19: 68.825 | M19: 69.247 | N19: 69.13 | O19: 68.83 | P19: 68.432 | Q19: 69.283 | R19: 71.008 | S19: 74.144 | T19: 77.672 | U19: 81.879 | V19: 84.014 | W19: 83.373 | X19: 80.712 | Y19: 78.336 | Z19: 75.421 | AA19: 76.381 | AB19: 82.905 | AC19: 93.178 | AD19: 102.858 | AE19: 112.79 | AF19: 119.413 | AG19: 121.229 | AH19: 119.192 | AI19: 117.208 | AJ19: 114.796 | AK19: 113.212 | AL19: 112.696 | AM19: 113.092 | AN19: 113.032 | AO19: 113.064 | AP19: 110.368 | AQ19: 103.551 | AR19: 94.521 | AS19: 85.993 | AT19: 77.204 | AU19: 71.044 | AV19: 69.167 | AW19: 70.112 | AX19: 70.686 | AY19: 71.333 | AZ19: 72.907 | BA19: 75.15 | BB19: 77.847 | BC19: 80.776 | BD19: 84.158 | BE19: 85.631 | BF19: 84.483 | BG19: 81.125 | BH19: 77.746 | BI19: 73.857 | BJ19: 70.723 | BK19: 69.766 | BL19: 69.868 | BM19: 69.525 | BN19: 69.069 | BO19: 68.199
A20: 18 | B20: 54.769 | C20: 56.056 | D20: 57.585 | E20: 59.285 | F20: 61.026 | G20: 62.949 | H20: 64.231 | I20: 65.296 | J20: 66.168 | K20: 67.07 | L20: 67.906 | M20: 68.66 | N20: 68.663 | O20: 68.346 | P20: 68.156 | Q20: 67.986 | R20: 68.15 | S20: 70.353 | T20: 73.775 | U20: 77.267 | V20: 81.304 | W20: 83.819 | X20: 82.866 | Y20: 80.054 | Z20: 77.778 | AA20: 75.042 | AB20: 75.737 | AC20: 82.504 | AD20: 92.95 | AE20: 102.55 | AF20: 112.245 | AG20: 119.137 | AH20: 120.468 | AI20: 118.24 | AJ20: 116.456 | AK20: 114.389 | AL20: 112.554 | AM20: 112.418 | AN20: 113.024 | AO20: 112.941 | AP20: 112.858 | AQ20: 109.956 | AR20: 103.207 | AS20: 94.197 | AT20: 85.662 | AU20: 76.87 | AV20: 70.729 | AW20: 68.748 | AX20: 69.663 | AY20: 70.28 | AZ20: 70.994 | BA20: 72.435 | BB20: 74.727 | BC20: 77.44 | BD20: 80.332 | BE20: 83.663 | BF20: 85.553 | BG20: 84.289 | BH20: 80.782 | BI20: 77.313 | BJ20: 73.345 | BK20: 70.603 | BL20: 69.642 | BM20: 69.712 | BN20: 69.328 | BO20: 68.822
A21: 19 | B21: 53.713 | C21: 54.714 | D21: 55.806 | E21: 57.248 | F21: 59.033 | G21: 60.915 | H21: 62.502 | I21: 64.044 | J21: 65.225 | K21: 66.016 | L21: 66.735 | M21: 67.723 | N21: 68.054 | O21: 67.852 | P21: 67.646 | Q21: 67.684 | R21: 66.847 | S21: 67.472 | T21: 69.94 | U21: 73.331 | V21: 76.666 | W21: 81.092 | X21: 83.292 | Y21: 82.176 | Z21: 79.467 | AA21: 77.375 | AB21: 74.394 | AC21: 75.32 | AD21: 82.236 | AE21: 92.615 | AF21: 102.003 | AG21: 111.935 | AH21: 118.349 | AI21: 119.471 | AJ21: 117.447 | AK21: 116.011 | AL21: 113.72 | AM21: 112.262 | AN21: 112.329 | AO21: 112.914 | AP21: 112.715 | AQ21: 112.435 | AR21: 109.59 | AS21: 102.851 | AT21: 93.832 | AU21: 85.29 | AV21: 76.559 | AW21: 70.288 | AX21: 68.267 | AY21: 69.225 | AZ21: 69.908 | BA21: 70.53 | BB21: 72.022 | BC21: 74.332 | BD21: 77.005 | BE21: 79.841 | BF21: 83.542 | BG21: 85.422 | BH21: 84.075 | BI21: 80.464 | BJ21: 76.918 | BK21: 73.213 | BL21: 70.495 | BM21: 69.52 | BN21: 69.544 | BO21: 69.109
A22: 20 | B22: 52.623 | C22: 53.653 | D22: 54.46 | E22: 55.465 | F22: 56.986 | G22: 58.911 | H22: 60.474 | I22: 62.309 | J22: 63.959 | K22: 65.057 | L22: 65.67 | M22: 66.54 | N22: 67.105 | O22: 67.222 | P22: 67.124 | Q22: 67.146 | R22: 66.542 | S22: 66.156 | T22: 67.025 | U22: 69.456 | V22: 72.7 | W22: 76.437 | X22: 80.558 | Y22: 82.582 | Z22: 81.559 | AA22: 79.039 | AB22: 76.717 | AC22: 73.968 | AD22: 75.023 | AE22: 81.874 | AF22: 92.064 | AG22: 101.663 | AH22: 111.145 | AI22: 117.33 | AJ22: 118.634 | AK22: 116.962 | AL22: 115.334 | AM22: 113.42 | AN22: 112.158 | AO22: 112.198 | AP22: 112.668 | AQ22: 112.291 | AR22: 112.059 | AS22: 109.212 | AT22: 102.452 | AU22: 93.423 | AV22: 84.999 | AW22: 76.112 | AX22: 69.785 | AY22: 67.798 | AZ22: 68.82 | BA22: 69.449 | BB22: 70.124 | BC22: 71.636 | BD22: 73.909 | BE22: 76.525 | BF22: 79.609 | BG22: 83.368 | BH22: 85.27 | BI22: 83.886 | BJ22: 80.186 | BK22: 76.757 | BL22: 73.094 | BM22: 70.388 | BN22: 69.385 | BO22: 69.354
A23: 21 | B23: 51.57 | C23: 52.558 | D23: 53.398 | E23: 54.117 | F23: 55.196 | G23: 56.851 | H23: 58.476 | I23: 60.278 | J23: 62.215 | K23: 63.779 | L23: 64.699 | M23: 65.464 | N23: 65.917 | O23: 66.264 | P23: 66.473 | Q23: 66.595 | R23: 66.003 | S23: 65.844 | T23: 65.691 | U23: 66.51 | V23: 68.794 | W23: 72.457 | X23: 75.904 | Y23: 79.847 | Z23: 81.946 | AA23: 81.106 | AB23: 78.374 | AC23: 76.287 | AD23: 73.66 | AE23: 74.641 | AF23: 81.32 | AG23: 91.696 | AH23: 100.886 | AI23: 110.138 | AJ23: 116.469 | AK23: 118.11 | AL23: 116.28 | AM23: 115.032 | AN23: 113.31 | AO23: 112.012 | AP23: 111.932 | AQ23: 112.242 | AR23: 111.913 | AS23: 111.67 | AT23: 108.787 | AU23: 102.004 | AV23: 93.152 | AW23: 84.557 | AX23: 75.597 | AY23: 69.292 | AZ23: 67.361 | BA23: 68.368 | BB23: 69.048 | BC23: 69.745 | BD23: 71.224 | BE23: 73.444 | BF23: 76.193 | BG23: 79.328 | BH23: 83.175 | BI23: 85.144 | BJ23: 83.738 | BK23: 79.999 | BL23: 76.609 | BM23: 72.976 | BN23: 70.27 | BO23: 69.229
A24: 22 | B24: 50.486 | C24: 51.499 | D24: 52.302 | E24: 53.056 | F24: 53.845 | G24: 55.05 | H24: 56.422 | I24: 58.278 | J24: 60.179 | K24: 62.028 | L24: 63.412 | M24: 64.484 | N24: 64.838 | O24: 65.076 | P24: 65.506 | Q24: 65.922 | R24: 65.453 | S24: 65.3 | T24: 65.372 | U24: 65.16 | V24: 65.825 | W24: 68.539 | X24: 71.926 | Y24: 75.205 | Z24: 79.208 | AA24: 81.474 | AB24: 80.433 | AC24: 77.942 | AD24: 75.98 | AE24: 73.268 | AF24: 74.083 | AG24: 80.924 | AH24: 90.933 | AI24: 99.913 | AJ24: 109.279 | AK24: 115.914 | AL24: 117.423 | AM24: 115.976 | AN24: 114.922 | AO24: 113.157 | AP24: 111.731 | AQ24: 111.508 | AR24: 111.863 | AS24: 111.523 | AT24: 111.234 | AU24: 108.311 | AV24: 101.757 | AW24: 92.716 | AX24: 84.039 | AY24: 75.094 | AZ24: 68.833 | BA24: 66.914 | BB24: 67.972 | BC24: 68.674 | BD24: 69.339 | BE24: 70.77 | BF24: 73.004 | BG24: 75.814 | BH24: 79.027 | BI24: 83.006 | BJ24: 85.059 | BK24: 83.522 | BL24: 79.825 | BM24: 76.463 | BN24: 72.846 | BO24: 70.129
A25: 23 | B25: 49.309 | C25: 50.411 | D25: 51.241 | E25: 51.959 | F25: 52.783 | G25: 53.692 | H25: 54.626 | I25: 56.222 | J25: 58.172 | K25: 59.989 | L25: 61.66 | M25: 63.189 | N25: 63.855 | O25: 63.996 | P25: 64.316 | Q25: 64.942 | R25: 64.784 | S25: 64.749 | T25: 64.822 | U25: 64.834 | V25: 64.461 | W25: 65.562 | X25: 68.012 | Y25: 71.238 | Z25: 74.573 | AA25: 78.727 | AB25: 80.801 | AC25: 80.001 | AD25: 77.635 | AE25: 75.585 | AF25: 72.704 | AG25: 73.671 | AH25: 80.179 | AI25: 89.993 | AJ25: 99.074 | AK25: 108.707 | AL25: 115.237 | AM25: 117.117 | AN25: 115.865 | AO25: 114.769 | AP25: 112.869 | AQ25: 111.309 | AR25: 111.129 | AS25: 111.472 | AT25: 111.085 | AU25: 110.745 | AV25: 108.085 | AW25: 101.33 | AX25: 92.197 | AY25: 83.535 | AZ25: 74.627 | BA25: 68.392 | BB25: 66.522 | BC25: 67.602 | BD25: 68.273 | BE25: 68.893 | BF25: 70.263 | BG25: 72.519 | BH25: 75.417 | BI25: 78.751 | BJ25: 82.878 | BK25: 84.826 | BL25: 83.32 | BM25: 79.653 | BN25: 76.304 | BO25: 72.693
A26: 24 | B26: 48.094 | C26: 49.231 | D26: 50.153 | E26: 50.899 | F26: 51.685 | G26: 52.627 | H26: 53.273 | I26: 54.425 | J26: 56.111 | K26: 57.98 | L26: 59.624 | M26: 61.429 | N26: 62.561 | O26: 63.015 | P26: 63.234 | Q26: 63.746 | R26: 63.811 | S26: 64.08 | T26: 64.266 | U26: 64.277 | V26: 64.129 | W26: 64.195 | X26: 65.039 | Y26: 67.336 | Z26: 70.613 | AA26: 74.091 | AB26: 78.066 | AC26: 80.37 | AD26: 79.696 | AE26: 77.239 | AF26: 75.014 | AG26: 72.291 | AH26: 72.94 | AI26: 79.278 | AJ26: 89.175 | AK26: 98.496 | AL26: 108.061 | AM26: 114.934 | AN26: 117.007 | AO26: 115.712 | AP26: 114.478 | AQ26: 112.449 | AR26: 110.933 | AS26: 110.739 | AT26: 111.033 | AU26: 110.594 | AV26: 110.536 | AW26: 107.669 | AX26: 100.812 | AY26: 91.693 | AZ26: 83.071 | BA26: 74.192 | BB26: 68.007 | BC26: 66.156 | BD26: 67.206 | BE26: 67.833 | BF26: 68.39 | BG26: 69.711 | BH26: 72.016 | BI26: 75.043 | BJ26: 78.513 | BK26: 82.649 | BL26: 84.608 | BM26: 83.121 | BN26: 79.468 | BO26: 76.121
A27: 25 | B27: 46.955 | C27: 48.012 | D27: 48.973 | E27: 49.812 | F27: 50.625 | G27: 51.526 | H27: 52.211 | I27: 53.07 | J27: 54.31 | K27: 55.917 | L27: 57.618 | M27: 59.384 | N27: 60.802 | O27: 61.725 | P27: 62.253 | Q27: 62.66 | R27: 62.626 | S27: 63.108 | T27: 63.595 | U27: 63.718 | V27: 63.568 | W27: 63.863 | X27: 63.674 | Y27: 64.373 | Z27: 66.72 | AA27: 70.13 | AB27: 73.448 | AC27: 77.638 | AD27: 80.068 | AE27: 79.301 | AF27: 76.663 | AG27: 74.612 | AH27: 71.567 | AI27: 72.069 | AJ27: 78.485 | AK27: 88.591 | AL27: 97.894 | AM27: 107.766 | AN27: 114.823 | AO27: 116.854 | AP27: 115.419 | AQ27: 114.061 | AR27: 112.076 | AS27: 110.545 | AT27: 110.301 | AU27: 110.542 | AV27: 110.399 | AW27: 110.132 | AX27: 107.156 | AY27: 100.31 | AZ27: 91.233 | BA27: 82.643 | BB27: 73.819 | BC27: 67.648 | BD27: 65.764 | BE27: 66.771 | BF27: 67.38 | BG27: 67.844 | BH27: 69.143 | BI27: 71.535 | BJ27: 74.705 | BK27: 78.3 | BL27: 82.433 | BM27: 84.391 | BN27: 82.907 | BO27: 79.257
A28: 26 | B28: 45.873 | C28: 46.871 | D28: 47.755 | E28: 48.635 | F28: 49.537 | G28: 50.462 | H28: 51.114 | I28: 52.008 | J28: 52.952 | K28: 54.114 | L28: 55.559 | M28: 57.372 | N28: 58.763 | O28: 59.975 | P28: 60.966 | Q28: 61.676 | R28: 61.551 | S28: 61.924 | T28: 62.62 | U28: 63.044 | V28: 63.006 | W28: 63.303 | X28: 63.343 | Y28: 63.013 | Z28: 63.764 | AA28: 66.237 | AB28: 69.505 | AC28: 73.025 | AD28: 77.334 | AE28: 79.674 | AF28: 78.72 | AG28: 76.273 | AH28: 73.89 | AI28: 70.704 | AJ28: 71.295 | AK28: 77.898 | AL28: 88.033 | AM28: 97.61 | AN28: 107.652 | AO28: 114.67 | AP28: 116.56 | AQ28: 115.008 | AR28: 113.692 | AS28: 111.69 | AT28: 110.109 | AU28: 109.811 | AV28: 110.361 | AW28: 110.007 | AX28: 109.629 | AY28: 106.661 | AZ28: 99.856 | BA28: 90.812 | BB28: 82.284 | BC28: 73.473 | BD28: 67.263 | BE28: 65.335 | BF28: 66.357 | BG28: 66.885 | BH28: 67.282 | BI28: 68.596 | BJ28: 71.089 | BK28: 74.505 | BL28: 78.1 | BM28: 82.219 | BN28: 84.16 | BO28: 82.666
A29: 27 | B29: 44.858 | C29: 45.786 | D29: 46.616 | E29: 47.421 | F29: 48.361 | G29: 49.372 | H29: 50.055 | I29: 50.91 | J29: 51.887 | K29: 52.755 | L29: 53.76 | M29: 55.306 | N29: 56.756 | O29: 57.946 | P29: 59.222 | Q29: 60.388 | R29: 60.579 | S29: 60.854 | T29: 61.435 | U29: 62.068 | V29: 62.333 | W29: 62.744 | X29: 62.787 | Y29: 62.685 | Z29: 62.409 | AA29: 63.284 | AB29: 65.631 | AC29: 69.087 | AD29: 72.718 | AE29: 76.942 | AF29: 79.093 | AG29: 78.345 | AH29: 75.555 | AI29: 73.023 | AJ29: 69.937 | AK29: 70.708 | AL29: 77.388 | AM29: 87.761 | AN29: 97.489 | AO29: 107.497 | AP29: 114.379 | AQ29: 116.154 | AR29: 114.643 | AS29: 113.31 | AT29: 111.257 | AU29: 109.622 | AV29: 109.647 | AW29: 109.986 | AX29: 109.517 | AY29: 109.144 | AZ29: 106.216 | BA29: 99.44 | BB29: 90.465 | BC29: 81.956 | BD29: 73.1 | BE29: 66.84 | BF29: 64.959 | BG29: 65.902 | BH29: 66.374 | BI29: 66.74 | BJ29: 68.083 | BK29: 70.902 | BL29: 74.318 | BM29: 77.902 | BN29: 81.992 | BO29: 83.902
A30: 28 | B30: 43.929 | C30: 44.768 | D30: 45.533 | E30: 46.284 | F30: 47.148 | G30: 48.194 | H30: 48.969 | I30: 49.851 | J30: 50.787 | K30: 51.688 | L30: 52.403 | M30: 53.503 | N30: 54.698 | O30: 55.952 | P30: 57.203 | Q30: 58.646 | R30: 59.307 | S30: 59.888 | T30: 60.366 | U30: 60.883 | V30: 61.358 | W30: 62.072 | X30: 62.232 | Y30: 62.133 | Z30: 62.082 | AA30: 61.929 | AB30: 62.692 | AC30: 65.22 | AD30: 68.78 | AE30: 72.328 | AF30: 76.37 | AG30: 78.729 | AH30: 77.633 | AI30: 74.69 | AJ30: 72.256 | AK30: 69.354 | AL30: 70.231 | AM30: 77.129 | AN30: 87.636 | AO30: 97.332 | AP30: 107.213 | AQ30: 113.981 | AR30: 115.796 | AS30: 114.267 | AT30: 112.88 | AU30: 110.772 | AV30: 109.474 | AW30: 109.288 | AX30: 109.511 | AY30: 109.045 | AZ30: 108.71 | BA30: 105.808 | BB30: 99.106 | BC30: 90.154 | BD30: 81.597 | BE30: 72.684 | BF30: 66.498 | BG30: 64.543 | BH30: 65.431 | BI30: 65.884 | BJ30: 66.232 | BK30: 67.907 | BL30: 70.726 | BM30: 74.133 | BN30: 77.691 | BO30: 81.738
A31: 29 | B31: 43.076 | C31: 43.836 | D31: 44.516 | E31: 45.204 | F31: 46.014 | G31: 46.981 | H31: 47.795 | I31: 48.765 | J31: 49.726 | K31: 50.588 | L31: 51.338 | M31: 52.144 | N31: 52.903 | O31: 53.909 | P31: 55.219 | Q31: 56.629 | R31: 57.585 | S31: 58.623 | T31: 59.402 | U31: 59.815 | V31: 60.175 | W31: 61.099 | X31: 61.566 | Y31: 61.584 | Z31: 61.535 | AA31: 61.605 | AB31: 61.346 | AC31: 62.288 | AD31: 64.914 | AE31: 68.394 | AF31: 71.769 | AG31: 76.008 | AH31: 78.026 | AI31: 76.77 | AJ31: 73.926 | AK31: 71.679 | AL31: 68.884 | AM31: 69.981 | AN31: 76.999 | AO31: 87.478 | AP31: 97.058 | AQ31: 106.828 | AR31: 113.631 | AS31: 115.426 | AT31: 113.842 | AU31: 112.396 | AV31: 110.64 | AW31: 109.132 | AX31: 108.832 | AY31: 109.054 | AZ31: 108.625 | BA31: 108.317 | BB31: 105.488 | BC31: 98.81 | BD31: 89.808 | BE31: 81.19 | BF31: 72.364 | BG31: 66.115 | BH31: 64.112 | BI31: 64.98 | BJ31: 65.425 | BK31: 66.065 | BL31: 67.743 | BM31: 70.552 | BN31: 73.935 | BO31: 77.455
A32: 30 | B32: 42.235 | C32: 42.979 | D32: 43.583 | E32: 44.191 | F32: 44.936 | G32: 45.845 | H32: 46.585 | I32: 47.59 | J32: 48.638 | K32: 49.527 | L32: 50.24 | M32: 51.078 | N32: 51.549 | O32: 52.127 | P32: 53.188 | Q32: 54.65 | R32: 55.59 | S32: 56.909 | T32: 58.14 | U32: 58.855 | V32: 59.111 | W32: 59.916 | X32: 60.597 | Y32: 60.924 | Z32: 60.991 | AA32: 61.06 | AB32: 61.026 | AC32: 60.946 | AD32: 61.983 | AE32: 64.533 | AF32: 67.848 | AG32: 71.404 | AH32: 75.319 | AI32: 77.172 | AJ32: 76.01 | AK32: 73.357 | AL32: 71.199 | AM32: 68.637 | AN32: 69.849 | AO32: 76.841 | AP32: 87.214 | AQ32: 96.688 | AR32: 106.487 | AS32: 113.269 | AT32: 115.006 | AU32: 113.362 | AV32: 112.281 | AW32: 110.313 | AX32: 108.692 | AY32: 108.393 | AZ32: 108.649 | BA32: 108.248 | BB32: 108.012 | BC32: 105.209 | BD32: 98.477 | BE32: 89.41 | BF32: 80.883 | BG32: 71.998 | BH32: 65.716 | BI32: 63.7 | BJ32: 64.56 | BK32: 65.266 | BL32: 65.91 | BM32: 67.58 | BN32: 70.367 | BO32: 73.713
A33: 31 | B33: 41.377 | C33: 42.134 | D33: 42.725 | E33: 43.259 | F33: 43.924 | G33: 44.767 | H33: 45.453 | I33: 46.379 | J33: 47.461 | K33: 48.439 | L33: 49.182 | M33: 49.98 | N33: 50.489 | O33: 50.785 | P33: 51.417 | Q33: 52.624 | R33: 53.634 | S33: 54.923 | T33: 56.428 | U33: 57.597 | V33: 58.157 | W33: 58.854 | X33: 59.419 | Y33: 59.962 | Z33: 60.337 | AA33: 60.52 | AB33: 60.487 | AC33: 60.63 | AD33: 60.644 | AE33: 61.607 | AF33: 64.001 | AG33: 67.482 | AH33: 70.731 | AI33: 74.483 | AJ33: 76.421 | AK33: 75.451 | AL33: 72.871 | AM33: 70.951 | AN33: 68.505 | AO33: 69.69 | AP33: 76.59 | AQ33: 86.859 | AR33: 96.357 | AS33: 106.135 | AT33: 112.858 | AU33: 114.532 | AV33: 113.262 | AW33: 111.967 | AX33: 109.887 | AY33: 108.27 | AZ33: 108.005 | BA33: 108.289 | BB33: 107.961 | BC33: 107.75 | BD33: 104.89 | BE33: 98.087 | BF33: 89.12 | BG33: 80.525 | BH33: 71.615 | BI33: 65.337 | BJ33: 63.319 | BK33: 64.409 | BL33: 65.117 | BM33: 65.756 | BN33: 67.406 | BO33: 70.158
A34: 32 | B34: 40.695 | C34: 41.272 | D34: 41.88 | E34: 42.401 | F34: 42.992 | G34: 43.754 | H34: 44.379 | I34: 45.246 | J34: 46.246 | K34: 47.26 | L34: 48.097 | M34: 48.924 | N34: 49.399 | O34: 49.734 | P34: 50.084 | Q34: 50.859 | R34: 51.634 | S34: 52.978 | T34: 54.444 | U34: 55.889 | V34: 56.907 | W34: 57.903 | X34: 58.363 | Y34: 58.792 | Z34: 59.381 | AA34: 59.871 | AB34: 59.955 | AC34: 60.095 | AD34: 60.33 | AE34: 60.272 | AF34: 61.087 | AG34: 63.636 | AH34: 66.825 | AI34: 69.921 | AJ34: 73.748 | AK34: 75.872 | AL34: 74.958 | AM34: 72.623 | AN34: 70.822 | AO34: 68.348 | AP34: 69.448 | AQ34: 76.25 | AR34: 86.538 | AS34: 96.016 | AT34: 105.737 | AU34: 112.393 | AV34: 114.447 | AW34: 112.962 | AX34: 111.553 | AY34: 109.478 | AZ34: 107.899 | BA34: 107.662 | BB34: 108.017 | BC34: 107.715 | BD34: 107.447 | BE34: 104.51 | BF34: 97.816 | BG34: 88.774 | BH34: 80.147 | BI34: 71.254 | BJ34: 64.99 | BK34: 63.175 | BL34: 64.268 | BM34: 64.971 | BN34: 65.591 | BO34: 67.211
A35: 33 | B35: 40.267 | C35: 40.586 | D35: 41.017 | E35: 41.556 | F35: 42.133 | G35: 42.82 | H35: 43.368 | I35: 44.171 | J35: 45.111 | K35: 46.044 | L35: 46.922 | M35: 47.838 | N35: 48.351 | O35: 48.654 | P35: 49.041 | Q35: 49.532 | R35: 49.89 | S35: 50.99 | T35: 52.502 | U35: 53.909 | V35: 55.207 | W35: 56.653 | X35: 57.419 | Y35: 57.744 | Z35: 58.218 | AA35: 58.92 | AB35: 59.31 | AC35: 59.568 | AD35: 59.799 | AE35: 59.961 | AF35: 59.759 | AG35: 60.723 | AH35: 62.998 | AI35: 66.039 | AJ35: 69.205 | AK35: 73.207 | AL35: 75.377 | AM35: 74.708 | AN35: 72.495 | AO35: 70.665 | AP35: 68.108 | AQ35: 69.118 | AR35: 75.941 | AS35: 86.209 | AT35: 95.634 | AU35: 105.289 | AV35: 112.318 | AW35: 114.16 | AX35: 112.561 | AY35: 111.157 | AZ35: 109.122 | BA35: 107.567 | BB35: 107.408 | BC35: 107.788 | BD35: 107.428 | BE35: 107.081 | BF35: 104.255 | BG35: 97.485 | BH35: 88.407 | BI35: 79.794 | BJ35: 70.927 | BK35: 64.85 | BL35: 63.042 | BM35: 64.129 | BN35: 64.813 | BO35: 65.405
A36: 34 | B36: 39.981 | C36: 40.152 | D36: 40.329 | E36: 40.694 | F36: 41.288 | G36: 41.959 | H36: 42.436 | I36: 43.159 | J36: 44.033 | K36: 44.907 | L36: 45.708 | M36: 46.659 | N36: 47.272 | O36: 47.618 | P36: 47.97 | Q36: 48.494 | R36: 48.576 | S36: 49.256 | T36: 50.52 | U36: 51.973 | V36: 53.236 | W36: 54.95 | X36: 56.174 | Y36: 56.809 | Z36: 57.177 | AA36: 57.761 | AB36: 58.362 | AC36: 58.926 | AD36: 59.276 | AE36: 59.434 | AF36: 59.452 | AG36: 59.395 | AH36: 60.098 | AI36: 62.237 | AJ36: 65.343 | AK36: 68.672 | AL36: 72.721 | AM36: 75.126 | AN36: 74.583 | AO36: 72.341 | AP36: 70.424 | AQ36: 67.778 | AR36: 68.816 | AS36: 75.624 | AT36: 85.843 | AU36: 95.207 | AV36: 105.216 | AW36: 112.044 | AX36: 113.77 | AY36: 112.177 | AZ36: 110.813 | BA36: 108.792 | BB36: 107.324 | BC36: 107.195 | BD36: 107.518 | BE36: 107.08 | BF36: 106.835 | BG36: 103.935 | BH36: 97.129 | BI36: 88.066 | BJ36: 79.48 | BK36: 70.783 | BL36: 64.72 | BM36: 62.911 | BN36: 63.979 | BO36: 64.634
A37: 35 | B37: 39.667 | C37: 39.861 | D37: 39.892 | E37: 40.006 | F37: 40.426 | G37: 41.111 | H37: 41.575 | I37: 42.224 | J37: 43.018 | K37: 43.829 | L37: 44.573 | M37: 45.439 | N37: 46.095 | O37: 46.549 | P37: 46.944 | Q37: 47.429 | R37: 47.546 | S37: 47.945 | T37: 48.789 | U37: 49.998 | V37: 51.31 | W37: 52.973 | X37: 54.474 | Y37: 55.573 | Z37: 56.251 | AA37: 56.725 | AB37: 57.205 | AC37: 57.979 | AD37: 58.637 | AE37: 58.916 | AF37: 58.931 | AG37: 59.088 | AH37: 58.776 | AI37: 59.356 | AJ37: 61.561 | AK37: 64.818 | AL37: 68.202 | AM37: 72.472 | AN37: 75.002 | AO37: 74.43 | AP37: 72.099 | AQ37: 70.088 | AR37: 67.475 | AS37: 68.507 | AT37: 75.275 | AU37: 85.436 | AV37: 95.13 | AW37: 104.956 | AX37: 111.669 | AY37: 113.398 | AZ37: 111.846 | BA37: 110.48 | BB37: 108.552 | BC37: 107.123 | BD37: 106.942 | BE37: 107.185 | BF37: 106.837 | BG37: 106.522 | BH37: 103.589 | BI37: 96.804 | BJ37: 87.769 | BK37: 79.327 | BL37: 70.652 | BM37: 64.593 | BN37: 62.769 | BO37: 63.808
A38: 36 | B38: 39.379 | C38: 39.541 | D38: 39.596 | E38: 39.566 | F38: 39.736 | G38: 40.247 | H38: 40.728 | I38: 41.361 | J38: 42.079 | K38: 42.812 | L38: 43.496 | M38: 44.299 | N38: 44.877 | O38: 45.38 | P38: 45.884 | Q38: 46.411 | R38: 46.491 | S38: 46.918 | T38: 47.479 | U38: 48.272 | V38: 49.348 | W38: 51.041 | X38: 52.499 | Y38: 53.879 | Z38: 55.021 | AA38: 55.805 | AB38: 56.171 | AC38: 56.82 | AD38: 57.688 | AE38: 58.28 | AF38: 58.419 | AG38: 58.566 | AH38: 58.47 | AI38: 58.042 | AJ38: 58.695 | AK38: 61.047 | AL38: 64.362 | AM38: 67.955 | AN38: 72.344 | AO38: 74.849 | AP38: 74.188 | AQ38: 71.757 | AR38: 69.78 | AS38: 67.166 | AT38: 68.169 | AU38: 74.891 | AV38: 85.355 | AW38: 94.885 | AX38: 104.602 | AY38: 111.312 | AZ38: 113.08 | BA38: 111.51 | BB38: 110.237 | BC38: 108.354 | BD38: 106.881 | BE38: 106.627 | BF38: 106.947 | BG38: 106.529 | BH38: 106.183 | BI38: 103.275 | BJ38: 96.525 | BK38: 87.608 | BL38: 79.188 | BM38: 70.522 | BN38: 64.454 | BO38: 62.607
A39: 37 | B39: 38.852 | C39: 39.247 | D39: 39.271 | E39: 39.265 | F39: 39.292 | G39: 39.553 | H39: 39.864 | I39: 40.51 | J39: 41.211 | K39: 41.871 | L39: 42.481 | M39: 43.217 | N39: 43.74 | O39: 44.168 | P39: 44.721 | Q39: 45.356 | R39: 45.481 | S39: 45.865 | T39: 46.449 | U39: 46.963 | V39: 47.631 | W39: 49.073 | X39: 50.57 | Y39: 51.911 | Z39: 53.333 | AA39: 54.58 | AB39: 55.251 | AC39: 55.785 | AD39: 56.526 | AE39: 57.331 | AF39: 57.787 | AG39: 58.053 | AH39: 57.95 | AI39: 57.738 | AJ39: 57.387 | AK39: 58.189 | AL39: 60.603 | AM39: 64.115 | AN39: 67.821 | AO39: 72.189 | AP39: 74.606 | AQ39: 73.839 | AR39: 71.444 | AS39: 69.465 | AT39: 66.827 | AU39: 67.798 | AV39: 74.804 | AW39: 85.123 | AX39: 94.555 | AY39: 104.265 | AZ39: 111.008 | BA39: 112.737 | BB39: 111.265 | BC39: 110.037 | BD39: 108.116 | BE39: 106.577 | BF39: 106.391 | BG39: 106.642 | BH39: 106.195 | BI39: 105.877 | BJ39: 103.011 | BK39: 96.353 | BL39: 87.461 | BM39: 79.052 | BN39: 70.38 | BO39: 64.295
A40: 38 | B40: 37.944 | C40: 38.715 | D40: 38.972 | E40: 38.937 | F40: 38.987 | G40: 39.105 | H40: 39.171 | I40: 39.643 | J40: 40.357 | K40: 41 | L40: 41.541 | M40: 42.202 | N40: 42.658 | O40: 43.036 | P40: 43.514 | Q40: 44.196 | R40: 44.442 | S40: 44.856 | T40: 45.396 | U40: 45.933 | V40: 46.326 | W40: 47.355 | X40: 48.603 | Y40: 49.988 | Z40: 51.369 | AA40: 52.893 | AB40: 54.032 | AC40: 54.862 | AD40: 55.488 | AE40: 56.167 | AF40: 56.84 | AG40: 57.426 | AH40: 57.437 | AI40: 57.221 | AJ40: 57.085 | AK40: 56.884 | AL40: 57.754 | AM40: 60.356 | AN40: 63.976 | AO40: 67.662 | AP40: 71.947 | AQ40: 74.255 | AR40: 73.519 | AS40: 71.124 | AT40: 69.121 | AU40: 66.457 | AV40: 67.706 | AW40: 74.586 | AX40: 84.815 | AY40: 94.24 | AZ40: 103.977 | BA40: 110.666 | BB40: 112.487 | BC40: 111.062 | BD40: 109.797 | BE40: 107.814 | BF40: 106.342 | BG40: 106.09 | BH40: 106.311 | BI40: 105.892 | BJ40: 105.622 | BK40: 102.829 | BL40: 96.197 | BM40: 87.317 | BN40: 78.902 | BO40: 70.215
A41: 39 | B41: 36.778 | C41: 37.805 | D41: 38.438 | E41: 38.633 | F41: 38.654 | G41: 38.795 | H41: 38.724 | I41: 38.948 | J41: 39.485 | K41: 40.143 | L41: 40.669 | M41: 41.273 | N41: 41.651 | O41: 41.959 | P41: 42.387 | Q41: 42.99 | R41: 43.312 | S41: 43.827 | T41: 44.384 | U41: 44.879 | V41: 45.298 | W41: 46.059 | X41: 46.891 | Y41: 48.026 | Z41: 49.451 | AA41: 50.93 | AB41: 52.361 | AC41: 53.646 | AD41: 54.561 | AE41: 55.127 | AF41: 55.676 | AG41: 56.493 | AH41: 56.817 | AI41: 56.71 | AJ41: 56.57 | AK41: 56.582 | AL41: 56.455 | AM41: 57.508 | AN41: 60.21 | AO41: 63.812 | AP41: 67.421 | AQ41: 71.604 | AR41: 73.934 | AS41: 73.192 | AT41: 70.773 | AU41: 68.743 | AV41: 66.362 | AW41: 67.495 | AX41: 74.3 | AY41: 84.52 | AZ41: 93.969 | BA41: 103.648 | BB41: 110.416 | BC41: 112.28 | BD41: 110.819 | BE41: 109.492 | BF41: 107.576 | BG41: 106.041 | BH41: 105.762 | BI41: 106.013 | BJ41: 105.642 | BK41: 105.431 | BL41: 102.664 | BM41: 96.044 | BN41: 87.158 | BO41: 78.726
A42: 40 | B42: 35.605 | C42: 36.638 | D42: 37.529 | E42: 38.097 | F42: 38.345 | G42: 38.457 | H42: 38.416 | I42: 38.501 | J42: 38.787 | K42: 39.268 | L42: 39.811 | M42: 40.419 | N42: 40.739 | O42: 40.963 | P42: 41.314 | Q42: 41.864 | R42: 42.144 | S42: 42.719 | T42: 43.361 | U42: 43.866 | V42: 44.247 | W42: 45.046 | X42: 45.609 | Y42: 46.325 | Z42: 47.493 | AA42: 49.013 | AB42: 50.419 | AC42: 51.985 | AD42: 53.345 | AE42: 54.197 | AF42: 54.637 | AG42: 55.349 | AH42: 55.903 | AI42: 56.099 | AJ42: 56.059 | AK42: 56.068 | AL42: 56.156 | AM42: 56.21 | AN42: 57.357 | AO42: 60.041 | AP42: 63.572 | AQ42: 67.091 | AR42: 71.29 | AS42: 73.606 | AT42: 72.834 | AU42: 70.389 | AV42: 68.645 | AW42: 66.149 | AX42: 67.223 | AY42: 74.026 | AZ42: 84.265 | BA42: 93.659 | BB42: 103.405 | BC42: 110.208 | BD42: 112.032 | BE42: 110.511 | BF42: 109.248 | BG42: 107.271 | BH42: 105.714 | BI42: 105.467 | BJ42: 105.766 | BK42: 105.443 | BL42: 105.258 | BM42: 102.501 | BN42: 95.875 | BO42: 86.971
A43: 41 | B43: 34.359 | C43: 35.466 | D43: 36.366 | E43: 37.191 | F43: 37.807 | G43: 38.142 | H43: 38.079 | I43: 38.193 | J43: 38.339 | K43: 38.567 | L43: 38.935 | M43: 39.578 | N43: 39.908 | O43: 40.071 | P43: 40.326 | Q43: 40.791 | R43: 41.055 | S43: 41.58 | T43: 42.271 | U43: 42.85 | V43: 43.235 | W43: 44.009 | X43: 44.614 | Y43: 45.06 | Z43: 45.8 | AA43: 47.055 | AB43: 48.522 | AC43: 50.058 | AD43: 51.692 | AE43: 52.983 | AF43: 53.706 | AG43: 54.33 | AH43: 54.784 | AI43: 55.204 | AJ43: 55.456 | AK43: 55.557 | AL43: 55.645 | AM43: 55.912 | AN43: 56.059 | AO43: 57.185 | AP43: 59.8 | AQ43: 63.254 | AR43: 66.789 | AS43: 70.968 | AT43: 73.245 | AU43: 72.441 | AV43: 70.286 | AW43: 68.425 | AX43: 65.877 | AY43: 66.962 | AZ43: 73.787 | BA43: 83.973 | BB43: 93.427 | BC43: 103.201 | BD43: 109.959 | BE43: 111.718 | BF43: 110.26 | BG43: 108.937 | BH43: 106.939 | BI43: 105.418 | BJ43: 105.223 | BK43: 105.558 | BL43: 105.261 | BM43: 105.087 | BN43: 102.322 | BO43: 95.674
A44: 42 | B44: 33.162 | C44: 34.22 | D44: 35.197 | E44: 36.034 | F44: 36.903 | G44: 37.601 | H44: 37.767 | I44: 37.857 | J44: 38.031 | K44: 38.118 | L44: 38.235 | M44: 38.721 | N44: 39.089 | O44: 39.265 | P44: 39.453 | Q44: 39.81 | R44: 40.021 | S44: 40.521 | T44: 41.159 | U44: 41.78 | V44: 42.229 | W44: 43.013 | X44: 43.596 | Y44: 44.086 | Z44: 44.551 | AA44: 45.367 | AB44: 46.586 | AC44: 48.175 | AD44: 49.777 | AE44: 51.34 | AF44: 52.497 | AG44: 53.422 | AH44: 53.789 | AI44: 54.113 | AJ44: 54.58 | AK44: 54.959 | AL44: 55.138 | AM44: 55.403 | AN44: 55.763 | AO44: 55.887 | AP44: 56.944 | AQ44: 59.496 | AR44: 62.963 | AS44: 66.48 | AT44: 70.616 | AU44: 72.851 | AV44: 72.333 | AW44: 70.059 | AX44: 68.144 | AY44: 65.616 | AZ44: 66.732 | BA44: 73.513 | BB44: 83.75 | BC44: 93.231 | BD44: 102.959 | BE44: 109.645 | BF44: 111.459 | BG44: 109.942 | BH44: 108.599 | BI44: 106.64 | BJ44: 105.175 | BK44: 105.007 | BL44: 105.367 | BM44: 105.082 | BN44: 104.899 | BO44: 102.109
A45: 43 | B45: 32.096 | C45: 33.021 | D45: 33.956 | E45: 34.871 | F45: 35.75 | G45: 36.696 | H45: 37.227 | I45: 37.546 | J45: 37.694 | K45: 37.811 | L45: 37.787 | M45: 38.031 | N45: 38.258 | O45: 38.471 | P45: 38.672 | Q45: 38.953 | R45: 39.067 | S45: 39.519 | T45: 40.125 | U45: 40.694 | V45: 41.181 | W45: 42.015 | X45: 42.621 | Y45: 43.087 | Z45: 43.596 | AA45: 44.131 | AB45: 44.912 | AC45: 46.256 | AD45: 47.906 | AE45: 49.438 | AF45: 50.867 | AG45: 52.225 | AH45: 52.908 | AI45: 53.144 | AJ45: 53.515 | AK45: 54.1 | AL45: 54.541 | AM45: 54.898 | AN45: 55.254 | AO45: 55.591 | AP45: 55.647 | AQ45: 56.646 | AR45: 59.216 | AS45: 62.664 | AT45: 66.142 | AU45: 70.231 | AV45: 72.736 | AW45: 72.096 | AX45: 69.769 | AY45: 67.874 | AZ45: 65.385 | BA45: 66.466 | BB45: 73.299 | BC45: 83.559 | BD45: 93 | BE45: 102.657 | BF45: 109.382 | BG45: 111.131 | BH45: 109.597 | BI45: 108.294 | BJ45: 106.394 | BK45: 104.945 | BL45: 104.808 | BM45: 105.18 | BN45: 104.886 | BO45: 104.676
A46: 44 | B46: 31.082 | C46: 31.949 | D46: 32.759 | E46: 33.636 | F46: 34.591 | G46: 35.544 | H46: 36.321 | I46: 37.004 | J46: 37.384 | K46: 37.475 | L46: 37.481 | M46: 37.578 | N46: 37.582 | O46: 37.668 | P46: 37.902 | Q46: 38.194 | R46: 38.217 | S46: 38.586 | T46: 39.152 | U46: 39.688 | V46: 40.126 | W46: 40.963 | X46: 41.635 | Y46: 42.135 | Z46: 42.618 | AA46: 43.195 | AB46: 43.677 | AC46: 44.592 | AD46: 45.999 | AE46: 47.581 | AF46: 48.984 | AG46: 50.59 | AH46: 51.729 | AI46: 52.292 | AJ46: 52.571 | AK46: 53.057 | AL46: 53.677 | AM46: 54.299 | AN46: 54.75 | AO46: 55.084 | AP46: 55.354 | AQ46: 55.343 | AR46: 56.37 | AS46: 58.929 | AT46: 62.339 | AU46: 65.774 | AV46: 70.11 | AW46: 72.492 | AX46: 71.795 | AY46: 69.49 | AZ46: 67.636 | BA46: 65.111 | BB46: 66.254 | BC46: 73.113 | BD46: 83.337 | BE46: 92.715 | BF46: 102.397 | BG46: 109.05 | BH46: 110.775 | BI46: 109.284 | BJ46: 108.042 | BK46: 106.144 | BL46: 104.733 | BM46: 104.611 | BN46: 104.974 | BO46: 104.655
A47: 45 | B47: 30.01 | C47: 30.927 | D47: 31.685 | E47: 32.444 | F47: 33.362 | G47: 34.387 | H47: 35.167 | I47: 36.093 | J47: 36.84 | K47: 37.165 | L47: 37.146 | M47: 37.258 | N47: 37.127 | O47: 37.009 | P47: 37.125 | Q47: 37.445 | R47: 37.453 | S47: 37.737 | T47: 38.236 | U47: 38.745 | V47: 39.149 | W47: 39.896 | X47: 40.582 | Y47: 41.164 | Z47: 41.687 | AA47: 42.234 | AB47: 42.734 | AC47: 43.354 | AD47: 44.342 | AE47: 45.69 | AF47: 47.145 | AG47: 48.693 | AH47: 50.096 | AI47: 51.132 | AJ47: 51.746 | AK47: 52.136 | AL47: 52.627 | AM47: 53.428 | AN47: 54.149 | AO47: 54.581 | AP47: 54.847 | AQ47: 55.036 | AR47: 55.061 | AS47: 56.089 | AT47: 58.617 | AU47: 61.985 | AV47: 65.645 | AW47: 69.864 | AX47: 72.183 | AY47: 71.505 | AZ47: 69.244 | BA47: 67.344 | BB47: 64.891 | BC47: 66.068 | BD47: 72.9 | BE47: 83.066 | BF47: 92.462 | BG47: 102.073 | BH47: 108.692 | BI47: 110.453 | BJ47: 109.026 | BK47: 107.769 | BL47: 105.913 | BM47: 104.524 | BN47: 104.397 | BO47: 104.735
A48: 46 | B48: 28.963 | C48: 29.848 | D48: 30.659 | E48: 31.37 | F48: 32.172 | G48: 33.161 | H48: 34.009 | I48: 34.933 | J48: 35.923 | K48: 36.62 | L48: 36.838 | M48: 36.911 | N48: 36.794 | O48: 36.553 | P48: 36.482 | Q48: 36.693 | R48: 36.702 | S48: 36.963 | T48: 37.387 | U48: 37.848 | V48: 38.239 | W48: 38.907 | X48: 39.507 | Y48: 40.113 | Z48: 40.729 | AA48: 41.322 | AB48: 41.768 | AC48: 42.401 | AD48: 43.1 | AE48: 44.041 | AF48: 45.275 | AG48: 46.84 | AH48: 48.191 | AI48: 49.504 | AJ48: 50.604 | AK48: 51.336 | AL48: 51.697 | AM48: 52.367 | AN48: 53.269 | AO48: 53.978 | AP48: 54.347 | AQ48: 54.518 | AR48: 54.742 | AS48: 54.773 | AT48: 55.783 | AU48: 58.278 | AV48: 61.847 | AW48: 65.4 | AX48: 69.556 | AY48: 71.886 | AZ48: 71.249 | BA48: 68.936 | BB48: 67.108 | BC48: 64.695 | BD48: 65.857 | BE48: 72.645 | BF48: 82.819 | BG48: 92.152 | BH48: 101.724 | BI48: 108.366 | BJ48: 110.185 | BK48: 108.73 | BL48: 107.515 | BM48: 105.684 | BN48: 104.297 | BO48: 104.149
A49: 47 | B49: 27.631 | C49: 28.793 | D49: 29.577 | E49: 30.341 | F49: 31.097 | G49: 31.972 | H49: 32.781 | I49: 33.769 | J49: 34.755 | K49: 35.699 | L49: 36.294 | M49: 36.589 | N49: 36.438 | O49: 36.21 | P49: 36.025 | Q49: 36.064 | R49: 35.944 | S49: 36.205 | T49: 36.6 | U49: 36.997 | V49: 37.362 | W49: 37.984 | X49: 38.512 | Y49: 39.031 | Z49: 39.679 | AA49: 40.377 | AB49: 40.848 | AC49: 41.427 | AD49: 42.136 | AE49: 42.796 | AF49: 43.638 | AG49: 44.953 | AH49: 46.333 | AI49: 47.596 | AJ49: 48.979 | AK49: 50.21 | AL49: 50.887 | AM49: 51.427 | AN49: 52.195 | AO49: 53.089 | AP49: 53.742 | AQ49: 54.004 | AR49: 54.211 | AS49: 54.441 | AT49: 54.462 | AU49: 55.451 | AV49: 58.132 | AW49: 61.601 | AX49: 65.096 | AY49: 69.258 | AZ49: 71.623 | BA49: 70.921 | BB49: 68.684 | BC49: 66.897 | BD49: 64.475 | BE49: 65.608 | BF49: 72.404 | BG49: 82.521 | BH49: 91.819 | BI49: 101.406 | BJ49: 108.094 | BK49: 109.863 | BL49: 108.452 | BM49: 107.263 | BN49: 105.438 | BO49: 104.036
A50: 48 | B50: 25.871 | C50: 27.458 | D50: 28.518 | E50: 29.258 | F50: 30.064 | G50: 30.892 | H50: 31.593 | I50: 32.536 | J50: 33.582 | K50: 34.523 | L50: 35.37 | M50: 36.042 | N50: 36.104 | O50: 35.845 | P50: 35.671 | Q50: 35.605 | R50: 35.324 | S50: 35.437 | T50: 35.831 | U50: 36.198 | V50: 36.513 | W50: 37.106 | X50: 37.579 | Y50: 38.032 | Z50: 38.591 | AA50: 39.325 | AB50: 39.905 | AC50: 40.496 | AD50: 41.151 | AE50: 41.822 | AF50: 42.392 | AG50: 43.316 | AH50: 44.439 | AI50: 45.737 | AJ50: 47.066 | AK50: 48.584 | AL50: 49.758 | AM50: 50.604 | AN50: 51.242 | AO50: 52.003 | AP50: 52.845 | AQ50: 53.392 | AR50: 53.684 | AS50: 53.899 | AT50: 54.117 | AU50: 54.125 | AV50: 55.295 | AW50: 57.882 | AX50: 61.299 | AY50: 64.803 | AZ50: 68.994 | BA50: 71.282 | BB50: 70.651 | BC50: 68.458 | BD50: 66.662 | BE50: 64.218 | BF50: 65.365 | BG50: 72.118 | BH50: 82.203 | BI50: 91.515 | BJ50: 101.138 | BK50: 107.756 | BL50: 109.559 | BM50: 108.177 | BN50: 106.993 | BO50: 105.157
A51: 49 | B51: 23.862 | C51: 25.7 | D51: 27.184 | E51: 28.197 | F51: 28.978 | G51: 29.854 | H51: 30.518 | I51: 31.344 | J51: 32.341 | K51: 33.345 | L51: 34.191 | M51: 35.135 | N51: 35.558 | O51: 35.5 | P51: 35.297 | Q51: 35.238 | R51: 34.895 | S51: 34.821 | T51: 35.05 | U51: 35.42 | V51: 35.704 | W51: 36.272 | X51: 36.702 | Y51: 37.091 | Z51: 37.586 | AA51: 38.229 | AB51: 38.873 | AC51: 39.552 | AD51: 40.209 | AE51: 40.828 | AF51: 41.411 | AG51: 42.093 | AH51: 42.807 | AI51: 43.838 | AJ51: 45.202 | AK51: 46.659 | AL51: 48.141 | AM51: 49.469 | AN51: 50.406 | AO51: 51.038 | AP51: 51.748 | AQ51: 52.499 | AR51: 53.064 | AS51: 53.357 | AT51: 53.563 | AU51: 53.768 | AV51: 53.959 | AW51: 55.041 | AX51: 57.581 | AY51: 61.007 | AZ51: 64.54 | BA51: 68.65 | BB51: 70.999 | BC51: 70.408 | BD51: 68.207 | BE51: 66.387 | BF51: 63.963 | BG51: 65.082 | BH51: 71.815 | BI51: 81.909 | BJ51: 91.255 | BK51: 100.802 | BL51: 107.436 | BM51: 109.258 | BN51: 107.884 | BO51: 106.689
A52: 50 | B52: 21.936 | C52: 23.697 | D52: 25.435 | E52: 26.867 | F52: 27.914 | G52: 28.762 | H52: 29.486 | I52: 30.269 | J52: 31.144 | K52: 32.098 | L52: 33.01 | M52: 33.984 | N52: 34.673 | O52: 34.957 | P52: 34.941 | Q52: 34.854 | R52: 34.574 | S52: 34.42 | T52: 34.437 | U52: 34.627 | V52: 34.919 | W52: 35.49 | X52: 35.888 | Y52: 36.217 | Z52: 36.637 | AA52: 37.216 | AB52: 37.805 | AC52: 38.536 | AD52: 39.263 | AE52: 39.875 | AF52: 40.41 | AG52: 41.15 | AH52: 41.613 | AI52: 42.215 | AJ52: 43.297 | AK52: 44.787 | AL52: 46.232 | AM52: 47.855 | AN52: 49.262 | AO52: 50.188 | AP52: 50.773 | AQ52: 51.413 | AR52: 52.175 | AS52: 52.73 | AT52: 53.008 | AU52: 53.202 | AV52: 53.591 | AW52: 53.697 | AX52: 54.738 | AY52: 57.29 | AZ52: 60.744 | BA52: 64.2 | BB52: 68.362 | BC52: 70.743 | BD52: 70.139 | BE52: 67.916 | BF52: 66.111 | BG52: 63.667 | BH52: 64.784 | BI52: 71.533 | BJ52: 81.656 | BK52: 90.931 | BL52: 100.483 | BM52: 107.119 | BN52: 108.938 | BO52: 107.556
A53: 51 | B53: 20.031 | C53: 21.775 | D53: 23.444 | E53: 25.128 | F53: 26.585 | G53: 27.692 | H53: 28.401 | I53: 29.239 | J53: 30.067 | K53: 30.897 | L53: 31.76 | M53: 32.827 | N53: 33.557 | O53: 34.097 | P53: 34.4 | Q53: 34.486 | R53: 34.23 | S53: 34.141 | T53: 34.062 | U53: 34.016 | V53: 34.115 | W53: 34.728 | X53: 35.135 | Y53: 35.424 | Z53: 35.766 | AA53: 36.257 | AB53: 36.817 | AC53: 37.494 | AD53: 38.261 | AE53: 38.928 | AF53: 39.448 | AG53: 40.184 | AH53: 40.713 | AI53: 41.053 | AJ53: 41.681 | AK53: 42.869 | AL53: 44.373 | AM53: 45.955 | AN53: 47.649 | AO53: 49.036 | AP53: 49.91 | AQ53: 50.445 | AR53: 51.098 | AS53: 51.845 | AT53: 52.373 | AU53: 52.634 | AV53: 53.014 | AW53: 53.319 | AX53: 53.387 | AY53: 54.443 | AZ53: 57.025 | BA53: 60.404 | BB53: 63.912 | BC53: 68.1 | BD53: 70.461 | BE53: 69.829 | BF53: 67.619 | BG53: 65.794 | BH53: 63.357 | BI53: 64.505 | BJ53: 71.287 | BK53: 81.342 | BL53: 90.622 | BM53: 100.166 | BN53: 106.784 | BO53: 108.583
A54: 52 | B54: 18.362 | C54: 19.874 | D54: 21.534 | E54: 23.154 | F54: 24.855 | G54: 26.362 | H54: 27.337 | I54: 28.156 | J54: 29.038 | K54: 29.82 | L54: 30.559 | M54: 31.603 | N54: 32.433 | O54: 33.02 | P54: 33.564 | Q54: 33.945 | R54: 33.902 | S54: 33.835 | T54: 33.824 | U54: 33.669 | V54: 33.508 | W54: 33.947 | X54: 34.399 | Y54: 34.704 | Z54: 34.993 | AA54: 35.387 | AB54: 35.883 | AC54: 36.529 | AD54: 37.243 | AE54: 37.942 | AF54: 38.502 | AG54: 39.254 | AH54: 39.784 | AI54: 40.196 | AJ54: 40.548 | AK54: 41.257 | AL54: 42.468 | AM54: 44.104 | AN54: 45.756 | AO54: 47.425 | AP54: 48.751 | AQ54: 49.588 | AR54: 50.137 | AS54: 50.778 | AT54: 51.492 | AU54: 51.992 | AV54: 52.432 | AW54: 52.731 | AX54: 53 | AY54: 53.086 | AZ54: 54.175 | BA54: 56.684 | BB54: 60.114 | BC54: 63.649 | BD54: 67.813 | BE54: 70.137 | BF54: 69.509 | BG54: 67.28 | BH54: 65.46 | BI54: 63.065 | BJ54: 64.257 | BK54: 70.984 | BL54: 81.041 | BM54: 90.316 | BN54: 99.833 | BO54: 106.415
A55: 53 | B55: 17.07 | C55: 18.208 | D55: 19.643 | E55: 21.258 | F55: 22.895 | G55: 24.637 | H55: 26.015 | I55: 27.094 | J55: 27.955 | K55: 28.793 | L55: 29.485 | M55: 30.419 | N55: 31.241 | O55: 31.932 | P55: 32.525 | Q55: 33.131 | R55: 33.394 | S55: 33.544 | T55: 33.556 | U55: 33.473 | V55: 33.189 | W55: 33.354 | X55: 33.643 | Y55: 33.995 | Z55: 34.303 | AA55: 34.633 | AB55: 35.028 | AC55: 35.615 | AD55: 36.298 | AE55: 36.949 | AF55: 37.533 | AG55: 38.332 | AH55: 38.892 | AI55: 39.308 | AJ55: 39.735 | AK55: 40.15 | AL55: 40.862 | AM55: 42.205 | AN55: 43.908 | AO55: 45.538 | AP55: 47.143 | AQ55: 48.432 | AR55: 49.287 | AS55: 49.824 | AT55: 50.436 | AU55: 51.115 | AV55: 51.776 | AW55: 52.138 | AX55: 52.401 | AY55: 52.689 | AZ55: 52.81 | BA55: 53.829 | BB55: 56.391 | BC55: 59.847 | BD55: 63.362 | BE55: 67.487 | BF55: 69.798 | BG55: 69.145 | BH55: 66.924 | BI55: 65.147 | BJ55: 62.805 | BK55: 63.952 | BL55: 70.693 | BM55: 80.742 | BN55: 89.994 | BO55: 99.468
A56: 54 | B56: 16.069 | C56: 16.92 | D56: 17.988 | E56: 19.381 | F56: 21.011 | G56: 22.686 | H56: 24.304 | I56: 25.775 | J56: 26.892 | K56: 27.712 | L56: 28.464 | M56: 29.352 | N56: 30.084 | O56: 30.777 | P56: 31.471 | Q56: 32.126 | R56: 32.601 | S56: 33.066 | T56: 33.302 | U56: 33.242 | V56: 33.036 | W56: 33.036 | X56: 33.067 | Y56: 33.267 | Z56: 33.621 | AA56: 33.972 | AB56: 34.278 | AC56: 34.775 | AD56: 35.404 | AE56: 36.026 | AF56: 36.569 | AG56: 37.371 | AH56: 37.997 | AI56: 38.455 | AJ56: 38.884 | AK56: 39.377 | AL56: 39.751 | AM56: 40.6 | AN56: 42.013 | AO56: 43.695 | AP56: 45.266 | AQ56: 46.82 | AR56: 48.132 | AS56: 48.98 | AT56: 49.49 | AU56: 50.07 | AV56: 50.88 | AW56: 51.467 | AX56: 51.798 | AY56: 52.08 | AZ56: 52.403 | BA56: 52.45 | BB56: 53.527 | BC56: 56.119 | BD56: 59.557 | BE56: 63.038 | BF56: 67.136 | BG56: 69.415 | BH56: 68.765 | BI56: 66.589 | BJ56: 64.865 | BK56: 62.474 | BL56: 63.656 | BM56: 70.403 | BN56: 80.43 | BO56: 89.644
A57: 55 | B57: 15.069 | C57: 15.921 | D57: 16.707 | E57: 17.738 | F57: 19.145 | G57: 20.811 | H57: 22.369 | I57: 24.071 | J57: 25.576 | K57: 26.651 | L57: 27.388 | M57: 28.329 | N57: 29.03 | O57: 29.649 | P57: 30.351 | Q57: 31.104 | R57: 31.608 | S57: 32.288 | T57: 32.851 | U57: 33.025 | V57: 32.843 | W57: 32.873 | X57: 32.751 | Y57: 32.708 | Z57: 32.92 | AA57: 33.315 | AB57: 33.612 | AC57: 34.027 | AD57: 34.576 | AE57: 35.153 | AF57: 35.67 | AG57: 36.402 | AH57: 37.048 | AI57: 37.589 | AJ57: 38.069 | AK57: 38.563 | AL57: 38.965 | AM57: 39.481 | AN57: 40.406 | AO57: 41.804 | AP57: 43.43 | AQ57: 44.933 | AR57: 46.515 | AS57: 47.828 | AT57: 48.653 | AU57: 49.133 | AV57: 49.813 | AW57: 50.554 | AX57: 51.113 | AY57: 51.465 | AZ57: 51.783 | BA57: 52.023 | BB57: 52.133 | BC57: 53.245 | BD57: 55.825 | BE57: 59.233 | BF57: 62.68 | BG57: 66.744 | BH57: 69.015 | BI57: 68.405 | BJ57: 66.286 | BK57: 64.495 | BL57: 62.154 | BM57: 63.363 | BN57: 70.102 | BO57: 80.091
A58: 56 | B58: 14.056 | C58: 14.923 | D58: 15.714 | E58: 16.468 | F58: 17.512 | G58: 18.952 | H58: 20.508 | I58: 22.144 | J58: 23.875 | K58: 25.337 | L58: 26.331 | M58: 27.251 | N58: 28.011 | O58: 28.611 | P58: 29.251 | Q58: 30.016 | R58: 30.598 | S58: 31.3 | T58: 32.086 | U58: 32.603 | V58: 32.664 | W58: 32.671 | X58: 32.579 | Y58: 32.394 | Z58: 32.379 | AA58: 32.639 | AB58: 32.951 | AC58: 33.353 | AD58: 33.829 | AE58: 34.339 | AF58: 34.82 | AG58: 35.498 | AH58: 36.078 | AI58: 36.653 | AJ58: 37.231 | AK58: 37.784 | AL58: 38.139 | AM58: 38.681 | AN58: 39.277 | AO58: 40.196 | AP58: 41.545 | AQ58: 43.086 | AR58: 44.618 | AS58: 46.206 | AT58: 47.503 | AU58: 48.302 | AV58: 48.852 | AW58: 49.467 | AX58: 50.182 | AY58: 50.767 | AZ58: 51.157 | BA58: 51.383 | BB58: 51.686 | BC58: 51.836 | BD58: 52.944 | BE58: 55.5 | BF58: 58.866 | BG58: 62.284 | BH58: 66.336 | BI58: 68.636 | BJ58: 68.079 | BK58: 65.879 | BL58: 64.136 | BM58: 61.835 | BN58: 63.059 | BO58: 69.778
A59: 57 | B59: 13.407 | C59: 13.912 | D59: 14.722 | E59: 15.483 | F59: 16.25 | G59: 17.325 | H59: 18.661 | I59: 20.288 | J59: 21.953 | K59: 23.643 | L59: 25.024 | M59: 26.192 | N59: 26.939 | O59: 27.601 | P59: 28.229 | Q59: 28.941 | R59: 29.523 | S59: 30.297 | T59: 31.1 | U59: 31.851 | V59: 32.271 | W59: 32.481 | X59: 32.369 | Y59: 32.214 | Z59: 32.066 | AA59: 32.114 | AB59: 32.269 | AC59: 32.685 | AD59: 33.148 | AE59: 33.593 | AF59: 34.02 | AG59: 34.641 | AH59: 35.173 | AI59: 35.684 | AJ59: 36.307 | AK59: 36.972 | AL59: 37.346 | AM59: 37.839 | AN59: 38.46 | AO59: 39.057 | AP59: 39.938 | AQ59: 41.191 | AR59: 42.761 | AS59: 44.299 | AT59: 45.877 | AU59: 47.156 | AV59: 47.997 | AW59: 48.485 | AX59: 49.076 | AY59: 49.82 | AZ59: 50.445 | BA59: 50.737 | BB59: 51.026 | BC59: 51.368 | BD59: 51.52 | BE59: 52.612 | BF59: 55.122 | BG59: 58.462 | BH59: 61.873 | BI59: 65.947 | BJ59: 68.291 | BK59: 67.63 | BL59: 65.482 | BM59: 63.779 | BN59: 61.506 | BO59: 62.735
A60: 58 | B60: 13.256 | C60: 13.257 | D60: 13.717 | E60: 14.497 | F60: 15.272 | G60: 16.069 | H60: 17.044 | I60: 18.447 | J60: 20.101 | K60: 21.728 | L60: 23.341 | M60: 24.88 | N60: 25.884 | O60: 26.538 | P60: 27.226 | Q60: 27.931 | R60: 28.452 | S60: 29.228 | T60: 30.099 | U60: 30.868 | V60: 31.535 | W60: 32.072 | X60: 32.17 | Y60: 31.995 | Z60: 31.878 | AA60: 31.803 | AB60: 31.729 | AC60: 31.995 | AD60: 32.47 | AE60: 32.904 | AF60: 33.278 | AG60: 33.829 | AH60: 34.314 | AI60: 34.78 | AJ60: 35.339 | AK60: 36.057 | AL60: 36.517 | AM60: 37.03 | AN60: 37.602 | AO60: 38.225 | AP60: 38.791 | AQ60: 39.567 | AR60: 40.854 | AS60: 42.431 | AT60: 43.96 | AU60: 45.526 | AV60: 46.827 | AW60: 47.607 | AX60: 48.074 | AY60: 48.694 | AZ60: 49.48 | BA60: 50.002 | BB60: 50.358 | BC60: 50.688 | BD60: 51.032 | BE60: 51.173 | BF60: 52.218 | BG60: 54.71 | BH60: 58.044 | BI60: 61.48 | BJ60: 65.591 | BK60: 67.81 | BL60: 67.193 | BM60: 65.087 | BN60: 63.411 | BO60: 61.157
A61: 59 | B61: 13.412 | C61: 13.091 | D61: 13.059 | E61: 13.499 | F61: 14.292 | G61: 15.095 | H61: 15.794 | I61: 16.833 | J61: 18.261 | K61: 19.883 | L61: 21.44 | M61: 23.188 | N61: 24.575 | O61: 25.491 | P61: 26.171 | Q61: 26.932 | R61: 27.434 | S61: 28.154 | T61: 29.033 | U61: 29.871 | V61: 30.558 | W61: 31.312 | X61: 31.746 | Y61: 31.788 | Z61: 31.651 | AA61: 31.606 | AB61: 31.392 | AC61: 31.439 | AD61: 31.772 | AE61: 32.219 | AF61: 32.583 | AG61: 33.064 | AH61: 33.491 | AI61: 33.92 | AJ61: 34.434 | AK61: 35.086 | AL61: 35.583 | AM61: 36.182 | AN61: 36.775 | AO61: 37.351 | AP61: 37.944 | AQ61: 38.397 | AR61: 39.213 | AS61: 40.512 | AT61: 42.083 | AU61: 43.601 | AV61: 45.177 | AW61: 46.416 | AX61: 47.175 | AY61: 47.672 | AZ61: 48.335 | BA61: 49.012 | BB61: 49.6 | BC61: 49.999 | BD61: 50.331 | BE61: 50.665 | BF61: 50.755 | BG61: 51.791 | BH61: 54.284 | BI61: 57.644 | BJ61: 61.118 | BK61: 65.092 | BL61: 67.34 | BM61: 66.757 | BN61: 64.681 | BO61: 63.022
A62: 60 | B62: 13.583 | C62: 13.225 | D62: 12.878 | E62: 12.84 | F62: 13.3 | G62: 14.119 | H62: 14.821 | I62: 15.583 | J62: 16.648 | K62: 18.048 | L62: 19.606 | M62: 21.275 | N62: 22.885 | O62: 24.19 | P62: 25.131 | Q62: 25.881 | R62: 26.419 | S62: 27.121 | T62: 27.952 | U62: 28.808 | V62: 29.567 | W62: 30.306 | X62: 30.965 | Y62: 31.35 | Z62: 31.434 | AA62: 31.37 | AB62: 31.16 | AC62: 31.074 | AD62: 31.198 | AE62: 31.512 | AF62: 31.892 | AG62: 32.341 | AH62: 32.708 | AI62: 33.089 | AJ62: 33.572 | AK62: 34.179 | AL62: 34.591 | AM62: 35.226 | AN62: 35.907 | AO62: 36.506 | AP62: 37.054 | AQ62: 37.523 | AR62: 38.02 | AS62: 38.855 | AT62: 40.153 | AU62: 41.714 | AV62: 43.232 | AW62: 44.748 | AX62: 45.963 | AY62: 46.75 | AZ62: 47.292 | BA62: 47.84 | BB62: 48.584 | BC62: 49.217 | BD62: 49.621 | BE62: 49.944 | BF62: 50.216 | BG62: 50.304 | BH62: 51.352 | BI62: 53.875 | BJ62: 57.272 | BK62: 60.61 | BL62: 64.604 | BM62: 66.871 | BN62: 66.31 | BO62: 64.254
A63: 61 | B63: 13.865 | C63: 13.373 | D63: 12.989 | E63: 12.644 | F63: 12.638 | G63: 13.13 | H63: 13.845 | I63: 14.608 | J63: 15.397 | K63: 16.437 | L63: 17.782 | M63: 19.427 | N63: 20.972 | O63: 22.507 | P63: 23.834 | Q63: 24.844 | R63: 25.351 | S63: 26.083 | T63: 26.901 | U63: 27.722 | V63: 28.51 | W63: 29.285 | X63: 29.933 | Y63: 30.55 | Z63: 30.982 | AA63: 31.144 | AB63: 30.89 | AC63: 30.808 | AD63: 30.806 | AE63: 30.922 | AF63: 31.179 | AG63: 31.62 | AH63: 31.96 | AI63: 32.289 | AJ63: 32.731 | AK63: 33.312 | AL63: 33.661 | AM63: 34.21 | AN63: 34.928 | AO63: 35.618 | AP63: 36.193 | AQ63: 36.605 | AR63: 37.118 | AS63: 37.638 | AT63: 38.48 | AU63: 39.776 | AV63: 41.324 | AW63: 42.786 | AX63: 44.278 | AY63: 45.518 | AZ63: 46.347 | BA63: 46.768 | BB63: 47.384 | BC63: 48.174 | BD63: 48.815 | BE63: 49.214 | BF63: 49.465 | BG63: 49.736 | BH63: 49.842 | BI63: 50.929 | BJ63: 53.493 | BK63: 56.752 | BL63: 60.112 | BM63: 64.118 | BN63: 66.391 | BO63: 65.842
A64: 62 | B64: 13.801 | C64: 13.631 | D64: 13.113 | E64: 12.732 | F64: 12.427 | G64: 12.464 | H64: 12.858 | I64: 13.629 | J64: 14.417 | K64: 15.187 | L64: 16.179 | M64: 17.585 | N64: 19.122 | O64: 20.601 | P64: 22.157 | Q64: 23.55 | R64: 24.295 | S64: 24.992 | T64: 25.836 | U64: 26.653 | V64: 27.421 | W64: 28.198 | X64: 28.886 | Y64: 29.495 | Z64: 30.162 | AA64: 30.677 | AB64: 30.627 | AC64: 30.502 | AD64: 30.504 | AE64: 30.502 | AF64: 30.574 | AG64: 30.873 | AH64: 31.211 | AI64: 31.517 | AJ64: 31.913 | AK64: 32.46 | AL64: 32.768 | AM64: 33.253 | AN64: 33.886 | AO64: 34.615 | AP64: 35.286 | AQ64: 35.712 | AR64: 36.17 | AS64: 36.708 | AT64: 37.241 | AU64: 38.087 | AV64: 39.363 | AW64: 40.86 | AX64: 42.302 | AY64: 43.816 | AZ64: 45.095 | BA64: 45.793 | BB64: 46.283 | BC64: 46.946 | BD64: 47.747 | BE64: 48.385 | BF64: 48.703 | BG64: 48.954 | BH64: 49.243 | BI64: 49.395 | BJ64: 50.53 | BK64: 52.958 | BL64: 56.24 | BM64: 59.616 | BN64: 63.62 | BO64: 65.89
A65: 63 | B65: 13.144 | C65: 13.544 | D65: 13.346 | E65: 12.833 | F65: 12.492 | G65: 12.238 | H65: 12.181 | I65: 12.639 | J65: 13.433 | K65: 14.205 | L65: 14.932 | M65: 15.965 | N65: 17.274 | O65: 18.754 | P65: 20.255 | Q65: 21.873 | R65: 22.99 | S65: 23.909 | T65: 24.718 | U65: 25.563 | V65: 26.336 | W65: 27.079 | X65: 27.773 | Y65: 28.424 | Z65: 29.084 | AA65: 29.835 | AB65: 30.128 | AC65: 30.202 | AD65: 30.163 | AE65: 30.165 | AF65: 30.127 | AG65: 30.234 | AH65: 30.434 | AI65: 30.742 | AJ65: 31.117 | AK65: 31.622 | AL65: 31.891 | AM65: 32.332 | AN65: 32.901 | AO65: 33.548 | AP65: 34.261 | AQ65: 34.774 | AR65: 35.245 | AS65: 35.731 | AT65: 36.283 | AU65: 36.825 | AV65: 37.65 | AW65: 38.88 | AX65: 40.36 | AY65: 41.826 | AZ65: 43.375 | BA65: 44.513 | BB65: 45.277 | BC65: 45.816 | BD65: 46.49 | BE65: 47.291 | BF65: 47.841 | BG65: 48.162 | BH65: 48.432 | BI65: 48.766 | BJ65: 48.972 | BK65: 49.974 | BL65: 52.433 | BM65: 55.73 | BN65: 59.109 | BO65: 63.102
A66: 64 | B66: 12.113 | C66: 12.869 | D66: 13.237 | E66: 13.04 | F66: 12.57 | G66: 12.28 | H66: 11.925 | I66: 11.947 | J66: 12.439 | K66: 13.217 | L66: 13.95 | M66: 14.705 | N66: 15.648 | O66: 16.906 | P66: 18.41 | Q66: 19.97 | R66: 21.317 | S66: 22.584 | T66: 23.605 | U66: 24.418 | V66: 25.224 | W66: 25.965 | X66: 26.628 | Y66: 27.287 | Z66: 27.989 | AA66: 28.731 | AB66: 29.264 | AC66: 29.67 | AD66: 29.824 | AE66: 29.788 | AF66: 29.756 | AG66: 29.753 | AH66: 29.764 | AI66: 29.937 | AJ66: 30.316 | AK66: 30.8 | AL66: 31.03 | AM66: 31.427 | AN66: 31.949 | AO66: 32.535 | AP66: 33.169 | AQ66: 33.723 | AR66: 34.277 | AS66: 34.774 | AT66: 35.276 | AU66: 35.841 | AV66: 36.36 | AW66: 37.145 | AX66: 38.363 | AY66: 39.866 | AZ66: 41.369 | BA66: 42.771 | BB66: 43.968 | BC66: 44.778 | BD66: 45.331 | BE66: 46.008 | BF66: 46.709 | BG66: 47.267 | BH66: 47.61 | BI66: 47.925 | BJ66: 48.312 | BK66: 48.381 | BL66: 49.426 | BM66: 51.908 | BN66: 55.211 | BO66: 58.584
A67: 65 | B67: 11.166 | C67: 11.821 | D67: 12.546 | E67: 12.909 | F67: 12.752 | G67: 12.335 | H67: 11.926 | I67: 11.66 | J67: 11.732 | K67: 12.219 | L67: 12.962 | M67: 13.712 | N67: 14.383 | O67: 15.28 | P67: 16.56 | Q67: 18.121 | R67: 19.427 | S67: 20.904 | T67: 22.256 | U67: 23.275 | V67: 24.055 | W67: 24.826 | X67: 25.491 | Y67: 26.119 | Z67: 26.827 | AA67: 27.61 | AB67: 28.144 | AC67: 28.781 | AD67: 29.258 | AE67: 29.411 | AF67: 29.344 | AG67: 29.349 | AH67: 29.251 | AI67: 29.236 | AJ67: 29.481 | AK67: 29.969 | AL67: 30.185 | AM67: 30.54 | AN67: 31.014 | AO67: 31.553 | AP67: 32.13 | AQ67: 32.607 | AR67: 33.199 | AS67: 33.775 | AT67: 34.288 | AU67: 34.805 | AV67: 35.344 | AW67: 35.829 | AX67: 36.607 | AY67: 37.852 | AZ67: 39.392 | BA67: 40.745 | BB67: 42.203 | BC67: 43.44 | BD67: 44.262 | BE67: 44.82 | BF67: 45.387 | BG67: 46.099 | BH67: 46.681 | BI67: 47.072 | BJ67: 47.441 | BK67: 47.678 | BL67: 47.798 | BM67: 48.879 | BN67: 51.375 | BO67: 54.673
A68: 66 | B68: 10.208 | C68: 10.858 | D68: 11.486 | E68: 12.203 | F68: 12.599 | G68: 12.492 | H68: 11.942 | I68: 11.621 | J68: 11.414 | K68: 11.498 | L68: 11.965 | M68: 12.71 | N68: 13.383 | O68: 14.014 | P68: 14.932 | Q68: 16.264 | R68: 17.588 | S68: 19.016 | T68: 20.563 | U68: 21.903 | V68: 22.886 | W68: 23.632 | X68: 24.329 | Y68: 24.96 | Z68: 25.635 | AA68: 26.421 | AB68: 27.007 | AC68: 27.642 | AD68: 28.343 | AE68: 28.812 | AF68: 28.93 | AG68: 28.902 | AH68: 28.815 | AI68: 28.693 | AJ68: 28.749 | AK68: 29.102 | AL68: 29.331 | AM68: 29.67 | AN68: 30.1 | AO68: 30.589 | AP68: 31.119 | AQ68: 31.541 | AR68: 32.058 | AS68: 32.671 | AT68: 33.259 | AU68: 33.786 | AV68: 34.276 | AW68: 34.784 | AX68: 35.266 | AY68: 36.076 | AZ68: 37.359 | BA68: 38.747 | BB68: 40.155 | BC68: 41.65 | BD68: 42.895 | BE68: 43.72 | BF68: 44.159 | BG68: 44.737 | BH68: 45.477 | BI68: 46.11 | BJ68: 46.558 | BK68: 46.764 | BL68: 47.051 | BM68: 47.216 | BN68: 48.323 | BO68: 50.825
A69: 67 | B69: 9.357 | C69: 9.886 | D69: 10.511 | E69: 11.133 | F69: 11.877 | G69: 12.316 | H69: 12.059 | I69: 11.598 | J69: 11.334 | K69: 11.15 | L69: 11.231 | M69: 11.703 | N69: 12.376 | O69: 13.012 | P69: 13.664 | Q69: 14.629 | R69: 15.743 | S69: 17.175 | T69: 18.668 | U69: 20.199 | V69: 21.494 | W69: 22.437 | X69: 23.113 | Y69: 23.78 | Z69: 24.454 | AA69: 25.203 | AB69: 25.805 | AC69: 26.486 | AD69: 27.183 | AE69: 27.872 | AF69: 28.299 | AG69: 28.453 | AH69: 28.336 | AI69: 28.226 | AJ69: 28.175 | AK69: 28.338 | AL69: 28.44 | AM69: 28.789 | AN69: 29.205 | AO69: 29.648 | AP69: 30.127 | AQ69: 30.501 | AR69: 30.965 | AS69: 31.506 | AT69: 32.129 | AU69: 32.728 | AV69: 33.223 | AW69: 33.686 | AX69: 34.192 | AY69: 34.71 | AZ69: 35.562 | BA69: 36.691 | BB69: 38.133 | BC69: 39.58 | BD69: 41.081 | BE69: 42.325 | BF69: 43.018 | BG69: 43.471 | BH69: 44.077 | BI69: 44.869 | BJ69: 45.561 | BK69: 45.839 | BL69: 46.095 | BM69: 46.426 | BN69: 46.625 | BO69: 47.753
A70: 68 | B70: 8.717 | C70: 9.016 | D70: 9.527 | E70: 10.147 | F70: 10.796 | G70: 11.578 | H70: 11.851 | I70: 11.676 | J70: 11.272 | K70: 11.029 | L70: 10.853 | M70: 10.948 | N70: 11.365 | O70: 12.001 | P70: 12.658 | Q70: 13.354 | R70: 14.115 | S70: 15.328 | T70: 16.82 | U70: 18.301 | V70: 19.783 | W70: 21.027 | X70: 21.897 | Y70: 22.545 | Z70: 23.253 | AA70: 23.996 | AB70: 24.572 | AC70: 25.266 | AD70: 26.006 | AE70: 26.692 | AF70: 27.335 | AG70: 27.787 | AH70: 27.852 | AI70: 27.715 | AJ70: 27.677 | AK70: 27.731 | AL70: 27.646 | AM70: 27.872 | AN70: 28.295 | AO70: 28.726 | AP70: 29.16 | AQ70: 29.478 | AR70: 29.896 | AS70: 30.385 | AT70: 30.94 | AU70: 31.572 | AV70: 32.131 | AW70: 32.6 | AX70: 33.066 | AY70: 33.608 | AZ70: 34.17 | BA70: 34.868 | BB70: 36.054 | BC70: 37.534 | BD70: 38.99 | BE70: 40.489 | BF70: 41.587 | BG70: 42.289 | BH70: 42.772 | BI70: 43.431 | BJ70: 44.283 | BK70: 44.798 | BL70: 45.128 | BM70: 45.427 | BN70: 45.792 | BO70: 46.02
A71: 69 | B71: 8.213 | C71: 8.351 | D71: 8.643 | E71: 9.154 | F71: 9.797 | G71: 10.483 | H71: 11.094 | I71: 11.435 | J71: 11.311 | K71: 10.927 | L71: 10.691 | M71: 10.528 | N71: 10.592 | O71: 10.991 | P71: 11.643 | Q71: 12.341 | R71: 12.844 | S71: 13.697 | T71: 14.964 | U71: 16.446 | V71: 17.886 | W71: 19.308 | X71: 20.474 | Y71: 21.31 | Z71: 21.999 | AA71: 22.773 | AB71: 23.349 | AC71: 24.015 | AD71: 24.767 | AE71: 25.495 | AF71: 26.139 | AG71: 26.791 | AH71: 27.154 | AI71: 27.199 | AJ71: 27.133 | AK71: 27.2 | AL71: 27 | AM71: 27.046 | AN71: 27.35 | AO71: 27.789 | AP71: 28.213 | AQ71: 28.479 | AR71: 28.842 | AS71: 29.286 | AT71: 29.792 | AU71: 30.359 | AV71: 30.943 | AW71: 31.477 | AX71: 31.949 | AY71: 32.451 | AZ71: 33.039 | BA71: 33.444 | BB71: 34.203 | BC71: 35.43 | BD71: 36.921 | BE71: 38.377 | BF71: 39.722 | BG71: 40.823 | BH71: 41.55 | BI71: 42.086 | BJ71: 42.806 | BK71: 43.472 | BL71: 44.042 | BM71: 44.418 | BN71: 44.751 | BO71: 45.144
A72: 70 | B72: 7.67 | C72: 7.819 | D72: 7.954 | E72: 8.256 | F72: 8.794 | G72: 9.469 | H72: 9.989 | I72: 10.655 | J72: 11.036 | K72: 10.927 | L72: 10.551 | M72: 10.314 | N72: 10.133 | O72: 10.203 | P72: 10.631 | Q72: 11.319 | R72: 11.831 | S72: 12.421 | T72: 13.325 | U72: 14.584 | V72: 16.03 | W72: 17.411 | X72: 18.755 | Y72: 19.877 | Z72: 20.744 | AA72: 21.496 | AB72: 22.108 | AC72: 22.771 | AD72: 23.495 | AE72: 24.237 | AF72: 24.924 | AG72: 25.563 | AH72: 26.129 | AI72: 26.471 | AJ72: 26.584 | AK72: 26.622 | AL72: 26.425 | AM72: 26.36 | AN72: 26.49 | AO72: 26.816 | AP72: 27.25 | AQ72: 27.498 | AR72: 27.81 | AS72: 28.202 | AT72: 28.665 | AU72: 29.186 | AV72: 29.697 | AW72: 30.257 | AX72: 30.794 | AY72: 31.304 | AZ72: 31.853 | BA72: 32.278 | BB72: 32.746 | BC72: 33.55 | BD72: 34.792 | BE72: 36.286 | BF72: 37.587 | BG72: 38.93 | BH72: 40.048 | BI72: 40.824 | BJ72: 41.422 | BK72: 41.946 | BL72: 42.668 | BM72: 43.288 | BN72: 43.701 | BO72: 44.061
A73: 71 | B73: 7.128 | C73: 7.251 | D73: 7.396 | E73: 7.546 | F73: 7.88 | G73: 8.453 | H73: 8.967 | I73: 9.537 | J73: 10.233 | K73: 10.619 | L73: 10.511 | M73: 10.125 | N73: 9.868 | O73: 9.706 | P73: 9.828 | Q73: 10.304 | R73: 10.811 | S73: 11.401 | T73: 12.039 | U73: 12.938 | V73: 14.166 | W73: 15.557 | X73: 16.866 | Y73: 18.162 | Z73: 19.3 | AA73: 20.219 | AB73: 20.818 | AC73: 21.51 | AD73: 22.229 | AE73: 22.947 | AF73: 23.652 | AG73: 24.319 | AH73: 24.875 | AI73: 25.419 | AJ73: 25.824 | AK73: 26.038 | AL73: 25.806 | AM73: 25.739 | AN73: 25.762 | AO73: 25.923 | AP73: 26.25 | AQ73: 26.5 | AR73: 26.794 | AS73: 27.137 | AT73: 27.55 | AU73: 28.03 | AV73: 28.489 | AW73: 28.981 | AX73: 29.545 | AY73: 30.118 | AZ73: 30.673 | BA73: 31.056 | BB73: 31.543 | BC73: 32.061 | BD73: 32.884 | BE73: 34.134 | BF73: 35.472 | BG73: 36.773 | BH73: 38.129 | BI73: 39.287 | BJ73: 40.118 | BK73: 40.513 | BL73: 41.093 | BM73: 41.865 | BN73: 42.525 | BO73: 42.969
A74: 72 | B74: 6.582 | C74: 6.685 | D74: 6.805 | E74: 6.962 | F74: 7.148 | G74: 7.523 | H74: 7.944 | I74: 8.502 | J74: 9.098 | K74: 9.793 | L74: 10.171 | M74: 10.038 | N74: 9.633 | O74: 9.391 | P74: 9.293 | Q74: 9.482 | R74: 9.803 | S74: 10.378 | T74: 11.01 | U74: 11.644 | V74: 12.517 | W74: 13.696 | X74: 15.021 | Y74: 16.286 | Z74: 17.587 | AA74: 18.762 | AB74: 19.53 | AC74: 20.203 | AD74: 20.945 | AE74: 21.66 | AF74: 22.346 | AG74: 23.022 | AH74: 23.608 | AI74: 24.141 | AJ74: 24.744 | AK74: 25.245 | AL74: 25.182 | AM74: 25.075 | AN74: 25.094 | AO74: 25.153 | AP74: 25.323 | AQ74: 25.47 | AR74: 25.762 | AS74: 26.086 | AT74: 26.453 | AU74: 26.885 | AV74: 27.3 | AW74: 27.741 | AX74: 28.239 | AY74: 28.839 | AZ74: 29.456 | BA74: 29.842 | BB74: 30.285 | BC74: 30.82 | BD74: 31.362 | BE74: 32.2 | BF74: 33.3 | BG74: 34.637 | BH74: 35.951 | BI74: 37.34 | BJ74: 38.545 | BK74: 39.161 | BL74: 39.611 | BM74: 40.24 | BN74: 41.055 | BO74: 41.75
A75: 73 | B75: 6.013 | C75: 6.125 | D75: 6.217 | E75: 6.349 | F75: 6.538 | G75: 6.766 | H75: 7.014 | I75: 7.468 | J75: 8.048 | K75: 8.644 | L75: 9.325 | M75: 9.669 | N75: 9.497 | O75: 9.11 | P75: 8.927 | Q75: 8.908 | R75: 8.979 | S75: 9.37 | T75: 9.978 | U75: 10.605 | V75: 11.218 | W75: 12.052 | X75: 13.171 | Y75: 14.453 | Z75: 15.721 | AA75: 17.047 | AB75: 18.07 | AC75: 18.9 | AD75: 19.619 | AE75: 20.355 | AF75: 21.04 | AG75: 21.688 | AH75: 22.292 | AI75: 22.853 | AJ75: 23.441 | AK75: 24.135 | AL75: 24.35 | AM75: 24.411 | AN75: 24.385 | AO75: 24.438 | AP75: 24.513 | AQ75: 24.501 | AR75: 24.7 | AS75: 25.02 | AT75: 25.368 | AU75: 25.757 | AV75: 26.115 | AW75: 26.52 | AX75: 26.969 | AY75: 27.503 | AZ75: 28.147 | BA75: 28.585 | BB75: 29.035 | BC75: 29.525 | BD75: 30.085 | BE75: 30.646 | BF75: 31.34 | BG75: 32.445 | BH75: 33.793 | BI75: 35.14 | BJ75: 36.57 | BK75: 37.546 | BL75: 38.209 | BM75: 38.709 | BN75: 39.381 | BO75: 40.232
A76: 74 | B76: 5.439 | C76: 5.557 | D76: 5.646 | E76: 5.741 | F76: 5.902 | G76: 6.129 | H76: 6.268 | I76: 6.535 | J76: 7.002 | K76: 7.581 | L76: 8.165 | M76: 8.823 | N76: 9.102 | O76: 8.927 | P76: 8.6 | Q76: 8.491 | R76: 8.386 | S76: 8.537 | T76: 8.967 | U76: 9.567 | V76: 10.172 | W76: 10.754 | X76: 11.537 | Y76: 12.619 | Z76: 13.9 | AA76: 15.189 | AB76: 16.365 | AC76: 17.433 | AD76: 18.298 | AE76: 19.011 | AF76: 19.717 | AG76: 20.348 | AH76: 20.936 | AI76: 21.521 | AJ76: 22.13 | AK76: 22.803 | AL76: 23.199 | AM76: 23.536 | AN76: 23.678 | AO76: 23.685 | AP76: 23.752 | AQ76: 23.63 | AR76: 23.689 | AS76: 23.927 | AT76: 24.268 | AU76: 24.637 | AV76: 24.937 | AW76: 25.298 | AX76: 25.717 | AY76: 26.202 | AZ76: 26.78 | BA76: 27.229 | BB76: 27.738 | BC76: 28.239 | BD76: 28.754 | BE76: 29.333 | BF76: 29.752 | BG76: 30.461 | BH76: 31.583 | BI76: 32.96 | BJ76: 34.346 | BK76: 35.541 | BL76: 36.553 | BM76: 37.259 | BN76: 37.801 | BO76: 38.509
A77: 75 | B77: 4.898 | C77: 4.995 | D77: 5.08 | E77: 5.158 | F77: 5.273 | G77: 5.469 | H77: 5.649 | I77: 5.797 | J77: 6.065 | K77: 6.523 | L77: 7.093 | M77: 7.685 | N77: 8.262 | O77: 8.506 | P77: 8.371 | Q77: 8.117 | R77: 7.945 | S77: 7.923 | T77: 8.124 | U77: 8.554 | V77: 9.13 | W77: 9.71 | X77: 10.246 | Y77: 10.998 | Z77: 12.079 | AA77: 13.375 | AB77: 14.525 | AC77: 15.732 | AD77: 16.823 | AE77: 17.674 | AF77: 18.358 | AG77: 18.989 | AH77: 19.567 | AI77: 20.145 | AJ77: 20.78 | AK77: 21.466 | AL77: 21.829 | AM77: 22.341 | AN77: 22.759 | AO77: 22.935 | AP77: 22.954 | AQ77: 22.8 | AR77: 22.758 | AS77: 22.873 | AT77: 23.144 | AU77: 23.504 | AV77: 23.764 | AW77: 24.073 | AX77: 24.458 | AY77: 24.92 | AZ77: 25.448 | BA77: 25.811 | BB77: 26.333 | BC77: 26.9 | BD77: 27.432 | BE77: 27.966 | BF77: 28.401 | BG77: 28.84 | BH77: 29.575 | BI77: 30.731 | BJ77: 32.144 | BK77: 33.297 | BL77: 34.519 | BM77: 35.561 | BN77: 36.302 | BO77: 36.881
A78: 76 | B78: 4.377 | C78: 4.466 | D78: 4.532 | E78: 4.596 | F78: 4.678 | G78: 4.817 | H78: 5.01 | I78: 5.193 | J78: 5.333 | K78: 5.583 | L78: 6.026 | M78: 6.632 | N78: 7.152 | O78: 7.675 | P78: 7.925 | Q78: 7.841 | R78: 7.549 | S78: 7.454 | T78: 7.486 | U78: 7.7 | V78: 8.117 | W78: 8.672 | X78: 9.207 | Y78: 9.717 | Z78: 10.47 | AA78: 11.564 | AB78: 12.732 | AC78: 13.906 | AD78: 15.124 | AE78: 16.191 | AF78: 17.009 | AG78: 17.599 | AH78: 18.177 | AI78: 18.749 | AJ78: 19.383 | AK78: 20.095 | AL78: 20.459 | AM78: 20.928 | AN78: 21.519 | AO78: 21.972 | AP78: 22.163 | AQ78: 21.94 | AR78: 21.858 | AS78: 21.882 | AT78: 22.048 | AU78: 22.351 | AV78: 22.581 | AW78: 22.846 | AX78: 23.187 | AY78: 23.624 | AZ78: 24.135 | BA78: 24.431 | BB78: 24.864 | BC78: 25.447 | BD78: 26.052 | BE78: 26.609 | BF78: 27 | BG78: 27.452 | BH78: 27.922 | BI78: 28.699 | BJ78: 29.893 | BK78: 31.075 | BL78: 32.253 | BM78: 33.497 | BN78: 34.563 | BO78: 35.334
A79: 77 | B79: 3.908 | C79: 3.961 | D79: 4.018 | E79: 4.063 | F79: 4.12 | G79: 4.209 | H79: 4.38 | I79: 4.572 | J79: 4.744 | K79: 4.859 | L79: 5.086 | M79: 5.59 | N79: 6.127 | O79: 6.597 | P79: 7.101 | Q79: 7.367 | R79: 7.25 | S79: 7.035 | T79: 6.987 | U79: 7.039 | V79: 7.256 | W79: 7.669 | X79: 8.178 | Y79: 8.685 | Z79: 9.198 | AA79: 9.964 | AB79: 10.944 | AC79: 12.128 | AD79: 13.307 | AE79: 14.496 | AF79: 15.522 | AG79: 16.222 | AH79: 16.762 | AI79: 17.331 | AJ79: 17.959 | AK79: 18.673 | AL79: 19.062 | AM79: 19.521 | AN79: 20.061 | AO79: 20.686 | AP79: 21.158 | AQ79: 21.092 | AR79: 20.935 | AS79: 20.913 | AT79: 20.996 | AU79: 21.212 | AV79: 21.384 | AW79: 21.615 | AX79: 21.909 | AY79: 22.307 | AZ79: 22.801 | BA79: 23.076 | BB79: 23.435 | BC79: 23.925 | BD79: 24.551 | BE79: 25.189 | BF79: 25.614 | BG79: 26.018 | BH79: 26.496 | BI79: 27.012 | BJ79: 27.836 | BK79: 28.811 | BL79: 30.012 | BM79: 31.209 | BN79: 32.47 | BO79: 33.554
A80: 78 | B80: 3.506 | C80: 3.51 | D80: 3.529 | E80: 3.564 | F80: 3.601 | G80: 3.653 | H80: 3.801 | I80: 3.962 | J80: 4.14 | K80: 4.286 | L80: 4.371 | M80: 4.677 | N80: 5.114 | O80: 5.603 | P80: 6.053 | Q80: 6.549 | R80: 6.776 | S80: 6.71 | T80: 6.542 | U80: 6.511 | V80: 6.573 | W80: 6.812 | X80: 7.188 | Y80: 7.668 | Z80: 8.173 | AA80: 8.698 | AB80: 9.37 | AC80: 10.358 | AD80: 11.542 | AE80: 12.692 | AF80: 13.834 | AG80: 14.726 | AH80: 15.363 | AI80: 15.895 | AJ80: 16.512 | AK80: 17.217 | AL80: 17.621 | AM80: 18.093 | AN80: 18.614 | AO80: 19.183 | AP80: 19.828 | AQ80: 20.039 | AR80: 20.028 | AS80: 19.926 | AT80: 19.958 | AU80: 20.102 | AV80: 20.198 | AW80: 20.377 | AX80: 20.631 | AY80: 20.977 | AZ80: 21.438 | BA80: 21.7 | BB80: 22.037 | BC80: 22.448 | BD80: 22.977 | BE80: 23.641 | BF80: 24.169 | BG80: 24.602 | BH80: 25.03 | BI80: 25.548 | BJ80: 26.115 | BK80: 26.738 | BL80: 27.733 | BM80: 28.949 | BN80: 30.16 | BO80: 31.432
A81: 79 | B81: 3.157 | C81: 3.133 | D81: 3.1 | E81: 3.092 | F81: 3.116 | G81: 3.146 | H81: 3.28 | I81: 3.409 | J81: 3.548 | K81: 3.699 | L81: 3.816 | M81: 3.994 | N81: 4.236 | O81: 4.624 | P81: 5.089 | Q81: 5.528 | R81: 5.993 | S81: 6.233 | T81: 6.192 | U81: 6.041 | V81: 6.017 | W81: 6.128 | X81: 6.34 | Y81: 6.693 | Z81: 7.166 | AA81: 7.678 | AB81: 8.13 | AC81: 8.804 | AD81: 9.787 | AE81: 10.941 | AF81: 12.047 | AG81: 13.058 | AH81: 13.865 | AI81: 14.477 | AJ81: 15.053 | AK81: 15.737 | AL81: 16.157 | AM81: 16.63 | AN81: 17.154 | AO81: 17.698 | AP81: 18.282 | AQ81: 18.678 | AR81: 18.928 | AS81: 18.962 | AT81: 18.909 | AU81: 18.995 | AV81: 19.031 | AW81: 19.145 | AX81: 19.353 | AY81: 19.652 | AZ81: 20.055 | BA81: 20.291 | BB81: 20.616 | BC81: 21.005 | BD81: 21.451 | BE81: 22.015 | BF81: 22.603 | BG81: 23.133 | BH81: 23.585 | BI81: 24.049 | BJ81: 24.614 | BK81: 24.995 | BL81: 25.644 | BM81: 26.656 | BN81: 27.882 | BO81: 29.102
A82: 80+ | B82: 19.391 | C82: 19.692 | D82: 19.532 | E82: 18.94 | F82: 17.97 | G82: 16.651 | H82: 17.283 | I82: 17.791 | J82: 18.085 | K82: 18.087 | L82: 17.76 | M82: 19.163 | N82: 20.224 | O82: 21.04 | P82: 21.829 | Q82: 22.681 | R82: 24.959 | S82: 27.396 | T82: 29.65 | U82: 31.301 | V82: 32.21 | W82: 34.422 | X82: 36.141 | Y82: 37.532 | Z82: 38.852 | AA82: 40.268 | AB82: 43.275 | AC82: 46.337 | AD82: 49.592 | AE82: 53.19 | AF82: 57.225 | AG82: 63.149 | AH82: 68.949 | AI82: 74.555 | AJ82: 80.066 | AK82: 85.628 | AL82: 91.813 | AM82: 97.755 | AN82: 103.411 | AO82: 108.644 | AP82: 113.418 | AQ82: 119.468 | AR82: 124.852 | AS82: 129.396 | AT82: 132.919 | AU82: 135.424 | AV82: 140.5 | AW82: 144.242 | AX82: 146.943 | AY82: 148.979 | AZ82: 150.639 | BA82: 154.806 | BB82: 158.276 | BC82: 161.203 | BD82: 163.611 | BE82: 165.619 | BF82: 173.314 | BG82: 180.464 | BH82: 187.133 | BI82: 193.504 | BJ82: 199.878 | BK82: 207.253 | BL82: 213.947 | BM82: 220.408 | BN82: 227.143 | BO82: 234.523

Sheet Male (hidden)
B1: 1950 | C1: 1951 | D1: 1952 | E1: 1953 | F1: 1954 | G1: 1955 | H1: 1956 | I1: 1957 | J1: 1958 | K1: 1959 | L1: 1960 | M1: 1961 | N1: 1962 | O1: 1963 | P1: 1964 | Q1: 1965 | R1: 1966 | S1: 1967 | T1: 1968 | U1: 1969 | V1: 1970 | W1: 1971 | X1: 1972 | Y1: 1973 | Z1: 1974 | AA1: 1975 | AB1: 1976 | AC1: 1977 | AD1: 1978 | AE1: 1979 | AF1: 1980 | AG1: 1981 | AH1: 1982 | AI1: 1983 | AJ1: 1984 | AK1: 1985 | AL1: 1986 | AM1: 1987 | AN1: 1988 | AO1: 1989 | AP1: 1990 | AQ1: 1991 | AR1: 1992 | AS1: 1993 | AT1: 1994 | AU1: 1995 | AV1: 1996 | AW1: 1997 | AX1: 1998 | AY1: 1999 | AZ1: 2000 | BA1: 2001 | BB1: 2002 | BC1: 2003 | BD1: 2004 | BE1: 2005 | BF1: 2006 | BG1: 2007 | BH1: 2008 | BI1: 2009 | BJ1: 2010 | BK1: 2011 | BL1: 2012 | BM1: 2013 | BN1: 2014 | BO1: 2015
A2: 0 | B2: 82.891 | C2: 85.22 | D2: 91.064 | E2: 96.761 | F2: 100.084 | G2: 99.939 | H2: 95.901 | I2: 90.065 | J2: 84.622 | K2: 82.463 | L2: 86.252 | M2: 98.152 | N2: 115.702 | O2: 134.765 | P2: 149.893 | Q2: 157.353 | R2: 153.699 | S2: 142.905 | T2: 128.188 | U2: 114.533 | V2: 105.818 | W2: 104.492 | X2: 108.141 | Y2: 113.857 | Z2: 117.401 | AA2: 115.826 | AB2: 107.267 | AC2: 94.019 | AD2: 79.1 | AE2: 66.934 | AF2: 60.76 | AG2: 62.241 | AH2: 69.368 | AI2: 79.796 | AJ2: 90.143 | AK2: 97.94 | AL2: 101.815 | AM2: 103.397 | AN2: 102.796 | AO2: 100.425 | AP2: 96.76 | AQ2: 91.646 | AR2: 85.123 | AS2: 78.312 | AT2: 72.749 | AU2: 69.499 | AV2: 69.454 | AW2: 71.801 | AX2: 75.329 | AY2: 78.268 | AZ2: 79.348 | BA2: 77.972 | BB2: 74.837 | BC2: 70.694 | BD2: 66.687 | BE2: 63.685 | BF2: 61.946 | BG2: 61.087 | BH2: 61.013 | BI2: 61.503 | BJ2: 62.351 | BK2: 63.581 | BL2: 65.234 | BM2: 66.855 | BN2: 67.853 | BO2: 67.832
A3: 1 | B3: 80.969 | C3: 82.635 | D3: 88.576 | E3: 92.249 | F3: 94.342 | G3: 94.465 | H3: 98.07 | I3: 89.404 | J3: 86.975 | K3: 86.545 | L3: 89.553 | M3: 88.238 | N3: 108.861 | O3: 121.064 | P3: 131.412 | Q3: 137.889 | R3: 151.762 | S3: 134.926 | T3: 129.555 | U3: 123.973 | V3: 119.845 | W3: 109.032 | X3: 119.068 | Y3: 119.576 | Z3: 118.652 | AA3: 115.103 | AB3: 113.747 | AC3: 98.192 | AD3: 87.865 | AE3: 78.979 | AF3: 73.212 | AG3: 63.005 | AH3: 73.171 | AI3: 76.706 | AJ3: 81.058 | AK3: 85.2 | AL3: 94.793 | AM3: 91.261 | AN3: 93.665 | AO3: 94.924 | AP3: 94.73 | AQ3: 96.162 | AR3: 89.548 | AS3: 85.435 | AT3: 81.58 | AU3: 78.746 | AV3: 71.434 | AW3: 77.336 | AX3: 77.636 | AY3: 77.771 | AZ3: 77.216 | BA3: 78.256 | BB3: 73.563 | BC3: 71.117 | BD3: 68.696 | BE3: 66.599 | BF3: 63.814 | BG3: 63.586 | BH3: 62.59 | BI3: 62.065 | BJ3: 62.04 | BK3: 62.221 | BL3: 63.542 | BM3: 64.712 | BN3: 65.589 | BO3: 65.852
A4: 2 | B4: 79.268 | C4: 80.68 | D4: 82.072 | E4: 88.306 | F4: 89.48 | G4: 89.838 | H4: 93.423 | I4: 96.572 | J4: 88.377 | K4: 89.255 | L4: 91.64 | M4: 89.98 | N4: 89.696 | O4: 109.995 | P4: 116.588 | Q4: 122.179 | R4: 135.497 | S4: 147.234 | T4: 129.178 | U4: 129.688 | V4: 129.161 | W4: 120.687 | X4: 111.798 | Y4: 123.841 | Z4: 120.015 | AA4: 115.352 | AB4: 114.161 | AC4: 112.029 | AD4: 95.744 | AE4: 89.363 | AF4: 83.921 | AG4: 73.644 | AH4: 64.969 | AI4: 75.708 | AJ4: 75.426 | AK4: 76.592 | AL4: 84.122 | AM4: 91.999 | AN4: 86.5 | AO4: 90.101 | AP4: 92.281 | AQ4: 94.455 | AR4: 95.61 | AS4: 90.116 | AT4: 87.797 | AU4: 85.513 | AV4: 79.214 | AW4: 73.213 | AX4: 79.793 | AY4: 77.95 | AZ4: 76.239 | BA4: 76.79 | BB4: 77.256 | BC4: 71.884 | BD4: 70.551 | BE4: 69.066 | BF4: 66.376 | BG4: 63.901 | BH4: 64.079 | BI4: 62.809 | BJ4: 62.113 | BK4: 61.932 | BL4: 62.105 | BM4: 63.176 | BN4: 63.87 | BO4: 64.278
A5: 3 | B5: 77.754 | C5: 78.989 | D5: 80.09 | E5: 81.346 | F5: 85.412 | G5: 85.976 | H5: 89.346 | I5: 92.733 | J5: 95.219 | K5: 90.745 | L5: 92.65 | M5: 91.115 | N5: 89.862 | O5: 90.869 | P5: 105.042 | Q5: 109.838 | R5: 121.829 | S5: 134.038 | T5: 143.203 | U5: 132.135 | V5: 134.318 | W5: 128.532 | X5: 121.023 | Y5: 114.295 | Z5: 121.386 | AA5: 116.352 | AB5: 115.126 | AC5: 113.58 | AD5: 110.49 | AE5: 98.186 | AF5: 93.01 | AG5: 83.238 | AH5: 73.74 | AI5: 66.791 | AJ5: 72.832 | AK5: 71.643 | AL5: 76.814 | AM5: 83.35 | AN5: 89.377 | AO5: 85.977 | AP5: 89.565 | AQ5: 92.191 | AR5: 94.226 | AS5: 95.037 | AT5: 91.713 | AU5: 90.075 | AV5: 85.057 | AW5: 79.507 | AX5: 74.912 | AY5: 78.677 | AZ5: 76.235 | BA5: 76.207 | BB5: 76.453 | BC5: 76.304 | BD5: 72.262 | BE5: 71.137 | BF5: 68.612 | BG5: 66.11 | BH5: 63.97 | BI5: 63.712 | BJ5: 62.526 | BK5: 62.007 | BL5: 61.838 | BM5: 61.993 | BN5: 62.653 | BO5: 63.086
A6: 4 | B6: 76.395 | C6: 77.521 | D6: 78.418 | E6: 79.343 | F6: 80.702 | G6: 82.798 | H6: 85.8 | I6: 89.189 | J6: 92.185 | K6: 93.732 | L6: 92.719 | M6: 91.675 | N6: 90.033 | O6: 89.465 | P6: 92.156 | Q6: 100.482 | R6: 110.561 | S6: 122.306 | T6: 133.043 | U6: 138.986 | V6: 135.87 | W6: 132.968 | X6: 127.36 | Y6: 121.075 | Z6: 116.886 | AA6: 117.884 | AB6: 116.49 | AC6: 115.262 | AD6: 113.183 | AE6: 108.799 | AF6: 100.603 | AG6: 91.791 | AH6: 82.172 | AI6: 73.684 | AJ6: 68.706 | AK6: 69.88 | AL6: 72.521 | AM6: 77.31 | AN6: 82.737 | AO6: 86.719 | AP6: 86.737 | AQ6: 89.546 | AR6: 92.146 | AS6: 93.977 | AT6: 94.396 | AU6: 92.706 | AV6: 89.146 | AW6: 84.411 | AX6: 79.715 | AY6: 76.635 | AZ6: 77.025 | BA6: 76.374 | BB6: 76.263 | BC6: 76.163 | BD6: 75.325 | BE6: 72.863 | BF6: 70.552 | BG6: 68.113 | BH6: 65.826 | BI6: 64.06 | BJ6: 63.231 | BK6: 62.404 | BL6: 61.914 | BM6: 61.749 | BN6: 61.876 | BO6: 62.249
A7: 5 | B7: 75.157 | C7: 76.233 | D7: 77.001 | E7: 77.691 | F7: 78.674 | G7: 80.223 | H7: 82.748 | I7: 85.945 | J7: 89.17 | K7: 91.509 | L7: 91.983 | M7: 91.692 | N7: 90.137 | O7: 88.675 | P7: 89.188 | Q7: 93.727 | R7: 101.499 | S7: 112.029 | T7: 123.214 | U7: 131.891 | V7: 134.369 | W7: 134.395 | X7: 131.053 | Y7: 125.893 | Z7: 121.238 | AA7: 119.728 | AB7: 118.102 | AC7: 116.993 | AD7: 115.588 | AE7: 112.635 | AF7: 106.822 | AG7: 99.307 | AH7: 90.148 | AI7: 80.941 | AJ7: 73.74 | AK7: 70.83 | AL7: 70.899 | AM7: 73.657 | AN7: 77.956 | AO7: 82.098 | AP7: 83.949 | AQ7: 86.699 | AR7: 89.571 | AS7: 92.082 | AT7: 93.661 | AU7: 93.679 | AV7: 91.665 | AW7: 88.017 | AX7: 83.675 | AY7: 79.95 | AZ7: 78.426 | BA7: 77.155 | BB7: 76.6 | BC7: 76.367 | BD7: 75.848 | BE7: 74.294 | BF7: 72.229 | BG7: 69.921 | BH7: 67.596 | BI7: 65.563 | BJ7: 64.183 | BK7: 63.081 | BL7: 62.296 | BM7: 61.827 | BN7: 61.653 | BO7: 61.743
A8: 6 | B8: 74.009 | C8: 75.093 | D8: 75.788 | E8: 76.329 | F8: 77.042 | G8: 78.167 | H8: 80.111 | I8: 83.007 | J8: 86.224 | K8: 89.03 | L8: 90.578 | M8: 91.306 | N8: 90.101 | O8: 88.325 | P8: 87.443 | Q8: 89.189 | R8: 94.264 | S8: 103.197 | T8: 113.895 | U8: 123.989 | V8: 130.368 | W8: 133.369 | X8: 132.347 | Y8: 128.836 | Z8: 124.547 | AA8: 121.664 | AB8: 119.746 | AC8: 118.69 | AD8: 117.69 | AE8: 115.762 | AF8: 111.79 | AG8: 105.914 | AH8: 97.553 | AI8: 88.326 | AJ8: 79.838 | AK8: 74.02 | AL8: 71.476 | AM8: 72.168 | AN8: 74.935 | AO8: 78.581 | AP8: 81.356 | AQ8: 83.801 | AR8: 86.704 | AS8: 89.578 | AT8: 91.952 | AU8: 93.267 | AV8: 92.887 | AW8: 90.419 | AX8: 86.796 | AY8: 82.972 | AZ8: 80.26 | BA8: 78.371 | BB8: 77.375 | BC8: 76.875 | BD8: 76.447 | BE8: 75.48 | BF8: 73.693 | BG8: 71.547 | BH8: 69.272 | BI8: 67.1 | BJ8: 65.335 | BK8: 63.993 | BL8: 62.946 | BM8: 62.193 | BN8: 61.732 | BO8: 61.543
A9: 7 | B9: 72.918 | C9: 74.073 | D9: 74.751 | E9: 75.193 | F9: 75.731 | G9: 76.55 | H9: 77.81 | I9: 80.298 | J9: 83.396 | K9: 86.387 | L9: 88.642 | M9: 90.66 | N9: 90.07 | O9: 88.237 | P9: 86.64 | Q9: 86.484 | R9: 88.481 | S9: 95.437 | T9: 105.263 | U9: 115.645 | V9: 124.42 | W9: 130.449 | X9: 131.802 | Y9: 129.996 | Z9: 126.747 | AA9: 123.473 | AB9: 121.206 | AC9: 120.14 | AD9: 119.475 | AE9: 118.234 | AF9: 115.629 | AG9: 111.737 | AH9: 104.518 | AI9: 95.605 | AJ9: 86.645 | AK9: 78.977 | AL9: 73.783 | AM9: 72.376 | AN9: 73.578 | AO9: 76.196 | AP9: 79.11 | AQ9: 81.003 | AR9: 83.694 | AS9: 86.691 | AT9: 89.521 | AU9: 91.746 | AV9: 93.086 | AW9: 91.888 | AX9: 89.077 | AY9: 85.608 | AZ9: 82.345 | BA9: 79.839 | BB9: 78.406 | BC9: 77.644 | BD9: 77.125 | BE9: 76.472 | BF9: 74.998 | BG9: 73.043 | BH9: 70.846 | BI9: 68.644 | BJ9: 66.64 | BK9: 65.092 | BL9: 63.817 | BM9: 62.815 | BN9: 62.084 | BO9: 61.624
A10: 8 | B10: 71.849 | C10: 73.066 | D10: 73.862 | E10: 74.26 | F10: 74.672 | G10: 75.29 | H10: 76.01 | I10: 77.744 | J10: 80.612 | K10: 83.673 | L10: 86.309 | M10: 89.242 | N10: 90.189 | O10: 88.559 | P10: 86.5 | Q10: 85.227 | R10: 84.861 | S10: 88.376 | T10: 96.948 | U10: 107.224 | V10: 117.076 | W10: 125.245 | X10: 129.98 | Y10: 129.932 | Z10: 127.773 | AA10: 124.936 | AB10: 122.658 | AC10: 121.129 | AD10: 120.733 | AE10: 120.106 | AF10: 118.464 | AG10: 116.165 | AH10: 111.173 | AI10: 102.912 | AJ10: 93.81 | AK10: 85.227 | AL10: 78.091 | AM10: 73.812 | AN10: 73.417 | AO10: 74.972 | AP10: 77.365 | AQ10: 78.614 | AR10: 80.69 | AS10: 83.57 | AT10: 86.616 | AU10: 89.389 | AV10: 91.993 | AW10: 92.697 | AX10: 90.791 | AY10: 87.771 | AZ10: 84.5 | BA10: 81.661 | BB10: 79.512 | BC10: 78.491 | BD10: 77.887 | BE10: 77.321 | BF10: 76.067 | BG10: 74.466 | BH10: 72.374 | BI10: 70.167 | BJ10: 68.052 | BK10: 66.357 | BL10: 64.864 | BM10: 63.647 | BN10: 62.678 | BO10: 61.96
A11: 9 | B11: 70.772 | C11: 72.004 | D11: 72.944 | E11: 73.505 | F11: 73.842 | G11: 74.305 | H11: 74.755 | I11: 75.755 | J11: 77.799 | K11: 80.817 | L11: 83.716 | M11: 86.868 | N11: 89.301 | O11: 89.44 | P11: 87.174 | Q11: 85.035 | R11: 83.574 | S11: 83.824 | T11: 88.58 | U11: 98.36 | V11: 108.891 | W11: 117.841 | X11: 125.545 | Y11: 129.208 | Z11: 128.189 | AA11: 125.831 | AB11: 124.084 | AC11: 122.23 | AD11: 121.25 | AE11: 121.168 | AF11: 120.417 | AG11: 118.953 | AH11: 116.17 | AI11: 110.383 | AJ11: 101.47 | AK11: 92.299 | AL11: 84.301 | AM11: 77.49 | AN11: 73.983 | AO11: 74.44 | AP11: 76.275 | AQ11: 76.862 | AR11: 78.156 | AS11: 80.36 | AT11: 83.385 | AU11: 86.47 | AV11: 89.612 | AW11: 92.036 | AX11: 92.21 | AY11: 89.73 | AZ11: 86.546 | BA11: 83.795 | BB11: 81.072 | BC11: 79.233 | BD11: 78.55 | BE11: 78.076 | BF11: 76.891 | BG11: 75.613 | BH11: 73.914 | BI11: 71.728 | BJ11: 69.526 | BK11: 67.755 | BL11: 66.09 | BM11: 64.641 | BN11: 63.469 | BO11: 62.526
A12: 10 | B12: 69.736 | C12: 70.884 | D12: 71.893 | E12: 72.678 | F12: 73.22 | G12: 73.576 | H12: 73.885 | I12: 74.501 | J12: 75.617 | K12: 77.748 | L12: 80.796 | M12: 83.895 | N12: 86.9 | O12: 89.082 | P12: 88.813 | Q12: 86.062 | R12: 83.878 | S12: 82.498 | T12: 83.075 | U12: 88.687 | V12: 99.501 | W12: 109.111 | X12: 118.112 | Y12: 125.551 | Z12: 128.558 | AA12: 126.726 | AB12: 125.136 | AC12: 123.624 | AD12: 122.001 | AE12: 121.212 | AF12: 121.282 | AG12: 120.476 | AH12: 118.899 | AI12: 115.936 | AJ12: 109.763 | AK12: 100.335 | AL12: 91.697 | AM12: 83.682 | AN12: 77.036 | AO12: 74.133 | AP12: 75.372 | AQ12: 75.847 | AR12: 76.396 | AS12: 77.681 | AT12: 79.973 | AU12: 83.132 | AV12: 86.396 | AW12: 89.636 | AX12: 91.981 | AY12: 91.756 | AZ12: 88.752 | BA12: 85.968 | BB12: 83.188 | BC12: 80.534 | BD12: 78.929 | BE12: 78.554 | BF12: 77.563 | BG12: 76.411 | BH12: 75.138 | BI12: 73.385 | BJ12: 71.12 | BK12: 69.231 | BL12: 67.474 | BM12: 65.827 | BN12: 64.411 | BO12: 63.277
A13: 11 | B13: 68.791 | C13: 69.817 | D13: 70.733 | E13: 71.64 | F13: 72.482 | G13: 73.084 | H13: 73.178 | I13: 73.742 | J13: 74.362 | K13: 75.377 | L13: 77.48 | M13: 80.799 | N13: 83.564 | O13: 86.662 | P13: 88.983 | Q13: 88.464 | R13: 85.019 | S13: 83.298 | T13: 81.706 | U13: 82.229 | V13: 88.545 | W13: 99.48 | X13: 108.871 | Y13: 118.106 | Z13: 125.672 | AA13: 128.188 | AB13: 126.05 | AC13: 124.836 | AD13: 123.366 | AE13: 121.61 | AF13: 120.853 | AG13: 121.146 | AH13: 119.984 | AI13: 118.6 | AJ13: 115.879 | AK13: 109.476 | AL13: 99.801 | AM13: 91.426 | AN13: 83.222 | AO13: 76.558 | AP13: 74.191 | AQ13: 74.974 | AR13: 75.456 | AS13: 75.913 | AT13: 77.15 | AU13: 79.52 | AV13: 82.944 | AW13: 86.131 | AX13: 89.564 | AY13: 91.958 | AZ13: 91.388 | BA13: 88.212 | BB13: 85.489 | BC13: 82.632 | BD13: 79.969 | BE13: 78.569 | BF13: 77.999 | BG13: 77 | BH13: 75.91 | BI13: 74.686 | BJ13: 72.896 | BK13: 70.822 | BL13: 68.953 | BM13: 67.197 | BN13: 65.558 | BO13: 64.166
A14: 12 | B14: 67.49 | C14: 68.844 | D14: 69.64 | E14: 70.442 | F14: 71.455 | G14: 72.434 | H14: 72.657 | I14: 73.055 | J14: 73.714 | K14: 74.122 | L14: 74.925 | M14: 77.403 | N14: 80.31 | O14: 82.975 | P14: 86.54 | Q14: 89.159 | R14: 87.331 | S14: 84.559 | T14: 83.006 | U14: 80.817 | V14: 81.15 | W14: 88.427 | X14: 99.039 | Y14: 108.378 | Z14: 118.208 | AA14: 126.066 | AB14: 127.457 | AC14: 125.771 | AD14: 124.739 | AE14: 122.944 | AF14: 120.897 | AG14: 120.632 | AH14: 120.454 | AI14: 119.247 | AJ14: 118.482 | AK14: 116.173 | AL14: 108.88 | AM14: 99.628 | AN14: 91.33 | AO14: 82.736 | AP14: 75.984 | AQ14: 73.802 | AR14: 74.611 | AS14: 75.048 | AT14: 75.376 | AU14: 76.557 | AV14: 79.311 | AW14: 82.572 | AX14: 85.774 | AY14: 89.525 | AZ14: 92.021 | BA14: 90.843 | BB14: 87.774 | BC14: 85.064 | BD14: 82.049 | BE14: 79.348 | BF14: 77.987 | BG14: 77.394 | BH14: 76.415 | BI14: 75.433 | BJ14: 74.274 | BK14: 72.59 | BL14: 70.54 | BM14: 68.679 | BN14: 66.914 | BO14: 65.273
A15: 13 | B15: 65.634 | C15: 67.516 | D15: 68.642 | E15: 69.325 | F15: 70.219 | G15: 71.417 | H15: 71.981 | I15: 72.502 | J15: 73.045 | K15: 73.586 | L15: 73.674 | M15: 74.782 | N15: 76.854 | O15: 79.574 | P15: 82.499 | Q15: 86.687 | R15: 87.964 | S15: 86.798 | T15: 84.392 | U15: 82.619 | V15: 79.7 | W15: 80.959 | X15: 87.937 | Y15: 98.368 | Z15: 107.986 | AA15: 118.567 | AB15: 125.3 | AC15: 127.127 | AD15: 125.697 | AE15: 124.477 | AF15: 122.196 | AG15: 120.605 | AH15: 119.857 | AI15: 119.518 | AJ15: 118.693 | AK15: 118.724 | AL15: 115.527 | AM15: 108.678 | AN15: 99.646 | AO15: 91.207 | AP15: 82.146 | AQ15: 75.595 | AR15: 73.449 | AS15: 74.233 | AT15: 74.587 | AU15: 74.778 | AV15: 76.319 | AW15: 78.927 | AX15: 82.112 | AY15: 85.448 | AZ15: 89.568 | BA15: 91.479 | BB15: 90.403 | BC15: 87.391 | BD15: 84.611 | BE15: 81.408 | BF15: 78.775 | BG15: 77.353 | BH15: 76.768 | BI15: 75.855 | BJ15: 74.996 | BK15: 73.972 | BL15: 72.3 | BM15: 70.264 | BN15: 68.399 | BO15: 66.614
A16: 14 | B16: 63.44 | C16: 65.642 | D16: 67.292 | E16: 68.304 | F16: 69.077 | G16: 70.14 | H16: 70.95 | I16: 71.798 | J16: 72.46 | K16: 72.936 | L16: 73.252 | M16: 73.494 | N16: 74.183 | O16: 76.068 | P16: 78.947 | Q16: 82.279 | R16: 85.478 | S16: 87.372 | T16: 86.565 | U16: 84.13 | V16: 82.001 | W16: 79.475 | X16: 80.426 | Y16: 87.241 | Z16: 97.79 | AA16: 107.83 | AB16: 117.8 | AC16: 124.928 | AD16: 127.004 | AE16: 125.458 | AF16: 123.886 | AG16: 121.861 | AH16: 119.76 | AI16: 118.84 | AJ16: 118.766 | AK16: 118.5 | AL16: 118.048 | AM16: 115.299 | AN16: 108.685 | AO16: 99.635 | AP16: 90.971 | AQ16: 81.739 | AR16: 75.243 | AS16: 73.081 | AT16: 73.801 | AU16: 74.065 | AV16: 74.496 | AW16: 75.911 | AX16: 78.458 | AY16: 81.682 | AZ16: 85.202 | BA16: 89.038 | BB16: 91.043 | BC16: 90.02 | BD16: 86.979 | BE16: 84.098 | BF16: 80.903 | BG16: 78.151 | BH16: 76.699 | BI16: 76.166 | BJ16: 75.335 | BK16: 74.716 | BL16: 73.688 | BM16: 72.016 | BN16: 69.98 | BO16: 68.102
A17: 15 | B17: 61.305 | C17: 63.434 | D17: 65.407 | E17: 66.935 | F17: 68.033 | G17: 68.971 | H17: 69.668 | I17: 70.75 | J17: 71.727 | K17: 72.319 | L17: 72.623 | M17: 73.054 | N17: 72.866 | O17: 73.356 | P17: 75.388 | Q17: 78.566 | R17: 81.089 | S17: 84.856 | T17: 87.084 | U17: 86.235 | V17: 83.632 | W17: 81.769 | X17: 78.914 | Y17: 79.706 | Z17: 86.629 | AA17: 97.425 | AB17: 107.086 | AC17: 117.406 | AD17: 124.761 | AE17: 126.714 | AF17: 124.886 | AG17: 123.526 | AH17: 120.967 | AI17: 118.672 | AJ17: 118.006 | AK17: 118.375 | AL17: 117.808 | AM17: 117.798 | AN17: 115.292 | AO17: 108.66 | AP17: 99.5 | AQ17: 90.534 | AR17: 81.372 | AS17: 74.875 | AT17: 72.66 | AU17: 73.31 | AV17: 73.733 | AW17: 74.048 | AX17: 75.422 | AY17: 78.018 | AZ17: 81.328 | BA17: 84.69 | BB17: 88.612 | BC17: 90.664 | BD17: 89.607 | BE17: 86.506 | BF17: 83.693 | BG17: 80.345 | BH17: 77.506 | BI17: 76.069 | BJ17: 75.604 | BK17: 75.086 | BL17: 74.453 | BM17: 73.408 | BN17: 71.725 | BO17: 69.68
A18: 16 | B18: 59.129 | C18: 61.281 | D18: 63.194 | E18: 65.042 | F18: 66.643 | G18: 67.901 | H18: 68.489 | I18: 69.458 | J18: 70.66 | K18: 71.558 | L18: 71.976 | M18: 72.403 | N18: 72.411 | O18: 72.013 | P18: 72.63 | Q18: 74.942 | R18: 77.386 | S18: 80.456 | T18: 84.529 | U18: 86.695 | V18: 85.662 | W18: 83.389 | X18: 81.192 | Y18: 78.171 | Z18: 79.062 | AA18: 86.206 | AB18: 96.7 | AC18: 106.68 | AD18: 117.202 | AE18: 124.429 | AF18: 126.088 | AG18: 124.497 | AH18: 122.6 | AI18: 119.828 | AJ18: 117.768 | AK18: 117.53 | AL18: 117.667 | AM18: 117.542 | AN18: 117.775 | AO18: 115.251 | AP18: 108.499 | AQ18: 99.038 | AR18: 90.141 | AS18: 80.987 | AT18: 74.454 | AU18: 72.18 | AV18: 72.93 | AW18: 73.236 | AX18: 73.521 | AY18: 74.962 | AZ18: 77.651 | BA18: 80.835 | BB18: 84.276 | BC18: 88.24 | BD18: 90.254 | BE18: 89.131 | BF18: 86.197 | BG18: 83.234 | BH18: 79.765 | BI18: 76.885 | BJ18: 75.479 | BK18: 75.387 | BL18: 74.855 | BM18: 74.195 | BN18: 73.121 | BO18: 71.417
A19: 17 | B19: 57.214 | C19: 59.084 | D19: 61.03 | E19: 62.828 | F19: 64.741 | G19: 66.488 | H19: 67.405 | I19: 68.264 | J19: 69.355 | K19: 70.473 | L19: 71.189 | M19: 71.732 | N19: 71.74 | O19: 71.545 | P19: 71.261 | Q19: 72.131 | R19: 73.771 | S19: 76.738 | T19: 80.102 | U19: 84.104 | V19: 86.064 | W19: 85.408 | X19: 82.793 | Y19: 80.427 | Z19: 77.502 | AA19: 78.591 | AB19: 85.503 | AC19: 96.281 | AD19: 106.447 | AE19: 116.844 | AF19: 123.767 | AG19: 125.67 | AH19: 123.536 | AI19: 121.425 | AJ19: 118.875 | AK19: 117.221 | AL19: 116.808 | AM19: 117.383 | AN19: 117.501 | AO19: 117.717 | AP19: 115.066 | AQ19: 108.014 | AR19: 98.624 | AS19: 89.729 | AT19: 80.544 | AU19: 73.971 | AV19: 71.753 | AW19: 72.388 | AX19: 72.661 | AY19: 73.023 | AZ19: 74.571 | BA19: 77.179 | BB19: 80.436 | BC19: 83.915 | BD19: 87.84 | BE19: 89.782 | BF19: 88.929 | BG19: 85.832 | BH19: 82.752 | BI19: 79.211 | BJ19: 76.305 | BK19: 75.298 | BL19: 75.186 | BM19: 74.629 | BN19: 73.93 | BO19: 72.817
A20: 18 | B20: 55.742 | C20: 57.151 | D20: 58.82 | E20: 60.658 | F20: 62.524 | G20: 64.572 | H20: 65.985 | I20: 67.162 | J20: 68.144 | K20: 69.157 | L20: 70.09 | M20: 70.926 | N20: 71.049 | O20: 70.858 | P20: 70.779 | Q20: 70.732 | R20: 70.969 | S20: 73.106 | T20: 76.355 | U20: 79.656 | V20: 83.444 | W20: 85.801 | X20: 84.793 | Y20: 82.006 | Z20: 79.739 | AA20: 77.003 | AB20: 77.903 | AC20: 85.07 | AD20: 96.017 | AE20: 106.073 | AF20: 116.176 | AG20: 123.323 | AH20: 124.675 | AI20: 122.326 | AJ20: 120.438 | AK20: 118.282 | AL20: 116.487 | AM20: 116.508 | AN20: 117.325 | AO20: 117.426 | AP20: 117.513 | AQ20: 114.562 | AR20: 107.581 | AS20: 98.19 | AT20: 89.253 | AU20: 80.035 | AV20: 73.516 | AW20: 71.166 | AX20: 71.769 | AY20: 72.114 | AZ20: 72.592 | BA20: 74.114 | BB20: 76.796 | BC20: 80.087 | BD20: 83.526 | BE20: 87.378 | BF20: 89.633 | BG20: 88.669 | BH20: 85.444 | BI20: 82.296 | BJ20: 78.698 | BK20: 76.14 | BL20: 75.134 | BM20: 74.992 | BN20: 74.395 | BO20: 73.647
A21: 19 | B21: 54.564 | C21: 55.668 | D21: 56.876 | E21: 58.439 | F21: 60.346 | G21: 62.348 | H21: 64.07 | I21: 65.729 | J21: 67.023 | K21: 67.932 | L21: 68.767 | M21: 69.817 | N21: 70.231 | O21: 70.148 | P21: 70.074 | Q21: 70.233 | R21: 69.577 | S21: 70.295 | T21: 72.695 | U21: 75.885 | V21: 78.986 | W21: 83.171 | X21: 85.176 | Y21: 83.982 | Z21: 81.297 | AA21: 79.224 | AB21: 76.316 | AC21: 77.461 | AD21: 84.774 | AE21: 95.627 | AF21: 105.419 | AG21: 115.707 | AH21: 122.312 | AI21: 123.428 | AJ21: 121.305 | AK21: 119.817 | AL21: 117.536 | AM21: 116.175 | AN21: 116.432 | AO21: 117.232 | AP21: 117.205 | AQ21: 116.999 | AR21: 114.114 | AS21: 107.125 | AT21: 97.685 | AU21: 88.703 | AV21: 79.581 | AW21: 72.896 | AX21: 70.503 | AY21: 71.177 | AZ21: 71.634 | BA21: 72.141 | BB21: 73.744 | BC21: 76.462 | BD21: 79.712 | BE21: 83.079 | BF21: 87.196 | BG21: 89.426 | BH21: 88.386 | BI21: 85.083 | BJ21: 81.884 | BK21: 78.518 | BL21: 75.993 | BM21: 74.976 | BN21: 74.789 | BO21: 74.143
A22: 20 | B22: 53.363 | C22: 54.484 | D22: 55.388 | E22: 56.489 | F22: 58.115 | G22: 60.157 | H22: 61.854 | I22: 63.809 | J22: 65.575 | K22: 66.793 | L22: 67.529 | M22: 68.489 | N22: 69.118 | O22: 69.32 | P22: 69.346 | Q22: 69.509 | R22: 69.086 | S22: 68.901 | T22: 69.864 | U22: 72.199 | V22: 75.201 | W22: 78.704 | X22: 82.546 | Y22: 84.353 | Z22: 83.251 | AA22: 80.765 | AB22: 78.53 | AC22: 75.87 | AD22: 77.144 | AE22: 84.367 | AF22: 94.983 | AG22: 104.929 | AH22: 114.708 | AI22: 121.054 | AJ22: 122.373 | AK22: 120.653 | AL22: 119.061 | AM22: 117.215 | AN22: 116.084 | AO22: 116.321 | AP22: 116.994 | AQ22: 116.687 | AR22: 116.542 | AS22: 113.642 | AT22: 106.593 | AU22: 97.1 | AV22: 88.269 | AW22: 78.949 | AX22: 72.2 | AY22: 69.868 | AZ22: 70.652 | BA22: 71.182 | BB22: 71.774 | BC22: 73.419 | BD22: 76.102 | BE22: 79.281 | BF22: 82.809 | BG22: 86.957 | BH22: 89.195 | BI22: 88.129 | BJ22: 84.767 | BK22: 81.669 | BL22: 78.356 | BM22: 75.852 | BN22: 74.81 | BO22: 74.569
A23: 21 | B23: 52.222 | C23: 53.276 | D23: 54.201 | E23: 54.998 | F23: 56.157 | G23: 57.911 | H23: 59.671 | I23: 61.592 | J23: 63.646 | K23: 65.332 | L23: 66.376 | M23: 67.249 | N23: 67.793 | O23: 68.207 | P23: 68.506 | Q23: 68.76 | R23: 68.372 | S23: 68.413 | T23: 68.463 | U23: 69.352 | V23: 71.501 | W23: 74.912 | X23: 78.088 | Y23: 81.73 | Z23: 83.61 | AA23: 82.701 | AB23: 80.068 | AC23: 78.084 | AD23: 75.547 | AE23: 76.725 | AF23: 83.736 | AG23: 94.475 | AH23: 103.957 | AI23: 113.476 | AJ23: 119.985 | AK23: 121.689 | AL23: 119.891 | AM23: 118.736 | AN23: 117.118 | AO23: 115.96 | AP23: 116.065 | AQ23: 116.474 | AR23: 116.227 | AS23: 116.061 | AT23: 113.089 | AU23: 105.973 | AV23: 96.685 | AW23: 87.639 | AX23: 78.233 | AY23: 71.53 | AZ23: 69.297 | BA23: 70.199 | BB23: 70.812 | BC23: 71.451 | BD23: 73.07 | BE23: 75.689 | BF23: 78.933 | BG23: 82.485 | BH23: 86.694 | BI23: 88.992 | BJ23: 87.92 | BK23: 84.521 | BL23: 81.473 | BM23: 78.201 | BN23: 75.703 | BO23: 74.626
A24: 22 | B24: 51.026 | C24: 52.129 | D24: 52.991 | E24: 53.812 | F24: 54.662 | G24: 55.94 | H24: 57.433 | I24: 59.408 | J24: 61.425 | K24: 63.397 | L24: 64.905 | M24: 66.096 | N24: 66.557 | O24: 66.889 | P24: 67.391 | Q24: 67.906 | R24: 67.637 | S24: 67.706 | T24: 67.977 | U24: 67.946 | V24: 68.645 | W24: 71.21 | X24: 74.307 | Y24: 77.292 | Z24: 80.993 | AA24: 83.051 | AB24: 82.003 | AC24: 79.624 | AD24: 77.765 | AE24: 75.123 | AF24: 76.103 | AG24: 83.213 | AH24: 93.534 | AI24: 102.776 | AJ24: 112.421 | AK24: 119.28 | AL24: 120.92 | AM24: 119.562 | AN24: 118.638 | AO24: 116.987 | AP24: 115.691 | AQ24: 115.545 | AR24: 116.01 | AS24: 115.742 | AT24: 115.496 | AU24: 112.442 | AV24: 105.581 | AW24: 96.056 | AX24: 86.915 | AY24: 77.547 | AZ24: 70.927 | BA24: 68.845 | BB24: 69.827 | BC24: 70.486 | BD24: 71.105 | BE24: 72.67 | BF24: 75.257 | BG24: 78.534 | BH24: 82.14 | BI24: 86.459 | BJ24: 88.836 | BK24: 87.64 | BL24: 84.294 | BM24: 81.283 | BN24: 78.036 | BO24: 75.536
A25: 23 | B25: 49.691 | C25: 50.928 | D25: 51.842 | E25: 52.602 | F25: 53.475 | G25: 54.438 | H25: 55.47 | I25: 57.17 | J25: 59.237 | K25: 61.174 | L25: 62.97 | M25: 64.624 | N25: 65.412 | O25: 65.662 | P25: 66.079 | Q25: 66.786 | R25: 66.797 | S25: 66.98 | T25: 67.273 | U25: 67.463 | V25: 67.238 | W25: 68.353 | X25: 70.618 | Y25: 73.53 | Z25: 76.569 | AA25: 80.432 | AB25: 82.355 | AC25: 81.563 | AD25: 79.309 | AE25: 77.342 | AF25: 74.501 | AG25: 75.572 | AH25: 82.307 | AI25: 92.403 | AJ25: 101.754 | AK25: 111.708 | AL25: 118.523 | AM25: 120.589 | AN25: 119.462 | AO25: 118.505 | AP25: 116.71 | AQ25: 115.174 | AR25: 115.08 | AS25: 115.523 | AT25: 115.173 | AU25: 114.837 | AV25: 112.072 | AW25: 104.955 | AX25: 95.324 | AY25: 86.224 | AZ25: 76.933 | BA25: 70.468 | BB25: 68.473 | BC25: 69.5 | BD25: 70.137 | BE25: 70.709 | BF25: 72.187 | BG25: 74.776 | BH25: 78.114 | BI25: 81.819 | BJ25: 86.269 | BK25: 88.537 | BL25: 87.381 | BM25: 84.074 | BN25: 81.085 | BO25: 77.854
A26: 24 | B26: 48.301 | C26: 49.59 | D26: 50.641 | E26: 51.453 | F26: 52.264 | G26: 53.248 | H26: 53.974 | I26: 55.208 | J26: 56.996 | K26: 58.985 | L26: 60.752 | M26: 62.683 | N26: 63.948 | O26: 64.527 | P26: 64.859 | Q26: 65.474 | R26: 65.687 | S26: 66.147 | T26: 66.555 | U26: 66.763 | V26: 66.758 | W26: 66.943 | X26: 67.771 | Y26: 69.862 | Z26: 72.824 | AA26: 76.015 | AB26: 79.748 | AC26: 81.919 | AD26: 81.255 | AE26: 78.889 | AF26: 76.715 | AG26: 73.971 | AH26: 74.693 | AI26: 81.236 | AJ26: 91.417 | AK26: 101.042 | AL26: 110.989 | AM26: 118.195 | AN26: 120.488 | AO26: 119.328 | AP26: 118.224 | AQ26: 116.201 | AR26: 114.713 | AS26: 114.592 | AT26: 114.952 | AU26: 114.511 | AV26: 114.484 | AW26: 111.453 | AX26: 104.216 | AY26: 94.629 | AZ26: 85.613 | BA26: 76.454 | BB26: 70.091 | BC26: 68.144 | BD26: 69.149 | BE26: 69.739 | BF26: 70.231 | BG26: 71.656 | BH26: 74.275 | BI26: 77.718 | BJ26: 81.543 | BK26: 85.976 | BL26: 88.259 | BM26: 87.129 | BN26: 83.846 | BO26: 80.868
A27: 25 | B27: 47.008 | C27: 48.197 | D27: 49.304 | E27: 50.253 | F27: 51.114 | G27: 52.034 | H27: 52.789 | I27: 53.713 | J27: 55.032 | K27: 56.744 | L27: 58.568 | M27: 60.457 | N27: 62.012 | O27: 63.076 | P27: 63.734 | Q27: 64.258 | R27: 64.386 | S27: 65.041 | T27: 65.727 | U27: 66.053 | V27: 66.065 | W27: 66.461 | X27: 66.365 | Y27: 67.033 | Z27: 69.174 | AA27: 72.276 | AB27: 75.347 | AC27: 79.316 | AD27: 81.617 | AE27: 80.839 | AF27: 78.26 | AG27: 76.193 | AH27: 73.101 | AI27: 73.664 | AJ27: 80.292 | AK27: 90.709 | AL27: 100.378 | AM27: 110.672 | AN27: 118.093 | AO27: 120.353 | AP27: 119.044 | AQ27: 117.727 | AR27: 115.748 | AS27: 114.227 | AT27: 114.021 | AU27: 114.287 | AV27: 114.174 | AW27: 113.878 | AX27: 110.716 | AY27: 103.517 | AZ27: 94.021 | BA27: 85.108 | BB27: 76.064 | BC27: 69.757 | BD27: 67.792 | BE27: 68.75 | BF27: 69.303 | BG27: 69.707 | BH27: 71.106 | BI27: 73.797 | BJ27: 77.364 | BK27: 81.27 | BL27: 85.703 | BM27: 87.987 | BN27: 86.867 | BO27: 83.597
A28: 26 | B28: 45.767 | C28: 46.903 | D28: 47.915 | E28: 48.922 | F28: 49.915 | G28: 50.88 | H28: 51.58 | I28: 52.527 | J28: 53.534 | K28: 54.78 | L28: 56.333 | M28: 58.266 | N28: 59.791 | O28: 61.152 | P28: 62.292 | Q28: 63.139 | R28: 63.18 | S28: 63.74 | T28: 64.62 | U28: 65.23 | V28: 65.364 | W28: 65.768 | X28: 65.884 | Y28: 65.634 | Z28: 66.359 | AA28: 68.637 | AB28: 71.624 | AC28: 74.917 | AD28: 79.012 | AE28: 81.205 | AF28: 80.21 | AG28: 77.747 | AH28: 75.321 | AI28: 72.084 | AJ28: 72.751 | AK28: 79.591 | AL28: 90.098 | AM28: 100.077 | AN28: 110.567 | AO28: 117.956 | AP28: 120.067 | AQ28: 118.561 | AR28: 117.287 | AS28: 115.271 | AT28: 113.66 | AU28: 113.357 | AV28: 113.968 | AW28: 113.583 | AX28: 113.15 | AY28: 110.019 | AZ28: 102.914 | BA28: 93.49 | BB28: 84.702 | BC28: 75.722 | BD28: 69.4 | BE28: 67.392 | BF28: 68.345 | BG28: 68.821 | BH28: 69.165 | BI28: 70.578 | BJ28: 73.358 | BK28: 77.108 | BL28: 81.017 | BM28: 85.436 | BN28: 87.707 | BO28: 86.585
A29: 27 | B29: 44.709 | C29: 45.661 | D29: 46.624 | E29: 47.538 | F29: 48.587 | G29: 49.68 | H29: 50.432 | I29: 51.32 | J29: 52.347 | K29: 53.282 | L29: 54.375 | M29: 56.026 | N29: 57.608 | O29: 58.943 | P29: 60.377 | Q29: 61.702 | R29: 62.072 | S29: 62.537 | T29: 63.315 | U29: 64.123 | V29: 64.549 | W29: 65.068 | X29: 65.192 | Y29: 65.153 | Z29: 64.966 | AA29: 65.83 | AB29: 68.002 | AC29: 71.199 | AD29: 74.609 | AE29: 78.603 | AF29: 80.579 | AG29: 79.71 | AH29: 76.877 | AI29: 74.297 | AJ29: 71.18 | AK29: 72.058 | AL29: 79.039 | AM29: 89.813 | AN29: 99.967 | AO29: 110.43 | AP29: 117.673 | AQ29: 119.596 | AR29: 118.134 | AS29: 116.822 | AT29: 114.711 | AU29: 113 | AV29: 113.057 | AW29: 113.395 | AX29: 112.871 | AY29: 112.464 | AZ29: 109.425 | BA29: 102.355 | BB29: 93.068 | BC29: 84.349 | BD29: 75.355 | BE29: 68.994 | BF29: 67.018 | BG29: 67.896 | BH29: 68.322 | BI29: 68.644 | BJ29: 70.087 | BK29: 73.119 | BL29: 76.871 | BM29: 80.77 | BN29: 85.16 | BO29: 87.405
A30: 28 | B30: 43.91 | C30: 44.601 | D30: 45.386 | E30: 46.253 | F30: 47.208 | G30: 48.352 | H30: 49.238 | I30: 50.174 | J30: 51.139 | K30: 52.095 | L30: 52.882 | M30: 54.064 | N30: 55.376 | O30: 56.773 | P30: 58.177 | Q30: 59.791 | R30: 60.651 | S30: 61.433 | T30: 62.11 | U30: 62.815 | V30: 63.446 | W30: 64.254 | X30: 64.496 | Y30: 64.466 | Z30: 64.486 | AA30: 64.44 | AB30: 65.208 | AC30: 67.582 | AD30: 70.889 | AE30: 74.202 | AF30: 77.986 | AG30: 80.089 | AH30: 78.843 | AI30: 75.853 | AJ30: 73.39 | AK30: 70.492 | AL30: 71.545 | AM30: 78.772 | AN30: 89.701 | AO30: 99.828 | AP30: 110.154 | AQ30: 117.225 | AR30: 119.184 | AS30: 117.683 | AT30: 116.274 | AU30: 114.057 | AV30: 112.716 | AW30: 112.506 | AX30: 112.701 | AY30: 112.201 | AZ30: 111.883 | BA30: 108.847 | BB30: 101.915 | BC30: 92.704 | BD30: 83.968 | BE30: 74.934 | BF30: 68.644 | BG30: 66.601 | BH30: 67.429 | BI30: 67.843 | BJ30: 68.159 | BK30: 69.861 | BL30: 72.896 | BM30: 76.639 | BN30: 80.514 | BO30: 84.864
A31: 29 | B31: 43.297 | C31: 43.798 | D31: 44.328 | E31: 45.021 | F31: 45.927 | G31: 46.975 | H31: 47.915 | I31: 48.98 | J31: 49.992 | K31: 50.888 | L31: 51.698 | M31: 52.569 | N31: 53.422 | O31: 54.557 | P31: 56.019 | Q31: 57.593 | R31: 58.76 | S31: 60.018 | T31: 61.007 | U31: 61.611 | V31: 62.14 | W31: 63.151 | X31: 63.686 | Y31: 63.775 | Z31: 63.802 | AA31: 63.959 | AB31: 63.826 | AC31: 64.792 | AD31: 67.271 | AE31: 70.484 | AF31: 73.598 | AG31: 77.5 | AH31: 79.23 | AI31: 77.818 | AJ31: 74.947 | AK31: 72.705 | AL31: 69.987 | AM31: 71.29 | AN31: 78.656 | AO31: 89.561 | AP31: 99.565 | AQ31: 109.741 | AR31: 116.834 | AS31: 118.747 | AT31: 117.148 | AU31: 115.63 | AV31: 113.783 | AW31: 112.181 | AX31: 111.834 | AY31: 112.05 | AZ31: 111.635 | BA31: 111.302 | BB31: 108.396 | BC31: 101.538 | BD31: 92.309 | BE31: 83.528 | BF31: 74.593 | BG31: 68.249 | BH31: 66.165 | BI31: 66.983 | BJ31: 67.401 | BK31: 67.939 | BL31: 69.651 | BM31: 72.679 | BN31: 76.399 | BO31: 80.239
A32: 30 | B32: 42.706 | C32: 43.181 | D32: 43.524 | E32: 43.967 | F32: 44.7 | G32: 45.696 | H32: 46.543 | I32: 47.658 | J32: 48.799 | K32: 49.743 | L32: 50.494 | M32: 51.385 | N32: 51.934 | O32: 52.617 | P32: 53.815 | Q32: 55.439 | R32: 56.586 | S32: 58.134 | T32: 59.592 | U32: 60.509 | V32: 60.938 | W32: 61.846 | X32: 62.589 | Y32: 62.971 | Z32: 63.115 | AA32: 63.277 | AB32: 63.351 | AC32: 63.414 | AD32: 64.482 | AE32: 66.87 | AF32: 69.893 | AG32: 73.113 | AH32: 76.657 | AI32: 78.212 | AJ32: 76.914 | AK32: 74.269 | AL32: 72.187 | AM32: 69.734 | AN32: 71.172 | AO32: 78.517 | AP32: 89.31 | AQ32: 99.193 | AR32: 109.38 | AS32: 116.418 | AT32: 118.225 | AU32: 116.517 | AV32: 115.361 | AW32: 113.256 | AX32: 111.527 | AY32: 111.205 | AZ32: 111.502 | BA32: 111.062 | BB32: 110.851 | BC32: 108.013 | BD32: 101.128 | BE32: 91.85 | BF32: 83.187 | BG32: 74.204 | BH32: 67.835 | BI32: 65.75 | BJ32: 66.572 | BK32: 67.183 | BL32: 67.735 | BM32: 69.446 | BN32: 72.454 | BO32: 76.141
A33: 31 | B33: 42.149 | C33: 42.585 | D33: 42.904 | E33: 43.164 | F33: 43.649 | G33: 44.471 | H33: 45.269 | I33: 46.286 | J33: 47.475 | K33: 48.55 | L33: 49.354 | M33: 50.181 | N33: 50.757 | O33: 51.141 | P33: 51.887 | Q33: 53.241 | R33: 54.456 | S33: 55.969 | T33: 57.709 | U33: 59.096 | V33: 59.841 | W33: 60.646 | X33: 61.29 | Y33: 61.882 | Z33: 62.317 | AA33: 62.593 | AB33: 62.674 | AC33: 62.942 | AD33: 63.105 | AE33: 64.085 | AF33: 66.293 | AG33: 69.41 | AH33: 72.291 | AI33: 75.66 | AJ33: 77.317 | AK33: 76.244 | AL33: 73.742 | AM33: 71.93 | AN33: 69.615 | AO33: 71.033 | AP33: 78.28 | AQ33: 88.978 | AR33: 98.869 | AS33: 108.997 | AT33: 115.92 | AU33: 117.606 | AV33: 116.254 | AW33: 114.836 | AX33: 112.608 | AY33: 110.914 | AZ33: 110.679 | BA33: 110.936 | BB33: 110.618 | BC33: 110.469 | BD33: 107.593 | BE33: 100.647 | BF33: 91.51 | BG33: 82.791 | BH33: 73.794 | BI33: 67.443 | BJ33: 65.37 | BK33: 66.357 | BL33: 66.981 | BM33: 67.537 | BN33: 69.234 | BO33: 72.213
A34: 32 | B34: 41.664 | C34: 42.022 | D34: 42.305 | E34: 42.542 | F34: 42.846 | G34: 43.421 | H34: 44.048 | I34: 45.011 | J34: 46.1 | K34: 47.226 | L34: 48.166 | M34: 49.041 | N34: 49.56 | O34: 49.974 | P34: 50.42 | Q34: 51.318 | R34: 52.282 | S34: 53.848 | T34: 55.545 | U34: 57.216 | V34: 58.434 | W34: 59.55 | X34: 60.097 | Y34: 60.593 | Z34: 61.235 | AA34: 61.799 | AB34: 61.996 | AC34: 62.269 | AD34: 62.635 | AE34: 62.712 | AF34: 63.519 | AG34: 65.813 | AH34: 68.608 | AI34: 71.323 | AJ34: 74.782 | AK34: 76.656 | AL34: 75.706 | AM34: 73.482 | AN34: 71.811 | AO34: 69.476 | AP34: 70.805 | AQ34: 77.989 | AR34: 88.69 | AS34: 98.524 | AT34: 108.536 | AU34: 115.326 | AV34: 117.347 | AW34: 115.732 | AX34: 114.189 | AY34: 112.002 | AZ34: 110.405 | BA34: 110.123 | BB34: 110.499 | BC34: 110.243 | BD34: 110.051 | BE34: 107.098 | BF34: 100.312 | BG34: 91.112 | BH34: 82.373 | BI34: 73.407 | BJ34: 67.087 | BK34: 65.158 | BL34: 66.158 | BM34: 66.784 | BN34: 67.331 | BO34: 69.005
A35: 33 | B35: 41.25 | C35: 41.531 | D35: 41.739 | E35: 41.942 | F35: 42.222 | G35: 42.617 | H35: 43.001 | I35: 43.79 | J35: 44.823 | K35: 45.851 | L35: 46.846 | M35: 47.853 | N35: 48.427 | O35: 48.788 | P35: 49.262 | Q35: 49.857 | R35: 50.382 | S35: 51.683 | T35: 53.426 | U35: 55.057 | V35: 56.562 | W35: 58.145 | X35: 59.007 | Y35: 59.409 | Z35: 59.954 | AA35: 60.722 | AB35: 61.208 | AC35: 61.594 | AD35: 61.964 | AE35: 62.245 | AF35: 62.152 | AG35: 63.044 | AH35: 65.03 | AI35: 67.668 | AJ35: 70.468 | AK35: 74.131 | AL35: 76.113 | AM35: 75.441 | AN35: 73.362 | AO35: 71.671 | AP35: 69.25 | AQ35: 70.546 | AR35: 77.737 | AS35: 88.382 | AT35: 98.109 | AU35: 107.986 | AV35: 115.07 | AW35: 116.827 | AX35: 115.087 | AY35: 113.584 | AZ35: 111.5 | BA35: 109.853 | BB35: 109.696 | BC35: 110.131 | BD35: 109.832 | BE35: 109.555 | BF35: 106.759 | BG35: 99.913 | BH35: 90.688 | BI35: 81.98 | BJ35: 73.06 | BK35: 66.872 | BL35: 64.961 | BM35: 65.963 | BN35: 66.579 | BO35: 67.109
A36: 34 | B36: 40.878 | C36: 41.11 | D36: 41.245 | E36: 41.374 | F36: 41.62 | G36: 41.989 | H36: 42.197 | I36: 42.742 | J36: 43.6 | K36: 44.574 | L36: 45.474 | M36: 46.535 | N36: 47.248 | O36: 47.665 | P36: 48.085 | Q36: 48.703 | R36: 48.942 | S36: 49.794 | T36: 51.263 | U36: 52.941 | V36: 54.413 | W36: 56.276 | X36: 57.61 | Y36: 58.328 | Z36: 58.778 | AA36: 59.446 | AB36: 60.138 | AC36: 60.81 | AD36: 61.292 | AE36: 61.577 | AF36: 61.69 | AG36: 61.687 | AH36: 62.28 | AI36: 64.117 | AJ36: 66.834 | AK36: 69.827 | AL36: 73.6 | AM36: 75.847 | AN36: 75.321 | AO36: 73.221 | AP36: 71.441 | AQ36: 69.004 | AR36: 70.321 | AS36: 77.468 | AT36: 88.012 | AU36: 97.613 | AV36: 107.734 | AW36: 114.559 | AX36: 116.183 | AY36: 114.485 | AZ36: 113.085 | BA36: 110.939 | BB36: 109.428 | BC36: 109.337 | BD36: 109.726 | BE36: 109.343 | BF36: 109.198 | BG36: 106.35 | BH36: 99.486 | BI36: 90.293 | BJ36: 81.631 | BK36: 72.834 | BL36: 66.672 | BM36: 64.769 | BN36: 65.761 | BO36: 66.36
A37: 35 | B37: 40.532 | C37: 40.731 | D37: 40.818 | E37: 40.876 | F37: 41.049 | G37: 41.383 | H37: 41.569 | I37: 41.936 | J37: 42.549 | K37: 43.349 | L37: 44.2 | M37: 45.166 | N37: 45.94 | O37: 46.498 | P37: 46.971 | Q37: 47.532 | R37: 47.807 | S37: 48.364 | T37: 49.377 | U37: 50.782 | V37: 52.307 | W37: 54.129 | X37: 55.751 | Y37: 56.942 | Z37: 57.705 | AA37: 58.276 | AB37: 58.871 | AC37: 59.744 | AD37: 60.51 | AE37: 60.908 | AF37: 61.027 | AG37: 61.237 | AH37: 60.939 | AI37: 61.39 | AJ37: 63.304 | AK37: 66.203 | AL37: 69.317 | AM37: 73.336 | AN37: 75.725 | AO37: 75.178 | AP37: 72.988 | AQ37: 71.198 | AR37: 68.793 | AS37: 70.081 | AT37: 77.143 | AU37: 87.569 | AV37: 97.364 | AW37: 107.242 | AX37: 113.926 | AY37: 115.582 | AZ37: 113.989 | BA37: 112.507 | BB37: 110.506 | BC37: 109.072 | BD37: 108.942 | BE37: 109.245 | BF37: 108.96 | BG37: 108.77 | BH37: 105.913 | BI37: 99.09 | BJ37: 89.946 | BK37: 81.389 | BL37: 72.625 | BM37: 66.478 | BN37: 64.57 | BO37: 65.544
A38: 36 | B38: 40.223 | C38: 40.377 | D38: 40.432 | E38: 40.445 | F38: 40.548 | G38: 40.809 | H38: 40.963 | I38: 41.306 | J38: 41.74 | K38: 42.297 | L38: 42.978 | M38: 43.895 | N38: 44.582 | O38: 45.204 | P38: 45.814 | Q38: 46.424 | R38: 46.655 | S38: 47.241 | T38: 47.953 | U38: 48.902 | V38: 50.159 | W38: 52.026 | X38: 53.616 | Y38: 55.098 | Z38: 56.329 | AA38: 57.208 | AB38: 57.708 | AC38: 58.481 | AD38: 59.447 | AE38: 60.13 | AF38: 60.363 | AG38: 60.586 | AH38: 60.502 | AI38: 60.067 | AJ38: 60.597 | AK38: 62.684 | AL38: 65.71 | AM38: 69.058 | AN38: 73.212 | AO38: 75.581 | AP38: 74.942 | AQ38: 72.749 | AR38: 70.991 | AS38: 68.567 | AT38: 69.79 | AU38: 76.756 | AV38: 87.321 | AW38: 96.898 | AX38: 106.636 | AY38: 113.335 | AZ38: 115.088 | BA38: 113.397 | BB38: 112.06 | BC38: 110.142 | BD38: 108.68 | BE38: 108.471 | BF38: 108.835 | BG38: 108.505 | BH38: 108.312 | BI38: 105.508 | BJ38: 98.747 | BK38: 89.687 | BL38: 81.166 | BM38: 72.422 | BN38: 66.276 | BO38: 64.356
A39: 37 | B39: 39.818 | C39: 40.06 | D39: 40.072 | E39: 40.054 | F39: 40.112 | G39: 40.304 | H39: 40.388 | I39: 40.696 | J39: 41.106 | K39: 41.487 | L39: 41.927 | M39: 42.676 | N39: 43.321 | O39: 43.861 | P39: 44.532 | Q39: 45.273 | R39: 45.566 | S39: 46.101 | T39: 46.838 | U39: 47.486 | V39: 48.29 | W39: 49.88 | X39: 51.524 | Y39: 52.979 | Z39: 54.497 | AA39: 55.839 | AB39: 56.648 | AC39: 57.323 | AD39: 58.187 | AE39: 59.071 | AF39: 59.59 | AG39: 59.932 | AH39: 59.865 | AI39: 59.645 | AJ39: 59.291 | AK39: 59.988 | AL39: 62.206 | AM39: 65.454 | AN39: 68.931 | AO39: 73.067 | AP39: 75.343 | AQ39: 74.703 | AR39: 72.544 | AS39: 70.768 | AT39: 68.292 | AU39: 69.443 | AV39: 76.509 | AW39: 86.88 | AX39: 96.329 | AY39: 106.07 | AZ39: 112.849 | BA39: 114.479 | BB39: 112.938 | BC39: 111.683 | BD39: 109.742 | BE39: 108.212 | BF39: 108.034 | BG39: 108.355 | BH39: 108.021 | BI39: 107.888 | BJ39: 105.16 | BK39: 98.468 | BL39: 89.449 | BM39: 80.949 | BN39: 72.211 | BO39: 66.059
A40: 38 | B40: 39.25 | C40: 39.646 | D40: 39.747 | E40: 39.687 | F40: 39.715 | G40: 39.862 | H40: 39.88 | I40: 40.118 | J40: 40.492 | K40: 40.85 | L40: 41.117 | M40: 41.628 | N40: 42.113 | O40: 42.615 | P40: 43.203 | Q40: 44 | R40: 44.434 | S40: 45.023 | T40: 45.705 | U40: 46.38 | V40: 46.885 | W40: 48.013 | X40: 49.39 | Y40: 50.903 | Z40: 52.393 | AA40: 54.016 | AB40: 55.287 | AC40: 56.267 | AD40: 57.031 | AE40: 57.815 | AF40: 58.538 | AG40: 59.169 | AH40: 59.226 | AI40: 59.024 | AJ40: 58.883 | AK40: 58.694 | AL40: 59.52 | AM40: 61.953 | AN40: 65.324 | AO40: 68.784 | AP40: 72.83 | AQ40: 75.103 | AR40: 74.501 | AS40: 72.325 | AT40: 70.495 | AU40: 67.96 | AV40: 69.195 | AW40: 76.092 | AX40: 86.345 | AY40: 95.796 | AZ40: 105.603 | BA40: 112.243 | BB40: 114.004 | BC40: 112.548 | BD40: 111.269 | BE40: 109.265 | BF40: 107.753 | BG40: 107.527 | BH40: 107.845 | BI40: 107.571 | BJ40: 107.521 | BK40: 104.863 | BL40: 98.213 | BM40: 89.217 | BN40: 80.724 | BO40: 71.983
A41: 39 | B41: 38.575 | C41: 39.07 | D41: 39.326 | E41: 39.356 | F41: 39.342 | G41: 39.458 | H41: 39.434 | I41: 39.606 | J41: 39.91 | K41: 40.233 | L41: 40.479 | M41: 40.82 | N41: 41.074 | O41: 41.421 | P41: 41.97 | Q41: 42.68 | R41: 43.18 | S41: 43.902 | T41: 44.635 | U41: 45.255 | V41: 45.791 | W41: 46.61 | X41: 47.533 | Y41: 48.786 | Z41: 50.332 | AA41: 51.922 | AB41: 53.473 | AC41: 54.909 | AD41: 55.977 | AE41: 56.663 | AF41: 57.289 | AG41: 58.123 | AH41: 58.476 | AI41: 58.401 | AJ41: 58.276 | AK41: 58.299 | AL41: 58.226 | AM41: 59.267 | AN41: 61.819 | AO41: 65.175 | AP41: 68.551 | AQ41: 72.59 | AR41: 74.901 | AS41: 74.283 | AT41: 72.054 | AU41: 70.163 | AV41: 67.708 | AW41: 68.793 | AX41: 75.594 | AY41: 85.843 | AZ41: 95.352 | BA41: 105.03 | BB41: 111.768 | BC41: 113.6 | BD41: 112.122 | BE41: 110.777 | BF41: 108.791 | BG41: 107.223 | BH41: 106.991 | BI41: 107.369 | BJ41: 107.178 | BK41: 107.209 | BL41: 104.591 | BM41: 97.964 | BN41: 88.976 | BO41: 80.48
A42: 40 | B42: 37.869 | C42: 38.386 | D42: 38.744 | E42: 38.929 | F42: 39.004 | G42: 39.078 | H42: 39.026 | I42: 39.155 | J42: 39.392 | K42: 39.647 | L42: 39.861 | M42: 40.184 | N42: 40.273 | O42: 40.395 | P42: 40.788 | Q42: 41.455 | R42: 41.878 | S42: 42.657 | T42: 43.521 | U42: 44.194 | V42: 44.678 | W42: 45.517 | X42: 46.138 | Y42: 46.943 | Z42: 48.229 | AA42: 49.87 | AB42: 51.388 | AC42: 53.099 | AD42: 54.621 | AE42: 55.612 | AF42: 56.144 | AG42: 56.877 | AH42: 57.44 | AI42: 57.665 | AJ42: 57.668 | AK42: 57.705 | AL42: 57.825 | AM42: 57.969 | AN42: 59.128 | AO42: 61.667 | AP42: 64.944 | AQ42: 68.309 | AR42: 72.385 | AS42: 74.682 | AT42: 74.012 | AU42: 71.724 | AV42: 69.904 | AW42: 67.304 | AX42: 68.317 | AY42: 75.125 | AZ42: 85.421 | BA42: 94.831 | BB42: 104.579 | BC42: 111.362 | BD42: 113.158 | BE42: 111.617 | BF42: 110.294 | BG42: 108.246 | BH42: 106.665 | BI42: 106.489 | BJ42: 106.95 | BK42: 106.852 | BL42: 106.922 | BM42: 104.326 | BN42: 97.706 | BO42: 88.714
A43: 41 | B43: 37.066 | C43: 37.672 | D43: 38.054 | E43: 38.342 | F43: 38.57 | G43: 38.732 | H43: 38.641 | I43: 38.741 | J43: 38.936 | K43: 39.125 | L43: 39.273 | M43: 39.568 | N43: 39.643 | O43: 39.603 | P43: 39.773 | Q43: 40.283 | R43: 40.671 | S43: 41.365 | T43: 42.282 | U43: 43.088 | V43: 43.629 | W43: 44.406 | X43: 45.051 | Y43: 45.559 | Z43: 46.399 | AA43: 47.777 | AB43: 49.346 | AC43: 51.016 | AD43: 52.811 | AE43: 54.259 | AF43: 55.1 | AG43: 55.736 | AH43: 56.204 | AI43: 56.642 | AJ43: 56.944 | AK43: 57.109 | AL43: 57.225 | AM43: 57.56 | AN43: 57.823 | AO43: 58.971 | AP43: 61.438 | AQ43: 64.698 | AR43: 68.101 | AS43: 72.165 | AT43: 74.41 | AU43: 73.68 | AV43: 71.457 | AW43: 69.489 | AX43: 66.829 | AY43: 67.868 | AZ43: 74.725 | BA43: 84.947 | BB43: 94.419 | BC43: 104.194 | BD43: 110.92 | BE43: 112.637 | BF43: 111.124 | BG43: 109.739 | BH43: 107.672 | BI43: 106.14 | BJ43: 106.043 | BK43: 106.609 | BL43: 106.55 | BM43: 106.642 | BN43: 104.05 | BO43: 97.424
A44: 42 | B44: 36.397 | C44: 36.861 | D44: 37.335 | E44: 37.648 | F44: 37.977 | G44: 38.291 | H44: 38.29 | I44: 38.35 | J44: 38.515 | K44: 38.663 | L44: 38.748 | M44: 38.982 | N44: 39.032 | O44: 38.981 | P44: 38.99 | Q44: 39.275 | R44: 39.516 | S44: 40.167 | T44: 40.994 | U44: 41.857 | V44: 42.534 | W44: 43.358 | X44: 43.945 | Y44: 44.48 | Z44: 45.024 | AA44: 45.956 | AB44: 47.262 | AC44: 48.977 | AD44: 50.728 | AE44: 52.452 | AF44: 53.754 | AG44: 54.696 | AH44: 55.072 | AI44: 55.417 | AJ44: 55.933 | AK44: 56.397 | AL44: 56.624 | AM44: 56.953 | AN44: 57.406 | AO44: 57.659 | AP44: 58.741 | AQ44: 61.184 | AR44: 64.483 | AS44: 67.878 | AT44: 71.894 | AU44: 74.077 | AV44: 73.404 | AW44: 71.031 | AX44: 69 | AY44: 66.379 | AZ44: 67.481 | BA44: 74.301 | BB44: 84.571 | BC44: 94.066 | BD44: 103.774 | BE44: 110.399 | BF44: 112.133 | BG44: 110.558 | BH44: 109.154 | BI44: 107.132 | BJ44: 105.672 | BK44: 105.689 | BL44: 106.293 | BM44: 106.257 | BN44: 106.352 | BO44: 103.75
A45: 43 | B45: 35.967 | C45: 36.182 | D45: 36.519 | E45: 36.924 | F45: 37.278 | G45: 37.691 | H45: 37.843 | I45: 37.991 | J45: 38.117 | K45: 38.236 | L45: 38.282 | M45: 38.458 | N45: 38.452 | O45: 38.377 | P45: 38.374 | Q45: 38.498 | R45: 38.522 | S45: 39.021 | T45: 39.802 | U45: 40.576 | V45: 41.314 | W45: 42.264 | X45: 42.903 | Y45: 43.384 | Z45: 43.953 | AA45: 44.588 | AB45: 45.447 | AC45: 46.896 | AD45: 48.687 | AE45: 50.371 | AF45: 51.954 | AG45: 53.353 | AH45: 54.041 | AI45: 54.296 | AJ45: 54.718 | AK45: 55.393 | AL45: 55.905 | AM45: 56.344 | AN45: 56.79 | AO45: 57.234 | AP45: 57.424 | AQ45: 58.479 | AR45: 60.961 | AS45: 64.254 | AT45: 67.607 | AU45: 71.563 | AV45: 73.795 | AW45: 72.965 | AX45: 70.53 | AY45: 68.538 | AZ45: 65.991 | BA45: 67.086 | BB45: 73.963 | BC45: 84.248 | BD45: 93.683 | BE45: 103.281 | BF45: 109.891 | BG45: 111.555 | BH45: 109.963 | BI45: 108.603 | BJ45: 106.648 | BK45: 105.298 | BL45: 105.359 | BM45: 105.985 | BN45: 105.952 | BO45: 106.036
A46: 44 | B46: 35.635 | C46: 35.74 | D46: 35.833 | E46: 36.105 | F46: 36.55 | G46: 36.986 | H46: 37.238 | I46: 37.538 | J46: 37.751 | K46: 37.832 | L46: 37.851 | M46: 37.99 | N46: 37.932 | O46: 37.805 | P46: 37.777 | Q46: 37.887 | R46: 37.755 | S46: 38.035 | T46: 38.661 | U46: 39.39 | V46: 40.042 | W46: 41.042 | X46: 41.814 | Y46: 42.35 | Z46: 42.864 | AA46: 43.522 | AB46: 44.082 | AC46: 45.082 | AD46: 46.606 | AE46: 48.333 | AF46: 49.881 | AG46: 51.553 | AH46: 52.706 | AI46: 53.277 | AJ46: 53.607 | AK46: 54.184 | AL46: 54.894 | AM46: 55.616 | AN46: 56.171 | AO46: 56.609 | AP46: 56.991 | AQ46: 57.152 | AR46: 58.246 | AS46: 60.725 | AT46: 63.98 | AU46: 67.28 | AV46: 71.277 | AW46: 73.348 | AX46: 72.448 | AY46: 70.055 | AZ46: 68.138 | BA46: 65.589 | BB46: 66.768 | BC46: 73.672 | BD46: 83.897 | BE46: 93.233 | BF46: 102.778 | BG46: 109.311 | BH46: 110.948 | BI46: 109.402 | BJ46: 108.111 | BK46: 106.247 | BL46: 104.949 | BM46: 105.037 | BN46: 105.665 | BO46: 105.623
A47: 45 | B47: 35.216 | C47: 35.394 | D47: 35.38 | E47: 35.413 | F47: 35.727 | G47: 36.251 | H47: 36.528 | I47: 36.926 | J47: 37.29 | K47: 37.459 | L47: 37.441 | M47: 37.555 | N47: 37.464 | O47: 37.29 | P47: 37.212 | Q47: 37.295 | R47: 37.15 | S47: 37.272 | T47: 37.679 | U47: 38.256 | V47: 38.866 | W47: 39.768 | X47: 40.596 | Y47: 41.268 | Z47: 41.838 | AA47: 42.438 | AB47: 43.016 | AC47: 43.716 | AD47: 44.79 | AE47: 46.253 | AF47: 47.85 | AG47: 49.479 | AH47: 50.915 | AI47: 51.954 | AJ47: 52.597 | AK47: 53.08 | AL47: 53.679 | AM47: 54.595 | AN47: 55.433 | AO47: 55.982 | AP47: 56.358 | AQ47: 56.707 | AR47: 56.907 | AS47: 58 | AT47: 60.445 | AU47: 63.653 | AV47: 66.993 | AW47: 70.833 | AX47: 72.823 | AY47: 71.959 | AZ47: 69.645 | BA47: 67.706 | BB47: 65.263 | BC47: 66.493 | BD47: 73.356 | BE47: 83.487 | BF47: 92.741 | BG47: 102.208 | BH47: 108.701 | BI47: 110.375 | BJ47: 108.899 | BK47: 107.677 | BL47: 105.87 | BM47: 104.608 | BN47: 104.704 | BO47: 105.321
A48: 46 | B48: 34.825 | C48: 34.961 | D48: 35.021 | E48: 34.95 | F48: 35.028 | G48: 35.422 | H48: 35.788 | I48: 36.207 | J48: 36.669 | K48: 36.991 | L48: 37.063 | M48: 37.141 | N48: 37.028 | O48: 36.825 | P48: 36.701 | Q48: 36.735 | R48: 36.565 | S48: 36.669 | T48: 36.918 | U48: 37.279 | V48: 37.743 | W48: 38.589 | X48: 39.324 | Y48: 40.056 | Z48: 40.762 | AA48: 41.417 | AB48: 41.933 | AC48: 42.647 | AD48: 43.42 | AE48: 44.438 | AF48: 45.778 | AG48: 47.448 | AH48: 48.85 | AI48: 50.175 | AJ48: 51.283 | AK48: 52.076 | AL48: 52.566 | AM48: 53.368 | AN48: 54.399 | AO48: 55.233 | AP48: 55.722 | AQ48: 56.061 | AR48: 56.451 | AS48: 56.651 | AT48: 57.713 | AU48: 60.116 | AV48: 63.364 | AW48: 66.557 | AX48: 70.314 | AY48: 72.326 | AZ48: 71.536 | BA48: 69.186 | BB48: 67.352 | BC48: 64.977 | BD48: 66.195 | BE48: 72.989 | BF48: 83.006 | BG48: 92.189 | BH48: 101.61 | BI48: 108.126 | BJ48: 109.861 | BK48: 108.433 | BL48: 107.268 | BM48: 105.501 | BN48: 104.256 | BO48: 104.346
A49: 47 | B49: 33.926 | C49: 34.557 | D49: 34.576 | E49: 34.579 | F49: 34.555 | G49: 34.716 | H49: 34.956 | I49: 35.46 | J49: 35.942 | K49: 36.362 | L49: 36.588 | M49: 36.759 | N49: 36.613 | O49: 36.389 | P49: 36.238 | Q49: 36.227 | R49: 36.01 | S49: 36.086 | T49: 36.315 | U49: 36.519 | V49: 36.773 | W49: 37.462 | X49: 38.148 | Y49: 38.79 | Z49: 39.555 | AA49: 40.345 | AB49: 40.911 | AC49: 41.561 | AD49: 42.347 | AE49: 43.066 | AF49: 43.969 | AG49: 45.375 | AH49: 46.827 | AI49: 48.122 | AJ49: 49.514 | AK49: 50.768 | AL49: 51.553 | AM49: 52.244 | AN49: 53.159 | AO49: 54.188 | AP49: 54.964 | AQ49: 55.411 | AR49: 55.791 | AS49: 56.182 | AT49: 56.354 | AU49: 57.378 | AV49: 59.823 | AW49: 62.933 | AX49: 66.05 | AY49: 69.821 | AZ49: 71.895 | BA49: 71.046 | BB49: 68.807 | BC49: 67.041 | BD49: 64.67 | BE49: 65.851 | BF49: 72.519 | BG49: 82.47 | BH49: 91.611 | BI49: 101.044 | BJ49: 107.608 | BK49: 109.359 | BL49: 107.991 | BM49: 106.867 | BN49: 105.121 | BO49: 103.879
A50: 48 | B50: 32.259 | C50: 33.649 | D50: 34.16 | E50: 34.124 | F50: 34.171 | G50: 34.231 | H50: 34.244 | I50: 34.621 | J50: 35.186 | K50: 35.627 | L50: 35.954 | M50: 36.282 | N50: 36.229 | O50: 35.974 | P50: 35.801 | Q50: 35.764 | R50: 35.509 | S50: 35.533 | T50: 35.732 | U50: 35.918 | V50: 36.018 | W50: 36.491 | X50: 37.022 | Y50: 37.619 | Z50: 38.294 | AA50: 39.141 | AB50: 39.842 | AC50: 40.535 | AD50: 41.256 | AE50: 41.99 | AF50: 42.599 | AG50: 43.568 | AH50: 44.762 | AI50: 46.112 | AJ50: 47.47 | AK50: 49.002 | AL50: 50.239 | AM50: 51.218 | AN50: 52.021 | AO50: 52.934 | AP50: 53.908 | AQ50: 54.637 | AR50: 55.126 | AS50: 55.51 | AT50: 55.874 | AU50: 56.011 | AV50: 57.078 | AW50: 59.396 | AX50: 62.436 | AY50: 65.569 | AZ50: 69.392 | BA50: 71.383 | BB50: 70.638 | BC50: 68.47 | BD50: 66.707 | BE50: 64.318 | BF50: 65.388 | BG50: 72.001 | BH50: 81.913 | BI50: 91.063 | BJ50: 100.532 | BK50: 107.086 | BL50: 108.882 | BM50: 107.558 | BN50: 106.454 | BO50: 104.716
A51: 49 | B51: 30.104 | C51: 31.978 | D51: 33.246 | E51: 33.696 | F51: 33.705 | G51: 33.834 | H51: 33.75 | I51: 33.901 | J51: 34.34 | K51: 34.864 | L51: 35.213 | M51: 35.65 | N51: 35.754 | O51: 35.59 | P51: 35.386 | Q51: 35.326 | R51: 35.056 | S51: 35.036 | T51: 35.178 | U51: 35.336 | V51: 35.419 | W51: 35.739 | X51: 36.054 | Y51: 36.497 | Z51: 37.127 | AA51: 37.882 | AB51: 38.644 | AC51: 39.464 | AD51: 40.224 | AE51: 40.895 | AF51: 41.522 | AG51: 42.206 | AH51: 42.966 | AI51: 44.06 | AJ51: 45.47 | AK51: 46.963 | AL51: 48.474 | AM51: 49.893 | AN51: 50.98 | AO51: 51.782 | AP51: 52.643 | AQ51: 53.564 | AR51: 54.336 | AS51: 54.83 | AT51: 55.188 | AU51: 55.519 | AV51: 55.699 | AW51: 56.651 | AX51: 58.907 | AY51: 61.962 | AZ51: 65.148 | BA51: 68.874 | BB51: 70.953 | BC51: 70.274 | BD51: 68.111 | BE51: 66.326 | BF51: 63.855 | BG51: 64.883 | BH51: 71.465 | BI51: 81.381 | BJ51: 90.563 | BK51: 100.016 | BL51: 106.588 | BM51: 108.413 | BN51: 107.114 | BO51: 106.017
A52: 50 | B52: 28.032 | C52: 29.825 | D52: 31.578 | E52: 32.777 | F52: 33.266 | G52: 33.356 | H52: 33.342 | I52: 33.396 | J52: 33.61 | K52: 34.01 | L52: 34.444 | M52: 34.913 | N52: 35.127 | O52: 35.117 | P52: 35.001 | Q52: 34.909 | R52: 34.629 | S52: 34.589 | T52: 34.684 | U52: 34.782 | V52: 34.84 | W52: 35.145 | X52: 35.308 | Y52: 35.535 | Z52: 36.008 | AA52: 36.716 | AB52: 37.394 | AC52: 38.269 | AD52: 39.15 | AE52: 39.859 | AF52: 40.426 | AG52: 41.141 | AH52: 41.619 | AI52: 42.279 | AJ52: 43.428 | AK52: 44.966 | AL52: 46.438 | AM52: 48.121 | AN52: 49.642 | AO52: 50.726 | AP52: 51.478 | AQ52: 52.282 | AR52: 53.247 | AS52: 54.024 | AT52: 54.494 | AU52: 54.821 | AV52: 55.192 | AW52: 55.263 | AX52: 56.164 | AY52: 58.44 | AZ52: 61.545 | BA52: 64.635 | BB52: 68.437 | BC52: 70.568 | BD52: 69.887 | BE52: 67.704 | BF52: 65.858 | BG52: 63.351 | BH52: 64.36 | BI52: 70.951 | BJ52: 80.892 | BK52: 90.068 | BL52: 99.524 | BM52: 106.099 | BN52: 107.932 | BO52: 106.644
A53: 51 | B53: 25.957 | C53: 27.753 | D53: 29.435 | E53: 31.117 | F53: 32.342 | G53: 32.904 | H53: 32.854 | I53: 32.976 | J53: 33.093 | K53: 33.272 | L53: 33.586 | M53: 34.147 | N53: 34.399 | O53: 34.498 | P53: 34.53 | Q53: 34.522 | R53: 34.223 | S53: 34.172 | T53: 34.242 | U53: 34.29 | V53: 34.288 | W53: 34.568 | X53: 34.721 | Y53: 34.796 | Z53: 35.05 | AA53: 35.597 | AB53: 36.234 | AC53: 37.024 | AD53: 37.955 | AE53: 38.783 | AF53: 39.388 | AG53: 40.055 | AH53: 40.571 | AI53: 40.948 | AJ53: 41.658 | AK53: 42.927 | AL53: 44.443 | AM53: 46.082 | AN53: 47.861 | AO53: 49.376 | AP53: 50.409 | AQ53: 51.099 | AR53: 51.947 | AS53: 52.918 | AT53: 53.674 | AU53: 54.114 | AV53: 54.478 | AW53: 54.741 | AX53: 54.768 | AY53: 55.698 | AZ53: 58.027 | BA53: 61.032 | BB53: 64.197 | BC53: 68.042 | BD53: 70.159 | BE53: 69.451 | BF53: 67.23 | BG53: 65.347 | BH53: 62.829 | BI53: 63.857 | BJ53: 70.474 | BK53: 80.416 | BL53: 89.594 | BM53: 99.038 | BN53: 105.598 | BO53: 107.427
A54: 52 | B54: 24.039 | C54: 25.677 | D54: 27.371 | E54: 28.987 | F54: 30.686 | G54: 31.973 | H54: 32.391 | I54: 32.476 | J54: 32.66 | K54: 32.743 | L54: 32.841 | M54: 33.291 | N54: 33.641 | O54: 33.78 | P54: 33.917 | Q54: 34.051 | R54: 33.842 | S54: 33.773 | T54: 33.833 | U54: 33.855 | V54: 33.8 | W54: 34.017 | X54: 34.15 | Y54: 34.217 | Z54: 34.318 | AA54: 34.641 | AB54: 35.12 | AC54: 35.867 | AD54: 36.714 | AE54: 37.591 | AF54: 38.313 | AG54: 39.025 | AH54: 39.5 | AI54: 39.919 | AJ54: 40.343 | AK54: 41.164 | AL54: 42.405 | AM54: 44.082 | AN54: 45.813 | AO54: 47.585 | AP54: 49.047 | AQ54: 50.01 | AR54: 50.745 | AS54: 51.6 | AT54: 52.551 | AU54: 53.279 | AV54: 53.753 | AW54: 54.012 | AX54: 54.232 | AY54: 54.294 | AZ54: 55.283 | BA54: 57.512 | BB54: 60.59 | BC54: 63.8 | BD54: 67.624 | BE54: 69.701 | BF54: 68.97 | BG54: 66.713 | BH54: 64.819 | BI54: 62.328 | BJ54: 63.389 | BK54: 70.019 | BL54: 79.958 | BM54: 89.127 | BN54: 98.543 | BO54: 105.073
A55: 53 | B55: 22.424 | C55: 23.76 | D55: 25.302 | E55: 26.935 | F55: 28.568 | G55: 30.319 | H55: 31.458 | I55: 32 | J55: 32.147 | K55: 32.298 | L55: 32.303 | M55: 32.549 | N55: 32.791 | O55: 33.032 | P55: 33.21 | Q55: 33.443 | R55: 33.382 | S55: 33.396 | T55: 33.439 | U55: 33.453 | V55: 33.371 | W55: 33.53 | X55: 33.601 | Y55: 33.652 | Z55: 33.747 | AA55: 33.915 | AB55: 34.168 | AC55: 34.754 | AD55: 35.558 | AE55: 36.354 | AF55: 37.127 | AG55: 37.961 | AH55: 38.481 | AI55: 38.866 | AJ55: 39.331 | AK55: 39.86 | AL55: 40.64 | AM55: 42.037 | AN55: 43.804 | AO55: 45.531 | AP55: 47.25 | AQ55: 48.629 | AR55: 49.635 | AS55: 50.38 | AT55: 51.217 | AU55: 52.142 | AV55: 52.899 | AW55: 53.272 | AX55: 53.489 | AY55: 53.744 | AZ55: 53.871 | BA55: 54.76 | BB55: 57.064 | BC55: 60.186 | BD55: 63.381 | BE55: 67.159 | BF55: 69.21 | BG55: 68.443 | BH55: 66.178 | BI55: 64.31 | BJ55: 61.859 | BK55: 62.934 | BL55: 69.579 | BM55: 79.506 | BN55: 88.651 | BO55: 98.024
A56: 54 | B56: 21.056 | C56: 22.149 | D56: 23.393 | E56: 24.877 | F56: 26.526 | G56: 28.208 | H56: 29.814 | I56: 31.061 | J56: 31.658 | K56: 31.773 | L56: 31.846 | M56: 32.014 | N56: 32.056 | O56: 32.192 | P56: 32.47 | Q56: 32.743 | R56: 32.792 | S56: 32.944 | T56: 33.065 | U56: 33.066 | V56: 32.979 | W56: 33.106 | X56: 33.118 | Y56: 33.108 | Z56: 33.188 | AA56: 33.351 | AB56: 33.445 | AC56: 33.802 | AD56: 34.443 | AE56: 35.201 | AF56: 35.898 | AG56: 36.794 | AH56: 37.434 | AI56: 37.861 | AJ56: 38.293 | AK56: 38.862 | AL56: 39.329 | AM56: 40.264 | AN56: 41.75 | AO56: 43.513 | AP56: 45.191 | AQ56: 46.815 | AR56: 48.235 | AS56: 49.249 | AT56: 49.978 | AU56: 50.792 | AV56: 51.74 | AW56: 52.401 | AX56: 52.735 | AY56: 52.987 | AZ56: 53.306 | BA56: 53.329 | BB56: 54.3 | BC56: 56.651 | BD56: 59.761 | BE56: 62.917 | BF56: 66.658 | BG56: 68.675 | BH56: 67.899 | BI56: 65.663 | BJ56: 63.837 | BK56: 61.371 | BL56: 62.493 | BM56: 69.145 | BN56: 79.045 | BO56: 88.153
A57: 55 | B57: 19.655 | C57: 20.786 | D57: 21.792 | E57: 22.98 | F57: 24.477 | G57: 26.172 | H57: 27.721 | I57: 29.42 | J57: 30.711 | K57: 31.271 | L57: 31.311 | M57: 31.562 | N57: 31.529 | O57: 31.467 | P57: 31.639 | Q57: 32.01 | R57: 32.112 | S57: 32.367 | T57: 32.619 | U57: 32.694 | V57: 32.599 | W57: 32.718 | X57: 32.7 | Y57: 32.629 | Z57: 32.647 | AA57: 32.797 | AB57: 32.884 | AC57: 33.081 | AD57: 33.491 | AE57: 34.087 | AF57: 34.751 | AG57: 35.586 | AH57: 36.291 | AI57: 36.832 | AJ57: 37.3 | AK57: 37.836 | AL57: 38.321 | AM57: 38.942 | AN57: 39.965 | AO57: 41.449 | AP57: 43.167 | AQ57: 44.74 | AR57: 46.403 | AS57: 47.83 | AT57: 48.828 | AU57: 49.536 | AV57: 50.367 | AW57: 51.223 | AX57: 51.847 | AY57: 52.218 | AZ57: 52.534 | BA57: 52.74 | BB57: 52.85 | BC57: 53.874 | BD57: 56.219 | BE57: 59.294 | BF57: 62.404 | BG57: 66.114 | BH57: 68.121 | BI57: 67.376 | BJ57: 65.183 | BK57: 63.295 | BL57: 60.898 | BM57: 62.057 | BN57: 68.703 | BO57: 78.566
A58: 56 | B58: 18.183 | C58: 19.388 | D58: 20.438 | E58: 21.392 | F58: 22.59 | G58: 24.128 | H58: 25.7 | I58: 27.337 | J58: 29.072 | K58: 30.318 | L58: 30.798 | M58: 31.03 | N58: 31.084 | O58: 30.949 | P58: 30.922 | Q58: 31.185 | R58: 31.398 | S58: 31.703 | T58: 32.054 | U58: 32.255 | V58: 32.232 | W58: 32.339 | X58: 32.317 | Y58: 32.218 | Z58: 32.173 | AA58: 32.258 | AB58: 32.33 | AC58: 32.52 | AD58: 32.771 | AE58: 33.135 | AF58: 33.64 | AG58: 34.457 | AH58: 35.11 | AI58: 35.715 | AJ58: 36.289 | AK58: 36.852 | AL58: 37.284 | AM58: 37.92 | AN58: 38.629 | AO58: 39.653 | AP58: 41.096 | AQ58: 42.699 | AR58: 44.31 | AS58: 45.98 | AT58: 47.391 | AU58: 48.368 | AV58: 49.087 | AW58: 49.829 | AX58: 50.652 | AY58: 51.313 | AZ58: 51.749 | BA58: 51.944 | BB58: 52.235 | BC58: 52.404 | BD58: 53.43 | BE58: 55.748 | BF58: 58.765 | BG58: 61.849 | BH58: 65.552 | BI58: 67.588 | BJ58: 66.888 | BK58: 64.59 | BL58: 62.768 | BM58: 60.428 | BN58: 61.615 | BO58: 68.246
A59: 57 | B59: 17.219 | C59: 17.922 | D59: 19.05 | E59: 20.05 | F59: 21.014 | G59: 22.247 | H59: 23.67 | I59: 25.325 | J59: 26.996 | K59: 28.682 | L59: 29.84 | M59: 30.52 | N59: 30.559 | O59: 30.512 | P59: 30.412 | Q59: 30.474 | R59: 30.594 | S59: 31.002 | T59: 31.403 | U59: 31.703 | V59: 31.8 | W59: 31.973 | X59: 31.941 | Y59: 31.843 | Z59: 31.768 | AA59: 31.787 | AB59: 31.79 | AC59: 31.965 | AD59: 32.209 | AE59: 32.416 | AF59: 32.691 | AG59: 33.364 | AH59: 34.004 | AI59: 34.563 | AJ59: 35.196 | AK59: 35.855 | AL59: 36.288 | AM59: 36.869 | AN59: 37.591 | AO59: 38.304 | AP59: 39.291 | AQ59: 40.61 | AR59: 42.251 | AS59: 43.871 | AT59: 45.525 | AU59: 46.913 | AV59: 47.893 | AW59: 48.528 | AX59: 49.239 | AY59: 50.1 | AZ59: 50.827 | BA59: 51.134 | BB59: 51.414 | BC59: 51.763 | BD59: 51.94 | BE59: 52.949 | BF59: 55.202 | BG59: 58.198 | BH59: 61.278 | BI59: 65.01 | BJ59: 67.092 | BK59: 66.24 | BL59: 64.012 | BM59: 62.245 | BN59: 59.953 | BO59: 61.158
A60: 58 | B60: 16.992 | C60: 16.952 | D60: 17.594 | E60: 18.674 | F60: 19.683 | G60: 20.679 | H60: 21.801 | I60: 23.301 | J60: 24.988 | K60: 26.616 | L60: 28.213 | M60: 29.559 | N60: 30.055 | O60: 29.994 | P60: 29.983 | Q60: 29.971 | R60: 29.885 | S60: 30.214 | T60: 30.713 | U60: 31.066 | V60: 31.262 | W60: 31.529 | X60: 31.578 | Y60: 31.471 | Z60: 31.399 | AA60: 31.388 | AB60: 31.307 | AC60: 31.423 | AD60: 31.651 | AE60: 31.855 | AF60: 31.975 | AG60: 32.417 | AH60: 32.934 | AI60: 33.483 | AJ60: 34.072 | AK60: 34.784 | AL60: 35.275 | AM60: 35.857 | AN60: 36.523 | AO60: 37.251 | AP60: 37.93 | AQ60: 38.783 | AR60: 40.143 | AS60: 41.794 | AT60: 43.401 | AU60: 45.033 | AV60: 46.413 | AW60: 47.31 | AX60: 47.918 | AY60: 48.668 | AZ60: 49.594 | BA60: 50.185 | BB60: 50.579 | BC60: 50.916 | BD60: 51.274 | BE60: 51.439 | BF60: 52.38 | BG60: 54.62 | BH60: 57.615 | BI60: 60.726 | BJ60: 64.503 | BK60: 66.399 | BL60: 65.607 | BM60: 63.438 | BN60: 61.716 | BO60: 59.463
A61: 59 | B61: 17.22 | C61: 16.702 | D61: 16.622 | E61: 17.232 | F61: 18.317 | G61: 19.356 | H61: 20.241 | I61: 21.438 | J61: 22.968 | K61: 24.616 | L61: 26.162 | M61: 27.919 | N61: 29.097 | O61: 29.498 | P61: 29.473 | Q61: 29.548 | R61: 29.356 | S61: 29.503 | T61: 29.938 | U61: 30.388 | V61: 30.641 | W61: 30.961 | X61: 31.125 | Y61: 31.11 | Z61: 31.031 | AA61: 31.024 | AB61: 30.878 | AC61: 30.926 | AD61: 31.107 | AE61: 31.295 | AF61: 31.416 | AG61: 31.677 | AH61: 31.993 | AI61: 32.438 | AJ61: 33.015 | AK61: 33.683 | AL61: 34.183 | AM61: 34.823 | AN61: 35.493 | AO61: 36.165 | AP61: 36.863 | AQ61: 37.395 | AR61: 38.294 | AS61: 39.668 | AT61: 41.307 | AU61: 42.895 | AV61: 44.511 | AW61: 45.809 | AX61: 46.678 | AY61: 47.326 | AZ61: 48.142 | BA61: 48.924 | BB61: 49.602 | BC61: 50.055 | BD61: 50.401 | BE61: 50.748 | BF61: 50.839 | BG61: 51.777 | BH61: 54.024 | BI61: 57.051 | BJ61: 60.207 | BK61: 63.787 | BL61: 65.722 | BM61: 64.978 | BN61: 62.858 | BO61: 61.172
A62: 60 | B62: 17.428 | C62: 16.895 | D62: 16.349 | E62: 16.259 | F62: 16.887 | G62: 17.998 | H62: 18.922 | I62: 19.879 | J62: 21.107 | K62: 22.602 | L62: 24.175 | M62: 25.849 | N62: 27.454 | O62: 28.546 | P62: 28.984 | Q62: 29.043 | R62: 28.889 | S62: 28.944 | T62: 29.222 | U62: 29.626 | V62: 29.977 | W62: 30.297 | X62: 30.528 | Y62: 30.649 | Z62: 30.673 | AA62: 30.658 | AB62: 30.472 | AC62: 30.466 | AD62: 30.595 | AE62: 30.748 | AF62: 30.855 | AG62: 31.077 | AH62: 31.233 | AI62: 31.505 | AJ62: 31.994 | AK62: 32.647 | AL62: 33.058 | AM62: 33.707 | AN62: 34.438 | AO62: 35.118 | AP62: 35.762 | AQ62: 36.297 | AR62: 36.878 | AS62: 37.797 | AT62: 39.164 | AU62: 40.786 | AV62: 42.353 | AW62: 43.89 | AX62: 45.157 | AY62: 46.064 | AZ62: 46.779 | BA62: 47.443 | BB62: 48.311 | BC62: 49.05 | BD62: 49.514 | BE62: 49.851 | BF62: 50.11 | BG62: 50.205 | BH62: 51.16 | BI62: 53.444 | BJ62: 56.516 | BK62: 59.48 | BL62: 63.086 | BM62: 65.05 | BN62: 64.343 | BO62: 62.263
A63: 61 | B63: 17.758 | C63: 17.07 | D63: 16.507 | E63: 15.964 | F63: 15.913 | G63: 16.578 | H63: 17.568 | I63: 18.56 | J63: 19.548 | K63: 20.745 | L63: 22.173 | M63: 23.841 | N63: 25.377 | O63: 26.905 | P63: 28.036 | Q63: 28.561 | R63: 28.343 | S63: 28.43 | T63: 28.631 | U63: 28.906 | V63: 29.231 | W63: 29.592 | X63: 29.824 | Y63: 30.026 | Z63: 30.202 | AA63: 30.304 | AB63: 30.064 | AC63: 30.016 | AD63: 30.102 | AE63: 30.222 | AF63: 30.309 | AG63: 30.476 | AH63: 30.595 | AI63: 30.726 | AJ63: 31.066 | AK63: 31.646 | AL63: 31.996 | AM63: 32.553 | AN63: 33.294 | AO63: 34.041 | AP63: 34.698 | AQ63: 35.165 | AR63: 35.748 | AS63: 36.353 | AT63: 37.272 | AU63: 38.629 | AV63: 40.223 | AW63: 41.716 | AX63: 43.223 | AY63: 44.523 | AZ63: 45.493 | BA63: 46.048 | BB63: 46.798 | BC63: 47.728 | BD63: 48.481 | BE63: 48.938 | BF63: 49.175 | BG63: 49.439 | BH63: 49.557 | BI63: 50.559 | BJ63: 52.893 | BK63: 55.774 | BL63: 58.767 | BM63: 62.39 | BN63: 64.37 | BO63: 63.693
A64: 62 | B64: 17.653 | C64: 17.364 | D64: 16.648 | E64: 16.086 | F64: 15.595 | G64: 15.6 | H64: 16.154 | I64: 17.204 | J64: 18.225 | K64: 19.189 | L64: 20.326 | M64: 21.816 | N64: 23.361 | O64: 24.827 | P64: 26.395 | Q64: 27.614 | R64: 27.817 | S64: 27.84 | T64: 28.069 | U64: 28.284 | V64: 28.509 | W64: 28.804 | X64: 29.08 | Y64: 29.283 | Z64: 29.552 | AA64: 29.822 | AB64: 29.665 | AC64: 29.566 | AD64: 29.609 | AE64: 29.698 | AF64: 29.77 | AG64: 29.885 | AH64: 29.955 | AI64: 30.051 | AJ64: 30.268 | AK64: 30.722 | AL64: 30.967 | AM64: 31.462 | AN64: 32.11 | AO64: 32.871 | AP64: 33.601 | AQ64: 34.068 | AR64: 34.584 | AS64: 35.191 | AT64: 35.802 | AU64: 36.717 | AV64: 38.043 | AW64: 39.569 | AX64: 41.035 | AY64: 42.572 | AZ64: 43.931 | BA64: 44.73 | BB64: 45.372 | BC64: 46.183 | BD64: 47.128 | BE64: 47.878 | BF64: 48.224 | BG64: 48.466 | BH64: 48.755 | BI64: 48.926 | BJ64: 49.985 | BK64: 52.135 | BL64: 55.044 | BM64: 58.058 | BN64: 61.687 | BO64: 63.676
A65: 63 | B65: 16.805 | C65: 17.232 | D65: 16.906 | E65: 16.193 | F65: 15.683 | G65: 15.259 | H65: 15.166 | I65: 15.79 | J65: 16.866 | K65: 17.864 | L65: 18.776 | M65: 19.95 | N65: 21.324 | O65: 22.81 | P65: 24.314 | Q65: 25.968 | R65: 26.841 | S65: 27.266 | T65: 27.432 | U65: 27.674 | V65: 27.858 | W65: 28.037 | X65: 28.254 | Y65: 28.502 | Z65: 28.771 | AA65: 29.144 | AB65: 29.143 | AC65: 29.121 | AD65: 29.114 | AE65: 29.161 | AF65: 29.215 | AG65: 29.302 | AH65: 29.323 | AI65: 29.375 | AJ65: 29.556 | AK65: 29.901 | AL65: 30.013 | AM65: 30.401 | AN65: 30.987 | AO65: 31.656 | AP65: 32.406 | AQ65: 32.939 | AR65: 33.453 | AS65: 33.995 | AT65: 34.609 | AU65: 35.222 | AV65: 36.107 | AW65: 37.372 | AX65: 38.873 | AY65: 40.37 | AZ65: 41.961 | BA65: 43.14 | BB65: 44.02 | BC65: 44.723 | BD65: 45.551 | BE65: 46.496 | BF65: 47.123 | BG65: 47.478 | BH65: 47.745 | BI65: 48.086 | BJ65: 48.32 | BK65: 49.2 | BL65: 51.388 | BM65: 54.318 | BN65: 57.343 | BO65: 60.969
A66: 64 | B66: 15.484 | C66: 16.368 | D66: 16.746 | E66: 16.415 | F66: 15.755 | G66: 15.312 | H66: 14.792 | I66: 14.789 | J66: 15.451 | K66: 16.503 | L66: 17.454 | M66: 18.389 | N66: 19.45 | O66: 20.768 | P66: 22.292 | Q66: 23.878 | R66: 25.19 | S66: 26.254 | T66: 26.809 | U66: 26.99 | V66: 27.201 | W66: 27.338 | X66: 27.445 | Y66: 27.639 | Z66: 27.952 | AA66: 28.323 | AB66: 28.431 | AC66: 28.557 | AD66: 28.623 | AE66: 28.623 | AF66: 28.636 | AG66: 28.707 | AH66: 28.699 | AI66: 28.702 | AJ66: 28.842 | AK66: 29.15 | AL66: 29.162 | AM66: 29.415 | AN66: 29.892 | AO66: 30.501 | AP66: 31.162 | AQ66: 31.716 | AR66: 32.293 | AS66: 32.831 | AT66: 33.382 | AU66: 33.999 | AV66: 34.582 | AW66: 35.416 | AX66: 36.662 | AY66: 38.193 | AZ66: 39.743 | BA66: 41.148 | BB66: 42.399 | BC66: 43.337 | BD66: 44.059 | BE66: 44.888 | BF66: 45.698 | BG66: 46.337 | BH66: 46.719 | BI66: 47.039 | BJ66: 47.443 | BK66: 47.493 | BL66: 48.427 | BM66: 50.645 | BN66: 53.586 | BO66: 56.615
A67: 65 | B67: 14.271 | C67: 15.04 | D67: 15.87 | E67: 16.227 | F67: 15.941 | G67: 15.35 | H67: 14.798 | I67: 14.382 | J67: 14.434 | K67: 15.089 | L67: 16.095 | M67: 17.06 | N67: 17.888 | O67: 18.892 | P67: 20.242 | Q67: 21.844 | R67: 23.111 | S67: 24.587 | T67: 25.757 | U67: 26.318 | V67: 26.472 | W67: 26.633 | X67: 26.701 | Y67: 26.791 | Z67: 27.052 | AA67: 27.464 | AB67: 27.581 | AC67: 27.809 | AD67: 28.015 | AE67: 28.086 | AF67: 28.056 | AG67: 28.091 | AH67: 28.067 | AI67: 28.039 | AJ67: 28.128 | AK67: 28.396 | AL67: 28.38 | AM67: 28.531 | AN67: 28.872 | AO67: 29.373 | AP67: 29.977 | AQ67: 30.445 | AR67: 31.04 | AS67: 31.639 | AT67: 32.185 | AU67: 32.742 | AV67: 33.328 | AW67: 33.865 | AX67: 34.687 | AY67: 35.967 | AZ67: 37.549 | BA67: 38.913 | BB67: 40.384 | BC67: 41.685 | BD67: 42.639 | BE67: 43.364 | BF67: 44.047 | BG67: 44.871 | BH67: 45.539 | BI67: 45.975 | BJ67: 46.358 | BK67: 46.562 | BL67: 46.677 | BM67: 47.657 | BN67: 49.897 | BO67: 52.842
A68: 66 | B68: 13.052 | C68: 13.819 | D68: 14.539 | E68: 15.341 | F68: 15.727 | G68: 15.5 | H68: 14.793 | I68: 14.341 | J68: 13.992 | K68: 14.059 | L68: 14.685 | M68: 15.694 | N68: 16.561 | O68: 17.333 | P68: 18.362 | Q68: 19.781 | R68: 21.086 | S68: 22.506 | T68: 24.068 | U68: 25.228 | V68: 25.753 | W68: 25.858 | X68: 25.952 | Y68: 26.004 | Z68: 26.163 | AA68: 26.525 | AB68: 26.694 | AC68: 26.928 | AD68: 27.231 | AE68: 27.435 | AF68: 27.475 | AG68: 27.471 | AH68: 27.417 | AI68: 27.372 | AJ68: 27.424 | AK68: 27.639 | AL68: 27.595 | AM68: 27.716 | AN68: 27.953 | AO68: 28.319 | AP68: 28.817 | AQ68: 29.232 | AR68: 29.742 | AS68: 30.357 | AT68: 30.962 | AU68: 31.514 | AV68: 32.038 | AW68: 32.581 | AX68: 33.112 | AY68: 33.973 | AZ68: 35.305 | BA68: 36.7 | BB68: 38.128 | BC68: 39.644 | BD68: 40.956 | BE68: 41.911 | BF68: 42.48 | BG68: 43.177 | BH68: 44.031 | BI68: 44.755 | BJ68: 45.256 | BK68: 45.427 | BL68: 45.692 | BM68: 45.864 | BN68: 46.882 | BO68: 49.137
A69: 67 | B69: 11.932 | C69: 12.594 | D69: 13.315 | E69: 14.011 | F69: 14.829 | G69: 15.258 | H69: 14.898 | I69: 14.292 | J69: 13.904 | K69: 13.582 | L69: 13.644 | M69: 14.28 | N69: 15.196 | O69: 16.012 | P69: 16.805 | Q69: 17.89 | R69: 19.03 | S69: 20.475 | T69: 21.977 | U69: 23.519 | V69: 24.627 | W69: 25.092 | X69: 25.133 | Y69: 25.211 | Z69: 25.333 | AA69: 25.594 | AB69: 25.73 | AC69: 26.009 | AD69: 26.316 | AE69: 26.614 | AF69: 26.783 | AG69: 26.849 | AH69: 26.759 | AI69: 26.688 | AJ69: 26.721 | AK69: 26.893 | AL69: 26.806 | AM69: 26.895 | AN69: 27.103 | AO69: 27.366 | AP69: 27.729 | AQ69: 28.043 | AR69: 28.5 | AS69: 29.032 | AT69: 29.653 | AU69: 30.261 | AV69: 30.777 | AW69: 31.262 | AX69: 31.8 | AY69: 32.373 | AZ69: 33.29 | BA69: 34.438 | BB69: 35.893 | BC69: 37.366 | BD69: 38.891 | BE69: 40.199 | BF69: 40.984 | BG69: 41.569 | BH69: 42.296 | BI69: 43.206 | BJ69: 43.996 | BK69: 44.277 | BL69: 44.507 | BM69: 44.826 | BN69: 45.046 | BO69: 46.096
A70: 68 | B70: 11.022 | C70: 11.465 | D70: 12.088 | E70: 12.785 | F70: 13.498 | G70: 14.348 | H70: 14.622 | I70: 14.352 | J70: 13.811 | K70: 13.448 | L70: 13.135 | M70: 13.22 | N70: 13.787 | O70: 14.652 | P70: 15.487 | Q70: 16.33 | R70: 17.148 | S70: 18.412 | T70: 19.933 | U70: 21.42 | V70: 22.903 | W70: 23.933 | X70: 24.323 | Y70: 24.351 | Z70: 24.497 | AA70: 24.718 | AB70: 24.771 | AC70: 25.018 | AD70: 25.365 | AE70: 25.668 | AF70: 25.928 | AG70: 26.116 | AH70: 26.099 | AI70: 25.995 | AJ70: 26.003 | AK70: 26.151 | AL70: 26.025 | AM70: 26.073 | AN70: 26.246 | AO70: 26.48 | AP70: 26.743 | AQ70: 26.924 | AR70: 27.283 | AS70: 27.761 | AT70: 28.301 | AU70: 28.924 | AV70: 29.492 | AW70: 29.97 | AX70: 30.453 | AY70: 31.032 | AZ70: 31.664 | BA70: 32.401 | BB70: 33.611 | BC70: 35.109 | BD70: 36.591 | BE70: 38.11 | BF70: 39.236 | BG70: 40.03 | BH70: 40.647 | BI70: 41.429 | BJ70: 42.404 | BK70: 42.968 | BL70: 43.309 | BM70: 43.59 | BN70: 43.954 | BO70: 44.217
A71: 69 | B71: 10.252 | C71: 10.542 | D71: 10.955 | E71: 11.559 | F71: 12.27 | G71: 13.013 | H71: 13.697 | I71: 14.042 | J71: 13.827 | K71: 13.31 | L71: 12.953 | M71: 12.665 | N71: 12.713 | O71: 13.252 | P71: 14.131 | Q71: 15.012 | R71: 15.597 | S71: 16.527 | T71: 17.857 | U71: 19.365 | V71: 20.802 | W71: 22.196 | X71: 23.136 | Y71: 23.5 | Z71: 23.595 | AA71: 23.837 | AB71: 23.86 | AC71: 24.027 | AD71: 24.344 | AE71: 24.686 | AF71: 24.952 | AG71: 25.222 | AH71: 25.328 | AI71: 25.298 | AJ71: 25.273 | AK71: 25.397 | AL71: 25.244 | AM71: 25.254 | AN71: 25.388 | AO71: 25.588 | AP71: 25.823 | AQ71: 25.903 | AR71: 26.132 | AS71: 26.515 | AT71: 27.003 | AU71: 27.548 | AV71: 28.126 | AW71: 28.656 | AX71: 29.133 | AY71: 29.657 | AZ71: 30.294 | BA71: 30.748 | BB71: 31.551 | BC71: 32.804 | BD71: 34.312 | BE71: 35.79 | BF71: 37.124 | BG71: 38.248 | BH71: 39.066 | BI71: 39.737 | BJ71: 40.584 | BK71: 41.328 | BL71: 41.951 | BM71: 42.343 | BN71: 42.668 | BO71: 43.073
A72: 70 | B72: 9.44 | C72: 9.756 | D72: 10.021 | E72: 10.424 | F72: 11.044 | G72: 11.78 | H72: 12.36 | I72: 13.098 | J72: 13.482 | K72: 13.281 | L72: 12.772 | M72: 12.424 | N72: 12.115 | O72: 12.168 | P72: 12.739 | Q72: 13.654 | R72: 14.289 | S72: 14.975 | T72: 15.962 | U72: 17.278 | V72: 18.742 | W72: 20.096 | X72: 21.393 | Y72: 22.286 | Z72: 22.701 | AA72: 22.891 | AB72: 22.941 | AC72: 23.077 | AD72: 23.32 | AE72: 23.636 | AF72: 23.941 | AG72: 24.208 | AH72: 24.398 | AI72: 24.491 | AJ72: 24.538 | AK72: 24.628 | AL72: 24.448 | AM72: 24.43 | AN72: 24.53 | AO72: 24.693 | AP72: 24.896 | AQ72: 24.945 | AR72: 25.074 | AS72: 25.333 | AT72: 25.729 | AU72: 26.223 | AV72: 26.722 | AW72: 27.265 | AX72: 27.791 | AY72: 28.307 | AZ72: 28.889 | BA72: 29.348 | BB72: 29.869 | BC72: 30.719 | BD72: 31.986 | BE72: 33.491 | BF72: 34.789 | BG72: 36.114 | BH72: 37.251 | BI72: 38.115 | BJ72: 38.849 | BK72: 39.462 | BL72: 40.262 | BM72: 40.937 | BN72: 41.373 | BO72: 41.737
A73: 71 | B73: 8.623 | C73: 8.931 | D73: 9.222 | E73: 9.482 | F73: 9.906 | G73: 10.551 | H73: 11.127 | I73: 11.755 | J73: 12.518 | K73: 12.901 | L73: 12.699 | M73: 12.189 | N73: 11.816 | O73: 11.53 | P73: 11.643 | Q73: 12.265 | R73: 12.944 | S73: 13.667 | T73: 14.403 | U73: 15.374 | V73: 16.649 | W73: 18.04 | X73: 19.303 | Y73: 20.542 | Z73: 21.461 | AA73: 21.952 | AB73: 21.963 | AC73: 22.119 | AD73: 22.331 | AE73: 22.58 | AF73: 22.866 | AG73: 23.161 | AH73: 23.35 | AI73: 23.527 | AJ73: 23.695 | AK73: 23.853 | AL73: 23.641 | AM73: 23.591 | AN73: 23.663 | AO73: 23.796 | AP73: 23.966 | AQ73: 23.982 | AR73: 24.078 | AS73: 24.24 | AT73: 24.516 | AU73: 24.923 | AV73: 25.37 | AW73: 25.835 | AX73: 26.374 | AY73: 26.938 | AZ73: 27.508 | BA73: 27.915 | BB73: 28.437 | BC73: 29.008 | BD73: 29.877 | BE73: 31.145 | BF73: 32.476 | BG73: 33.765 | BH73: 35.094 | BI73: 36.265 | BJ73: 37.184 | BK73: 37.683 | BL73: 38.349 | BM73: 39.199 | BN73: 39.918 | BO73: 40.394
A74: 72 | B74: 7.842 | C74: 8.104 | D74: 8.388 | E74: 8.671 | F74: 8.954 | G74: 9.408 | H74: 9.9 | I74: 10.516 | J74: 11.166 | K74: 11.918 | L74: 12.285 | M74: 12.062 | N74: 11.528 | O74: 11.174 | P74: 10.964 | Q74: 11.155 | R74: 11.576 | S74: 12.326 | T74: 13.09 | U74: 13.811 | V74: 14.743 | W74: 15.953 | X74: 17.258 | Y74: 18.468 | Z74: 19.714 | AA74: 20.684 | AB74: 20.996 | AC74: 21.107 | AD74: 21.33 | AE74: 21.552 | AF74: 21.781 | AG74: 22.058 | AH74: 22.273 | AI74: 22.447 | AJ74: 22.696 | AK74: 22.971 | AL74: 22.83 | AM74: 22.742 | AN74: 22.778 | AO74: 22.886 | AP74: 23.031 | AQ74: 23.02 | AR74: 23.078 | AS74: 23.205 | AT74: 23.388 | AU74: 23.68 | AV74: 24.045 | AW74: 24.459 | AX74: 24.922 | AY74: 25.496 | AZ74: 26.11 | BA74: 26.509 | BB74: 26.974 | BC74: 27.543 | BD74: 28.136 | BE74: 29.013 | BF74: 30.121 | BG74: 31.44 | BH74: 32.732 | BI74: 34.086 | BJ74: 35.299 | BK74: 35.975 | BL74: 36.526 | BM74: 37.239 | BN74: 38.131 | BO74: 38.889
A75: 73 | B75: 7.099 | C75: 7.32 | D75: 7.554 | E75: 7.829 | F75: 8.13 | G75: 8.444 | H75: 8.765 | I75: 9.286 | J75: 9.92 | K75: 10.56 | L75: 11.286 | M75: 11.616 | N75: 11.349 | O75: 10.834 | P75: 10.55 | Q75: 10.433 | R75: 10.47 | S75: 10.969 | T75: 11.749 | U75: 12.495 | V75: 13.178 | W75: 14.056 | X75: 15.186 | Y75: 16.439 | Z75: 17.652 | AA75: 18.929 | AB75: 19.717 | AC75: 20.108 | AD75: 20.282 | AE75: 20.511 | AF75: 20.717 | AG75: 20.939 | AH75: 21.146 | AI75: 21.343 | AJ75: 21.583 | AK75: 21.933 | AL75: 21.913 | AM75: 21.893 | AN75: 21.885 | AO75: 21.955 | AP75: 22.079 | AQ75: 22.048 | AR75: 22.084 | AS75: 22.17 | AT75: 22.316 | AU75: 22.518 | AV75: 22.772 | AW75: 23.112 | AX75: 23.523 | AY75: 24.02 | AZ75: 24.641 | BA75: 25.083 | BB75: 25.54 | BC75: 26.049 | BD75: 26.639 | BE75: 27.244 | BF75: 27.976 | BG75: 29.076 | BH75: 30.396 | BI75: 31.711 | BJ75: 33.097 | BK75: 34.06 | BL75: 34.775 | BM75: 35.372 | BN75: 36.125 | BO75: 37.055
A76: 74 | B76: 6.395 | C76: 6.583 | D76: 6.769 | E76: 6.99 | F76: 7.28 | G76: 7.607 | H76: 7.818 | I76: 8.155 | J76: 8.685 | K76: 9.308 | L76: 9.925 | M76: 10.617 | N76: 10.872 | O76: 10.603 | P76: 10.159 | Q76: 9.96 | R76: 9.727 | S76: 9.86 | T76: 10.398 | U76: 11.154 | V76: 11.864 | W76: 12.503 | X76: 13.307 | Y76: 14.387 | Z76: 15.638 | AA76: 16.877 | AB76: 17.979 | AC76: 18.815 | AD76: 19.25 | AE76: 19.428 | AF76: 19.638 | AG76: 19.833 | AH76: 20 | AI76: 20.195 | AJ76: 20.449 | AK76: 20.783 | AL76: 20.84 | AM76: 20.937 | AN76: 20.996 | AO76: 21.019 | AP76: 21.103 | AQ76: 21.05 | AR76: 21.074 | AS76: 21.143 | AT76: 21.245 | AU76: 21.409 | AV76: 21.571 | AW76: 21.812 | AX76: 22.156 | AY76: 22.597 | AZ76: 23.14 | BA76: 23.586 | BB76: 24.086 | BC76: 24.587 | BD76: 25.115 | BE76: 25.716 | BF76: 26.189 | BG76: 26.921 | BH76: 28.025 | BI76: 29.361 | BJ76: 30.706 | BK76: 31.845 | BL76: 32.829 | BM76: 33.577 | BN76: 34.213 | BO76: 35.002
A77: 75 | B77: 5.726 | C77: 5.892 | D77: 6.041 | E77: 6.206 | F77: 6.435 | G77: 6.746 | H77: 7.003 | I77: 7.221 | J77: 7.557 | K77: 8.07 | L77: 8.67 | M77: 9.279 | N77: 9.88 | O77: 10.098 | P77: 9.876 | Q77: 9.516 | R77: 9.22 | S77: 9.091 | T77: 9.282 | U77: 9.812 | V77: 10.528 | W77: 11.201 | X77: 11.772 | Y77: 12.529 | Z77: 13.604 | AA77: 14.872 | AB77: 15.961 | AC77: 17.087 | AD77: 17.94 | AE77: 18.364 | AF77: 18.523 | AG77: 18.711 | AH77: 18.857 | AI77: 19.023 | AJ77: 19.278 | AK77: 19.617 | AL77: 19.657 | AM77: 19.825 | AN77: 20 | AO77: 20.091 | AP77: 20.125 | AQ77: 20.026 | AR77: 20.03 | AS77: 20.095 | AT77: 20.186 | AU77: 20.303 | AV77: 20.419 | AW77: 20.574 | AX77: 20.83 | AY77: 21.209 | AZ77: 21.693 | BA77: 22.057 | BB77: 22.559 | BC77: 23.104 | BD77: 23.625 | BE77: 24.163 | BF77: 24.64 | BG77: 25.116 | BH77: 25.859 | BI77: 26.983 | BJ77: 28.343 | BK77: 29.453 | BL77: 30.6 | BM77: 31.6 | BN77: 32.375 | BO77: 33.046
A78: 76 | B78: 5.091 | C78: 5.238 | D78: 5.366 | E78: 5.488 | F78: 5.651 | G78: 5.893 | H78: 6.169 | I78: 6.427 | J78: 6.634 | K78: 6.946 | L78: 7.433 | M78: 8.047 | N78: 8.573 | O78: 9.115 | P78: 9.342 | Q78: 9.181 | R78: 8.747 | S78: 8.546 | T78: 8.484 | U78: 8.69 | V78: 9.197 | W78: 9.883 | X78: 10.489 | Y78: 11.016 | Z78: 11.767 | AA78: 12.851 | AB78: 13.995 | AC78: 15.098 | AD78: 16.22 | AE78: 17.039 | AF78: 17.429 | AG78: 17.56 | AH78: 17.697 | AI78: 17.846 | AJ78: 18.079 | AK78: 18.42 | AL78: 18.465 | AM78: 18.606 | AN78: 18.847 | AO78: 19.054 | AP78: 19.158 | AQ78: 19.007 | AR78: 18.959 | AS78: 19.006 | AT78: 19.101 | AU78: 19.214 | AV78: 19.276 | AW78: 19.382 | AX78: 19.557 | AY78: 19.857 | AZ78: 20.283 | BA78: 20.586 | BB78: 21 | BC78: 21.546 | BD78: 22.113 | BE78: 22.646 | BF78: 23.072 | BG78: 23.547 | BH78: 24.037 | BI78: 24.806 | BJ78: 25.955 | BK78: 27.094 | BL78: 28.208 | BM78: 29.357 | BN78: 30.367 | BO78: 31.166
A79: 77 | B79: 4.507 | C79: 4.619 | D79: 4.729 | E79: 4.83 | F79: 4.942 | G79: 5.108 | H79: 5.344 | I79: 5.616 | J79: 5.859 | K79: 6.036 | L79: 6.316 | M79: 6.835 | N79: 7.372 | O79: 7.843 | P79: 8.367 | Q79: 8.616 | R79: 8.381 | S79: 8.042 | T79: 7.899 | U79: 7.864 | V79: 8.073 | W79: 8.577 | X79: 9.195 | Y79: 9.754 | Z79: 10.272 | AA79: 11.03 | AB79: 12.015 | AC79: 13.162 | AD79: 14.257 | AE79: 15.329 | AF79: 16.093 | AG79: 16.433 | AH79: 16.514 | AI79: 16.649 | AJ79: 16.866 | AK79: 17.19 | AL79: 17.249 | AM79: 17.383 | AN79: 17.588 | AO79: 17.86 | AP79: 18.083 | AQ79: 18.003 | AR79: 17.897 | AS79: 17.886 | AT79: 17.967 | AU79: 18.093 | AV79: 18.154 | AW79: 18.203 | AX79: 18.325 | AY79: 18.549 | AZ79: 18.903 | BA79: 19.158 | BB79: 19.504 | BC79: 19.956 | BD79: 20.524 | BE79: 21.106 | BF79: 21.544 | BG79: 21.965 | BH79: 22.449 | BI79: 22.967 | BJ79: 23.766 | BK79: 24.716 | BL79: 25.852 | BM79: 26.965 | BN79: 28.111 | BO79: 29.128
A80: 78 | B80: 3.985 | C80: 4.058 | D80: 4.129 | E80: 4.212 | F80: 4.301 | G80: 4.407 | H80: 4.595 | I80: 4.816 | J80: 5.069 | K80: 5.28 | L80: 5.421 | M80: 5.754 | N80: 6.193 | O80: 6.677 | P80: 7.128 | Q80: 7.646 | R80: 7.818 | S80: 7.643 | T80: 7.362 | U80: 7.24 | V80: 7.22 | W80: 7.473 | X80: 7.918 | Y80: 8.486 | Z80: 9.031 | AA80: 9.552 | AB80: 10.241 | AC80: 11.218 | AD80: 12.349 | AE80: 13.394 | AF80: 14.398 | AG80: 15.093 | AH80: 15.359 | AI80: 15.439 | AJ80: 15.632 | AK80: 15.937 | AL80: 16.01 | AM80: 16.145 | AN80: 16.333 | AO80: 16.562 | AP80: 16.849 | AQ80: 16.904 | AR80: 16.855 | AS80: 16.782 | AT80: 16.8 | AU80: 16.915 | AV80: 17.007 | AW80: 17.052 | AX80: 17.113 | AY80: 17.277 | AZ80: 17.559 | BA80: 17.763 | BB80: 18.055 | BC80: 18.433 | BD80: 18.904 | BE80: 19.487 | BF80: 20 | BG80: 20.426 | BH80: 20.852 | BI80: 21.358 | BJ80: 21.908 | BK80: 22.539 | BL80: 23.484 | BM80: 24.612 | BN80: 25.718 | BO80: 26.859
A81: 79 | B81: 3.514 | C81: 3.565 | D81: 3.593 | E81: 3.632 | F81: 3.701 | G81: 3.782 | H81: 3.938 | I81: 4.1 | J81: 4.294 | K81: 4.514 | L81: 4.687 | M81: 4.903 | N81: 5.153 | O81: 5.535 | P81: 5.994 | Q81: 6.436 | R81: 6.897 | S81: 7.077 | T81: 6.929 | U81: 6.669 | V81: 6.558 | W81: 6.632 | X81: 6.839 | Y81: 7.243 | Z81: 7.789 | AA81: 8.329 | AB81: 8.817 | AC81: 9.486 | AD81: 10.437 | AE81: 11.517 | AF81: 12.496 | AG81: 13.435 | AH81: 14.02 | AI81: 14.257 | AJ81: 14.391 | AK81: 14.661 | AL81: 14.759 | AM81: 14.892 | AN81: 15.069 | AO81: 15.274 | AP81: 15.513 | AQ81: 15.665 | AR81: 15.732 | AS81: 15.703 | AT81: 15.655 | AU81: 15.701 | AV81: 15.811 | AW81: 15.882 | AX81: 15.933 | AY81: 16.031 | AZ81: 16.246 | BA81: 16.408 | BB81: 16.644 | BC81: 16.963 | BD81: 17.355 | BE81: 17.838 | BF81: 18.391 | BG81: 18.881 | BH81: 19.305 | BI81: 19.747 | BJ81: 20.278 | BK81: 20.689 | BL81: 21.316 | BM81: 22.252 | BN81: 23.368 | BO81: 24.466
A82: 80+ | B82: 17.838 | C82: 18.628 | D82: 18.973 | E82: 18.859 | F82: 18.335 | G82: 17.435 | H82: 18.436 | I82: 19.226 | J82: 19.721 | K82: 19.857 | L82: 19.605 | M82: 21.366 | N82: 22.66 | O82: 23.549 | P82: 24.238 | Q82: 24.827 | R82: 27.285 | S82: 29.728 | T82: 31.736 | U82: 32.813 | V82: 32.823 | W82: 35.012 | X82: 36.502 | Y82: 37.492 | Z82: 38.29 | AA82: 39.062 | AB82: 42.447 | AC82: 45.758 | AD82: 49.06 | AE82: 52.439 | AF82: 55.931 | AG82: 61.882 | AH82: 67.438 | AI82: 72.369 | AJ82: 76.627 | AK82: 80.299 | AL82: 85.123 | AM82: 89.275 | AN82: 92.67 | AO82: 95.157 | AP82: 96.693 | AQ82: 100.745 | AR82: 103.838 | AS82: 105.822 | AT82: 106.596 | AU82: 106.205 | AV82: 109.743 | AW82: 112.002 | AX82: 113.123 | AY82: 113.351 | AZ82: 112.884 | BA82: 115.951 | BB82: 118.267 | BC82: 119.897 | BD82: 120.859 | BE82: 121.215 | BF82: 126.617 | BG82: 131.458 | BH82: 135.754 | BI82: 139.579 | BJ82: 143.07 | BK82: 148.84 | BL82: 153.936 | BM82: 158.598 | BN82: 163.171 | BO82: 167.882

Sheet CubaPopPyrUNData (hidden)
A1: These data came from Male and Female sheets which in turn came from | H1: https://esa.un.org/unpd/wpp/Download/Standard/Interpolated/
G3: Begin Year Pop | H3: =-SUM(C16:C96)+SUM(D16:D96) -> 5919989 | P3: Begin Year Pop | Q3: =-SUM(L16:L96)+SUM(M16:M96) -> 6051294 | Y3: Begin Year Pop | Z3: =-SUM(U16:U96)+SUM(V16:V96) -> 6180036 | AH3: Begin Year Pop | AI3: =-SUM(AD16:AD96)+SUM(AE16:AE96) -> 6304534 | AQ3: Begin Year Pop | AR3: =-SUM(AM16:AM96)+SUM(AN16:AN96) -> 6424167 | AZ3: Begin Year Pop | BA3: =-SUM(AV16:AV96)+SUM(AW16:AW96) -> 6539474 | BI3: Begin Year Pop | BJ3: =-SUM(BE16:BE96)+SUM(BF16:BF96) -> 6652086 | BR3: Begin Year Pop | BS3: =-SUM(BN16:BN96)+SUM(BO16:BO96) -> 6764791 | CA3: Begin Year Pop | CB3: =-SUM(BW16:BW96)+SUM(BX16:BX96) -> 6881215 | CJ3: Begin Year Pop | CK3: =-SUM(CF16:CF96)+SUM(CG16:CG96) -> 7005484 | CS3: Begin Year Pop | CT3: =-SUM(CO16:CO96)+SUM(CP16:CP96) -> 7141136 | DB3: Begin Year Pop | DC3: =-SUM(CX16:CX96)+SUM(CY16:CY96) -> 7289834 | DK3: Begin Year Pop | DL3: =-SUM(DG16:DG96)+SUM(DH16:DH96) -> 7450403 | DT3: Begin Year Pop | DU3: =-SUM(DP16:DP96)+SUM(DQ16:DQ96) -> 7618359 | EC3: Begin Year Pop | ED3: =-SUM(DY16:DY96)+SUM(DZ16:DZ96) -> 7787147 | EL3: Begin Year Pop | EM3: =-SUM(EH16:EH96)+SUM(EI16:EI96) -> 7951931 | EU3: Begin Year Pop | EV3: =-SUM(EQ16:EQ96)+SUM(ER16:ER96) -> 8110430 | FD3: Begin Year Pop | FE3: =-SUM(EZ16:EZ96)+SUM(FA16:FA96) -> 8263548 | FM3: Begin Year Pop | FN3: =-SUM(FI16:FI96)+SUM(FJ16:FJ96) -> 8413329 | FV3: Begin Year Pop | FW3: =-SUM(FR16:FR96)+SUM(FS16:FS96) -> 8563184 | GE3: Begin Year Pop | GF3: =-SUM(GA16:GA96)+SUM(GB16:GB96) -> 8715117 | GN3: Begin Year Pop | GO3: =-SUM(GJ16:GJ96)+SUM(GK16:GK96) -> 8869965 | GW3: Begin Year Pop | GX3: =-SUM(GS16:GS96)+SUM(GT16:GT96) -> 9025298 | HF3: Begin Year Pop | HG3: =-SUM(HB16:HB96)+SUM(HC16:HC96) -> 9176056 | HO3: Begin Year Pop | HP3: =-SUM(HK16:HK96)+SUM(HL16:HL96) -> 9315365 | HX3: Begin Year Pop | HY3: =-SUM(HT16:HT96)+SUM(HU16:HU96) -> 9438451 | IG3: Begin Year Pop | IH3: =-SUM(IC16:IC96)+SUM(ID16:ID96) -> 9544265 | IP3: Begin Year Pop | IQ3: =-SUM(IL16:IL96)+SUM(IM16:IM96) -> 9634678 | IY3: Begin Year Pop | IZ3: =-SUM(IU16:IU96)+SUM(IV16:IV96) -> 9711395 | JH3: Begin Year Pop | JI3: =-SUM(JD16:JD96)+SUM(JE16:JE96) -> 9777286 | JQ3: Begin Year Pop | JR3: =-SUM(JM16:JM96)+SUM(JN16:JN96) -> 9835185 | JZ3: Begin Year Pop | KA3: =-SUM(JV16:JV96)+SUM(JW16:JW96) -> 9884215 | KI3: Begin Year Pop | KJ3: =-SUM(KE16:KE96)+SUM(KF16:KF96) -> 9925619 | KR3: Begin Year Pop | KS3: =-SUM(KN16:KN96)+SUM(KO16:KO96) -> 9966734 | LA3: Begin Year Pop | LB3: =-SUM(KW16:KW96)+SUM(KX16:KX96) -> 10017061 | LJ3: Begin Year Pop | LK3: =-SUM(LF16:LF96)+SUM(LG16:LG96) -> 10082989 | LS3: Begin Year Pop | LT3: =-SUM(LO16:LO96)+SUM(LP16:LP96) -> 10168089
G4: ="During Year "&A16&":" -> During Year 1950: | P4: ="During Year "&J16&":" -> During Year 1951: | Y4: ="During Year "&S16&":" -> During Year 1952: | AH4: ="During Year "&AB16&":" -> During Year 1953: | AQ4: ="During Year "&AK16&":" -> During Year 1954: | AZ4: ="During Year "&AT16&":" -> During Year 1955: | BI4: ="During Year "&BC16&":" -> During Year 1956: | BR4: ="During Year "&BL16&":" -> During Year 1957: | CA4: ="During Year "&BU16&":" -> During Year 1958: | CJ4: ="During Year "&CD16&":" -> During Year 1959: | CS4: ="During Year "&CM16&":" -> During Year 1960: | DB4: ="During Year "&CV16&":" -> During Year 1961: | DK4: ="During Year "&DE16&":" -> During Year 1962: | DT4: ="During Year "&DN16&":" -> During Year 1963: | EC4: ="During Year "&DW16&":" -> During Year 1964: | EL4: ="During Year "&EF16&":" -> During Year 1965: | EU4: ="During Year "&EO16&":" -> During Year 1966: | FD4: ="During Year "&EX16&":" -> During Year 1967: | FM4: ="During Year "&FG16&":" -> During Year 1968: | FV4: ="During Year "&FP16&":" -> During Year 1969: | GE4: ="During Year "&FY16&":" -> During Year 1970: | GN4: ="During Year "&GH16&":" -> During Year 1971: | GW4: ="During Year "&GQ16&":" -> During Year 1972: | HF4: ="During Year "&GZ16&":" -> During Year 1973: | HO4: ="During Year "&HI16&":" -> During Year 1974: | HX4: ="During Year "&HR16&":" -> During Year 1975: | IG4: ="During Year "&IA16&":" -> During Year 1976: | IP4: ="During Year "&IJ16&":" -> During Year 1977: | IY4: ="During Year "&IS16&":" -> During Year 1978: | JH4: ="During Year "&JB16&":" -> During Year 1979: | JQ4: ="During Year "&JK16&":" -> During Year 1980: | JZ4: ="During Year "&JT16&":" -> During Year 1981: | KI4: ="During Year "&KC16&":" -> During Year 1982: | KR4: ="During Year "&KL16&":" -> During Year 1983: | LA4: ="During Year "&KU16&":" -> During Year 1984: | LJ4: ="During Year "&LD16&":" -> During Year 1985: | LS4: ="During Year "&LM16&":" -> During Year 1986:
G5: Births | H5: =-L16+M16 -> 167251 | P5: Births | Q5: =-U16+V16 -> 179518 | Y5: Births | Z5: =-AD16+AE16 -> 191197 | AH5: Births | AI5: =-AM16+AN16 -> 197926 | AQ5: Births | AR5: =-AV16+AW16 -> 197568 | AZ5: Births | BA5: =-BE16+BF16 -> 189255 | BI5: Births | BJ5: =-BN16+BO16 -> 177288 | BR5: Births | BS5: =-BW16+BX16 -> 166044 | CA5: Births | CB5: =-CF16+CG16 -> 161304 | CJ5: Births | CK5: =-CO16+CP16 -> 168410 | CS5: Births | CT5: =-CX16+CY16 -> 191722 | DB5: Births | DC5: =-DG16+DH16 -> 226340 | DK5: Births | DL5: =-DP16+DQ16 -> 264029 | DT5: Births | DU5: =-DY16+DZ16 -> 293936 | EC5: Births | ED5: =-EH16+EI16 -> 308624 | EL5: Births | EM5: =-EQ16+ER16 -> 301392 | EU5: Births | EV5: =-EZ16+FA16 -> 279990 | FD5: Births | FE5: =-FI16+FJ16 -> 250823 | FM5: Births | FN5: =-FR16+FS16 -> 223793 | FV5: Births | FW5: =-GA16+GB16 -> 206589 | GE5: Births | GF5: =-GJ16+GK16 -> 203960 | GN5: Births | GO5: =-GS16+GT16 -> 211222 | GW5: Births | GX5: =-HB16+HC16 -> 222604 | HF5: Births | HG5: =-HK16+HL16 -> 229687 | HO5: Births | HP5: =-HT16+HU16 -> 226623 | HX5: Births | HY5: =-IC16+ID16 -> 209761 | IG5: Births | IH5: =-IL16+IM16 -> 183598 | IP5: Births | IQ5: =-IU16+IV16 -> 154125 | IY5: Births | IZ5: =-JD16+JE16 -> 130115 | JH5: Births | JI5: =-JM16+JN16 -> 117977 | JQ5: Births | JR5: =-JV16+JW16 -> 120952 | JZ5: Births | KA5: =-KE16+KF16 -> 135126 | KI5: Births | KJ5: =-KN16+KO16 -> 155817 | KR5: Births | KS5: =-KW16+KX16 -> 176263 | LA5: Births | LB5: =-LF16+LG16 -> 191528 | LJ5: Births | LK5: =-LO16+LP16 -> 199006 | LS5: Births | LT5: =-LX16+LY16 -> 201812
G6: Deaths/NetMig | H6: =H3-(-SUM(L17:L96)+SUM(M17:M96)) -> 35946 | P6: Deaths/NetMig | Q6: =Q3-(-SUM(U17:U96)+SUM(V17:V96)) -> 50776 | Y6: Deaths/NetMig | Z6: =Z3-(-SUM(AD17:AD96)+SUM(AE17:AE96)) -> 66699 | AH6: Deaths/NetMig | AI6: =AI3-(-SUM(AM17:AM96)+SUM(AN17:AN96)) -> 78293 | AQ6: Deaths/NetMig | AR6: =AR3-(-SUM(AV17:AV96)+SUM(AW17:AW96)) -> 82261 | AZ6: Deaths/NetMig | BA6: =BA3-(-SUM(BE17:BE96)+SUM(BF17:BF96)) -> 76643 | BI6: Deaths/NetMig | BJ6: =BJ3-(-SUM(BN17:BN96)+SUM(BO17:BO96)) -> 64583 | BR6: Deaths/NetMig | BS6: =BS3-(-SUM(BW17:BW96)+SUM(BX17:BX96)) -> 49620 | CA6: Deaths/NetMig | CB6: =CB3-(-SUM(CF17:CF96)+SUM(CG17:CG96)) -> 37035 | CJ6: Deaths/NetMig | CK6: =CK3-(-SUM(CO17:CO96)+SUM(CP17:CP96)) -> 32758 | CS6: Deaths/NetMig | CT6: =CT3-(-SUM(CX17:CX96)+SUM(CY17:CY96)) -> 43024 | DB6: Deaths/NetMig | DC6: =DC3-(-SUM(DG17:DG96)+SUM(DH17:DH96)) -> 65771 | DK6: Deaths/NetMig | DL6: =DL3-(-SUM(DP17:DP96)+SUM(DQ17:DQ96)) -> 96073 | DT6: Deaths/NetMig | DU6: =DU3-(-SUM(DY17:DY96)+SUM(DZ17:DZ96)) -> 125148 | EC6: Deaths/NetMig | ED6: =ED3-(-SUM(EH17:EH96)+SUM(EI17:EI96)) -> 143840 | EL6: Deaths/NetMig | EM6: =EM3-(-SUM(EQ17:EQ96)+SUM(ER17:ER96)) -> 142893 | EU6: Deaths/NetMig | EV6: =EV3-(-SUM(EZ17:EZ96)+SUM(FA17:FA96)) -> 126872 | FD6: Deaths/NetMig | FE6: =FE3-(-SUM(FI17:FI96)+SUM(FJ17:FJ96)) -> 101042 | FM6: Deaths/NetMig | FN6: =FN3-(-SUM(FR17:FR96)+SUM(FS17:FS96)) -> 73938 | FV6: Deaths/NetMig | FW6: =FW3-(-SUM(GA17:GA96)+SUM(GB17:GB96)) -> 54656 | GE6: Deaths/NetMig | GF6: =GF3-(-SUM(GJ17:GJ96)+SUM(GK17:GK96)) -> 49112 | GN6: Deaths/NetMig | GO6: =GO3-(-SUM(GS17:GS96)+SUM(GT17:GT96)) -> 55889 | GW6: Deaths/NetMig | GX6: =GX3-(-SUM(HB17:HB96)+SUM(HC17:HC96)) -> 71846 | HF6: Deaths/NetMig | HG6: =HG3-(-SUM(HK17:HK96)+SUM(HL17:HL96)) -> 90378 | HO6: Deaths/NetMig | HP6: =HP3-(-SUM(HT17:HT96)+SUM(HU17:HU96)) -> 103537 | HX6: Deaths/NetMig | HY6: =HY3-(-SUM(IC17:IC96)+SUM(ID17:ID96)) -> 103947 | IG6: Deaths/NetMig | IH6: =IH3-(-SUM(IL17:IL96)+SUM(IM17:IM96)) -> 93185 | IP6: Deaths/NetMig | IQ6: =IQ3-(-SUM(IU17:IU96)+SUM(IV17:IV96)) -> 77408 | IY6: Deaths/NetMig | IZ6: =IZ3-(-SUM(JD17:JD96)+SUM(JE17:JE96)) -> 64224 | JH6: Deaths/NetMig | JI6: =JI3-(-SUM(JM17:JM96)+SUM(JN17:JN96)) -> 60078 | JQ6: Deaths/NetMig | JR6: =JR3-(-SUM(JV17:JV96)+SUM(JW17:JW96)) -> 71922 | JZ6: Deaths/NetMig | KA6: =KA3-(-SUM(KE17:KE96)+SUM(KF17:KF96)) -> 93722 | KI6: Deaths/NetMig | KJ6: =KJ3-(-SUM(KN17:KN96)+SUM(KO17:KO96)) -> 114702 | KR6: Deaths/NetMig | KS6: =KS3-(-SUM(KW17:KW96)+SUM(KX17:KX96)) -> 125936 | LA6: Deaths/NetMig | LB6: =LB3-(-SUM(LF17:LF96)+SUM(LG17:LG96)) -> 125600 | LJ6: Deaths/NetMig | LK6: =LK3-(-SUM(LO17:LO96)+SUM(LP17:LP96)) -> 113906 | LS6: Deaths/NetMig | LT6: =LT3-(-SUM(LX17:LX96)+SUM(LY17:LY96)) -> 100333
G7: End Year Pop | H7: =H3+H5-H6 -> 6051294 | P7: End Year Pop | Q7: =Q3+Q5-Q6 -> 6180036 | Y7: End Year Pop | Z7: =Z3+Z5-Z6 -> 6304534 | AH7: End Year Pop | AI7: =AI3+AI5-AI6 -> 6424167 | AQ7: End Year Pop | AR7: =AR3+AR5-AR6 -> 6539474 | AZ7: End Year Pop | BA7: =BA3+BA5-BA6 -> 6652086 | BI7: End Year Pop | BJ7: =BJ3+BJ5-BJ6 -> 6764791 | BR7: End Year Pop | BS7: =BS3+BS5-BS6 -> 6881215 | CA7: End Year Pop | CB7: =CB3+CB5-CB6 -> 7005484 | CJ7: End Year Pop | CK7: =CK3+CK5-CK6 -> 7141136 | CS7: End Year Pop | CT7: =CT3+CT5-CT6 -> 7289834 | DB7: End Year Pop | DC7: =DC3+DC5-DC6 -> 7450403 | DK7: End Year Pop | DL7: =DL3+DL5-DL6 -> 7618359 | DT7: End Year Pop | DU7: =DU3+DU5-DU6 -> 7787147 | EC7: End Year Pop | ED7: =ED3+ED5-ED6 -> 7951931 | EL7: End Year Pop | EM7: =EM3+EM5-EM6 -> 8110430 | EU7: End Year Pop | EV7: =EV3+EV5-EV6 -> 8263548 | FD7: End Year Pop | FE7: =FE3+FE5-FE6 -> 8413329 | FM7: End Year Pop | FN7: =FN3+FN5-FN6 -> 8563184 | FV7: End Year Pop | FW7: =FW3+FW5-FW6 -> 8715117 | GE7: End Year Pop | GF7: =GF3+GF5-GF6 -> 8869965 | GN7: End Year Pop | GO7: =GO3+GO5-GO6 -> 9025298 | GW7: End Year Pop | GX7: =GX3+GX5-GX6 -> 9176056 | HF7: End Year Pop | HG7: =HG3+HG5-HG6 -> 9315365 | HO7: End Year Pop | HP7: =HP3+HP5-HP6 -> 9438451 | HX7: End Year Pop | HY7: =HY3+HY5-HY6 -> 9544265 | IG7: End Year Pop | IH7: =IH3+IH5-IH6 -> 9634678 | IP7: End Year Pop | IQ7: =IQ3+IQ5-IQ6 -> 9711395 | IY7: End Year Pop | IZ7: =IZ3+IZ5-IZ6 -> 9777286 | JH7: End Year Pop | JI7: =JI3+JI5-JI6 -> 9835185 | JQ7: End Year Pop | JR7: =JR3+JR5-JR6 -> 9884215 | JZ7: End Year Pop | KA7: =KA3+KA5-KA6 -> 9925619 | KI7: End Year Pop | KJ7: =KJ3+KJ5-KJ6 -> 9966734 | KR7: End Year Pop | KS7: =KS3+KS5-KS6 -> 10017061 | LA7: End Year Pop | LB7: =LB3+LB5-LB6 -> 10082989 | LJ7: End Year Pop | LK7: =LK3+LK5-LK6 -> 10168089 | LS7: End Year Pop | LT7: =LT3+LT5-LT6 -> 10269568
G8: %DPop | H8: =(H7-H3)/H3 -> 0.02217993986 | P8: %DPop | Q8: =(Q7-Q3)/Q3 -> 0.02127511901 | Y8: %DPop | Z8: =(Z7-Z3)/Z3 -> 0.02014519009 | AH8: %DPop | AI8: =(AI7-AI3)/AI3 -> 0.01897570859 | AQ8: %DPop | AR8: =(AR7-AR3)/AR3 -> 0.01794894186 | AZ8: %DPop | BA8: =(BA7-BA3)/BA3 -> 0.01722034524 | BI8: %DPop | BJ8: =(BJ7-BJ3)/BJ3 -> 0.01694280561 | BR8: %DPop | BS8: =(BS7-BS3)/BS3 -> 0.0172102878 | CA8: %DPop | CB8: =(CB7-CB3)/CB3 -> 0.01805916542 | CJ8: %DPop | CK8: =(CK7-CK3)/CK3 -> 0.01936368708 | CS8: %DPop | CT8: =(CT7-CT3)/CT3 -> 0.02082273745 | DB8: %DPop | DC8: =(DC7-DC3)/DC3 -> 0.02202642749 | DK8: %DPop | DL8: =(DL7-DL3)/DL3 -> 0.02254321008 | DT8: %DPop | DU8: =(DU7-DU3)/DU3 -> 0.02215542744 | EC8: %DPop | ED8: =(ED7-ED3)/ED3 -> 0.02116102341 | EL8: %DPop | EM8: =(EM7-EM3)/EM3 -> 0.01993213975 | EU8: %DPop | EV8: =(EV7-EV3)/EV3 -> 0.01887914697 | FD8: %DPop | FE8: =(FE7-FE3)/FE3 -> 0.01812550735 | FM8: %DPop | FN8: =(FN7-FN3)/FN3 -> 0.01781161773 | FV8: %DPop | FW8: =(FW7-FW3)/FW3 -> 0.01774258267 | GE8: %DPop | GF8: =(GF7-GF3)/GF3 -> 0.0177677477 | GN8: %DPop | GO8: =(GO7-GO3)/GO3 -> 0.01751224498 | GW8: %DPop | GX8: =(GX7-GX3)/GX3 -> 0.01670393598 | HF8: %DPop | HG8: =(HG7-HG3)/HG3 -> 0.01518179488 | HO8: %DPop | HP8: =(HP7-HP3)/HP3 -> 0.01321322353 | HX8: %DPop | HY8: =(HY7-HY3)/HY3 -> 0.01121094976 | IG8: %DPop | IH8: =(IH7-IH3)/IH3 -> 0.009473018614 | IP8: %DPop | IQ8: =(IQ7-IQ3)/IQ3 -> 0.007962590966 | IY8: %DPop | IZ8: =(IZ7-IZ3)/IZ3 -> 0.00678491607 | JH8: %DPop | JI8: =(JI7-JI3)/JI3 -> 0.005921786475 | JQ8: %DPop | JR8: =(JR7-JR3)/JR3 -> 0.004985162963 | JZ8: %DPop | KA8: =(KA7-KA3)/KA3 -> 0.004188901192 | KI8: %DPop | KJ8: =(KJ7-KJ3)/KJ3 -> 0.004142310923 | KR8: %DPop | KS8: =(KS7-KS3)/KS3 -> 0.005049497659 | LA8: %DPop | LB8: =(LB7-LB3)/LB3 -> 0.006581571181 | LJ8: %DPop | LK8: =(LK7-LK3)/LK3 -> 0.008439957636 | LS8: %DPop | LT8: =(LT7-LT3)/LT3 -> 0.009980144745
A15: Year | B15: Age | C15: Male | D15: Female | J15: Year | K15: Age | L15: Male | M15: Female | S15: Year | T15: Age | U15: Male | V15: Female | AB15: Year | AC15: Age | AD15: Male | AE15: Female | AK15: Year | AL15: Age | AM15: Male | AN15: Female | AT15: Year | AU15: Age | AV15: Male | AW15: Female | BC15: Year | BD15: Age | BE15: Male | BF15: Female | BL15: Year | BM15: Age | BN15: Male | BO15: Female | BU15: Year | BV15: Age | BW15: Male | BX15: Female | CD15: Year | CE15: Age | CF15: Male | CG15: Female | CM15: Year | CN15: Age | CO15: Male | CP15: Female | CV15: Year | CW15: Age | CX15: Male | CY15: Female | DE15: Year | DF15: Age | DG15: Male | DH15: Female | DN15: Year | DO15: Age | DP15: Male | DQ15: Female | DW15: Year | DX15: Age | DY15: Male | DZ15: Female | EF15: Year | EG15: Age | EH15: Male | EI15: Female | EO15: Year | EP15: Age | EQ15: Male | ER15: Female | EX15: Year | EY15: Age | EZ15: Male | FA15: Female | FG15: Year | FH15: Age | FI15: Male | FJ15: Female | FP15: Year | FQ15: Age | FR15: Male | FS15: Female | FY15: Year | FZ15: Age | GA15: Male | GB15: Female | GH15: Year | GI15: Age | GJ15: Male | GK15: Female | GQ15: Year | GR15: Age | GS15: Male | GT15: Female | GZ15: Year | HA15: Age | HB15: Male | HC15: Female | HI15: Year | HJ15: Age | HK15: Male | HL15: Female | HR15: Year | HS15: Age | HT15: Male | HU15: Female | IA15: Year | IB15: Age | IC15: Male | ID15: Female | IJ15: Year | IK15: Age | IL15: Male | IM15: Female | IS15: Year | IT15: Age | IU15: Male | IV15: Female | JB15: Year | JC15: Age | JD15: Male | JE15: Female | JK15: Year | JL15: Age | JM15: Male | JN15: Female | JT15: Year | JU15: Age | JV15: Male | JW15: Female | KC15: Year | KD15: Age | KE15: Male | KF15: Female | KL15: Year | KM15: Age | KN15: Male | KO15: Female | KU15: Year | KV15: Age | KW15: Male | KX15: Female | LD15: Year | LE15: Age | LF15: Male | LG15: Female | LM15: Year | LN15: Age | LO15: Male | LP15: Female | LV15: Year | LW15: Age | LX15: Male | LY15: Female
A16: 1950 | B16: 0 | C16: =-Male!B2*1000 -> -82891 | D16: =Female!B2*1000 -> 78707 | J16: =A16+1 -> 1951 | K16: 0 | L16: =-Male!C2*1000 -> -85220 | M16: =Female!C2*1000 -> 82031 | S16: =J16+1 -> 1952 | T16: 0 | U16: =-Male!D2*1000 -> -91064 | V16: =Female!D2*1000 -> 88454 | AB16: =S16+1 -> 1953 | AC16: 0 | AD16: =-Male!E2*1000 -> -96761 | AE16: =Female!E2*1000 -> 94436 | AK16: =AB16+1 -> 1954 | AL16: 0 | AM16: =-Male!F2*1000 -> -100084 | AN16: =Female!F2*1000 -> 97842 | AT16: =AK16+1 -> 1955 | AU16: 0 | AV16: =-Male!G2*1000 -> -99939 | AW16: =Female!G2*1000 -> 97629 | BC16: =AT16+1 -> 1956 | BD16: 0 | BE16: =-Male!H2*1000 -> -95901 | BF16: =Female!H2*1000 -> 93354 | BL16: =BC16+1 -> 1957 | BM16: 0 | BN16: =-Male!I2*1000 -> -90065 | BO16: =Female!I2*1000 -> 87223 | BU16: =BL16+1 -> 1958 | BV16: 0 | BW16: =-Male!J2*1000 -> -84622 | BX16: =Female!J2*1000 -> 81422 | CD16: =BU16+1 -> 1959 | CE16: 0 | CF16: =-Male!K2*1000 -> -82463 | CG16: =Female!K2*1000 -> 78841 | CM16: =CD16+1 -> 1960 | CN16: 0 | CO16: =-Male!L2*1000 -> -86252 | CP16: =Female!L2*1000 -> 82158 | CV16: =CM16+1 -> 1961 | CW16: 0 | CX16: =-Male!M2*1000 -> -98152 | CY16: =Female!M2*1000 -> 93570 | DE16: =CV16+1 -> 1962 | DF16: 0 | DG16: =-Male!N2*1000 -> -115702 | DH16: =Female!N2*1000 -> 110638 | DN16: =DE16+1 -> 1963 | DO16: 0 | DP16: =-Male!O2*1000 -> -134765 | DQ16: =Female!O2*1000 -> 129264 | DW16: =DN16+1 -> 1964 | DX16: 0 | DY16: =-Male!P2*1000 -> -149893 | DZ16: =Female!P2*1000 -> 144043 | EF16: =DW16+1 -> 1965 | EG16: 0 | EH16: =-Male!Q2*1000 -> -157353 | EI16: =Female!Q2*1000 -> 151271 | EO16: =EF16+1 -> 1966 | EP16: 0 | EQ16: =-Male!R2*1000 -> -153699 | ER16: =Female!R2*1000 -> 147693 | EX16: =EO16+1 -> 1967 | EY16: 0 | EZ16: =-Male!S2*1000 -> -142905 | FA16: =Female!S2*1000 -> 137085 | FG16: =EX16+1 -> 1968 | FH16: 0 | FI16: =-Male!T2*1000 -> -128188 | FJ16: =Female!T2*1000 -> 122635 | FP16: =FG16+1 -> 1969 | FQ16: 0 | FR16: =-Male!U2*1000 -> -114533 | FS16: =Female!U2*1000 -> 109260 | FY16: =FP16+1 -> 1970 | FZ16: 0 | GA16: =-Male!V2*1000 -> -105818 | GB16: =Female!V2*1000 -> 100771 | GH16: =FY16+1 -> 1971 | GI16: 0 | GJ16: =-Male!W2*1000 -> -104492 | GK16: =Female!W2*1000 -> 99468 | GQ16: =GH16+1 -> 1972 | GR16: 0 | GS16: =-Male!X2*1000 -> -108141 | GT16: =Female!X2*1000 -> 103081 | GZ16: =GQ16+1 -> 1973 | HA16: 0 | HB16: =-Male!Y2*1000 -> -113857 | HC16: =Female!Y2*1000 -> 108747 | HI16: =GZ16+1 -> 1974 | HJ16: 0 | HK16: =-Male!Z2*1000 -> -117401 | HL16: =Female!Z2*1000 -> 112286 | HR16: =HI16+1 -> 1975 | HS16: 0 | HT16: =-Male!AA2*1000 -> -115826 | HU16: =Female!AA2*1000 -> 110797 | IA16: =HR16+1 -> 1976 | IB16: 0 | IC16: =-Male!AB2*1000 -> -107267 | ID16: =Female!AB2*1000 -> 102494 | IJ16: =IA16+1 -> 1977 | IK16: 0 | IL16: =-Male!AC2*1000 -> -94019 | IM16: =Female!AC2*1000 -> 89579 | IS16: =IJ16+1 -> 1978 | IT16: 0 | IU16: =-Male!AD2*1000 -> -79100 | IV16: =Female!AD2*1000 -> 75025 | JB16: =IS16+1 -> 1979 | JC16: 0 | JD16: =-Male!AE2*1000 -> -66934 | JE16: =Female!AE2*1000 -> 63181 | JK16: =JB16+1 -> 1980 | JL16: 0 | JM16: =-Male!AF2*1000 -> -60760 | JN16: =Female!AF2*1000 -> 57217 | JT16: =JK16+1 -> 1981 | JU16: 0 | JV16: =-Male!AG2*1000 -> -62241 | JW16: =Female!AG2*1000 -> 58711 | KC16: =JT16+1 -> 1982 | KD16: 0 | KE16: =-Male!AH2*1000 -> -69368 | KF16: =Female!AH2*1000 -> 65758 | KL16: =KC16+1 -> 1983 | KM16: 0 | KN16: =-Male!AI2*1000 -> -79796 | KO16: =Female!AI2*1000 -> 76021 | KU16: =KL16+1 -> 1984 | KV16: 0 | KW16: =-Male!AJ2*1000 -> -90143 | KX16: =Female!AJ2*1000 -> 86120 | LD16: =KU16+1 -> 1985 | LE16: 0 | LF16: =-Male!AK2*1000 -> -97940 | LG16: =Female!AK2*1000 -> 93588 | LM16: =LD16+1 -> 1986 | LN16: 0 | LO16: =-Male!AL2*1000 -> -101815 | LP16: =Female!AL2*1000 -> 97191 | LV16: =LM16+1 -> 1987 | LW16: 0 | LX16: =-Male!AM2*1000 -> -103397 | LY16: =Female!AM2*1000 -> 98415
B17: 1 | C17: =-Male!B3*1000 -> -80969 | D17: =Female!B3*1000 -> 77039 | K17: 1 | L17: =-Male!C3*1000 -> -82635 | M17: =Female!C3*1000 -> 78559 | T17: 1 | U17: =-Male!D3*1000 -> -88576 | V17: =Female!D3*1000 -> 85487 | AC17: 1 | AD17: =-Male!E3*1000 -> -92249 | AE17: =Female!E3*1000 -> 89364 | AL17: 1 | AM17: =-Male!F3*1000 -> -94342 | AN17: =Female!F3*1000 -> 91585 | AU17: 1 | AV17: =-Male!G3*1000 -> -94465 | AW17: =Female!G3*1000 -> 91773 | BD17: 1 | BE17: =-Male!H3*1000 -> -98070 | BF17: =Female!H3*1000 -> 95728 | BM17: 1 | BN17: =-Male!I3*1000 -> -89404 | BO17: =Female!I3*1000 -> 86594 | BV17: 1 | BW17: =-Male!J3*1000 -> -86975 | BX17: =Female!J3*1000 -> 84032 | CE17: 1 | CF17: =-Male!K3*1000 -> -86545 | CG17: =Female!K3*1000 -> 83392 | CN17: 1 | CO17: =-Male!L3*1000 -> -89553 | CP17: =Female!L3*1000 -> 86105 | CW17: 1 | CX17: =-Male!M3*1000 -> -88238 | CY17: =Female!M3*1000 -> 84310 | DF17: 1 | DG17: =-Male!N3*1000 -> -108861 | DH17: =Female!N3*1000 -> 104659 | DO17: 1 | DP17: =-Male!O3*1000 -> -121064 | DQ17: =Female!O3*1000 -> 116439 | DX17: 1 | DY17: =-Male!P3*1000 -> -131412 | DZ17: =Female!P3*1000 -> 126393 | EG17: 1 | EH17: =-Male!Q3*1000 -> -137889 | EI17: =Female!Q3*1000 -> 132537 | EP17: 1 | EQ17: =-Male!R3*1000 -> -151762 | ER17: =Female!R3*1000 -> 145864 | EY17: 1 | EZ17: =-Male!S3*1000 -> -134926 | FA17: =Female!S3*1000 -> 129399 | FH17: 1 | FI17: =-Male!T3*1000 -> -129555 | FJ17: =Female!T3*1000 -> 124024 | FQ17: 1 | FR17: =-Male!U3*1000 -> -123973 | FS17: =Female!U3*1000 -> 118492 | FZ17: 1 | GA17: =-Male!V3*1000 -> -119845 | GB17: =Female!V3*1000 -> 114452 | GI17: 1 | GJ17: =-Male!W3*1000 -> -109032 | GK17: =Female!W3*1000 -> 103904 | GR17: 1 | GS17: =-Male!X3*1000 -> -119068 | GT17: =Female!X3*1000 -> 113698 | HA17: 1 | HB17: =-Male!Y3*1000 -> -119576 | HC17: =Female!Y3*1000 -> 114276 | HJ17: 1 | HK17: =-Male!Z3*1000 -> -118652 | HL17: =Female!Z3*1000 -> 113455 | HS17: 1 | HT17: =-Male!AA3*1000 -> -115103 | HU17: =Female!AA3*1000 -> 110042 | IB17: 1 | IC17: =-Male!AB3*1000 -> -113747 | ID17: =Female!AB3*1000 -> 108784 | IK17: 1 | IL17: =-Male!AC3*1000 -> -98192 | IM17: =Female!AC3*1000 -> 93611 | IT17: 1 | IU17: =-Male!AD3*1000 -> -87865 | IV17: =Female!AD3*1000 -> 83546 | JC17: 1 | JD17: =-Male!AE3*1000 -> -78979 | JE17: =Female!AE3*1000 -> 74915 | JL17: 1 | JM17: =-Male!AF3*1000 -> -73212 | JN17: =Female!AF3*1000 -> 69369 | JU17: 1 | JV17: =-Male!AG3*1000 -> -63005 | JW17: =Female!AG3*1000 -> 59468 | KD17: 1 | KE17: =-Male!AH3*1000 -> -73171 | KF17: =Female!AH3*1000 -> 69504 | KM17: 1 | KN17: =-Male!AI3*1000 -> -76706 | KO17: =Female!AI3*1000 -> 73060 | KV17: 1 | KW17: =-Male!AJ3*1000 -> -81058 | KX17: =Female!AJ3*1000 -> 77341 | LE17: 1 | LF17: =-Male!AK3*1000 -> -85200 | LG17: =Female!AK3*1000 -> 81297 | LN17: 1 | LO17: =-Male!AL3*1000 -> -94793 | LP17: =Female!AL3*1000 -> 90569 | LW17: 1 | LX17: =-Male!AM3*1000 -> -91261 | LY17: =Female!AM3*1000 -> 86881
B18: 2 | C18: =-Male!B4*1000 -> -79268 | D18: =Female!B4*1000 -> 75573 | K18: 2 | L18: =-Male!C4*1000 -> -80680 | M18: =Female!C4*1000 -> 76806 | T18: 2 | U18: =-Male!D4*1000 -> -82072 | V18: =Female!D4*1000 -> 78126 | AC18: 2 | AD18: =-Male!E4*1000 -> -88306 | AE18: =Female!E4*1000 -> 85011 | AL18: 2 | AM18: =-Male!F4*1000 -> -89480 | AN18: =Female!F4*1000 -> 86337 | AU18: 2 | AV18: =-Male!G4*1000 -> -89838 | AW18: =Female!G4*1000 -> 86852 | BD18: 2 | BE18: =-Male!H4*1000 -> -93423 | BF18: =Female!H4*1000 -> 90773 | BM18: 2 | BN18: =-Male!I4*1000 -> -96572 | BO18: =Female!I4*1000 -> 94218 | BV18: 2 | BW18: =-Male!J4*1000 -> -88377 | BX18: =Female!J4*1000 -> 85604 | CE18: 2 | CF18: =-Male!K4*1000 -> -89255 | CG18: =Female!K4*1000 -> 86430 | CN18: 2 | CO18: =-Male!L4*1000 -> -91640 | CP18: =Female!L4*1000 -> 88662 | CW18: 2 | CX18: =-Male!M4*1000 -> -89980 | CY18: =Female!M4*1000 -> 86634 | DF18: 2 | DG18: =-Male!N4*1000 -> -89696 | DH18: =Female!N4*1000 -> 85935 | DO18: 2 | DP18: =-Male!O4*1000 -> -109995 | DQ18: =Female!O4*1000 -> 106073 | DX18: 2 | DY18: =-Male!P4*1000 -> -116588 | DZ18: =Female!P4*1000 -> 112260 | EG18: 2 | EH18: =-Male!Q4*1000 -> -122179 | EI18: =Female!Q4*1000 -> 117457 | EP18: 2 | EQ18: =-Male!R4*1000 -> -135497 | ER18: =Female!R4*1000 -> 130228 | EY18: 2 | EZ18: =-Male!S4*1000 -> -147234 | FA18: =Female!S4*1000 -> 141451 | FH18: 2 | FI18: =-Male!T4*1000 -> -129178 | FJ18: =Female!T4*1000 -> 123753 | FQ18: 2 | FR18: =-Male!U4*1000 -> -129688 | FS18: =Female!U4*1000 -> 124132 | FZ18: 2 | GA18: =-Male!V4*1000 -> -129161 | GB18: =Female!V4*1000 -> 123577 | GI18: 2 | GJ18: =-Male!W4*1000 -> -120687 | GK18: =Female!W4*1000 -> 115275 | GR18: 2 | GS18: =-Male!X4*1000 -> -111798 | GT18: =Female!X4*1000 -> 106638 | HA18: 2 | HB18: =-Male!Y4*1000 -> -123841 | HC18: =Female!Y4*1000 -> 118415 | HJ18: 2 | HK18: =-Male!Z4*1000 -> -120015 | HL18: =Female!Z4*1000 -> 114754 | HS18: 2 | HT18: =-Male!AA4*1000 -> -115352 | HU18: =Female!AA4*1000 -> 110247 | IB18: 2 | IC18: =-Male!AB4*1000 -> -114161 | ID18: =Female!AB4*1000 -> 109141 | IK18: 2 | IL18: =-Male!AC4*1000 -> -112029 | IM18: =Female!AC4*1000 -> 107097 | IT18: 2 | IU18: =-Male!AD4*1000 -> -95744 | IV18: =Female!AD4*1000 -> 91198 | JC18: 2 | JD18: =-Male!AE4*1000 -> -89363 | JE18: =Female!AE4*1000 -> 85018 | JL18: 2 | JM18: =-Male!AF4*1000 -> -83921 | JN18: =Female!AF4*1000 -> 79804 | JU18: 2 | JV18: =-Male!AG4*1000 -> -73644 | JW18: =Female!AG4*1000 -> 69842 | KD18: 2 | KE18: =-Male!AH4*1000 -> -64969 | KF18: =Female!AH4*1000 -> 61470 | KM18: 2 | KN18: =-Male!AI4*1000 -> -75708 | KO18: =Female!AI4*1000 -> 72108 | KV18: 2 | KW18: =-Male!AJ4*1000 -> -75426 | KX18: =Female!AJ4*1000 -> 71893 | LE18: 2 | LF18: =-Male!AK4*1000 -> -76592 | LG18: =Female!AK4*1000 -> 72988 | LN18: 2 | LO18: =-Male!AL4*1000 -> -84122 | LP18: =Female!AL4*1000 -> 80283 | LW18: 2 | LX18: =-Male!AM4*1000 -> -91999 | LY18: =Female!AM4*1000 -> 87853
B19: 3 | C19: =-Male!B5*1000 -> -77754 | D19: =Female!B5*1000 -> 74278 | K19: 3 | L19: =-Male!C5*1000 -> -78989 | M19: =Female!C5*1000 -> 75313 | T19: 3 | U19: =-Male!D5*1000 -> -80090 | V19: =Female!D5*1000 -> 76294 | AC19: 3 | AD19: =-Male!E5*1000 -> -81346 | AE19: =Female!E5*1000 -> 77564 | AL19: 3 | AM19: =-Male!F5*1000 -> -85412 | AN19: =Female!F5*1000 -> 82002 | AU19: 3 | AV19: =-Male!G5*1000 -> -85976 | AW19: =Female!G5*1000 -> 82778 | BD19: 3 | BE19: =-Male!H5*1000 -> -89346 | BF19: =Female!H5*1000 -> 86444 | BM19: 3 | BN19: =-Male!I5*1000 -> -92733 | BO19: =Female!I5*1000 -> 90142 | BV19: 3 | BW19: =-Male!J5*1000 -> -95219 | BX19: =Female!J5*1000 -> 92854 | CE19: 3 | CF19: =-Male!K5*1000 -> -90745 | CG19: =Female!K5*1000 -> 88128 | CN19: 3 | CO19: =-Male!L5*1000 -> -92650 | CP19: =Female!L5*1000 -> 89987 | CW19: 3 | CX19: =-Male!M5*1000 -> -91115 | CY19: =Female!M5*1000 -> 88195 | DF19: 3 | DG19: =-Male!N5*1000 -> -89862 | DH19: =Female!N5*1000 -> 86611 | DO19: 3 | DP19: =-Male!O5*1000 -> -90869 | DQ19: =Female!O5*1000 -> 87265 | DX19: 3 | DY19: =-Male!P5*1000 -> -105042 | DZ19: =Female!P5*1000 -> 101276 | EG19: 3 | EH19: =-Male!Q5*1000 -> -109838 | EI19: =Female!Q5*1000 -> 105655 | EP19: 3 | EQ19: =-Male!R5*1000 -> -121829 | ER19: =Female!R5*1000 -> 117123 | EY19: 3 | EZ19: =-Male!S5*1000 -> -134038 | FA19: =Female!S5*1000 -> 128790 | FH19: 3 | FI19: =-Male!T5*1000 -> -143203 | FJ19: =Female!T5*1000 -> 137511 | FQ19: 3 | FR19: =-Male!U5*1000 -> -132135 | FS19: =Female!U5*1000 -> 126621 | FZ19: 3 | GA19: =-Male!V5*1000 -> -134318 | GB19: =Female!V5*1000 -> 128681 | GI19: 3 | GJ19: =-Male!W5*1000 -> -128532 | GK19: =Female!W5*1000 -> 122967 | GR19: 3 | GS19: =-Male!X5*1000 -> -121023 | GT19: =Female!X5*1000 -> 115646 | HA19: 3 | HB19: =-Male!Y5*1000 -> -114295 | HC19: =Female!Y5*1000 -> 109129 | HJ19: 3 | HK19: =-Male!Z5*1000 -> -121386 | HL19: =Female!Z5*1000 -> 116080 | HS19: 3 | HT19: =-Male!AA5*1000 -> -116352 | HU19: =Female!AA5*1000 -> 111200 | IB19: 3 | IC19: =-Male!AB5*1000 -> -115126 | ID19: =Female!AB5*1000 -> 110046 | IK19: 3 | IL19: =-Male!AC5*1000 -> -113580 | IM19: =Female!AC5*1000 -> 108566 | IT19: 3 | IU19: =-Male!AD5*1000 -> -110490 | IV19: =Female!AD5*1000 -> 105579 | JC19: 3 | JD19: =-Male!AE5*1000 -> -98186 | JE19: =Female!AE5*1000 -> 93593 | JL19: 3 | JM19: =-Male!AF5*1000 -> -93010 | JN19: =Female!AF5*1000 -> 88647 | JU19: 3 | JV19: =-Male!AG5*1000 -> -83238 | JW19: =Female!AG5*1000 -> 79182 | KD19: 3 | KE19: =-Male!AH5*1000 -> -73740 | KF19: =Female!AH5*1000 -> 70017 | KM19: 3 | KN19: =-Male!AI5*1000 -> -66791 | KO19: =Female!AI5*1000 -> 63344 | KV19: 3 | KW19: =-Male!AJ5*1000 -> -72832 | KX19: =Female!AJ5*1000 -> 69376 | LE19: 3 | LF19: =-Male!AK5*1000 -> -71643 | LG19: =Female!AK5*1000 -> 68208 | LN19: 3 | LO19: =-Male!AL5*1000 -> -76814 | LP19: =Female!AL5*1000 -> 73233 | LW19: 3 | LX19: =-Male!AM5*1000 -> -83350 | LY19: =Female!AM5*1000 -> 79532
B20: 4 | C20: =-Male!B6*1000 -> -76395 | D20: =Female!B6*1000 -> 73122 | K20: 4 | L20: =-Male!C6*1000 -> -77521 | M20: =Female!C6*1000 -> 74038 | T20: 4 | U20: =-Male!D6*1000 -> -78418 | V20: =Female!D6*1000 -> 74780 | AC20: 4 | AD20: =-Male!E6*1000 -> -79343 | AE20: =Female!E6*1000 -> 75656 | AL20: 4 | AM20: =-Male!F6*1000 -> -80702 | AN20: =Female!F6*1000 -> 77104 | AU20: 4 | AV20: =-Male!G6*1000 -> -82798 | AW20: =Female!G6*1000 -> 79463 | BD20: 4 | BE20: =-Male!H6*1000 -> -85800 | BF20: =Female!H6*1000 -> 82702 | BM20: 4 | BN20: =-Male!I6*1000 -> -89189 | BO20: =Female!I6*1000 -> 86386 | BV20: 4 | BW20: =-Male!J6*1000 -> -92185 | BX20: =Female!J6*1000 -> 89653 | CE20: 4 | CF20: =-Male!K6*1000 -> -93732 | CG20: =Female!K6*1000 -> 91346 | CN20: 4 | CO20: =-Male!L6*1000 -> -92719 | CP20: =Female!L6*1000 -> 90238 | CW20: 4 | CX20: =-Male!M6*1000 -> -91675 | CY20: =Female!M6*1000 -> 89044 | DF20: 4 | DG20: =-Male!N6*1000 -> -90033 | DH20: =Female!N6*1000 -> 87160 | DO20: 4 | DP20: =-Male!O6*1000 -> -89465 | DQ20: =Female!O6*1000 -> 86299 | DX20: 4 | DY20: =-Male!P6*1000 -> -92156 | DZ20: =Female!P6*1000 -> 88688 | EG20: 4 | EH20: =-Male!Q6*1000 -> -100482 | EI20: =Female!Q6*1000 -> 96751 | EP20: 4 | EQ20: =-Male!R6*1000 -> -110561 | ER20: =Female!R6*1000 -> 106354 | EY20: 4 | EZ20: =-Male!S6*1000 -> -122306 | FA20: =Female!S6*1000 -> 117561 | FH20: 4 | FI20: =-Male!T6*1000 -> -133043 | FJ20: =Female!T6*1000 -> 127793 | FQ20: 4 | FR20: =-Male!U6*1000 -> -138986 | FS20: =Female!U6*1000 -> 133413 | FZ20: 4 | GA20: =-Male!V6*1000 -> -135870 | GB20: =Female!V6*1000 -> 130299 | GI20: 4 | GJ20: =-Male!W6*1000 -> -132968 | GK20: =Female!W6*1000 -> 127366 | GR20: 4 | GS20: =-Male!X6*1000 -> -127360 | GT20: =Female!X6*1000 -> 121868 | HA20: 4 | HB20: =-Male!Y6*1000 -> -121075 | HC20: =Female!Y6*1000 -> 115759 | HJ20: 4 | HK20: =-Male!Z6*1000 -> -116886 | HL20: =Female!Z6*1000 -> 111703 | HS20: 4 | HT20: =-Male!AA6*1000 -> -117884 | HU20: =Female!AA6*1000 -> 112688 | IB20: 4 | IC20: =-Male!AB6*1000 -> -116490 | ID20: =Female!AB6*1000 -> 111354 | IK20: 4 | IL20: =-Male!AC6*1000 -> -115262 | IM20: =Female!AC6*1000 -> 110172 | IT20: 4 | IU20: =-Male!AD6*1000 -> -113183 | IV20: =Female!AD6*1000 -> 108164 | JC20: 4 | JD20: =-Male!AE6*1000 -> -108799 | JE20: =Female!AE6*1000 -> 103937 | JL20: 4 | JM20: =-Male!AF6*1000 -> -100603 | JN20: =Female!AF6*1000 -> 96021 | JU20: 4 | JV20: =-Male!AG6*1000 -> -91791 | JW20: =Female!AG6*1000 -> 87495 | KD20: 4 | KE20: =-Male!AH6*1000 -> -82172 | KF20: =Female!AH6*1000 -> 78218 | KM20: 4 | KN20: =-Male!AI6*1000 -> -73684 | KO20: =Female!AI6*1000 -> 70053 | KV20: 4 | KW20: =-Male!AJ6*1000 -> -68706 | KX20: =Female!AJ6*1000 -> 65293 | LE20: 4 | LF20: =-Male!AK6*1000 -> -69880 | LG20: =Female!AK6*1000 -> 66501 | LN20: 4 | LO20: =-Male!AL6*1000 -> -72521 | LP20: =Female!AL6*1000 -> 69088 | LW20: 4 | LX20: =-Male!AM6*1000 -> -77310 | LY20: =Female!AM6*1000 -> 73714
B21: 5 | C21: =-Male!B7*1000 -> -75157 | D21: =Female!B7*1000 -> 72076 | K21: 5 | L21: =-Male!C7*1000 -> -76233 | M21: =Female!C7*1000 -> 72938 | T21: 5 | U21: =-Male!D7*1000 -> -77001 | V21: =Female!D7*1000 -> 73529 | AC21: 5 | AD21: =-Male!E7*1000 -> -77691 | AE21: =Female!E7*1000 -> 74123 | AL21: 5 | AM21: =-Male!F7*1000 -> -78674 | AN21: =Female!F7*1000 -> 75119 | AU21: 5 | AV21: =-Male!G7*1000 -> -80223 | AW21: =Female!G7*1000 -> 76816 | BD21: 5 | BE21: =-Male!H7*1000 -> -82748 | BF21: =Female!H7*1000 -> 79507 | BM21: 5 | BN21: =-Male!I7*1000 -> -85945 | BO21: =Female!I7*1000 -> 82960 | BV21: 5 | BW21: =-Male!J7*1000 -> -89170 | BX21: =Female!J7*1000 -> 86466 | CE21: 5 | CF21: =-Male!K7*1000 -> -91509 | CG21: =Female!K7*1000 -> 89030 | CN21: 5 | CO21: =-Male!L7*1000 -> -91983 | CP21: =Female!L7*1000 -> 89571 | CW21: 5 | CX21: =-Male!M7*1000 -> -91692 | CY21: =Female!M7*1000 -> 89231 | DF21: 5 | DG21: =-Male!N7*1000 -> -90137 | DH21: =Female!N7*1000 -> 87524 | DO21: 5 | DP21: =-Male!O7*1000 -> -88675 | DQ21: =Female!O7*1000 -> 85837 | DX21: 5 | DY21: =-Male!P7*1000 -> -89188 | DZ21: =Female!P7*1000 -> 86088 | EG21: 5 | EH21: =-Male!Q7*1000 -> -93727 | EI21: =Female!Q7*1000 -> 90370 | EP21: 5 | EQ21: =-Male!R7*1000 -> -101499 | ER21: =Female!R7*1000 -> 97729 | EY21: 5 | EZ21: =-Male!S7*1000 -> -112029 | FA21: =Female!S7*1000 -> 107749 | FH21: 5 | FI21: =-Male!T7*1000 -> -123214 | FJ21: =Female!T7*1000 -> 118408 | FQ21: 5 | FR21: =-Male!U7*1000 -> -131891 | FS21: =Female!U7*1000 -> 126666 | FZ21: 5 | GA21: =-Male!V7*1000 -> -134369 | GB21: =Female!V7*1000 -> 128965 | GI21: 5 | GJ21: =-Male!W7*1000 -> -134395 | GK21: =Female!W7*1000 -> 128859 | GR21: 5 | GS21: =-Male!X7*1000 -> -131053 | GT21: =Female!X7*1000 -> 125542 | HA21: 5 | HB21: =-Male!Y7*1000 -> -125893 | HC21: =Female!Y7*1000 -> 120503 | HJ21: 5 | HK21: =-Male!Z7*1000 -> -121238 | HL21: =Female!Z7*1000 -> 115972 | HS21: 5 | HT21: =-Male!AA7*1000 -> -119728 | HU21: =Female!AA7*1000 -> 114497 | IB21: 5 | IC21: =-Male!AB7*1000 -> -118102 | ID21: =Female!AB7*1000 -> 112919 | IK21: 5 | IL21: =-Male!AC7*1000 -> -116993 | IM21: =Female!AC7*1000 -> 111838 | IT21: 5 | IU21: =-Male!AD7*1000 -> -115588 | IV21: =Female!AD7*1000 -> 110476 | JC21: 5 | JD21: =-Male!AE7*1000 -> -112635 | JE21: =Female!AE7*1000 -> 107639 | JL21: 5 | JM21: =-Male!AF7*1000 -> -106822 | JN21: =Female!AF7*1000 -> 102052 | JU21: 5 | JV21: =-Male!AG7*1000 -> -99307 | JW21: =Female!AG7*1000 -> 94791 | KD21: 5 | KE21: =-Male!AH7*1000 -> -90148 | KF21: =Female!AH7*1000 -> 85965 | KM21: 5 | KN21: =-Male!AI7*1000 -> -80941 | KO21: =Female!AI7*1000 -> 77103 | KV21: 5 | KW21: =-Male!AJ7*1000 -> -73740 | KX21: =Female!AJ7*1000 -> 70181 | LE21: 5 | LF21: =-Male!AK7*1000 -> -70830 | LG21: =Female!AK7*1000 -> 67414 | LN21: 5 | LO21: =-Male!AL7*1000 -> -70899 | LP21: =Female!AL7*1000 -> 67517 | LW21: 5 | LX21: =-Male!AM7*1000 -> -73657 | LY21: =Female!AM7*1000 -> 70189
B22: 6 | C22: =-Male!B8*1000 -> -74009 | D22: =Female!B8*1000 -> 71108 | K22: 6 | L22: =-Male!C8*1000 -> -75093 | M22: =Female!C8*1000 -> 71984 | T22: 6 | U22: =-Male!D8*1000 -> -75788 | V22: =Female!D8*1000 -> 72488 | AC22: 6 | AD22: =-Male!E8*1000 -> -76329 | AE22: =Female!E8*1000 -> 72900 | AL22: 6 | AM22: =-Male!F8*1000 -> -77042 | AN22: =Female!F8*1000 -> 73566 | AU22: 6 | AV22: =-Male!G8*1000 -> -78167 | AW22: =Female!G8*1000 -> 74748 | BD22: 6 | BE22: =-Male!H8*1000 -> -80111 | BF22: =Female!H8*1000 -> 76773 | BM22: 6 | BN22: =-Male!I8*1000 -> -83007 | BO22: =Female!I8*1000 -> 79873 | BV22: 6 | BW22: =-Male!J8*1000 -> -86224 | BX22: =Female!J8*1000 -> 83352 | CE22: 6 | CF22: =-Male!K8*1000 -> -89030 | CG22: =Female!K8*1000 -> 86419 | CN22: 6 | CO22: =-Male!L8*1000 -> -90578 | CP22: =Female!L8*1000 -> 88145 | CW22: 6 | CX22: =-Male!M8*1000 -> -91306 | CY22: =Female!M8*1000 -> 88917 | DF22: 6 | DG22: =-Male!N8*1000 -> -90101 | DH22: =Female!N8*1000 -> 87646 | DO22: 6 | DP22: =-Male!O8*1000 -> -88325 | DQ22: =Female!O8*1000 -> 85717 | DX22: 6 | DY22: =-Male!P8*1000 -> -87443 | DZ22: =Female!P8*1000 -> 84622 | EG22: 6 | EH22: =-Male!Q8*1000 -> -89189 | EI22: =Female!Q8*1000 -> 86131 | EP22: 6 | EQ22: =-Male!R8*1000 -> -94264 | ER22: =Female!R8*1000 -> 90874 | EY22: 6 | EZ22: =-Male!S8*1000 -> -103197 | FA22: =Female!S8*1000 -> 99343 | FH22: 6 | FI22: =-Male!T8*1000 -> -113895 | FJ22: =Female!T8*1000 -> 109523 | FQ22: 6 | FR22: =-Male!U8*1000 -> -123989 | FS22: =Female!U8*1000 -> 119144 | FZ22: 6 | GA22: =-Male!V8*1000 -> -130368 | GB22: =Female!V8*1000 -> 125214 | GI22: 6 | GJ22: =-Male!W8*1000 -> -133369 | GK22: =Female!W8*1000 -> 127983 | GR22: 6 | GS22: =-Male!X8*1000 -> -132347 | GT22: =Female!X8*1000 -> 126904 | HA22: 6 | HB22: =-Male!Y8*1000 -> -128836 | HC22: =Female!Y8*1000 -> 123445 | HJ22: 6 | HK22: =-Male!Z8*1000 -> -124547 | HL22: =Female!Z8*1000 -> 119246 | HS22: 6 | HT22: =-Male!AA8*1000 -> -121664 | HU22: =Female!AA8*1000 -> 116415 | IB22: 6 | IC22: =-Male!AB8*1000 -> -119746 | ID22: =Female!AB8*1000 -> 114532 | IK22: 6 | IL22: =-Male!AC8*1000 -> -118690 | IM22: =Female!AC8*1000 -> 113485 | IT22: 6 | IU22: =-Male!AD8*1000 -> -117690 | IV22: =Female!AD8*1000 -> 112503 | JC22: 6 | JD22: =-Male!AE8*1000 -> -115762 | JE22: =Female!AE8*1000 -> 110656 | JL22: 6 | JM22: =-Male!AF8*1000 -> -111790 | JN22: =Female!AF8*1000 -> 106862 | JU22: 6 | JV22: =-Male!AG8*1000 -> -105914 | JW22: =Female!AG8*1000 -> 101196 | KD22: 6 | KE22: =-Male!AH8*1000 -> -97553 | KF22: =Female!AH8*1000 -> 93151 | KM22: 6 | KN22: =-Male!AI8*1000 -> -88326 | KO22: =Female!AI8*1000 -> 84270 | KV22: 6 | KW22: =-Male!AJ8*1000 -> -79838 | KX22: =Female!AJ8*1000 -> 76093 | LE22: 6 | LF22: =-Male!AK8*1000 -> -74020 | LG22: =Female!AK8*1000 -> 70493 | LN22: 6 | LO22: =-Male!AL8*1000 -> -71476 | LP22: =Female!AL8*1000 -> 68068 | LW22: 6 | LX22: =-Male!AM8*1000 -> -72168 | LY22: =Female!AM8*1000 -> 68748
B23: 7 | C23: =-Male!B9*1000 -> -72918 | D23: =Female!B9*1000 -> 70187 | K23: 7 | L23: =-Male!C9*1000 -> -74073 | M23: =Female!C9*1000 -> 71147 | T23: 7 | U23: =-Male!D9*1000 -> -74751 | V23: =Female!D9*1000 -> 71629 | AC23: 7 | AD23: =-Male!E9*1000 -> -75193 | AE23: =Female!E9*1000 -> 71919 | AL23: 7 | AM23: =-Male!F9*1000 -> -75731 | AN23: =Female!F9*1000 -> 72367 | AU23: 7 | AV23: =-Male!G9*1000 -> -76550 | AW23: =Female!G9*1000 -> 73171 | BD23: 7 | BE23: =-Male!H9*1000 -> -77810 | BF23: =Female!H9*1000 -> 74412 | BM23: 7 | BN23: =-Male!I9*1000 -> -80298 | BO23: =Female!I9*1000 -> 77040 | BV23: 7 | BW23: =-Male!J9*1000 -> -83396 | BX23: =Female!J9*1000 -> 80368 | CE23: 7 | CF23: =-Male!K9*1000 -> -86387 | CG23: =Female!K9*1000 -> 83621 | CN23: 7 | CO23: =-Male!L9*1000 -> -88642 | CP23: =Female!L9*1000 -> 86117 | CW23: 7 | CX23: =-Male!M9*1000 -> -90660 | CY23: =Female!M9*1000 -> 88263 | DF23: 7 | DG23: =-Male!N9*1000 -> -90070 | DH23: =Female!N9*1000 -> 87689 | DO23: 7 | DP23: =-Male!O9*1000 -> -88237 | DQ23: =Female!O9*1000 -> 85774 | DX23: 7 | DY23: =-Male!P9*1000 -> -86640 | DZ23: =Female!P9*1000 -> 84021 | EG23: 7 | EH23: =-Male!Q9*1000 -> -86484 | EI23: =Female!Q9*1000 -> 83659 | EP23: 7 | EQ23: =-Male!R9*1000 -> -88481 | ER23: =Female!R9*1000 -> 85417 | EY23: 7 | EZ23: =-Male!S9*1000 -> -95437 | FA23: =Female!S9*1000 -> 91973 | FH23: 7 | FI23: =-Male!T9*1000 -> -105263 | FJ23: =Female!T9*1000 -> 101308 | FQ23: 7 | FR23: =-Male!U9*1000 -> -115645 | FS23: =Female!U9*1000 -> 111200 | FZ23: 7 | GA23: =-Male!V9*1000 -> -124420 | GB23: =Female!V9*1000 -> 119581 | GI23: 7 | GJ23: =-Male!W9*1000 -> -130449 | GK23: =Female!W9*1000 -> 125279 | GR23: 7 | GS23: =-Male!X9*1000 -> -131802 | GT23: =Female!X9*1000 -> 126493 | HA23: 7 | HB23: =-Male!Y9*1000 -> -129996 | HC23: =Female!Y9*1000 -> 124673 | HJ23: 7 | HK23: =-Male!Z9*1000 -> -126747 | HL23: =Female!Z9*1000 -> 121462 | HS23: 7 | HT23: =-Male!AA9*1000 -> -123473 | HU23: =Female!AA9*1000 -> 118228 | IB23: 7 | IC23: =-Male!AB9*1000 -> -121206 | ID23: =Female!AB9*1000 -> 115980 | IK23: 7 | IL23: =-Male!AC9*1000 -> -120140 | IM23: =Female!AC9*1000 -> 114906 | IT23: 7 | IU23: =-Male!AD9*1000 -> -119475 | IV23: =Female!AD9*1000 -> 114236 | JC23: 7 | JD23: =-Male!AE9*1000 -> -118234 | JE23: =Female!AE9*1000 -> 113044 | JL23: 7 | JM23: =-Male!AF9*1000 -> -115629 | JN23: =Female!AF9*1000 -> 110577 | JU23: 7 | JV23: =-Male!AG9*1000 -> -111737 | JW23: =Female!AG9*1000 -> 106836 | KD23: 7 | KE23: =-Male!AH9*1000 -> -104518 | KF23: =Female!AH9*1000 -> 99904 | KM23: 7 | KN23: =-Male!AI9*1000 -> -95605 | KO23: =Female!AI9*1000 -> 91333 | KV23: 7 | KW23: =-Male!AJ9*1000 -> -86645 | KX23: =Female!AJ9*1000 -> 82692 | LE23: 7 | LF23: =-Male!AK9*1000 -> -78977 | LG23: =Female!AK9*1000 -> 75283 | LN23: 7 | LO23: =-Male!AL9*1000 -> -73783 | LP23: =Female!AL9*1000 -> 70289 | LW23: 7 | LX23: =-Male!AM9*1000 -> -72376 | LY23: =Female!AM9*1000 -> 68939
B24: 8 | C24: =-Male!B10*1000 -> -71849 | D24: =Female!B10*1000 -> 69282 | K24: 8 | L24: =-Male!C10*1000 -> -73066 | M24: =Female!C10*1000 -> 70315 | T24: 8 | U24: =-Male!D10*1000 -> -73862 | V24: =Female!D10*1000 -> 70927 | AC24: 8 | AD24: =-Male!E10*1000 -> -74260 | AE24: =Female!E10*1000 -> 71157 | AL24: 8 | AM24: =-Male!F10*1000 -> -74672 | AN24: =Female!F10*1000 -> 71446 | AU24: 8 | AV24: =-Male!G10*1000 -> -75290 | AW24: =Female!G10*1000 -> 71994 | BD24: 8 | BE24: =-Male!H10*1000 -> -76010 | BF24: =Female!H10*1000 -> 72621 | BM24: 8 | BN24: =-Male!I10*1000 -> -77744 | BO24: =Female!I10*1000 -> 74378 | BV24: 8 | BW24: =-Male!J10*1000 -> -80612 | BX24: =Female!J10*1000 -> 77433 | CE24: 8 | CF24: =-Male!K10*1000 -> -83673 | CG24: =Female!K10*1000 -> 80746 | CN24: 8 | CO24: =-Male!L10*1000 -> -86309 | CP24: =Female!L10*1000 -> 83645 | CW24: 8 | CX24: =-Male!M10*1000 -> -89242 | CY24: =Female!M10*1000 -> 86770 | DF24: 8 | DG24: =-Male!N10*1000 -> -90189 | DH24: =Female!N10*1000 -> 87815 | DO24: 8 | DP24: =-Male!O10*1000 -> -88559 | DQ24: =Female!O10*1000 -> 86172 | DX24: 8 | DY24: =-Male!P10*1000 -> -86500 | DZ24: =Female!P10*1000 -> 84013 | EG24: 8 | EH24: =-Male!Q10*1000 -> -85227 | EI24: =Female!Q10*1000 -> 82576 | EP24: 8 | EQ24: =-Male!R10*1000 -> -84861 | ER24: =Female!R10*1000 -> 82056 | EY24: 8 | EZ24: =-Male!S10*1000 -> -88376 | FA24: =Female!S10*1000 -> 85268 | FH24: 8 | FI24: =-Male!T10*1000 -> -96948 | FJ24: =Female!T10*1000 -> 93395 | FQ24: 8 | FR24: =-Male!U10*1000 -> -107224 | FS24: =Female!U10*1000 -> 103186 | FZ24: 8 | GA24: =-Male!V10*1000 -> -117076 | GB24: =Female!V10*1000 -> 112600 | GI24: 8 | GJ24: =-Male!W10*1000 -> -125245 | GK24: =Female!W10*1000 -> 120373 | GR24: 8 | GS24: =-Male!X10*1000 -> -129980 | GT24: =Female!X10*1000 -> 124848 | HA24: 8 | HB24: =-Male!Y10*1000 -> -129932 | HC24: =Female!Y10*1000 -> 124725 | HJ24: 8 | HK24: =-Male!Z10*1000 -> -127773 | HL24: =Female!Z10*1000 -> 122558 | HS24: 8 | HT24: =-Male!AA10*1000 -> -124936 | HU24: =Female!AA10*1000 -> 119724 | IB24: 8 | IC24: =-Male!AB10*1000 -> -122658 | ID24: =Female!AB10*1000 -> 117446 | IK24: 8 | IL24: =-Male!AC10*1000 -> -121129 | IM24: =Female!AC10*1000 -> 115889 | IT24: 8 | IU24: =-Male!AD10*1000 -> -120733 | IV24: =Female!AD10*1000 -> 115467 | JC24: 8 | JD24: =-Male!AE10*1000 -> -120106 | JE24: =Female!AE10*1000 -> 114860 | JL24: 8 | JM24: =-Male!AF10*1000 -> -118464 | JN24: =Female!AF10*1000 -> 113320 | JU24: 8 | JV24: =-Male!AG10*1000 -> -116165 | JW24: =Female!AG10*1000 -> 111131 | KD24: 8 | KE24: =-Male!AH10*1000 -> -111173 | KF24: =Female!AH10*1000 -> 106352 | KM24: 8 | KN24: =-Male!AI10*1000 -> -102912 | KO24: =Female!AI10*1000 -> 98419 | KV24: 8 | KW24: =-Male!AJ10*1000 -> -93810 | KX24: =Female!AJ10*1000 -> 89641 | LE24: 8 | LF24: =-Male!AK10*1000 -> -85227 | LG24: =Female!AK10*1000 -> 81332 | LN24: 8 | LO24: =-Male!AL10*1000 -> -78091 | LP24: =Female!AL10*1000 -> 74453 | LW24: 8 | LX24: =-Male!AM10*1000 -> -73812 | LY24: =Female!AM10*1000 -> 70313
B25: 9 | C25: =-Male!B11*1000 -> -70772 | D25: =Female!B11*1000 -> 68362 | K25: 9 | L25: =-Male!C11*1000 -> -72004 | M25: =Female!C11*1000 -> 69417 | T25: 9 | U25: =-Male!D11*1000 -> -72944 | V25: =Female!D11*1000 -> 70187 | AC25: 9 | AD25: =-Male!E11*1000 -> -73505 | AE25: =Female!E11*1000 -> 70590 | AL25: 9 | AM25: =-Male!F11*1000 -> -73842 | AN25: =Female!F11*1000 -> 70779 | AU25: 9 | AV25: =-Male!G11*1000 -> -74305 | AW25: =Female!G11*1000 -> 71130 | BD25: 9 | BE25: =-Male!H11*1000 -> -74755 | BF25: =Female!H11*1000 -> 71453 | BM25: 9 | BN25: =-Male!I11*1000 -> -75755 | BO25: =Female!I11*1000 -> 72366 | BV25: 9 | BW25: =-Male!J11*1000 -> -77799 | BX25: =Female!J11*1000 -> 74463 | CE25: 9 | CF25: =-Male!K11*1000 -> -80817 | CG25: =Female!K11*1000 -> 77711 | CN25: 9 | CO25: =-Male!L11*1000 -> -83716 | CP25: =Female!L11*1000 -> 80886 | CW25: 9 | CX25: =-Male!M11*1000 -> -86868 | CY25: =Female!M11*1000 -> 84270 | DF25: 9 | DG25: =-Male!N11*1000 -> -89301 | DH25: =Female!N11*1000 -> 86871 | DO25: 9 | DP25: =-Male!O11*1000 -> -89440 | DQ25: =Female!O11*1000 -> 87076 | DX25: 9 | DY25: =-Male!P11*1000 -> -87174 | DZ25: =Female!P11*1000 -> 84764 | EG25: 9 | EH25: =-Male!Q11*1000 -> -85035 | EI25: =Female!Q11*1000 -> 82503 | EP25: 9 | EQ25: =-Male!R11*1000 -> -83574 | ER25: =Female!R11*1000 -> 80956 | EY25: 9 | EZ25: =-Male!S11*1000 -> -83824 | FA25: =Female!S11*1000 -> 81003 | FH25: 9 | FI25: =-Male!T11*1000 -> -88580 | FJ25: =Female!T11*1000 -> 85415 | FQ25: 9 | FR25: =-Male!U11*1000 -> -98360 | FS25: =Female!U11*1000 -> 94734 | FZ25: 9 | GA25: =-Male!V11*1000 -> -108891 | GB25: =Female!V11*1000 -> 104807 | GI25: 9 | GJ25: =-Male!W11*1000 -> -117841 | GK25: =Female!W11*1000 -> 113350 | GR25: 9 | GS25: =-Male!X11*1000 -> -125545 | GT25: =Female!X11*1000 -> 120692 | HA25: 9 | HB25: =-Male!Y11*1000 -> -129208 | HC25: =Female!Y11*1000 -> 124142 | HJ25: 9 | HK25: =-Male!Z11*1000 -> -128189 | HL25: =Female!Z11*1000 -> 123072 | HS25: 9 | HT25: =-Male!AA11*1000 -> -125831 | HU25: =Female!AA11*1000 -> 120689 | IB25: 9 | IC25: =-Male!AB11*1000 -> -124084 | ID25: =Female!AB11*1000 -> 118918 | IK25: 9 | IL25: =-Male!AC11*1000 -> -122230 | IM25: =Female!AC11*1000 -> 117015 | IT25: 9 | IU25: =-Male!AD11*1000 -> -121250 | IV25: =Female!AD11*1000 -> 115986 | JC25: 9 | JD25: =-Male!AE11*1000 -> -121168 | JE25: =Female!AE11*1000 -> 115899 | JL25: 9 | JM25: =-Male!AF11*1000 -> -120417 | JN25: =Female!AF11*1000 -> 115216 | JU25: 9 | JV25: =-Male!AG11*1000 -> -118953 | JW25: =Female!AG11*1000 -> 113855 | KD25: 9 | KE25: =-Male!AH11*1000 -> -116170 | KF25: =Female!AH11*1000 -> 111211 | KM25: 9 | KN25: =-Male!AI11*1000 -> -110383 | KO25: =Female!AI11*1000 -> 105660 | KV25: 9 | KW25: =-Male!AJ11*1000 -> -101470 | KX25: =Female!AJ11*1000 -> 97069 | LE25: 9 | LF25: =-Male!AK11*1000 -> -92299 | LG25: =Female!AK11*1000 -> 88185 | LN25: 9 | LO25: =-Male!AL11*1000 -> -84301 | LP25: =Female!AL11*1000 -> 80469 | LW25: 9 | LX25: =-Male!AM11*1000 -> -77490 | LY25: =Female!AM11*1000 -> 73865
B26: 10 | C26: =-Male!B12*1000 -> -69736 | D26: =Female!B12*1000 -> 67476 | K26: 10 | L26: =-Male!C12*1000 -> -70884 | M26: =Female!C12*1000 -> 68453 | T26: 10 | U26: =-Male!D12*1000 -> -71893 | V26: =Female!D12*1000 -> 69300 | AC26: 10 | AD26: =-Male!E12*1000 -> -72678 | AE26: =Female!E12*1000 -> 69944 | AL26: 10 | AM26: =-Male!F12*1000 -> -73220 | AN26: =Female!F12*1000 -> 70346 | AU26: 10 | AV26: =-Male!G12*1000 -> -73576 | AW26: =Female!G12*1000 -> 70558 | BD26: 10 | BE26: =-Male!H12*1000 -> -73885 | BF26: =Female!H12*1000 -> 70729 | BM26: 10 | BN26: =-Male!I12*1000 -> -74501 | BO26: =Female!I12*1000 -> 71203 | BV26: 10 | BW26: =-Male!J12*1000 -> -75617 | BX26: =Female!J12*1000 -> 72226 | CE26: 10 | CF26: =-Male!K12*1000 -> -77748 | CG26: =Female!K12*1000 -> 74437 | CN26: 10 | CO26: =-Male!L12*1000 -> -80796 | CP26: =Female!L12*1000 -> 77762 | CW26: 10 | CX26: =-Male!M12*1000 -> -83895 | CY26: =Female!M12*1000 -> 81142 | DF26: 10 | DG26: =-Male!N12*1000 -> -86900 | DH26: =Female!N12*1000 -> 84358 | DO26: 10 | DP26: =-Male!O12*1000 -> -89082 | DQ26: =Female!O12*1000 -> 86680 | DX26: 10 | DY26: =-Male!P12*1000 -> -88813 | DZ26: =Female!P12*1000 -> 86441 | EG26: 10 | EH26: =-Male!Q12*1000 -> -86062 | EI26: =Female!Q12*1000 -> 83609 | EP26: 10 | EQ26: =-Male!R12*1000 -> -83878 | ER26: =Female!R12*1000 -> 81386 | EY26: 10 | EZ26: =-Male!S12*1000 -> -82498 | FA26: =Female!S12*1000 -> 79879 | FH26: 10 | FI26: =-Male!T12*1000 -> -83075 | FJ26: =Female!T12*1000 -> 80227 | FQ26: 10 | FR26: =-Male!U12*1000 -> -88687 | FS26: =Female!U12*1000 -> 85479 | FZ26: 10 | GA26: =-Male!V12*1000 -> -99501 | GB26: =Female!V12*1000 -> 95837 | GI26: 10 | GJ26: =-Male!W12*1000 -> -109111 | GK26: =Female!W12*1000 -> 105052 | GR26: 10 | GS26: =-Male!X12*1000 -> -118112 | GT26: =Female!X12*1000 -> 113655 | HA26: 10 | HB26: =-Male!Y12*1000 -> -125551 | HC26: =Female!Y12*1000 -> 120743 | HJ26: 10 | HK26: =-Male!Z12*1000 -> -128558 | HL26: =Female!Z12*1000 -> 123546 | HS26: 10 | HT26: =-Male!AA12*1000 -> -126726 | HU26: =Female!AA12*1000 -> 121666 | IB26: 10 | IC26: =-Male!AB12*1000 -> -125136 | ID26: =Female!AB12*1000 -> 120053 | IK26: 10 | IL26: =-Male!AC12*1000 -> -123624 | IM26: =Female!AC12*1000 -> 118467 | IT26: 10 | IU26: =-Male!AD12*1000 -> -122001 | IV26: =Female!AD12*1000 -> 116771 | JC26: 10 | JD26: =-Male!AE12*1000 -> -121212 | JE26: =Female!AE12*1000 -> 115952 | JL26: 10 | JM26: =-Male!AF12*1000 -> -121282 | JN26: =Female!AF12*1000 -> 116059 | JU26: 10 | JV26: =-Male!AG12*1000 -> -120476 | JW26: =Female!AG12*1000 -> 115368 | KD26: 10 | KE26: =-Male!AH12*1000 -> -118899 | KF26: =Female!AH12*1000 -> 113903 | KM26: 10 | KN26: =-Male!AI12*1000 -> -115936 | KO26: =Female!AI12*1000 -> 111071 | KV26: 10 | KW26: =-Male!AJ12*1000 -> -109763 | KX26: =Female!AJ12*1000 -> 105108 | LE26: 10 | LF26: =-Male!AK12*1000 -> -100335 | LG26: =Female!AK12*1000 -> 95974 | LN26: 10 | LO26: =-Male!AL12*1000 -> -91697 | LP26: =Female!AL12*1000 -> 87645 | LW26: 10 | LX26: =-Male!AM12*1000 -> -83682 | LY26: =Female!AM12*1000 -> 79869
B27: 11 | C27: =-Male!B13*1000 -> -68791 | D27: =Female!B13*1000 -> 66671 | K27: 11 | L27: =-Male!C13*1000 -> -69817 | M27: =Female!C13*1000 -> 67541 | T27: 11 | U27: =-Male!D13*1000 -> -70733 | V27: =Female!D13*1000 -> 68295 | AC27: 11 | AD27: =-Male!E13*1000 -> -71640 | AE27: =Female!E13*1000 -> 69069 | AL27: 11 | AM27: =-Male!F13*1000 -> -72482 | AN27: =Female!F13*1000 -> 69792 | AU27: 11 | AV27: =-Male!G13*1000 -> -73084 | AW27: =Female!G13*1000 -> 70258 | BD27: 11 | BE27: =-Male!H13*1000 -> -73178 | BF27: =Female!H13*1000 -> 70193 | BM27: 11 | BN27: =-Male!I13*1000 -> -73742 | BO27: =Female!I13*1000 -> 70615 | BV27: 11 | BW27: =-Male!J13*1000 -> -74362 | BX27: =Female!J13*1000 -> 71065 | CE27: 11 | CF27: =-Male!K13*1000 -> -75377 | CG27: =Female!K13*1000 -> 71978 | CN27: 11 | CO27: =-Male!L13*1000 -> -77480 | CP27: =Female!L13*1000 -> 74193 | CW27: 11 | CX27: =-Male!M13*1000 -> -80799 | CY27: =Female!M13*1000 -> 77859 | DF27: 11 | DG27: =-Male!N13*1000 -> -83564 | DH27: =Female!N13*1000 -> 80880 | DO27: 11 | DP27: =-Male!O13*1000 -> -86662 | DQ27: =Female!O13*1000 -> 84163 | DX27: 11 | DY27: =-Male!P13*1000 -> -88983 | DZ27: =Female!P13*1000 -> 86590 | EG27: 11 | EH27: =-Male!Q13*1000 -> -88464 | EI27: =Female!Q13*1000 -> 86063 | EP27: 11 | EQ27: =-Male!R13*1000 -> -85019 | ER27: =Female!R13*1000 -> 82622 | EY27: 11 | EZ27: =-Male!S13*1000 -> -83298 | FA27: =Female!S13*1000 -> 80812 | FH27: 11 | FI27: =-Male!T13*1000 -> -81706 | FJ27: =Female!T13*1000 -> 79075 | FQ27: 11 | FR27: =-Male!U13*1000 -> -82229 | FS27: =Female!U13*1000 -> 79367 | FZ27: 11 | GA27: =-Male!V13*1000 -> -88545 | GB27: =Female!V13*1000 -> 85327 | GI27: 11 | GJ27: =-Male!W13*1000 -> -99480 | GK27: =Female!W13*1000 -> 95871 | GR27: 11 | GS27: =-Male!X13*1000 -> -108871 | GT27: =Female!X13*1000 -> 104883 | HA27: 11 | HB27: =-Male!Y13*1000 -> -118106 | HC27: =Female!Y13*1000 -> 113707 | HJ27: 11 | HK27: =-Male!Z13*1000 -> -125672 | HL27: =Female!Z13*1000 -> 120897 | HS27: 11 | HT27: =-Male!AA13*1000 -> -128188 | HU27: =Female!AA13*1000 -> 123196 | IB27: 11 | IC27: =-Male!AB13*1000 -> -126050 | ID27: =Female!AB13*1000 -> 121062 | IK27: 11 | IL27: =-Male!AC13*1000 -> -124836 | IM27: =Female!AC13*1000 -> 119773 | IT27: 11 | IU27: =-Male!AD13*1000 -> -123366 | IV27: =Female!AD13*1000 -> 118205 | JC27: 11 | JD27: =-Male!AE13*1000 -> -121610 | JE27: =Female!AE13*1000 -> 116394 | JL27: 11 | JM27: =-Male!AF13*1000 -> -120853 | JN27: =Female!AF13*1000 -> 115646 | JU27: 11 | JV27: =-Male!AG13*1000 -> -121146 | JW27: =Female!AG13*1000 -> 116056 | KD27: 11 | KE27: =-Male!AH13*1000 -> -119984 | KF27: =Female!AH13*1000 -> 115025 | KM27: 11 | KN27: =-Male!AI13*1000 -> -118600 | KO27: =Female!AI13*1000 -> 113725 | KV27: 11 | KW27: =-Male!AJ13*1000 -> -115879 | KX27: =Female!AJ13*1000 -> 111076 | LE27: 11 | LF27: =-Male!AK13*1000 -> -109476 | LG27: =Female!AK13*1000 -> 104833 | LN27: 11 | LO27: =-Male!AL13*1000 -> -99801 | LP27: =Female!AL13*1000 -> 95510 | LW27: 11 | LX27: =-Male!AM13*1000 -> -91426 | LY27: =Female!AM13*1000 -> 87390
B28: 12 | C28: =-Male!B14*1000 -> -67490 | D28: =Female!B14*1000 -> 65521 | K28: 12 | L28: =-Male!C14*1000 -> -68844 | M28: =Female!C14*1000 -> 66715 | T28: 12 | U28: =-Male!D14*1000 -> -69640 | V28: =Female!D14*1000 -> 67360 | AC28: 12 | AD28: =-Male!E14*1000 -> -70442 | AE28: =Female!E14*1000 -> 68025 | AL28: 12 | AM28: =-Male!F14*1000 -> -71455 | AN28: =Female!F14*1000 -> 68928 | AU28: 12 | AV28: =-Male!G14*1000 -> -72434 | AW28: =Female!G14*1000 -> 69794 | BD28: 12 | BE28: =-Male!H14*1000 -> -72657 | BF28: =Female!H14*1000 -> 69872 | BM28: 12 | BN28: =-Male!I14*1000 -> -73055 | BO28: =Female!I14*1000 -> 70112 | BV28: 12 | BW28: =-Male!J14*1000 -> -73714 | BX28: =Female!J14*1000 -> 70613 | CE28: 12 | CF28: =-Male!K14*1000 -> -74122 | CG28: =Female!K14*1000 -> 70821 | CN28: 12 | CO28: =-Male!L14*1000 -> -74925 | CP28: =Female!L14*1000 -> 71520 | CW28: 12 | CX28: =-Male!M14*1000 -> -77403 | CY28: =Female!M14*1000 -> 74231 | DF28: 12 | DG28: =-Male!N14*1000 -> -80310 | DH28: =Female!N14*1000 -> 77457 | DO28: 12 | DP28: =-Male!O14*1000 -> -82975 | DQ28: =Female!O14*1000 -> 80347 | DX28: 12 | DY28: =-Male!P14*1000 -> -86540 | DZ28: =Female!P14*1000 -> 84067 | EG28: 12 | EH28: =-Male!Q14*1000 -> -89159 | EI28: =Female!Q14*1000 -> 86756 | EP28: 12 | EQ28: =-Male!R14*1000 -> -87331 | ER28: =Female!R14*1000 -> 85009 | EY28: 12 | EZ28: =-Male!S14*1000 -> -84559 | FA28: =Female!S14*1000 -> 82184 | FH28: 12 | FI28: =-Male!T14*1000 -> -83006 | FJ28: =Female!T14*1000 -> 80516 | FQ28: 12 | FR28: =-Male!U14*1000 -> -80817 | FS28: =Female!U14*1000 -> 78189 | FZ28: 12 | GA28: =-Male!V14*1000 -> -81150 | GB28: =Female!V14*1000 -> 78304 | GI28: 12 | GJ28: =-Male!W14*1000 -> -88427 | GK28: =Female!W14*1000 -> 85291 | GR28: 12 | GS28: =-Male!X14*1000 -> -99039 | GT28: =Female!X14*1000 -> 95525 | HA28: 12 | HB28: =-Male!Y14*1000 -> -108378 | HC28: =Female!Y14*1000 -> 104481 | HJ28: 12 | HK28: =-Male!Z14*1000 -> -118208 | HL28: =Female!Z14*1000 -> 113857 | HS28: 12 | HT28: =-Male!AA14*1000 -> -126066 | HU28: =Female!AA14*1000 -> 121292 | IB28: 12 | IC28: =-Male!AB14*1000 -> -127457 | ID28: =Female!AB14*1000 -> 122553 | IK28: 12 | IL28: =-Male!AC14*1000 -> -125771 | IM28: =Female!AC14*1000 -> 120818 | IT28: 12 | IU28: =-Male!AD14*1000 -> -124739 | IV28: =Female!AD14*1000 -> 119686 | JC28: 12 | JD28: =-Male!AE14*1000 -> -122944 | JE28: =Female!AE14*1000 -> 117809 | JL28: 12 | JM28: =-Male!AF14*1000 -> -120897 | JN28: =Female!AF14*1000 -> 115745 | JU28: 12 | JV28: =-Male!AG14*1000 -> -120632 | JW28: =Female!AG14*1000 -> 115596 | KD28: 12 | KE28: =-Male!AH14*1000 -> -120454 | KF28: =Female!AH14*1000 -> 115554 | KM28: 12 | KN28: =-Male!AI14*1000 -> -119247 | KO28: =Female!AI14*1000 -> 114457 | KV28: 12 | KW28: =-Male!AJ14*1000 -> -118482 | KX28: =Female!AJ14*1000 -> 113697 | LE28: 12 | LF28: =-Male!AK14*1000 -> -116173 | LG28: =Female!AK14*1000 -> 111373 | LN28: 12 | LO28: =-Male!AL14*1000 -> -108880 | LP28: =Female!AL14*1000 -> 104319 | LW28: 12 | LX28: =-Male!AM14*1000 -> -99628 | LY28: =Female!AM14*1000 -> 95357
B29: 13 | C29: =-Male!B15*1000 -> -65634 | D29: =Female!B15*1000 -> 63837 | K29: 13 | L29: =-Male!C15*1000 -> -67516 | M29: =Female!C15*1000 -> 65545 | T29: 13 | U29: =-Male!D15*1000 -> -68642 | V29: =Female!D15*1000 -> 66516 | AC29: 13 | AD29: =-Male!E15*1000 -> -69325 | AE29: =Female!E15*1000 -> 67068 | AL29: 13 | AM29: =-Male!F15*1000 -> -70219 | AN29: =Female!F15*1000 -> 67843 | AU29: 13 | AV29: =-Male!G15*1000 -> -71417 | AW29: =Female!G15*1000 -> 68939 | BD29: 13 | BE29: =-Male!H15*1000 -> -71981 | BF29: =Female!H15*1000 -> 69390 | BM29: 13 | BN29: =-Male!I15*1000 -> -72502 | BO29: =Female!I15*1000 -> 69770 | BV29: 13 | BW29: =-Male!J15*1000 -> -73045 | BX29: =Female!J15*1000 -> 70144 | CE29: 13 | CF29: =-Male!K15*1000 -> -73586 | CG29: =Female!K15*1000 -> 70507 | CN29: 13 | CO29: =-Male!L15*1000 -> -73674 | CP29: =Female!L15*1000 -> 70370 | CW29: 13 | CX29: =-Male!M15*1000 -> -74782 | CY29: =Female!M15*1000 -> 71505 | DF29: 13 | DG29: =-Male!N15*1000 -> -76854 | DH29: =Female!N15*1000 -> 73793 | DO29: 13 | DP29: =-Male!O15*1000 -> -79574 | DQ29: =Female!O15*1000 -> 76798 | DX29: 13 | DY29: =-Male!P15*1000 -> -82499 | DZ29: =Female!P15*1000 -> 79912 | EG29: 13 | EH29: =-Male!Q15*1000 -> -86687 | EI29: =Female!Q15*1000 -> 84219 | EP29: 13 | EQ29: =-Male!R15*1000 -> -87964 | ER29: =Female!R15*1000 -> 85652 | EY29: 13 | EZ29: =-Male!S15*1000 -> -86798 | FA29: =Female!S15*1000 -> 84522 | FH29: 13 | FI29: =-Male!T15*1000 -> -84392 | FJ29: =Female!T15*1000 -> 82030 | FQ29: 13 | FR29: =-Male!U15*1000 -> -82619 | FS29: =Female!U15*1000 -> 80139 | FZ29: 13 | GA29: =-Male!V15*1000 -> -79700 | GB29: =Female!V15*1000 -> 77102 | GI29: 13 | GJ29: =-Male!W15*1000 -> -80959 | GK29: =Female!W15*1000 -> 78212 | GR29: 13 | GS29: =-Male!X15*1000 -> -87937 | GT29: =Female!X15*1000 -> 84917 | HA29: 13 | HB29: =-Male!Y15*1000 -> -98368 | HC29: =Female!Y15*1000 -> 94969 | HJ29: 13 | HK29: =-Male!Z15*1000 -> -107986 | HL29: =Female!Z15*1000 -> 104171 | HS29: 13 | HT29: =-Male!AA15*1000 -> -118567 | HU29: =Female!AA15*1000 -> 114233 | IB29: 13 | IC29: =-Male!AB15*1000 -> -125300 | ID29: =Female!AB15*1000 -> 120624 | IK29: 13 | IL29: =-Male!AC15*1000 -> -127127 | IM29: =Female!AC15*1000 -> 122275 | IT29: 13 | IU29: =-Male!AD15*1000 -> -125697 | IV29: =Female!AD15*1000 -> 120769 | JC29: 13 | JD29: =-Male!AE15*1000 -> -124477 | JE29: =Female!AE15*1000 -> 119463 | JL29: 13 | JM29: =-Male!AF15*1000 -> -122196 | JN29: =Female!AF15*1000 -> 117138 | JU29: 13 | JV29: =-Male!AG15*1000 -> -120605 | JW29: =Female!AG15*1000 -> 115650 | KD29: 13 | KE29: =-Male!AH15*1000 -> -119857 | KF29: =Female!AH15*1000 -> 115050 | KM29: 13 | KN29: =-Male!AI15*1000 -> -119518 | KO29: =Female!AI15*1000 -> 114826 | KV29: 13 | KW29: =-Male!AJ15*1000 -> -118693 | KX29: =Female!AJ15*1000 -> 114040 | LE29: 13 | LF29: =-Male!AK15*1000 -> -118724 | LG29: =Female!AK15*1000 -> 113968 | LN29: 13 | LO29: =-Male!AL15*1000 -> -115527 | LP29: =Female!AL15*1000 -> 110816 | LW29: 13 | LX29: =-Male!AM15*1000 -> -108678 | LY29: =Female!AM15*1000 -> 104143
B30: 14 | C30: =-Male!B16*1000 -> -63440 | D30: =Female!B16*1000 -> 61824 | K30: 14 | L30: =-Male!C16*1000 -> -65642 | M30: =Female!C16*1000 -> 63846 | T30: 14 | U30: =-Male!D16*1000 -> -67292 | V30: =Female!D16*1000 -> 65331 | AC30: 14 | AD30: =-Male!E16*1000 -> -68304 | AE30: =Female!E16*1000 -> 66208 | AL30: 14 | AM30: =-Male!F16*1000 -> -69077 | AN30: =Female!F16*1000 -> 66865 | AU30: 14 | AV30: =-Male!G16*1000 -> -70140 | AW30: =Female!G16*1000 -> 67812 | BD30: 14 | BE30: =-Male!H16*1000 -> -70950 | BF30: =Female!H16*1000 -> 68525 | BM30: 14 | BN30: =-Male!I16*1000 -> -71798 | BO30: =Female!I16*1000 -> 69268 | BV30: 14 | BW30: =-Male!J16*1000 -> -72460 | BX30: =Female!J16*1000 -> 69780 | CE30: 14 | CF30: =-Male!K16*1000 -> -72936 | CG30: =Female!K16*1000 -> 70071 | CN30: 14 | CO30: =-Male!L16*1000 -> -73252 | CP30: =Female!L16*1000 -> 70193 | CW30: 14 | CX30: =-Male!M16*1000 -> -73494 | CY30: =Female!M16*1000 -> 70318 | DF30: 14 | DG30: =-Male!N16*1000 -> -74183 | DH30: =Female!N16*1000 -> 71032 | DO30: 14 | DP30: =-Male!O16*1000 -> -76068 | DQ30: =Female!O16*1000 -> 73110 | DX30: 14 | DY30: =-Male!P16*1000 -> -78947 | DZ30: =Female!P16*1000 -> 76232 | EG30: 14 | EH30: =-Male!Q16*1000 -> -82279 | EI30: =Female!Q16*1000 -> 79712 | EP30: 14 | EQ30: =-Male!R16*1000 -> -85478 | ER30: =Female!R16*1000 -> 83097 | EY30: 14 | EZ30: =-Male!S16*1000 -> -87372 | FA30: =Female!S16*1000 -> 85119 | FH30: 14 | FI30: =-Male!T16*1000 -> -86565 | FJ30: =Female!T16*1000 -> 84325 | FQ30: 14 | FR30: =-Male!U16*1000 -> -84130 | FS30: =Female!U16*1000 -> 81795 | FZ30: 14 | GA30: =-Male!V16*1000 -> -82001 | GB30: =Female!V16*1000 -> 79559 | GI30: 14 | GJ30: =-Male!W16*1000 -> -79475 | GK30: =Female!W16*1000 -> 76978 | GR30: 14 | GS30: =-Male!X16*1000 -> -80426 | GT30: =Female!X16*1000 -> 77810 | HA30: 14 | HB30: =-Male!Y16*1000 -> -87241 | HC30: =Female!Y16*1000 -> 84357 | HJ30: 14 | HK30: =-Male!Z16*1000 -> -97790 | HL30: =Female!Z16*1000 -> 94497 | HS30: 14 | HT30: =-Male!AA16*1000 -> -107830 | HU30: =Female!AA16*1000 -> 104069 | IB30: 14 | IC30: =-Male!AB16*1000 -> -117800 | ID30: =Female!AB16*1000 -> 113560 | IK30: 14 | IL30: =-Male!AC16*1000 -> -124928 | IM30: =Female!AC16*1000 -> 120314 | IT30: 14 | IU30: =-Male!AD16*1000 -> -127004 | IV30: =Female!AD16*1000 -> 122194 | JC30: 14 | JD30: =-Male!AE16*1000 -> -125458 | JE30: =Female!AE16*1000 -> 120583 | JL30: 14 | JM30: =-Male!AF16*1000 -> -123886 | JN30: =Female!AF16*1000 -> 118961 | JU30: 14 | JV30: =-Male!AG16*1000 -> -121861 | JW30: =Female!AG16*1000 -> 117004 | KD30: 14 | KE30: =-Male!AH16*1000 -> -119760 | KF30: =Female!AH16*1000 -> 115059 | KM30: 14 | KN30: =-Male!AI16*1000 -> -118840 | KO30: =Female!AI16*1000 -> 114278 | KV30: 14 | KW30: =-Male!AJ16*1000 -> -118766 | KX30: =Female!AJ16*1000 -> 114250 | LE30: 14 | LF30: =-Male!AK16*1000 -> -118500 | LG30: =Female!AK16*1000 -> 113924 | LN30: 14 | LO30: =-Male!AL16*1000 -> -118048 | LP30: =Female!AL16*1000 -> 113382 | LW30: 14 | LX30: =-Male!AM16*1000 -> -115299 | LY30: =Female!AM16*1000 -> 110619
B31: 15 | C31: =-Male!B17*1000 -> -61305 | D31: =Female!B17*1000 -> 59864 | K31: 15 | L31: =-Male!C17*1000 -> -63434 | M31: =Female!C17*1000 -> 61824 | T31: 15 | U31: =-Male!D17*1000 -> -65407 | V31: =Female!D17*1000 -> 63624 | AC31: 15 | AD31: =-Male!E17*1000 -> -66935 | AE31: =Female!E17*1000 -> 65008 | AL31: 15 | AM31: =-Male!F17*1000 -> -68033 | AN31: =Female!F17*1000 -> 65987 | AU31: 15 | AV31: =-Male!G17*1000 -> -68971 | AW31: =Female!G17*1000 -> 66809 | BD31: 15 | BE31: =-Male!H17*1000 -> -69668 | BF31: =Female!H17*1000 -> 67393 | BM31: 15 | BN31: =-Male!I17*1000 -> -70750 | BO31: =Female!I17*1000 -> 68389 | BV31: 15 | BW31: =-Male!J17*1000 -> -71727 | BX31: =Female!J17*1000 -> 69257 | CE31: 15 | CF31: =-Male!K17*1000 -> -72319 | CG31: =Female!K17*1000 -> 69685 | CN31: 15 | CO31: =-Male!L17*1000 -> -72623 | CP31: =Female!L17*1000 -> 69793 | CW31: 15 | CX31: =-Male!M17*1000 -> -73054 | CY31: =Female!M17*1000 -> 70116 | DF31: 15 | DG31: =-Male!N17*1000 -> -72866 | DH31: =Female!N17*1000 -> 69816 | DO31: 15 | DP31: =-Male!O17*1000 -> -73356 | DQ31: =Female!O17*1000 -> 70323 | DX31: 15 | DY31: =-Male!P17*1000 -> -75388 | DZ31: =Female!P17*1000 -> 72516 | EG31: 15 | EH31: =-Male!Q17*1000 -> -78566 | EI31: =Female!Q17*1000 -> 75891 | EP31: 15 | EQ31: =-Male!R17*1000 -> -81089 | ER31: =Female!R17*1000 -> 78593 | EY31: 15 | EZ31: =-Male!S17*1000 -> -84856 | FA31: =Female!S17*1000 -> 82529 | FH31: 15 | FI31: =-Male!T17*1000 -> -87084 | FJ31: =Female!T17*1000 -> 84878 | FQ31: 15 | FR31: =-Male!U17*1000 -> -86235 | FS31: =Female!U17*1000 -> 84045 | FZ31: 15 | GA31: =-Male!V17*1000 -> -83632 | GB31: =Female!V17*1000 -> 81351 | GI31: 15 | GJ31: =-Male!W17*1000 -> -81769 | GK31: =Female!W17*1000 -> 79419 | GR31: 15 | GS31: =-Male!X17*1000 -> -78914 | GT31: =Female!X17*1000 -> 76549 | HA31: 15 | HB31: =-Male!Y17*1000 -> -79706 | HC31: =Female!Y17*1000 -> 77237 | HJ31: 15 | HK31: =-Male!Z17*1000 -> -86629 | HL31: =Female!Z17*1000 -> 83871 | HS31: 15 | HT31: =-Male!AA17*1000 -> -97425 | HU31: =Female!AA17*1000 -> 94213 | IB31: 15 | IC31: =-Male!AB17*1000 -> -107086 | ID31: =Female!AB17*1000 -> 103405 | IK31: 15 | IL31: =-Male!AC17*1000 -> -117406 | IM31: =Female!AC17*1000 -> 113225 | IT31: 15 | IU31: =-Male!AD17*1000 -> -124761 | IV31: =Female!AD17*1000 -> 120198 | JC31: 15 | JD31: =-Male!AE17*1000 -> -126714 | JE31: =Female!AE17*1000 -> 121975 | JL31: 15 | JM31: =-Male!AF17*1000 -> -124886 | JN31: =Female!AF17*1000 -> 120115 | JU31: 15 | JV31: =-Male!AG17*1000 -> -123526 | JW31: =Female!AG17*1000 -> 118794 | KD31: 15 | KE31: =-Male!AH17*1000 -> -120967 | KF31: =Female!AH17*1000 -> 116369 | KM31: 15 | KN31: =-Male!AI17*1000 -> -118672 | KO31: =Female!AI17*1000 -> 114242 | KV31: 15 | KW31: =-Male!AJ17*1000 -> -118006 | KX31: =Female!AJ17*1000 -> 113659 | LE31: 15 | LF31: =-Male!AK17*1000 -> -118375 | LG31: =Female!AK17*1000 -> 113976 | LN31: 15 | LO31: =-Male!AL17*1000 -> -117808 | LP31: =Female!AL17*1000 -> 113318 | LW31: 15 | LX31: =-Male!AM17*1000 -> -117798 | LY31: =Female!AM17*1000 -> 113164
B32: 16 | C32: =-Male!B18*1000 -> -59129 | D32: =Female!B18*1000 -> 57860 | K32: 16 | L32: =-Male!C18*1000 -> -61281 | M32: =Female!C18*1000 -> 59849 | T32: 16 | U32: =-Male!D18*1000 -> -63194 | V32: =Female!D18*1000 -> 61598 | AC32: 16 | AD32: =-Male!E18*1000 -> -65042 | AE32: =Female!E18*1000 -> 63297 | AL32: 16 | AM32: =-Male!F18*1000 -> -66643 | AN32: =Female!F18*1000 -> 64772 | AU32: 16 | AV32: =-Male!G18*1000 -> -67901 | AW32: =Female!G18*1000 -> 65911 | BD32: 16 | BE32: =-Male!H18*1000 -> -68489 | BF32: =Female!H18*1000 -> 66380 | BM32: 16 | BN32: =-Male!I18*1000 -> -69458 | BO32: =Female!I18*1000 -> 67247 | BV32: 16 | BW32: =-Male!J18*1000 -> -70660 | BX32: =Female!J18*1000 -> 68363 | CE32: 16 | CF32: =-Male!K18*1000 -> -71558 | CG32: =Female!K18*1000 -> 69142 | CN32: 16 | CO32: =-Male!L18*1000 -> -71976 | CP32: =Female!L18*1000 -> 69387 | CW32: 16 | CX32: =-Male!M18*1000 -> -72403 | CY32: =Female!M18*1000 -> 69685 | DF32: 16 | DG32: =-Male!N18*1000 -> -72411 | DH32: =Female!N18*1000 -> 69588 | DO32: 16 | DP32: =-Male!O18*1000 -> -72013 | DQ32: =Female!O18*1000 -> 69082 | DX32: 16 | DY32: =-Male!P18*1000 -> -72630 | DZ32: =Female!P18*1000 -> 69700 | EG32: 16 | EH32: =-Male!Q18*1000 -> -74942 | EI32: =Female!Q18*1000 -> 72136 | EP32: 16 | EQ32: =-Male!R18*1000 -> -77386 | ER32: =Female!R18*1000 -> 74768 | EY32: 16 | EZ32: =-Male!S18*1000 -> -80456 | FA32: =Female!S18*1000 -> 77999 | FH32: 16 | FI32: =-Male!T18*1000 -> -84529 | FJ32: =Female!T18*1000 -> 82245 | FQ32: 16 | FR32: =-Male!U18*1000 -> -86695 | FS32: =Female!U18*1000 -> 84554 | FZ32: 16 | GA32: =-Male!V18*1000 -> -85662 | GB32: =Female!V18*1000 -> 83551 | GI32: 16 | GJ32: =-Male!W18*1000 -> -83389 | GK32: =Female!W18*1000 -> 81192 | GR32: 16 | GS32: =-Male!X18*1000 -> -81192 | GT32: =Female!X18*1000 -> 78964 | HA32: 16 | HB32: =-Male!Y18*1000 -> -78171 | HC32: =Female!Y18*1000 -> 75951 | HJ32: 16 | HK32: =-Male!Z18*1000 -> -79062 | HL32: =Female!Z18*1000 -> 76732 | HS32: 16 | HT32: =-Male!AA18*1000 -> -86206 | HU32: =Female!AA18*1000 -> 83553 | IB32: 16 | IC32: =-Male!AB18*1000 -> -96700 | ID32: =Female!AB18*1000 -> 93557 | IK32: 16 | IL32: =-Male!AC18*1000 -> -106680 | IM32: =Female!AC18*1000 -> 103048 | IT32: 16 | IU32: =-Male!AD18*1000 -> -117202 | IV32: =Female!AD18*1000 -> 113071 | JC32: 16 | JD32: =-Male!AE18*1000 -> -124429 | JE32: =Female!AE18*1000 -> 119946 | JL32: 16 | JM32: =-Male!AF18*1000 -> -126088 | JN32: =Female!AF18*1000 -> 121470 | JU32: 16 | JV32: =-Male!AG18*1000 -> -124497 | JW32: =Female!AG18*1000 -> 119911 | KD32: 16 | KE32: =-Male!AH18*1000 -> -122600 | KF32: =Female!AH18*1000 -> 118117 | KM32: 16 | KN32: =-Male!AI18*1000 -> -119828 | KO32: =Female!AI18*1000 -> 115505 | KV32: 16 | KW32: =-Male!AJ18*1000 -> -117768 | KX32: =Female!AJ18*1000 -> 113578 | LE32: 16 | LF32: =-Male!AK18*1000 -> -117530 | LG32: =Female!AK18*1000 -> 113339 | LN32: 16 | LO32: =-Male!AL18*1000 -> -117667 | LP32: =Female!AL18*1000 -> 113350 | LW32: 16 | LX32: =-Male!AM18*1000 -> -117542 | LY32: =Female!AM18*1000 -> 113080
B33: 17 | C33: =-Male!B19*1000 -> -57214 | D33: =Female!B19*1000 -> 56103 | K33: 17 | L33: =-Male!C19*1000 -> -59084 | M33: =Female!C19*1000 -> 57828 | T33: 17 | U33: =-Male!D19*1000 -> -61030 | V33: =Female!D19*1000 -> 59616 | AC33: 17 | AD33: =-Male!E19*1000 -> -62828 | AE33: =Female!E19*1000 -> 61272 | AL33: 17 | AM33: =-Male!F19*1000 -> -64741 | AN33: =Female!F19*1000 -> 63053 | AU33: 17 | AV33: =-Male!G19*1000 -> -66488 | AW33: =Female!G19*1000 -> 64678 | BD33: 17 | BE33: =-Male!H19*1000 -> -67405 | BF33: =Female!H19*1000 -> 65471 | BM33: 17 | BN33: =-Male!I19*1000 -> -68264 | BO33: =Female!I19*1000 -> 66221 | BV33: 17 | BW33: =-Male!J19*1000 -> -69355 | BX33: =Female!J19*1000 -> 67209 | CE33: 17 | CF33: =-Male!K19*1000 -> -70473 | CG33: =Female!K19*1000 -> 68234 | CN33: 17 | CO33: =-Male!L19*1000 -> -71189 | CP33: =Female!L19*1000 -> 68825 | CW33: 17 | CX33: =-Male!M19*1000 -> -71732 | CY33: =Female!M19*1000 -> 69247 | DF33: 17 | DG33: =-Male!N19*1000 -> -71740 | DH33: =Female!N19*1000 -> 69130 | DO33: 17 | DP33: =-Male!O19*1000 -> -71545 | DQ33: =Female!O19*1000 -> 68830 | DX33: 17 | DY33: =-Male!P19*1000 -> -71261 | DZ33: =Female!P19*1000 -> 68432 | EG33: 17 | EH33: =-Male!Q19*1000 -> -72131 | EI33: =Female!Q19*1000 -> 69283 | EP33: 17 | EQ33: =-Male!R19*1000 -> -73771 | ER33: =Female!R19*1000 -> 71008 | EY33: 17 | EZ33: =-Male!S19*1000 -> -76738 | FA33: =Female!S19*1000 -> 74144 | FH33: 17 | FI33: =-Male!T19*1000 -> -80102 | FJ33: =Female!T19*1000 -> 77672 | FQ33: 17 | FR33: =-Male!U19*1000 -> -84104 | FS33: =Female!U19*1000 -> 81879 | FZ33: 17 | GA33: =-Male!V19*1000 -> -86064 | GB33: =Female!V19*1000 -> 84014 | GI33: 17 | GJ33: =-Male!W19*1000 -> -85408 | GK33: =Female!W19*1000 -> 83373 | GR33: 17 | GS33: =-Male!X19*1000 -> -82793 | GT33: =Female!X19*1000 -> 80712 | HA33: 17 | HB33: =-Male!Y19*1000 -> -80427 | HC33: =Female!Y19*1000 -> 78336 | HJ33: 17 | HK33: =-Male!Z19*1000 -> -77502 | HL33: =Female!Z19*1000 -> 75421 | HS33: 17 | HT33: =-Male!AA19*1000 -> -78591 | HU33: =Female!AA19*1000 -> 76381 | IB33: 17 | IC33: =-Male!AB19*1000 -> -85503 | ID33: =Female!AB19*1000 -> 82905 | IK33: 17 | IL33: =-Male!AC19*1000 -> -96281 | IM33: =Female!AC19*1000 -> 93178 | IT33: 17 | IU33: =-Male!AD19*1000 -> -106447 | IV33: =Female!AD19*1000 -> 102858 | JC33: 17 | JD33: =-Male!AE19*1000 -> -116844 | JE33: =Female!AE19*1000 -> 112790 | JL33: 17 | JM33: =-Male!AF19*1000 -> -123767 | JN33: =Female!AF19*1000 -> 119413 | JU33: 17 | JV33: =-Male!AG19*1000 -> -125670 | JW33: =Female!AG19*1000 -> 121229 | KD33: 17 | KE33: =-Male!AH19*1000 -> -123536 | KF33: =Female!AH19*1000 -> 119192 | KM33: 17 | KN33: =-Male!AI19*1000 -> -121425 | KO33: =Female!AI19*1000 -> 117208 | KV33: 17 | KW33: =-Male!AJ19*1000 -> -118875 | KX33: =Female!AJ19*1000 -> 114796 | LE33: 17 | LF33: =-Male!AK19*1000 -> -117221 | LG33: =Female!AK19*1000 -> 113212 | LN33: 17 | LO33: =-Male!AL19*1000 -> -116808 | LP33: =Female!AL19*1000 -> 112696 | LW33: 17 | LX33: =-Male!AM19*1000 -> -117383 | LY33: =Female!AM19*1000 -> 113092
B34: 18 | C34: =-Male!B20*1000 -> -55742 | D34: =Female!B20*1000 -> 54769 | K34: 18 | L34: =-Male!C20*1000 -> -57151 | M34: =Female!C20*1000 -> 56056 | T34: 18 | U34: =-Male!D20*1000 -> -58820 | V34: =Female!D20*1000 -> 57585 | AC34: 18 | AD34: =-Male!E20*1000 -> -60658 | AE34: =Female!E20*1000 -> 59285 | AL34: 18 | AM34: =-Male!F20*1000 -> -62524 | AN34: =Female!F20*1000 -> 61026 | AU34: 18 | AV34: =-Male!G20*1000 -> -64572 | AW34: =Female!G20*1000 -> 62949 | BD34: 18 | BE34: =-Male!H20*1000 -> -65985 | BF34: =Female!H20*1000 -> 64231 | BM34: 18 | BN34: =-Male!I20*1000 -> -67162 | BO34: =Female!I20*1000 -> 65296 | BV34: 18 | BW34: =-Male!J20*1000 -> -68144 | BX34: =Female!J20*1000 -> 66168 | CE34: 18 | CF34: =-Male!K20*1000 -> -69157 | CG34: =Female!K20*1000 -> 67070 | CN34: 18 | CO34: =-Male!L20*1000 -> -70090 | CP34: =Female!L20*1000 -> 67906 | CW34: 18 | CX34: =-Male!M20*1000 -> -70926 | CY34: =Female!M20*1000 -> 68660 | DF34: 18 | DG34: =-Male!N20*1000 -> -71049 | DH34: =Female!N20*1000 -> 68663 | DO34: 18 | DP34: =-Male!O20*1000 -> -70858 | DQ34: =Female!O20*1000 -> 68346 | DX34: 18 | DY34: =-Male!P20*1000 -> -70779 | DZ34: =Female!P20*1000 -> 68156 | EG34: 18 | EH34: =-Male!Q20*1000 -> -70732 | EI34: =Female!Q20*1000 -> 67986 | EP34: 18 | EQ34: =-Male!R20*1000 -> -70969 | ER34: =Female!R20*1000 -> 68150 | EY34: 18 | EZ34: =-Male!S20*1000 -> -73106 | FA34: =Female!S20*1000 -> 70353 | FH34: 18 | FI34: =-Male!T20*1000 -> -76355 | FJ34: =Female!T20*1000 -> 73775 | FQ34: 18 | FR34: =-Male!U20*1000 -> -79656 | FS34: =Female!U20*1000 -> 77267 | FZ34: 18 | GA34: =-Male!V20*1000 -> -83444 | GB34: =Female!V20*1000 -> 81304 | GI34: 18 | GJ34: =-Male!W20*1000 -> -85801 | GK34: =Female!W20*1000 -> 83819 | GR34: 18 | GS34: =-Male!X20*1000 -> -84793 | GT34: =Female!X20*1000 -> 82866 | HA34: 18 | HB34: =-Male!Y20*1000 -> -82006 | HC34: =Female!Y20*1000 -> 80054 | HJ34: 18 | HK34: =-Male!Z20*1000 -> -79739 | HL34: =Female!Z20*1000 -> 77778 | HS34: 18 | HT34: =-Male!AA20*1000 -> -77003 | HU34: =Female!AA20*1000 -> 75042 | IB34: 18 | IC34: =-Male!AB20*1000 -> -77903 | ID34: =Female!AB20*1000 -> 75737 | IK34: 18 | IL34: =-Male!AC20*1000 -> -85070 | IM34: =Female!AC20*1000 -> 82504 | IT34: 18 | IU34: =-Male!AD20*1000 -> -96017 | IV34: =Female!AD20*1000 -> 92950 | JC34: 18 | JD34: =-Male!AE20*1000 -> -106073 | JE34: =Female!AE20*1000 -> 102550 | JL34: 18 | JM34: =-Male!AF20*1000 -> -116176 | JN34: =Female!AF20*1000 -> 112245 | JU34: 18 | JV34: =-Male!AG20*1000 -> -123323 | JW34: =Female!AG20*1000 -> 119137 | KD34: 18 | KE34: =-Male!AH20*1000 -> -124675 | KF34: =Female!AH20*1000 -> 120468 | KM34: 18 | KN34: =-Male!AI20*1000 -> -122326 | KO34: =Female!AI20*1000 -> 118240 | KV34: 18 | KW34: =-Male!AJ20*1000 -> -120438 | KX34: =Female!AJ20*1000 -> 116456 | LE34: 18 | LF34: =-Male!AK20*1000 -> -118282 | LG34: =Female!AK20*1000 -> 114389 | LN34: 18 | LO34: =-Male!AL20*1000 -> -116487 | LP34: =Female!AL20*1000 -> 112554 | LW34: 18 | LX34: =-Male!AM20*1000 -> -116508 | LY34: =Female!AM20*1000 -> 112418
B35: 19 | C35: =-Male!B21*1000 -> -54564 | D35: =Female!B21*1000 -> 53713 | K35: 19 | L35: =-Male!C21*1000 -> -55668 | M35: =Female!C21*1000 -> 54714 | T35: 19 | U35: =-Male!D21*1000 -> -56876 | V35: =Female!D21*1000 -> 55806 | AC35: 19 | AD35: =-Male!E21*1000 -> -58439 | AE35: =Female!E21*1000 -> 57248 | AL35: 19 | AM35: =-Male!F21*1000 -> -60346 | AN35: =Female!F21*1000 -> 59033 | AU35: 19 | AV35: =-Male!G21*1000 -> -62348 | AW35: =Female!G21*1000 -> 60915 | BD35: 19 | BE35: =-Male!H21*1000 -> -64070 | BF35: =Female!H21*1000 -> 62502 | BM35: 19 | BN35: =-Male!I21*1000 -> -65729 | BO35: =Female!I21*1000 -> 64044 | BV35: 19 | BW35: =-Male!J21*1000 -> -67023 | BX35: =Female!J21*1000 -> 65225 | CE35: 19 | CF35: =-Male!K21*1000 -> -67932 | CG35: =Female!K21*1000 -> 66016 | CN35: 19 | CO35: =-Male!L21*1000 -> -68767 | CP35: =Female!L21*1000 -> 66735 | CW35: 19 | CX35: =-Male!M21*1000 -> -69817 | CY35: =Female!M21*1000 -> 67723 | DF35: 19 | DG35: =-Male!N21*1000 -> -70231 | DH35: =Female!N21*1000 -> 68054 | DO35: 19 | DP35: =-Male!O21*1000 -> -70148 | DQ35: =Female!O21*1000 -> 67852 | DX35: 19 | DY35: =-Male!P21*1000 -> -70074 | DZ35: =Female!P21*1000 -> 67646 | EG35: 19 | EH35: =-Male!Q21*1000 -> -70233 | EI35: =Female!Q21*1000 -> 67684 | EP35: 19 | EQ35: =-Male!R21*1000 -> -69577 | ER35: =Female!R21*1000 -> 66847 | EY35: 19 | EZ35: =-Male!S21*1000 -> -70295 | FA35: =Female!S21*1000 -> 67472 | FH35: 19 | FI35: =-Male!T21*1000 -> -72695 | FJ35: =Female!T21*1000 -> 69940 | FQ35: 19 | FR35: =-Male!U21*1000 -> -75885 | FS35: =Female!U21*1000 -> 73331 | FZ35: 19 | GA35: =-Male!V21*1000 -> -78986 | GB35: =Female!V21*1000 -> 76666 | GI35: 19 | GJ35: =-Male!W21*1000 -> -83171 | GK35: =Female!W21*1000 -> 81092 | GR35: 19 | GS35: =-Male!X21*1000 -> -85176 | GT35: =Female!X21*1000 -> 83292 | HA35: 19 | HB35: =-Male!Y21*1000 -> -83982 | HC35: =Female!Y21*1000 -> 82176 | HJ35: 19 | HK35: =-Male!Z21*1000 -> -81297 | HL35: =Female!Z21*1000 -> 79467 | HS35: 19 | HT35: =-Male!AA21*1000 -> -79224 | HU35: =Female!AA21*1000 -> 77375 | IB35: 19 | IC35: =-Male!AB21*1000 -> -76316 | ID35: =Female!AB21*1000 -> 74394 | IK35: 19 | IL35: =-Male!AC21*1000 -> -77461 | IM35: =Female!AC21*1000 -> 75320 | IT35: 19 | IU35: =-Male!AD21*1000 -> -84774 | IV35: =Female!AD21*1000 -> 82236 | JC35: 19 | JD35: =-Male!AE21*1000 -> -95627 | JE35: =Female!AE21*1000 -> 92615 | JL35: 19 | JM35: =-Male!AF21*1000 -> -105419 | JN35: =Female!AF21*1000 -> 102003 | JU35: 19 | JV35: =-Male!AG21*1000 -> -115707 | JW35: =Female!AG21*1000 -> 111935 | KD35: 19 | KE35: =-Male!AH21*1000 -> -122312 | KF35: =Female!AH21*1000 -> 118349 | KM35: 19 | KN35: =-Male!AI21*1000 -> -123428 | KO35: =Female!AI21*1000 -> 119471 | KV35: 19 | KW35: =-Male!AJ21*1000 -> -121305 | KX35: =Female!AJ21*1000 -> 117447 | LE35: 19 | LF35: =-Male!AK21*1000 -> -119817 | LG35: =Female!AK21*1000 -> 116011 | LN35: 19 | LO35: =-Male!AL21*1000 -> -117536 | LP35: =Female!AL21*1000 -> 113720 | LW35: 19 | LX35: =-Male!AM21*1000 -> -116175 | LY35: =Female!AM21*1000 -> 112262
B36: 20 | C36: =-Male!B22*1000 -> -53363 | D36: =Female!B22*1000 -> 52623 | K36: 20 | L36: =-Male!C22*1000 -> -54484 | M36: =Female!C22*1000 -> 53653 | T36: 20 | U36: =-Male!D22*1000 -> -55388 | V36: =Female!D22*1000 -> 54460 | AC36: 20 | AD36: =-Male!E22*1000 -> -56489 | AE36: =Female!E22*1000 -> 55465 | AL36: 20 | AM36: =-Male!F22*1000 -> -58115 | AN36: =Female!F22*1000 -> 56986 | AU36: 20 | AV36: =-Male!G22*1000 -> -60157 | AW36: =Female!G22*1000 -> 58911 | BD36: 20 | BE36: =-Male!H22*1000 -> -61854 | BF36: =Female!H22*1000 -> 60474 | BM36: 20 | BN36: =-Male!I22*1000 -> -63809 | BO36: =Female!I22*1000 -> 62309 | BV36: 20 | BW36: =-Male!J22*1000 -> -65575 | BX36: =Female!J22*1000 -> 63959 | CE36: 20 | CF36: =-Male!K22*1000 -> -66793 | CG36: =Female!K22*1000 -> 65057 | CN36: 20 | CO36: =-Male!L22*1000 -> -67529 | CP36: =Female!L22*1000 -> 65670 | CW36: 20 | CX36: =-Male!M22*1000 -> -68489 | CY36: =Female!M22*1000 -> 66540 | DF36: 20 | DG36: =-Male!N22*1000 -> -69118 | DH36: =Female!N22*1000 -> 67105 | DO36: 20 | DP36: =-Male!O22*1000 -> -69320 | DQ36: =Female!O22*1000 -> 67222 | DX36: 20 | DY36: =-Male!P22*1000 -> -69346 | DZ36: =Female!P22*1000 -> 67124 | EG36: 20 | EH36: =-Male!Q22*1000 -> -69509 | EI36: =Female!Q22*1000 -> 67146 | EP36: 20 | EQ36: =-Male!R22*1000 -> -69086 | ER36: =Female!R22*1000 -> 66542 | EY36: 20 | EZ36: =-Male!S22*1000 -> -68901 | FA36: =Female!S22*1000 -> 66156 | FH36: 20 | FI36: =-Male!T22*1000 -> -69864 | FJ36: =Female!T22*1000 -> 67025 | FQ36: 20 | FR36: =-Male!U22*1000 -> -72199 | FS36: =Female!U22*1000 -> 69456 | FZ36: 20 | GA36: =-Male!V22*1000 -> -75201 | GB36: =Female!V22*1000 -> 72700 | GI36: 20 | GJ36: =-Male!W22*1000 -> -78704 | GK36: =Female!W22*1000 -> 76437 | GR36: 20 | GS36: =-Male!X22*1000 -> -82546 | GT36: =Female!X22*1000 -> 80558 | HA36: 20 | HB36: =-Male!Y22*1000 -> -84353 | HC36: =Female!Y22*1000 -> 82582 | HJ36: 20 | HK36: =-Male!Z22*1000 -> -83251 | HL36: =Female!Z22*1000 -> 81559 | HS36: 20 | HT36: =-Male!AA22*1000 -> -80765 | HU36: =Female!AA22*1000 -> 79039 | IB36: 20 | IC36: =-Male!AB22*1000 -> -78530 | ID36: =Female!AB22*1000 -> 76717 | IK36: 20 | IL36: =-Male!AC22*1000 -> -75870 | IM36: =Female!AC22*1000 -> 73968 | IT36: 20 | IU36: =-Male!AD22*1000 -> -77144 | IV36: =Female!AD22*1000 -> 75023 | JC36: 20 | JD36: =-Male!AE22*1000 -> -84367 | JE36: =Female!AE22*1000 -> 81874 | JL36: 20 | JM36: =-Male!AF22*1000 -> -94983 | JN36: =Female!AF22*1000 -> 92064 | JU36: 20 | JV36: =-Male!AG22*1000 -> -104929 | JW36: =Female!AG22*1000 -> 101663 | KD36: 20 | KE36: =-Male!AH22*1000 -> -114708 | KF36: =Female!AH22*1000 -> 111145 | KM36: 20 | KN36: =-Male!AI22*1000 -> -121054 | KO36: =Female!AI22*1000 -> 117330 | KV36: 20 | KW36: =-Male!AJ22*1000 -> -122373 | KX36: =Female!AJ22*1000 -> 118634 | LE36: 20 | LF36: =-Male!AK22*1000 -> -120653 | LG36: =Female!AK22*1000 -> 116962 | LN36: 20 | LO36: =-Male!AL22*1000 -> -119061 | LP36: =Female!AL22*1000 -> 115334 | LW36: 20 | LX36: =-Male!AM22*1000 -> -117215 | LY36: =Female!AM22*1000 -> 113420
B37: 21 | C37: =-Male!B23*1000 -> -52222 | D37: =Female!B23*1000 -> 51570 | K37: 21 | L37: =-Male!C23*1000 -> -53276 | M37: =Female!C23*1000 -> 52558 | T37: 21 | U37: =-Male!D23*1000 -> -54201 | V37: =Female!D23*1000 -> 53398 | AC37: 21 | AD37: =-Male!E23*1000 -> -54998 | AE37: =Female!E23*1000 -> 54117 | AL37: 21 | AM37: =-Male!F23*1000 -> -56157 | AN37: =Female!F23*1000 -> 55196 | AU37: 21 | AV37: =-Male!G23*1000 -> -57911 | AW37: =Female!G23*1000 -> 56851 | BD37: 21 | BE37: =-Male!H23*1000 -> -59671 | BF37: =Female!H23*1000 -> 58476 | BM37: 21 | BN37: =-Male!I23*1000 -> -61592 | BO37: =Female!I23*1000 -> 60278 | BV37: 21 | BW37: =-Male!J23*1000 -> -63646 | BX37: =Female!J23*1000 -> 62215 | CE37: 21 | CF37: =-Male!K23*1000 -> -65332 | CG37: =Female!K23*1000 -> 63779 | CN37: 21 | CO37: =-Male!L23*1000 -> -66376 | CP37: =Female!L23*1000 -> 64699 | CW37: 21 | CX37: =-Male!M23*1000 -> -67249 | CY37: =Female!M23*1000 -> 65464 | DF37: 21 | DG37: =-Male!N23*1000 -> -67793 | DH37: =Female!N23*1000 -> 65917 | DO37: 21 | DP37: =-Male!O23*1000 -> -68207 | DQ37: =Female!O23*1000 -> 66264 | DX37: 21 | DY37: =-Male!P23*1000 -> -68506 | DZ37: =Female!P23*1000 -> 66473 | EG37: 21 | EH37: =-Male!Q23*1000 -> -68760 | EI37: =Female!Q23*1000 -> 66595 | EP37: 21 | EQ37: =-Male!R23*1000 -> -68372 | ER37: =Female!R23*1000 -> 66003 | EY37: 21 | EZ37: =-Male!S23*1000 -> -68413 | FA37: =Female!S23*1000 -> 65844 | FH37: 21 | FI37: =-Male!T23*1000 -> -68463 | FJ37: =Female!T23*1000 -> 65691 | FQ37: 21 | FR37: =-Male!U23*1000 -> -69352 | FS37: =Female!U23*1000 -> 66510 | FZ37: 21 | GA37: =-Male!V23*1000 -> -71501 | GB37: =Female!V23*1000 -> 68794 | GI37: 21 | GJ37: =-Male!W23*1000 -> -74912 | GK37: =Female!W23*1000 -> 72457 | GR37: 21 | GS37: =-Male!X23*1000 -> -78088 | GT37: =Female!X23*1000 -> 75904 | HA37: 21 | HB37: =-Male!Y23*1000 -> -81730 | HC37: =Female!Y23*1000 -> 79847 | HJ37: 21 | HK37: =-Male!Z23*1000 -> -83610 | HL37: =Female!Z23*1000 -> 81946 | HS37: 21 | HT37: =-Male!AA23*1000 -> -82701 | HU37: =Female!AA23*1000 -> 81106 | IB37: 21 | IC37: =-Male!AB23*1000 -> -80068 | ID37: =Female!AB23*1000 -> 78374 | IK37: 21 | IL37: =-Male!AC23*1000 -> -78084 | IM37: =Female!AC23*1000 -> 76287 | IT37: 21 | IU37: =-Male!AD23*1000 -> -75547 | IV37: =Female!AD23*1000 -> 73660 | JC37: 21 | JD37: =-Male!AE23*1000 -> -76725 | JE37: =Female!AE23*1000 -> 74641 | JL37: 21 | JM37: =-Male!AF23*1000 -> -83736 | JN37: =Female!AF23*1000 -> 81320 | JU37: 21 | JV37: =-Male!AG23*1000 -> -94475 | JW37: =Female!AG23*1000 -> 91696 | KD37: 21 | KE37: =-Male!AH23*1000 -> -103957 | KF37: =Female!AH23*1000 -> 100886 | KM37: 21 | KN37: =-Male!AI23*1000 -> -113476 | KO37: =Female!AI23*1000 -> 110138 | KV37: 21 | KW37: =-Male!AJ23*1000 -> -119985 | KX37: =Female!AJ23*1000 -> 116469 | LE37: 21 | LF37: =-Male!AK23*1000 -> -121689 | LG37: =Female!AK23*1000 -> 118110 | LN37: 21 | LO37: =-Male!AL23*1000 -> -119891 | LP37: =Female!AL23*1000 -> 116280 | LW37: 21 | LX37: =-Male!AM23*1000 -> -118736 | LY37: =Female!AM23*1000 -> 115032
B38: 22 | C38: =-Male!B24*1000 -> -51026 | D38: =Female!B24*1000 -> 50486 | K38: 22 | L38: =-Male!C24*1000 -> -52129 | M38: =Female!C24*1000 -> 51499 | T38: 22 | U38: =-Male!D24*1000 -> -52991 | V38: =Female!D24*1000 -> 52302 | AC38: 22 | AD38: =-Male!E24*1000 -> -53812 | AE38: =Female!E24*1000 -> 53056 | AL38: 22 | AM38: =-Male!F24*1000 -> -54662 | AN38: =Female!F24*1000 -> 53845 | AU38: 22 | AV38: =-Male!G24*1000 -> -55940 | AW38: =Female!G24*1000 -> 55050 | BD38: 22 | BE38: =-Male!H24*1000 -> -57433 | BF38: =Female!H24*1000 -> 56422 | BM38: 22 | BN38: =-Male!I24*1000 -> -59408 | BO38: =Female!I24*1000 -> 58278 | BV38: 22 | BW38: =-Male!J24*1000 -> -61425 | BX38: =Female!J24*1000 -> 60179 | CE38: 22 | CF38: =-Male!K24*1000 -> -63397 | CG38: =Female!K24*1000 -> 62028 | CN38: 22 | CO38: =-Male!L24*1000 -> -64905 | CP38: =Female!L24*1000 -> 63412 | CW38: 22 | CX38: =-Male!M24*1000 -> -66096 | CY38: =Female!M24*1000 -> 64484 | DF38: 22 | DG38: =-Male!N24*1000 -> -66557 | DH38: =Female!N24*1000 -> 64838 | DO38: 22 | DP38: =-Male!O24*1000 -> -66889 | DQ38: =Female!O24*1000 -> 65076 | DX38: 22 | DY38: =-Male!P24*1000 -> -67391 | DZ38: =Female!P24*1000 -> 65506 | EG38: 22 | EH38: =-Male!Q24*1000 -> -67906 | EI38: =Female!Q24*1000 -> 65922 | EP38: 22 | EQ38: =-Male!R24*1000 -> -67637 | ER38: =Female!R24*1000 -> 65453 | EY38: 22 | EZ38: =-Male!S24*1000 -> -67706 | FA38: =Female!S24*1000 -> 65300 | FH38: 22 | FI38: =-Male!T24*1000 -> -67977 | FJ38: =Female!T24*1000 -> 65372 | FQ38: 22 | FR38: =-Male!U24*1000 -> -67946 | FS38: =Female!U24*1000 -> 65160 | FZ38: 22 | GA38: =-Male!V24*1000 -> -68645 | GB38: =Female!V24*1000 -> 65825 | GI38: 22 | GJ38: =-Male!W24*1000 -> -71210 | GK38: =Female!W24*1000 -> 68539 | GR38: 22 | GS38: =-Male!X24*1000 -> -74307 | GT38: =Female!X24*1000 -> 71926 | HA38: 22 | HB38: =-Male!Y24*1000 -> -77292 | HC38: =Female!Y24*1000 -> 75205 | HJ38: 22 | HK38: =-Male!Z24*1000 -> -80993 | HL38: =Female!Z24*1000 -> 79208 | HS38: 22 | HT38: =-Male!AA24*1000 -> -83051 | HU38: =Female!AA24*1000 -> 81474 | IB38: 22 | IC38: =-Male!AB24*1000 -> -82003 | ID38: =Female!AB24*1000 -> 80433 | IK38: 22 | IL38: =-Male!AC24*1000 -> -79624 | IM38: =Female!AC24*1000 -> 77942 | IT38: 22 | IU38: =-Male!AD24*1000 -> -77765 | IV38: =Female!AD24*1000 -> 75980 | JC38: 22 | JD38: =-Male!AE24*1000 -> -75123 | JE38: =Female!AE24*1000 -> 73268 | JL38: 22 | JM38: =-Male!AF24*1000 -> -76103 | JN38: =Female!AF24*1000 -> 74083 | JU38: 22 | JV38: =-Male!AG24*1000 -> -83213 | JW38: =Female!AG24*1000 -> 80924 | KD38: 22 | KE38: =-Male!AH24*1000 -> -93534 | KF38: =Female!AH24*1000 -> 90933 | KM38: 22 | KN38: =-Male!AI24*1000 -> -102776 | KO38: =Female!AI24*1000 -> 99913 | KV38: 22 | KW38: =-Male!AJ24*1000 -> -112421 | KX38: =Female!AJ24*1000 -> 109279 | LE38: 22 | LF38: =-Male!AK24*1000 -> -119280 | LG38: =Female!AK24*1000 -> 115914 | LN38: 22 | LO38: =-Male!AL24*1000 -> -120920 | LP38: =Female!AL24*1000 -> 117423 | LW38: 22 | LX38: =-Male!AM24*1000 -> -119562 | LY38: =Female!AM24*1000 -> 115976
B39: 23 | C39: =-Male!B25*1000 -> -49691 | D39: =Female!B25*1000 -> 49309 | K39: 23 | L39: =-Male!C25*1000 -> -50928 | M39: =Female!C25*1000 -> 50411 | T39: 23 | U39: =-Male!D25*1000 -> -51842 | V39: =Female!D25*1000 -> 51241 | AC39: 23 | AD39: =-Male!E25*1000 -> -52602 | AE39: =Female!E25*1000 -> 51959 | AL39: 23 | AM39: =-Male!F25*1000 -> -53475 | AN39: =Female!F25*1000 -> 52783 | AU39: 23 | AV39: =-Male!G25*1000 -> -54438 | AW39: =Female!G25*1000 -> 53692 | BD39: 23 | BE39: =-Male!H25*1000 -> -55470 | BF39: =Female!H25*1000 -> 54626 | BM39: 23 | BN39: =-Male!I25*1000 -> -57170 | BO39: =Female!I25*1000 -> 56222 | BV39: 23 | BW39: =-Male!J25*1000 -> -59237 | BX39: =Female!J25*1000 -> 58172 | CE39: 23 | CF39: =-Male!K25*1000 -> -61174 | CG39: =Female!K25*1000 -> 59989 | CN39: 23 | CO39: =-Male!L25*1000 -> -62970 | CP39: =Female!L25*1000 -> 61660 | CW39: 23 | CX39: =-Male!M25*1000 -> -64624 | CY39: =Female!M25*1000 -> 63189 | DF39: 23 | DG39: =-Male!N25*1000 -> -65412 | DH39: =Female!N25*1000 -> 63855 | DO39: 23 | DP39: =-Male!O25*1000 -> -65662 | DQ39: =Female!O25*1000 -> 63996 | DX39: 23 | DY39: =-Male!P25*1000 -> -66079 | DZ39: =Female!P25*1000 -> 64316 | EG39: 23 | EH39: =-Male!Q25*1000 -> -66786 | EI39: =Female!Q25*1000 -> 64942 | EP39: 23 | EQ39: =-Male!R25*1000 -> -66797 | ER39: =Female!R25*1000 -> 64784 | EY39: 23 | EZ39: =-Male!S25*1000 -> -66980 | FA39: =Female!S25*1000 -> 64749 | FH39: 23 | FI39: =-Male!T25*1000 -> -67273 | FJ39: =Female!T25*1000 -> 64822 | FQ39: 23 | FR39: =-Male!U25*1000 -> -67463 | FS39: =Female!U25*1000 -> 64834 | FZ39: 23 | GA39: =-Male!V25*1000 -> -67238 | GB39: =Female!V25*1000 -> 64461 | GI39: 23 | GJ39: =-Male!W25*1000 -> -68353 | GK39: =Female!W25*1000 -> 65562 | GR39: 23 | GS39: =-Male!X25*1000 -> -70618 | GT39: =Female!X25*1000 -> 68012 | HA39: 23 | HB39: =-Male!Y25*1000 -> -73530 | HC39: =Female!Y25*1000 -> 71238 | HJ39: 23 | HK39: =-Male!Z25*1000 -> -76569 | HL39: =Female!Z25*1000 -> 74573 | HS39: 23 | HT39: =-Male!AA25*1000 -> -80432 | HU39: =Female!AA25*1000 -> 78727 | IB39: 23 | IC39: =-Male!AB25*1000 -> -82355 | ID39: =Female!AB25*1000 -> 80801 | IK39: 23 | IL39: =-Male!AC25*1000 -> -81563 | IM39: =Female!AC25*1000 -> 80001 | IT39: 23 | IU39: =-Male!AD25*1000 -> -79309 | IV39: =Female!AD25*1000 -> 77635 | JC39: 23 | JD39: =-Male!AE25*1000 -> -77342 | JE39: =Female!AE25*1000 -> 75585 | JL39: 23 | JM39: =-Male!AF25*1000 -> -74501 | JN39: =Female!AF25*1000 -> 72704 | JU39: 23 | JV39: =-Male!AG25*1000 -> -75572 | JW39: =Female!AG25*1000 -> 73671 | KD39: 23 | KE39: =-Male!AH25*1000 -> -82307 | KF39: =Female!AH25*1000 -> 80179 | KM39: 23 | KN39: =-Male!AI25*1000 -> -92403 | KO39: =Female!AI25*1000 -> 89993 | KV39: 23 | KW39: =-Male!AJ25*1000 -> -101754 | KX39: =Female!AJ25*1000 -> 99074 | LE39: 23 | LF39: =-Male!AK25*1000 -> -111708 | LG39: =Female!AK25*1000 -> 108707 | LN39: 23 | LO39: =-Male!AL25*1000 -> -118523 | LP39: =Female!AL25*1000 -> 115237 | LW39: 23 | LX39: =-Male!AM25*1000 -> -120589 | LY39: =Female!AM25*1000 -> 117117
B40: 24 | C40: =-Male!B26*1000 -> -48301 | D40: =Female!B26*1000 -> 48094 | K40: 24 | L40: =-Male!C26*1000 -> -49590 | M40: =Female!C26*1000 -> 49231 | T40: 24 | U40: =-Male!D26*1000 -> -50641 | V40: =Female!D26*1000 -> 50153 | AC40: 24 | AD40: =-Male!E26*1000 -> -51453 | AE40: =Female!E26*1000 -> 50899 | AL40: 24 | AM40: =-Male!F26*1000 -> -52264 | AN40: =Female!F26*1000 -> 51685 | AU40: 24 | AV40: =-Male!G26*1000 -> -53248 | AW40: =Female!G26*1000 -> 52627 | BD40: 24 | BE40: =-Male!H26*1000 -> -53974 | BF40: =Female!H26*1000 -> 53273 | BM40: 24 | BN40: =-Male!I26*1000 -> -55208 | BO40: =Female!I26*1000 -> 54425 | BV40: 24 | BW40: =-Male!J26*1000 -> -56996 | BX40: =Female!J26*1000 -> 56111 | CE40: 24 | CF40: =-Male!K26*1000 -> -58985 | CG40: =Female!K26*1000 -> 57980 | CN40: 24 | CO40: =-Male!L26*1000 -> -60752 | CP40: =Female!L26*1000 -> 59624 | CW40: 24 | CX40: =-Male!M26*1000 -> -62683 | CY40: =Female!M26*1000 -> 61429 | DF40: 24 | DG40: =-Male!N26*1000 -> -63948 | DH40: =Female!N26*1000 -> 62561 | DO40: 24 | DP40: =-Male!O26*1000 -> -64527 | DQ40: =Female!O26*1000 -> 63015 | DX40: 24 | DY40: =-Male!P26*1000 -> -64859 | DZ40: =Female!P26*1000 -> 63234 | EG40: 24 | EH40: =-Male!Q26*1000 -> -65474 | EI40: =Female!Q26*1000 -> 63746 | EP40: 24 | EQ40: =-Male!R26*1000 -> -65687 | ER40: =Female!R26*1000 -> 63811 | EY40: 24 | EZ40: =-Male!S26*1000 -> -66147 | FA40: =Female!S26*1000 -> 64080 | FH40: 24 | FI40: =-Male!T26*1000 -> -66555 | FJ40: =Female!T26*1000 -> 64266 | FQ40: 24 | FR40: =-Male!U26*1000 -> -66763 | FS40: =Female!U26*1000 -> 64277 | FZ40: 24 | GA40: =-Male!V26*1000 -> -66758 | GB40: =Female!V26*1000 -> 64129 | GI40: 24 | GJ40: =-Male!W26*1000 -> -66943 | GK40: =Female!W26*1000 -> 64195 | GR40: 24 | GS40: =-Male!X26*1000 -> -67771 | GT40: =Female!X26*1000 -> 65039 | HA40: 24 | HB40: =-Male!Y26*1000 -> -69862 | HC40: =Female!Y26*1000 -> 67336 | HJ40: 24 | HK40: =-Male!Z26*1000 -> -72824 | HL40: =Female!Z26*1000 -> 70613 | HS40: 24 | HT40: =-Male!AA26*1000 -> -76015 | HU40: =Female!AA26*1000 -> 74091 | IB40: 24 | IC40: =-Male!AB26*1000 -> -79748 | ID40: =Female!AB26*1000 -> 78066 | IK40: 24 | IL40: =-Male!AC26*1000 -> -81919 | IM40: =Female!AC26*1000 -> 80370 | IT40: 24 | IU40: =-Male!AD26*1000 -> -81255 | IV40: =Female!AD26*1000 -> 79696 | JC40: 24 | JD40: =-Male!AE26*1000 -> -78889 | JE40: =Female!AE26*1000 -> 77239 | JL40: 24 | JM40: =-Male!AF26*1000 -> -76715 | JN40: =Female!AF26*1000 -> 75014 | JU40: 24 | JV40: =-Male!AG26*1000 -> -73971 | JW40: =Female!AG26*1000 -> 72291 | KD40: 24 | KE40: =-Male!AH26*1000 -> -74693 | KF40: =Female!AH26*1000 -> 72940 | KM40: 24 | KN40: =-Male!AI26*1000 -> -81236 | KO40: =Female!AI26*1000 -> 79278 | KV40: 24 | KW40: =-Male!AJ26*1000 -> -91417 | KX40: =Female!AJ26*1000 -> 89175 | LE40: 24 | LF40: =-Male!AK26*1000 -> -101042 | LG40: =Female!AK26*1000 -> 98496 | LN40: 24 | LO40: =-Male!AL26*1000 -> -110989 | LP40: =Female!AL26*1000 -> 108061 | LW40: 24 | LX40: =-Male!AM26*1000 -> -118195 | LY40: =Female!AM26*1000 -> 114934
B41: 25 | C41: =-Male!B27*1000 -> -47008 | D41: =Female!B27*1000 -> 46955 | K41: 25 | L41: =-Male!C27*1000 -> -48197 | M41: =Female!C27*1000 -> 48012 | T41: 25 | U41: =-Male!D27*1000 -> -49304 | V41: =Female!D27*1000 -> 48973 | AC41: 25 | AD41: =-Male!E27*1000 -> -50253 | AE41: =Female!E27*1000 -> 49812 | AL41: 25 | AM41: =-Male!F27*1000 -> -51114 | AN41: =Female!F27*1000 -> 50625 | AU41: 25 | AV41: =-Male!G27*1000 -> -52034 | AW41: =Female!G27*1000 -> 51526 | BD41: 25 | BE41: =-Male!H27*1000 -> -52789 | BF41: =Female!H27*1000 -> 52211 | BM41: 25 | BN41: =-Male!I27*1000 -> -53713 | BO41: =Female!I27*1000 -> 53070 | BV41: 25 | BW41: =-Male!J27*1000 -> -55032 | BX41: =Female!J27*1000 -> 54310 | CE41: 25 | CF41: =-Male!K27*1000 -> -56744 | CG41: =Female!K27*1000 -> 55917 | CN41: 25 | CO41: =-Male!L27*1000 -> -58568 | CP41: =Female!L27*1000 -> 57618 | CW41: 25 | CX41: =-Male!M27*1000 -> -60457 | CY41: =Female!M27*1000 -> 59384 | DF41: 25 | DG41: =-Male!N27*1000 -> -62012 | DH41: =Female!N27*1000 -> 60802 | DO41: 25 | DP41: =-Male!O27*1000 -> -63076 | DQ41: =Female!O27*1000 -> 61725 | DX41: 25 | DY41: =-Male!P27*1000 -> -63734 | DZ41: =Female!P27*1000 -> 62253 | EG41: 25 | EH41: =-Male!Q27*1000 -> -64258 | EI41: =Female!Q27*1000 -> 62660 | EP41: 25 | EQ41: =-Male!R27*1000 -> -64386 | ER41: =Female!R27*1000 -> 62626 | EY41: 25 | EZ41: =-Male!S27*1000 -> -65041 | FA41: =Female!S27*1000 -> 63108 | FH41: 25 | FI41: =-Male!T27*1000 -> -65727 | FJ41: =Female!T27*1000 -> 63595 | FQ41: 25 | FR41: =-Male!U27*1000 -> -66053 | FS41: =Female!U27*1000 -> 63718 | FZ41: 25 | GA41: =-Male!V27*1000 -> -66065 | GB41: =Female!V27*1000 -> 63568 | GI41: 25 | GJ41: =-Male!W27*1000 -> -66461 | GK41: =Female!W27*1000 -> 63863 | GR41: 25 | GS41: =-Male!X27*1000 -> -66365 | GT41: =Female!X27*1000 -> 63674 | HA41: 25 | HB41: =-Male!Y27*1000 -> -67033 | HC41: =Female!Y27*1000 -> 64373 | HJ41: 25 | HK41: =-Male!Z27*1000 -> -69174 | HL41: =Female!Z27*1000 -> 66720 | HS41: 25 | HT41: =-Male!AA27*1000 -> -72276 | HU41: =Female!AA27*1000 -> 70130 | IB41: 25 | IC41: =-Male!AB27*1000 -> -75347 | ID41: =Female!AB27*1000 -> 73448 | IK41: 25 | IL41: =-Male!AC27*1000 -> -79316 | IM41: =Female!AC27*1000 -> 77638 | IT41: 25 | IU41: =-Male!AD27*1000 -> -81617 | IV41: =Female!AD27*1000 -> 80068 | JC41: 25 | JD41: =-Male!AE27*1000 -> -80839 | JE41: =Female!AE27*1000 -> 79301 | JL41: 25 | JM41: =-Male!AF27*1000 -> -78260 | JN41: =Female!AF27*1000 -> 76663 | JU41: 25 | JV41: =-Male!AG27*1000 -> -76193 | JW41: =Female!AG27*1000 -> 74612 | KD41: 25 | KE41: =-Male!AH27*1000 -> -73101 | KF41: =Female!AH27*1000 -> 71567 | KM41: 25 | KN41: =-Male!AI27*1000 -> -73664 | KO41: =Female!AI27*1000 -> 72069 | KV41: 25 | KW41: =-Male!AJ27*1000 -> -80292 | KX41: =Female!AJ27*1000 -> 78485 | LE41: 25 | LF41: =-Male!AK27*1000 -> -90709 | LG41: =Female!AK27*1000 -> 88591 | LN41: 25 | LO41: =-Male!AL27*1000 -> -100378 | LP41: =Female!AL27*1000 -> 97894 | LW41: 25 | LX41: =-Male!AM27*1000 -> -110672 | LY41: =Female!AM27*1000 -> 107766
B42: 26 | C42: =-Male!B28*1000 -> -45767 | D42: =Female!B28*1000 -> 45873 | K42: 26 | L42: =-Male!C28*1000 -> -46903 | M42: =Female!C28*1000 -> 46871 | T42: 26 | U42: =-Male!D28*1000 -> -47915 | V42: =Female!D28*1000 -> 47755 | AC42: 26 | AD42: =-Male!E28*1000 -> -48922 | AE42: =Female!E28*1000 -> 48635 | AL42: 26 | AM42: =-Male!F28*1000 -> -49915 | AN42: =Female!F28*1000 -> 49537 | AU42: 26 | AV42: =-Male!G28*1000 -> -50880 | AW42: =Female!G28*1000 -> 50462 | BD42: 26 | BE42: =-Male!H28*1000 -> -51580 | BF42: =Female!H28*1000 -> 51114 | BM42: 26 | BN42: =-Male!I28*1000 -> -52527 | BO42: =Female!I28*1000 -> 52008 | BV42: 26 | BW42: =-Male!J28*1000 -> -53534 | BX42: =Female!J28*1000 -> 52952 | CE42: 26 | CF42: =-Male!K28*1000 -> -54780 | CG42: =Female!K28*1000 -> 54114 | CN42: 26 | CO42: =-Male!L28*1000 -> -56333 | CP42: =Female!L28*1000 -> 55559 | CW42: 26 | CX42: =-Male!M28*1000 -> -58266 | CY42: =Female!M28*1000 -> 57372 | DF42: 26 | DG42: =-Male!N28*1000 -> -59791 | DH42: =Female!N28*1000 -> 58763 | DO42: 26 | DP42: =-Male!O28*1000 -> -61152 | DQ42: =Female!O28*1000 -> 59975 | DX42: 26 | DY42: =-Male!P28*1000 -> -62292 | DZ42: =Female!P28*1000 -> 60966 | EG42: 26 | EH42: =-Male!Q28*1000 -> -63139 | EI42: =Female!Q28*1000 -> 61676 | EP42: 26 | EQ42: =-Male!R28*1000 -> -63180 | ER42: =Female!R28*1000 -> 61551 | EY42: 26 | EZ42: =-Male!S28*1000 -> -63740 | FA42: =Female!S28*1000 -> 61924 | FH42: 26 | FI42: =-Male!T28*1000 -> -64620 | FJ42: =Female!T28*1000 -> 62620 | FQ42: 26 | FR42: =-Male!U28*1000 -> -65230 | FS42: =Female!U28*1000 -> 63044 | FZ42: 26 | GA42: =-Male!V28*1000 -> -65364 | GB42: =Female!V28*1000 -> 63006 | GI42: 26 | GJ42: =-Male!W28*1000 -> -65768 | GK42: =Female!W28*1000 -> 63303 | GR42: 26 | GS42: =-Male!X28*1000 -> -65884 | GT42: =Female!X28*1000 -> 63343 | HA42: 26 | HB42: =-Male!Y28*1000 -> -65634 | HC42: =Female!Y28*1000 -> 63013 | HJ42: 26 | HK42: =-Male!Z28*1000 -> -66359 | HL42: =Female!Z28*1000 -> 63764 | HS42: 26 | HT42: =-Male!AA28*1000 -> -68637 | HU42: =Female!AA28*1000 -> 66237 | IB42: 26 | IC42: =-Male!AB28*1000 -> -71624 | ID42: =Female!AB28*1000 -> 69505 | IK42: 26 | IL42: =-Male!AC28*1000 -> -74917 | IM42: =Female!AC28*1000 -> 73025 | IT42: 26 | IU42: =-Male!AD28*1000 -> -79012 | IV42: =Female!AD28*1000 -> 77334 | JC42: 26 | JD42: =-Male!AE28*1000 -> -81205 | JE42: =Female!AE28*1000 -> 79674 | JL42: 26 | JM42: =-Male!AF28*1000 -> -80210 | JN42: =Female!AF28*1000 -> 78720 | JU42: 26 | JV42: =-Male!AG28*1000 -> -77747 | JW42: =Female!AG28*1000 -> 76273 | KD42: 26 | KE42: =-Male!AH28*1000 -> -75321 | KF42: =Female!AH28*1000 -> 73890 | KM42: 26 | KN42: =-Male!AI28*1000 -> -72084 | KO42: =Female!AI28*1000 -> 70704 | KV42: 26 | KW42: =-Male!AJ28*1000 -> -72751 | KX42: =Female!AJ28*1000 -> 71295 | LE42: 26 | LF42: =-Male!AK28*1000 -> -79591 | LG42: =Female!AK28*1000 -> 77898 | LN42: 26 | LO42: =-Male!AL28*1000 -> -90098 | LP42: =Female!AL28*1000 -> 88033 | LW42: 26 | LX42: =-Male!AM28*1000 -> -100077 | LY42: =Female!AM28*1000 -> 97610
B43: 27 | C43: =-Male!B29*1000 -> -44709 | D43: =Female!B29*1000 -> 44858 | K43: 27 | L43: =-Male!C29*1000 -> -45661 | M43: =Female!C29*1000 -> 45786 | T43: 27 | U43: =-Male!D29*1000 -> -46624 | V43: =Female!D29*1000 -> 46616 | AC43: 27 | AD43: =-Male!E29*1000 -> -47538 | AE43: =Female!E29*1000 -> 47421 | AL43: 27 | AM43: =-Male!F29*1000 -> -48587 | AN43: =Female!F29*1000 -> 48361 | AU43: 27 | AV43: =-Male!G29*1000 -> -49680 | AW43: =Female!G29*1000 -> 49372 | BD43: 27 | BE43: =-Male!H29*1000 -> -50432 | BF43: =Female!H29*1000 -> 50055 | BM43: 27 | BN43: =-Male!I29*1000 -> -51320 | BO43: =Female!I29*1000 -> 50910 | BV43: 27 | BW43: =-Male!J29*1000 -> -52347 | BX43: =Female!J29*1000 -> 51887 | CE43: 27 | CF43: =-Male!K29*1000 -> -53282 | CG43: =Female!K29*1000 -> 52755 | CN43: 27 | CO43: =-Male!L29*1000 -> -54375 | CP43: =Female!L29*1000 -> 53760 | CW43: 27 | CX43: =-Male!M29*1000 -> -56026 | CY43: =Female!M29*1000 -> 55306 | DF43: 27 | DG43: =-Male!N29*1000 -> -57608 | DH43: =Female!N29*1000 -> 56756 | DO43: 27 | DP43: =-Male!O29*1000 -> -58943 | DQ43: =Female!O29*1000 -> 57946 | DX43: 27 | DY43: =-Male!P29*1000 -> -60377 | DZ43: =Female!P29*1000 -> 59222 | EG43: 27 | EH43: =-Male!Q29*1000 -> -61702 | EI43: =Female!Q29*1000 -> 60388 | EP43: 27 | EQ43: =-Male!R29*1000 -> -62072 | ER43: =Female!R29*1000 -> 60579 | EY43: 27 | EZ43: =-Male!S29*1000 -> -62537 | FA43: =Female!S29*1000 -> 60854 | FH43: 27 | FI43: =-Male!T29*1000 -> -63315 | FJ43: =Female!T29*1000 -> 61435 | FQ43: 27 | FR43: =-Male!U29*1000 -> -64123 | FS43: =Female!U29*1000 -> 62068 | FZ43: 27 | GA43: =-Male!V29*1000 -> -64549 | GB43: =Female!V29*1000 -> 62333 | GI43: 27 | GJ43: =-Male!W29*1000 -> -65068 | GK43: =Female!W29*1000 -> 62744 | GR43: 27 | GS43: =-Male!X29*1000 -> -65192 | GT43: =Female!X29*1000 -> 62787 | HA43: 27 | HB43: =-Male!Y29*1000 -> -65153 | HC43: =Female!Y29*1000 -> 62685 | HJ43: 27 | HK43: =-Male!Z29*1000 -> -64966 | HL43: =Female!Z29*1000 -> 62409 | HS43: 27 | HT43: =-Male!AA29*1000 -> -65830 | HU43: =Female!AA29*1000 -> 63284 | IB43: 27 | IC43: =-Male!AB29*1000 -> -68002 | ID43: =Female!AB29*1000 -> 65631 | IK43: 27 | IL43: =-Male!AC29*1000 -> -71199 | IM43: =Female!AC29*1000 -> 69087 | IT43: 27 | IU43: =-Male!AD29*1000 -> -74609 | IV43: =Female!AD29*1000 -> 72718 | JC43: 27 | JD43: =-Male!AE29*1000 -> -78603 | JE43: =Female!AE29*1000 -> 76942 | JL43: 27 | JM43: =-Male!AF29*1000 -> -80579 | JN43: =Female!AF29*1000 -> 79093 | JU43: 27 | JV43: =-Male!AG29*1000 -> -79710 | JW43: =Female!AG29*1000 -> 78345 | KD43: 27 | KE43: =-Male!AH29*1000 -> -76877 | KF43: =Female!AH29*1000 -> 75555 | KM43: 27 | KN43: =-Male!AI29*1000 -> -74297 | KO43: =Female!AI29*1000 -> 73023 | KV43: 27 | KW43: =-Male!AJ29*1000 -> -71180 | KX43: =Female!AJ29*1000 -> 69937 | LE43: 27 | LF43: =-Male!AK29*1000 -> -72058 | LG43: =Female!AK29*1000 -> 70708 | LN43: 27 | LO43: =-Male!AL29*1000 -> -79039 | LP43: =Female!AL29*1000 -> 77388 | LW43: 27 | LX43: =-Male!AM29*1000 -> -89813 | LY43: =Female!AM29*1000 -> 87761
B44: 28 | C44: =-Male!B30*1000 -> -43910 | D44: =Female!B30*1000 -> 43929 | K44: 28 | L44: =-Male!C30*1000 -> -44601 | M44: =Female!C30*1000 -> 44768 | T44: 28 | U44: =-Male!D30*1000 -> -45386 | V44: =Female!D30*1000 -> 45533 | AC44: 28 | AD44: =-Male!E30*1000 -> -46253 | AE44: =Female!E30*1000 -> 46284 | AL44: 28 | AM44: =-Male!F30*1000 -> -47208 | AN44: =Female!F30*1000 -> 47148 | AU44: 28 | AV44: =-Male!G30*1000 -> -48352 | AW44: =Female!G30*1000 -> 48194 | BD44: 28 | BE44: =-Male!H30*1000 -> -49238 | BF44: =Female!H30*1000 -> 48969 | BM44: 28 | BN44: =-Male!I30*1000 -> -50174 | BO44: =Female!I30*1000 -> 49851 | BV44: 28 | BW44: =-Male!J30*1000 -> -51139 | BX44: =Female!J30*1000 -> 50787 | CE44: 28 | CF44: =-Male!K30*1000 -> -52095 | CG44: =Female!K30*1000 -> 51688 | CN44: 28 | CO44: =-Male!L30*1000 -> -52882 | CP44: =Female!L30*1000 -> 52403 | CW44: 28 | CX44: =-Male!M30*1000 -> -54064 | CY44: =Female!M30*1000 -> 53503 | DF44: 28 | DG44: =-Male!N30*1000 -> -55376 | DH44: =Female!N30*1000 -> 54698 | DO44: 28 | DP44: =-Male!O30*1000 -> -56773 | DQ44: =Female!O30*1000 -> 55952 | DX44: 28 | DY44: =-Male!P30*1000 -> -58177 | DZ44: =Female!P30*1000 -> 57203 | EG44: 28 | EH44: =-Male!Q30*1000 -> -59791 | EI44: =Female!Q30*1000 -> 58646 | EP44: 28 | EQ44: =-Male!R30*1000 -> -60651 | ER44: =Female!R30*1000 -> 59307 | EY44: 28 | EZ44: =-Male!S30*1000 -> -61433 | FA44: =Female!S30*1000 -> 59888 | FH44: 28 | FI44: =-Male!T30*1000 -> -62110 | FJ44: =Female!T30*1000 -> 60366 | FQ44: 28 | FR44: =-Male!U30*1000 -> -62815 | FS44: =Female!U30*1000 -> 60883 | FZ44: 28 | GA44: =-Male!V30*1000 -> -63446 | GB44: =Female!V30*1000 -> 61358 | GI44: 28 | GJ44: =-Male!W30*1000 -> -64254 | GK44: =Female!W30*1000 -> 62072 | GR44: 28 | GS44: =-Male!X30*1000 -> -64496 | GT44: =Female!X30*1000 -> 62232 | HA44: 28 | HB44: =-Male!Y30*1000 -> -64466 | HC44: =Female!Y30*1000 -> 62133 | HJ44: 28 | HK44: =-Male!Z30*1000 -> -64486 | HL44: =Female!Z30*1000 -> 62082 | HS44: 28 | HT44: =-Male!AA30*1000 -> -64440 | HU44: =Female!AA30*1000 -> 61929 | IB44: 28 | IC44: =-Male!AB30*1000 -> -65208 | ID44: =Female!AB30*1000 -> 62692 | IK44: 28 | IL44: =-Male!AC30*1000 -> -67582 | IM44: =Female!AC30*1000 -> 65220 | IT44: 28 | IU44: =-Male!AD30*1000 -> -70889 | IV44: =Female!AD30*1000 -> 68780 | JC44: 28 | JD44: =-Male!AE30*1000 -> -74202 | JE44: =Female!AE30*1000 -> 72328 | JL44: 28 | JM44: =-Male!AF30*1000 -> -77986 | JN44: =Female!AF30*1000 -> 76370 | JU44: 28 | JV44: =-Male!AG30*1000 -> -80089 | JW44: =Female!AG30*1000 -> 78729 | KD44: 28 | KE44: =-Male!AH30*1000 -> -78843 | KF44: =Female!AH30*1000 -> 77633 | KM44: 28 | KN44: =-Male!AI30*1000 -> -75853 | KO44: =Female!AI30*1000 -> 74690 | KV44: 28 | KW44: =-Male!AJ30*1000 -> -73390 | KX44: =Female!AJ30*1000 -> 72256 | LE44: 28 | LF44: =-Male!AK30*1000 -> -70492 | LG44: =Female!AK30*1000 -> 69354 | LN44: 28 | LO44: =-Male!AL30*1000 -> -71545 | LP44: =Female!AL30*1000 -> 70231 | LW44: 28 | LX44: =-Male!AM30*1000 -> -78772 | LY44: =Female!AM30*1000 -> 77129
B45: 29 | C45: =-Male!B31*1000 -> -43297 | D45: =Female!B31*1000 -> 43076 | K45: 29 | L45: =-Male!C31*1000 -> -43798 | M45: =Female!C31*1000 -> 43836 | T45: 29 | U45: =-Male!D31*1000 -> -44328 | V45: =Female!D31*1000 -> 44516 | AC45: 29 | AD45: =-Male!E31*1000 -> -45021 | AE45: =Female!E31*1000 -> 45204 | AL45: 29 | AM45: =-Male!F31*1000 -> -45927 | AN45: =Female!F31*1000 -> 46014 | AU45: 29 | AV45: =-Male!G31*1000 -> -46975 | AW45: =Female!G31*1000 -> 46981 | BD45: 29 | BE45: =-Male!H31*1000 -> -47915 | BF45: =Female!H31*1000 -> 47795 | BM45: 29 | BN45: =-Male!I31*1000 -> -48980 | BO45: =Female!I31*1000 -> 48765 | BV45: 29 | BW45: =-Male!J31*1000 -> -49992 | BX45: =Female!J31*1000 -> 49726 | CE45: 29 | CF45: =-Male!K31*1000 -> -50888 | CG45: =Female!K31*1000 -> 50588 | CN45: 29 | CO45: =-Male!L31*1000 -> -51698 | CP45: =Female!L31*1000 -> 51338 | CW45: 29 | CX45: =-Male!M31*1000 -> -52569 | CY45: =Female!M31*1000 -> 52144 | DF45: 29 | DG45: =-Male!N31*1000 -> -53422 | DH45: =Female!N31*1000 -> 52903 | DO45: 29 | DP45: =-Male!O31*1000 -> -54557 | DQ45: =Female!O31*1000 -> 53909 | DX45: 29 | DY45: =-Male!P31*1000 -> -56019 | DZ45: =Female!P31*1000 -> 55219 | EG45: 29 | EH45: =-Male!Q31*1000 -> -57593 | EI45: =Female!Q31*1000 -> 56629 | EP45: 29 | EQ45: =-Male!R31*1000 -> -58760 | ER45: =Female!R31*1000 -> 57585 | EY45: 29 | EZ45: =-Male!S31*1000 -> -60018 | FA45: =Female!S31*1000 -> 58623 | FH45: 29 | FI45: =-Male!T31*1000 -> -61007 | FJ45: =Female!T31*1000 -> 59402 | FQ45: 29 | FR45: =-Male!U31*1000 -> -61611 | FS45: =Female!U31*1000 -> 59815 | FZ45: 29 | GA45: =-Male!V31*1000 -> -62140 | GB45: =Female!V31*1000 -> 60175 | GI45: 29 | GJ45: =-Male!W31*1000 -> -63151 | GK45: =Female!W31*1000 -> 61099 | GR45: 29 | GS45: =-Male!X31*1000 -> -63686 | GT45: =Female!X31*1000 -> 61566 | HA45: 29 | HB45: =-Male!Y31*1000 -> -63775 | HC45: =Female!Y31*1000 -> 61584 | HJ45: 29 | HK45: =-Male!Z31*1000 -> -63802 | HL45: =Female!Z31*1000 -> 61535 | HS45: 29 | HT45: =-Male!AA31*1000 -> -63959 | HU45: =Female!AA31*1000 -> 61605 | IB45: 29 | IC45: =-Male!AB31*1000 -> -63826 | ID45: =Female!AB31*1000 -> 61346 | IK45: 29 | IL45: =-Male!AC31*1000 -> -64792 | IM45: =Female!AC31*1000 -> 62288 | IT45: 29 | IU45: =-Male!AD31*1000 -> -67271 | IV45: =Female!AD31*1000 -> 64914 | JC45: 29 | JD45: =-Male!AE31*1000 -> -70484 | JE45: =Female!AE31*1000 -> 68394 | JL45: 29 | JM45: =-Male!AF31*1000 -> -73598 | JN45: =Female!AF31*1000 -> 71769 | JU45: 29 | JV45: =-Male!AG31*1000 -> -77500 | JW45: =Female!AG31*1000 -> 76008 | KD45: 29 | KE45: =-Male!AH31*1000 -> -79230 | KF45: =Female!AH31*1000 -> 78026 | KM45: 29 | KN45: =-Male!AI31*1000 -> -77818 | KO45: =Female!AI31*1000 -> 76770 | KV45: 29 | KW45: =-Male!AJ31*1000 -> -74947 | KX45: =Female!AJ31*1000 -> 73926 | LE45: 29 | LF45: =-Male!AK31*1000 -> -72705 | LG45: =Female!AK31*1000 -> 71679 | LN45: 29 | LO45: =-Male!AL31*1000 -> -69987 | LP45: =Female!AL31*1000 -> 68884 | LW45: 29 | LX45: =-Male!AM31*1000 -> -71290 | LY45: =Female!AM31*1000 -> 69981
B46: 30 | C46: =-Male!B32*1000 -> -42706 | D46: =Female!B32*1000 -> 42235 | K46: 30 | L46: =-Male!C32*1000 -> -43181 | M46: =Female!C32*1000 -> 42979 | T46: 30 | U46: =-Male!D32*1000 -> -43524 | V46: =Female!D32*1000 -> 43583 | AC46: 30 | AD46: =-Male!E32*1000 -> -43967 | AE46: =Female!E32*1000 -> 44191 | AL46: 30 | AM46: =-Male!F32*1000 -> -44700 | AN46: =Female!F32*1000 -> 44936 | AU46: 30 | AV46: =-Male!G32*1000 -> -45696 | AW46: =Female!G32*1000 -> 45845 | BD46: 30 | BE46: =-Male!H32*1000 -> -46543 | BF46: =Female!H32*1000 -> 46585 | BM46: 30 | BN46: =-Male!I32*1000 -> -47658 | BO46: =Female!I32*1000 -> 47590 | BV46: 30 | BW46: =-Male!J32*1000 -> -48799 | BX46: =Female!J32*1000 -> 48638 | CE46: 30 | CF46: =-Male!K32*1000 -> -49743 | CG46: =Female!K32*1000 -> 49527 | CN46: 30 | CO46: =-Male!L32*1000 -> -50494 | CP46: =Female!L32*1000 -> 50240 | CW46: 30 | CX46: =-Male!M32*1000 -> -51385 | CY46: =Female!M32*1000 -> 51078 | DF46: 30 | DG46: =-Male!N32*1000 -> -51934 | DH46: =Female!N32*1000 -> 51549 | DO46: 30 | DP46: =-Male!O32*1000 -> -52617 | DQ46: =Female!O32*1000 -> 52127 | DX46: 30 | DY46: =-Male!P32*1000 -> -53815 | DZ46: =Female!P32*1000 -> 53188 | EG46: 30 | EH46: =-Male!Q32*1000 -> -55439 | EI46: =Female!Q32*1000 -> 54650 | EP46: 30 | EQ46: =-Male!R32*1000 -> -56586 | ER46: =Female!R32*1000 -> 55590 | EY46: 30 | EZ46: =-Male!S32*1000 -> -58134 | FA46: =Female!S32*1000 -> 56909 | FH46: 30 | FI46: =-Male!T32*1000 -> -59592 | FJ46: =Female!T32*1000 -> 58140 | FQ46: 30 | FR46: =-Male!U32*1000 -> -60509 | FS46: =Female!U32*1000 -> 58855 | FZ46: 30 | GA46: =-Male!V32*1000 -> -60938 | GB46: =Female!V32*1000 -> 59111 | GI46: 30 | GJ46: =-Male!W32*1000 -> -61846 | GK46: =Female!W32*1000 -> 59916 | GR46: 30 | GS46: =-Male!X32*1000 -> -62589 | GT46: =Female!X32*1000 -> 60597 | HA46: 30 | HB46: =-Male!Y32*1000 -> -62971 | HC46: =Female!Y32*1000 -> 60924 | HJ46: 30 | HK46: =-Male!Z32*1000 -> -63115 | HL46: =Female!Z32*1000 -> 60991 | HS46: 30 | HT46: =-Male!AA32*1000 -> -63277 | HU46: =Female!AA32*1000 -> 61060 | IB46: 30 | IC46: =-Male!AB32*1000 -> -63351 | ID46: =Female!AB32*1000 -> 61026 | IK46: 30 | IL46: =-Male!AC32*1000 -> -63414 | IM46: =Female!AC32*1000 -> 60946 | IT46: 30 | IU46: =-Male!AD32*1000 -> -64482 | IV46: =Female!AD32*1000 -> 61983 | JC46: 30 | JD46: =-Male!AE32*1000 -> -66870 | JE46: =Female!AE32*1000 -> 64533 | JL46: 30 | JM46: =-Male!AF32*1000 -> -69893 | JN46: =Female!AF32*1000 -> 67848 | JU46: 30 | JV46: =-Male!AG32*1000 -> -73113 | JW46: =Female!AG32*1000 -> 71404 | KD46: 30 | KE46: =-Male!AH32*1000 -> -76657 | KF46: =Female!AH32*1000 -> 75319 | KM46: 30 | KN46: =-Male!AI32*1000 -> -78212 | KO46: =Female!AI32*1000 -> 77172 | KV46: 30 | KW46: =-Male!AJ32*1000 -> -76914 | KX46: =Female!AJ32*1000 -> 76010 | LE46: 30 | LF46: =-Male!AK32*1000 -> -74269 | LG46: =Female!AK32*1000 -> 73357 | LN46: 30 | LO46: =-Male!AL32*1000 -> -72187 | LP46: =Female!AL32*1000 -> 71199 | LW46: 30 | LX46: =-Male!AM32*1000 -> -69734 | LY46: =Female!AM32*1000 -> 68637
B47: 31 | C47: =-Male!B33*1000 -> -42149 | D47: =Female!B33*1000 -> 41377 | K47: 31 | L47: =-Male!C33*1000 -> -42585 | M47: =Female!C33*1000 -> 42134 | T47: 31 | U47: =-Male!D33*1000 -> -42904 | V47: =Female!D33*1000 -> 42725 | AC47: 31 | AD47: =-Male!E33*1000 -> -43164 | AE47: =Female!E33*1000 -> 43259 | AL47: 31 | AM47: =-Male!F33*1000 -> -43649 | AN47: =Female!F33*1000 -> 43924 | AU47: 31 | AV47: =-Male!G33*1000 -> -44471 | AW47: =Female!G33*1000 -> 44767 | BD47: 31 | BE47: =-Male!H33*1000 -> -45269 | BF47: =Female!H33*1000 -> 45453 | BM47: 31 | BN47: =-Male!I33*1000 -> -46286 | BO47: =Female!I33*1000 -> 46379 | BV47: 31 | BW47: =-Male!J33*1000 -> -47475 | BX47: =Female!J33*1000 -> 47461 | CE47: 31 | CF47: =-Male!K33*1000 -> -48550 | CG47: =Female!K33*1000 -> 48439 | CN47: 31 | CO47: =-Male!L33*1000 -> -49354 | CP47: =Female!L33*1000 -> 49182 | CW47: 31 | CX47: =-Male!M33*1000 -> -50181 | CY47: =Female!M33*1000 -> 49980 | DF47: 31 | DG47: =-Male!N33*1000 -> -50757 | DH47: =Female!N33*1000 -> 50489 | DO47: 31 | DP47: =-Male!O33*1000 -> -51141 | DQ47: =Female!O33*1000 -> 50785 | DX47: 31 | DY47: =-Male!P33*1000 -> -51887 | DZ47: =Female!P33*1000 -> 51417 | EG47: 31 | EH47: =-Male!Q33*1000 -> -53241 | EI47: =Female!Q33*1000 -> 52624 | EP47: 31 | EQ47: =-Male!R33*1000 -> -54456 | ER47: =Female!R33*1000 -> 53634 | EY47: 31 | EZ47: =-Male!S33*1000 -> -55969 | FA47: =Female!S33*1000 -> 54923 | FH47: 31 | FI47: =-Male!T33*1000 -> -57709 | FJ47: =Female!T33*1000 -> 56428 | FQ47: 31 | FR47: =-Male!U33*1000 -> -59096 | FS47: =Female!U33*1000 -> 57597 | FZ47: 31 | GA47: =-Male!V33*1000 -> -59841 | GB47: =Female!V33*1000 -> 58157 | GI47: 31 | GJ47: =-Male!W33*1000 -> -60646 | GK47: =Female!W33*1000 -> 58854 | GR47: 31 | GS47: =-Male!X33*1000 -> -61290 | GT47: =Female!X33*1000 -> 59419 | HA47: 31 | HB47: =-Male!Y33*1000 -> -61882 | HC47: =Female!Y33*1000 -> 59962 | HJ47: 31 | HK47: =-Male!Z33*1000 -> -62317 | HL47: =Female!Z33*1000 -> 60337 | HS47: 31 | HT47: =-Male!AA33*1000 -> -62593 | HU47: =Female!AA33*1000 -> 60520 | IB47: 31 | IC47: =-Male!AB33*1000 -> -62674 | ID47: =Female!AB33*1000 -> 60487 | IK47: 31 | IL47: =-Male!AC33*1000 -> -62942 | IM47: =Female!AC33*1000 -> 60630 | IT47: 31 | IU47: =-Male!AD33*1000 -> -63105 | IV47: =Female!AD33*1000 -> 60644 | JC47: 31 | JD47: =-Male!AE33*1000 -> -64085 | JE47: =Female!AE33*1000 -> 61607 | JL47: 31 | JM47: =-Male!AF33*1000 -> -66293 | JN47: =Female!AF33*1000 -> 64001 | JU47: 31 | JV47: =-Male!AG33*1000 -> -69410 | JW47: =Female!AG33*1000 -> 67482 | KD47: 31 | KE47: =-Male!AH33*1000 -> -72291 | KF47: =Female!AH33*1000 -> 70731 | KM47: 31 | KN47: =-Male!AI33*1000 -> -75660 | KO47: =Female!AI33*1000 -> 74483 | KV47: 31 | KW47: =-Male!AJ33*1000 -> -77317 | KX47: =Female!AJ33*1000 -> 76421 | LE47: 31 | LF47: =-Male!AK33*1000 -> -76244 | LG47: =Female!AK33*1000 -> 75451 | LN47: 31 | LO47: =-Male!AL33*1000 -> -73742 | LP47: =Female!AL33*1000 -> 72871 | LW47: 31 | LX47: =-Male!AM33*1000 -> -71930 | LY47: =Female!AM33*1000 -> 70951
B48: 32 | C48: =-Male!B34*1000 -> -41664 | D48: =Female!B34*1000 -> 40695 | K48: 32 | L48: =-Male!C34*1000 -> -42022 | M48: =Female!C34*1000 -> 41272 | T48: 32 | U48: =-Male!D34*1000 -> -42305 | V48: =Female!D34*1000 -> 41880 | AC48: 32 | AD48: =-Male!E34*1000 -> -42542 | AE48: =Female!E34*1000 -> 42401 | AL48: 32 | AM48: =-Male!F34*1000 -> -42846 | AN48: =Female!F34*1000 -> 42992 | AU48: 32 | AV48: =-Male!G34*1000 -> -43421 | AW48: =Female!G34*1000 -> 43754 | BD48: 32 | BE48: =-Male!H34*1000 -> -44048 | BF48: =Female!H34*1000 -> 44379 | BM48: 32 | BN48: =-Male!I34*1000 -> -45011 | BO48: =Female!I34*1000 -> 45246 | BV48: 32 | BW48: =-Male!J34*1000 -> -46100 | BX48: =Female!J34*1000 -> 46246 | CE48: 32 | CF48: =-Male!K34*1000 -> -47226 | CG48: =Female!K34*1000 -> 47260 | CN48: 32 | CO48: =-Male!L34*1000 -> -48166 | CP48: =Female!L34*1000 -> 48097 | CW48: 32 | CX48: =-Male!M34*1000 -> -49041 | CY48: =Female!M34*1000 -> 48924 | DF48: 32 | DG48: =-Male!N34*1000 -> -49560 | DH48: =Female!N34*1000 -> 49399 | DO48: 32 | DP48: =-Male!O34*1000 -> -49974 | DQ48: =Female!O34*1000 -> 49734 | DX48: 32 | DY48: =-Male!P34*1000 -> -50420 | DZ48: =Female!P34*1000 -> 50084 | EG48: 32 | EH48: =-Male!Q34*1000 -> -51318 | EI48: =Female!Q34*1000 -> 50859 | EP48: 32 | EQ48: =-Male!R34*1000 -> -52282 | ER48: =Female!R34*1000 -> 51634 | EY48: 32 | EZ48: =-Male!S34*1000 -> -53848 | FA48: =Female!S34*1000 -> 52978 | FH48: 32 | FI48: =-Male!T34*1000 -> -55545 | FJ48: =Female!T34*1000 -> 54444 | FQ48: 32 | FR48: =-Male!U34*1000 -> -57216 | FS48: =Female!U34*1000 -> 55889 | FZ48: 32 | GA48: =-Male!V34*1000 -> -58434 | GB48: =Female!V34*1000 -> 56907 | GI48: 32 | GJ48: =-Male!W34*1000 -> -59550 | GK48: =Female!W34*1000 -> 57903 | GR48: 32 | GS48: =-Male!X34*1000 -> -60097 | GT48: =Female!X34*1000 -> 58363 | HA48: 32 | HB48: =-Male!Y34*1000 -> -60593 | HC48: =Female!Y34*1000 -> 58792 | HJ48: 32 | HK48: =-Male!Z34*1000 -> -61235 | HL48: =Female!Z34*1000 -> 59381 | HS48: 32 | HT48: =-Male!AA34*1000 -> -61799 | HU48: =Female!AA34*1000 -> 59871 | IB48: 32 | IC48: =-Male!AB34*1000 -> -61996 | ID48: =Female!AB34*1000 -> 59955 | IK48: 32 | IL48: =-Male!AC34*1000 -> -62269 | IM48: =Female!AC34*1000 -> 60095 | IT48: 32 | IU48: =-Male!AD34*1000 -> -62635 | IV48: =Female!AD34*1000 -> 60330 | JC48: 32 | JD48: =-Male!AE34*1000 -> -62712 | JE48: =Female!AE34*1000 -> 60272 | JL48: 32 | JM48: =-Male!AF34*1000 -> -63519 | JN48: =Female!AF34*1000 -> 61087 | JU48: 32 | JV48: =-Male!AG34*1000 -> -65813 | JW48: =Female!AG34*1000 -> 63636 | KD48: 32 | KE48: =-Male!AH34*1000 -> -68608 | KF48: =Female!AH34*1000 -> 66825 | KM48: 32 | KN48: =-Male!AI34*1000 -> -71323 | KO48: =Female!AI34*1000 -> 69921 | KV48: 32 | KW48: =-Male!AJ34*1000 -> -74782 | KX48: =Female!AJ34*1000 -> 73748 | LE48: 32 | LF48: =-Male!AK34*1000 -> -76656 | LG48: =Female!AK34*1000 -> 75872 | LN48: 32 | LO48: =-Male!AL34*1000 -> -75706 | LP48: =Female!AL34*1000 -> 74958 | LW48: 32 | LX48: =-Male!AM34*1000 -> -73482 | LY48: =Female!AM34*1000 -> 72623
B49: 33 | C49: =-Male!B35*1000 -> -41250 | D49: =Female!B35*1000 -> 40267 | K49: 33 | L49: =-Male!C35*1000 -> -41531 | M49: =Female!C35*1000 -> 40586 | T49: 33 | U49: =-Male!D35*1000 -> -41739 | V49: =Female!D35*1000 -> 41017 | AC49: 33 | AD49: =-Male!E35*1000 -> -41942 | AE49: =Female!E35*1000 -> 41556 | AL49: 33 | AM49: =-Male!F35*1000 -> -42222 | AN49: =Female!F35*1000 -> 42133 | AU49: 33 | AV49: =-Male!G35*1000 -> -42617 | AW49: =Female!G35*1000 -> 42820 | BD49: 33 | BE49: =-Male!H35*1000 -> -43001 | BF49: =Female!H35*1000 -> 43368 | BM49: 33 | BN49: =-Male!I35*1000 -> -43790 | BO49: =Female!I35*1000 -> 44171 | BV49: 33 | BW49: =-Male!J35*1000 -> -44823 | BX49: =Female!J35*1000 -> 45111 | CE49: 33 | CF49: =-Male!K35*1000 -> -45851 | CG49: =Female!K35*1000 -> 46044 | CN49: 33 | CO49: =-Male!L35*1000 -> -46846 | CP49: =Female!L35*1000 -> 46922 | CW49: 33 | CX49: =-Male!M35*1000 -> -47853 | CY49: =Female!M35*1000 -> 47838 | DF49: 33 | DG49: =-Male!N35*1000 -> -48427 | DH49: =Female!N35*1000 -> 48351 | DO49: 33 | DP49: =-Male!O35*1000 -> -48788 | DQ49: =Female!O35*1000 -> 48654 | DX49: 33 | DY49: =-Male!P35*1000 -> -49262 | DZ49: =Female!P35*1000 -> 49041 | EG49: 33 | EH49: =-Male!Q35*1000 -> -49857 | EI49: =Female!Q35*1000 -> 49532 | EP49: 33 | EQ49: =-Male!R35*1000 -> -50382 | ER49: =Female!R35*1000 -> 49890 | EY49: 33 | EZ49: =-Male!S35*1000 -> -51683 | FA49: =Female!S35*1000 -> 50990 | FH49: 33 | FI49: =-Male!T35*1000 -> -53426 | FJ49: =Female!T35*1000 -> 52502 | FQ49: 33 | FR49: =-Male!U35*1000 -> -55057 | FS49: =Female!U35*1000 -> 53909 | FZ49: 33 | GA49: =-Male!V35*1000 -> -56562 | GB49: =Female!V35*1000 -> 55207 | GI49: 33 | GJ49: =-Male!W35*1000 -> -58145 | GK49: =Female!W35*1000 -> 56653 | GR49: 33 | GS49: =-Male!X35*1000 -> -59007 | GT49: =Female!X35*1000 -> 57419 | HA49: 33 | HB49: =-Male!Y35*1000 -> -59409 | HC49: =Female!Y35*1000 -> 57744 | HJ49: 33 | HK49: =-Male!Z35*1000 -> -59954 | HL49: =Female!Z35*1000 -> 58218 | HS49: 33 | HT49: =-Male!AA35*1000 -> -60722 | HU49: =Female!AA35*1000 -> 58920 | IB49: 33 | IC49: =-Male!AB35*1000 -> -61208 | ID49: =Female!AB35*1000 -> 59310 | IK49: 33 | IL49: =-Male!AC35*1000 -> -61594 | IM49: =Female!AC35*1000 -> 59568 | IT49: 33 | IU49: =-Male!AD35*1000 -> -61964 | IV49: =Female!AD35*1000 -> 59799 | JC49: 33 | JD49: =-Male!AE35*1000 -> -62245 | JE49: =Female!AE35*1000 -> 59961 | JL49: 33 | JM49: =-Male!AF35*1000 -> -62152 | JN49: =Female!AF35*1000 -> 59759 | JU49: 33 | JV49: =-Male!AG35*1000 -> -63044 | JW49: =Female!AG35*1000 -> 60723 | KD49: 33 | KE49: =-Male!AH35*1000 -> -65030 | KF49: =Female!AH35*1000 -> 62998 | KM49: 33 | KN49: =-Male!AI35*1000 -> -67668 | KO49: =Female!AI35*1000 -> 66039 | KV49: 33 | KW49: =-Male!AJ35*1000 -> -70468 | KX49: =Female!AJ35*1000 -> 69205 | LE49: 33 | LF49: =-Male!AK35*1000 -> -74131 | LG49: =Female!AK35*1000 -> 73207 | LN49: 33 | LO49: =-Male!AL35*1000 -> -76113 | LP49: =Female!AL35*1000 -> 75377 | LW49: 33 | LX49: =-Male!AM35*1000 -> -75441 | LY49: =Female!AM35*1000 -> 74708
B50: 34 | C50: =-Male!B36*1000 -> -40878 | D50: =Female!B36*1000 -> 39981 | K50: 34 | L50: =-Male!C36*1000 -> -41110 | M50: =Female!C36*1000 -> 40152 | T50: 34 | U50: =-Male!D36*1000 -> -41245 | V50: =Female!D36*1000 -> 40329 | AC50: 34 | AD50: =-Male!E36*1000 -> -41374 | AE50: =Female!E36*1000 -> 40694 | AL50: 34 | AM50: =-Male!F36*1000 -> -41620 | AN50: =Female!F36*1000 -> 41288 | AU50: 34 | AV50: =-Male!G36*1000 -> -41989 | AW50: =Female!G36*1000 -> 41959 | BD50: 34 | BE50: =-Male!H36*1000 -> -42197 | BF50: =Female!H36*1000 -> 42436 | BM50: 34 | BN50: =-Male!I36*1000 -> -42742 | BO50: =Female!I36*1000 -> 43159 | BV50: 34 | BW50: =-Male!J36*1000 -> -43600 | BX50: =Female!J36*1000 -> 44033 | CE50: 34 | CF50: =-Male!K36*1000 -> -44574 | CG50: =Female!K36*1000 -> 44907 | CN50: 34 | CO50: =-Male!L36*1000 -> -45474 | CP50: =Female!L36*1000 -> 45708 | CW50: 34 | CX50: =-Male!M36*1000 -> -46535 | CY50: =Female!M36*1000 -> 46659 | DF50: 34 | DG50: =-Male!N36*1000 -> -47248 | DH50: =Female!N36*1000 -> 47272 | DO50: 34 | DP50: =-Male!O36*1000 -> -47665 | DQ50: =Female!O36*1000 -> 47618 | DX50: 34 | DY50: =-Male!P36*1000 -> -48085 | DZ50: =Female!P36*1000 -> 47970 | EG50: 34 | EH50: =-Male!Q36*1000 -> -48703 | EI50: =Female!Q36*1000 -> 48494 | EP50: 34 | EQ50: =-Male!R36*1000 -> -48942 | ER50: =Female!R36*1000 -> 48576 | EY50: 34 | EZ50: =-Male!S36*1000 -> -49794 | FA50: =Female!S36*1000 -> 49256 | FH50: 34 | FI50: =-Male!T36*1000 -> -51263 | FJ50: =Female!T36*1000 -> 50520 | FQ50: 34 | FR50: =-Male!U36*1000 -> -52941 | FS50: =Female!U36*1000 -> 51973 | FZ50: 34 | GA50: =-Male!V36*1000 -> -54413 | GB50: =Female!V36*1000 -> 53236 | GI50: 34 | GJ50: =-Male!W36*1000 -> -56276 | GK50: =Female!W36*1000 -> 54950 | GR50: 34 | GS50: =-Male!X36*1000 -> -57610 | GT50: =Female!X36*1000 -> 56174 | HA50: 34 | HB50: =-Male!Y36*1000 -> -58328 | HC50: =Female!Y36*1000 -> 56809 | HJ50: 34 | HK50: =-Male!Z36*1000 -> -58778 | HL50: =Female!Z36*1000 -> 57177 | HS50: 34 | HT50: =-Male!AA36*1000 -> -59446 | HU50: =Female!AA36*1000 -> 57761 | IB50: 34 | IC50: =-Male!AB36*1000 -> -60138 | ID50: =Female!AB36*1000 -> 58362 | IK50: 34 | IL50: =-Male!AC36*1000 -> -60810 | IM50: =Female!AC36*1000 -> 58926 | IT50: 34 | IU50: =-Male!AD36*1000 -> -61292 | IV50: =Female!AD36*1000 -> 59276 | JC50: 34 | JD50: =-Male!AE36*1000 -> -61577 | JE50: =Female!AE36*1000 -> 59434 | JL50: 34 | JM50: =-Male!AF36*1000 -> -61690 | JN50: =Female!AF36*1000 -> 59452 | JU50: 34 | JV50: =-Male!AG36*1000 -> -61687 | JW50: =Female!AG36*1000 -> 59395 | KD50: 34 | KE50: =-Male!AH36*1000 -> -62280 | KF50: =Female!AH36*1000 -> 60098 | KM50: 34 | KN50: =-Male!AI36*1000 -> -64117 | KO50: =Female!AI36*1000 -> 62237 | KV50: 34 | KW50: =-Male!AJ36*1000 -> -66834 | KX50: =Female!AJ36*1000 -> 65343 | LE50: 34 | LF50: =-Male!AK36*1000 -> -69827 | LG50: =Female!AK36*1000 -> 68672 | LN50: 34 | LO50: =-Male!AL36*1000 -> -73600 | LP50: =Female!AL36*1000 -> 72721 | LW50: 34 | LX50: =-Male!AM36*1000 -> -75847 | LY50: =Female!AM36*1000 -> 75126
B51: 35 | C51: =-Male!B37*1000 -> -40532 | D51: =Female!B37*1000 -> 39667 | K51: 35 | L51: =-Male!C37*1000 -> -40731 | M51: =Female!C37*1000 -> 39861 | T51: 35 | U51: =-Male!D37*1000 -> -40818 | V51: =Female!D37*1000 -> 39892 | AC51: 35 | AD51: =-Male!E37*1000 -> -40876 | AE51: =Female!E37*1000 -> 40006 | AL51: 35 | AM51: =-Male!F37*1000 -> -41049 | AN51: =Female!F37*1000 -> 40426 | AU51: 35 | AV51: =-Male!G37*1000 -> -41383 | AW51: =Female!G37*1000 -> 41111 | BD51: 35 | BE51: =-Male!H37*1000 -> -41569 | BF51: =Female!H37*1000 -> 41575 | BM51: 35 | BN51: =-Male!I37*1000 -> -41936 | BO51: =Female!I37*1000 -> 42224 | BV51: 35 | BW51: =-Male!J37*1000 -> -42549 | BX51: =Female!J37*1000 -> 43018 | CE51: 35 | CF51: =-Male!K37*1000 -> -43349 | CG51: =Female!K37*1000 -> 43829 | CN51: 35 | CO51: =-Male!L37*1000 -> -44200 | CP51: =Female!L37*1000 -> 44573 | CW51: 35 | CX51: =-Male!M37*1000 -> -45166 | CY51: =Female!M37*1000 -> 45439 | DF51: 35 | DG51: =-Male!N37*1000 -> -45940 | DH51: =Female!N37*1000 -> 46095 | DO51: 35 | DP51: =-Male!O37*1000 -> -46498 | DQ51: =Female!O37*1000 -> 46549 | DX51: 35 | DY51: =-Male!P37*1000 -> -46971 | DZ51: =Female!P37*1000 -> 46944 | EG51: 35 | EH51: =-Male!Q37*1000 -> -47532 | EI51: =Female!Q37*1000 -> 47429 | EP51: 35 | EQ51: =-Male!R37*1000 -> -47807 | ER51: =Female!R37*1000 -> 47546 | EY51: 35 | EZ51: =-Male!S37*1000 -> -48364 | FA51: =Female!S37*1000 -> 47945 | FH51: 35 | FI51: =-Male!T37*1000 -> -49377 | FJ51: =Female!T37*1000 -> 48789 | FQ51: 35 | FR51: =-Male!U37*1000 -> -50782 | FS51: =Female!U37*1000 -> 49998 | FZ51: 35 | GA51: =-Male!V37*1000 -> -52307 | GB51: =Female!V37*1000 -> 51310 | GI51: 35 | GJ51: =-Male!W37*1000 -> -54129 | GK51: =Female!W37*1000 -> 52973 | GR51: 35 | GS51: =-Male!X37*1000 -> -55751 | GT51: =Female!X37*1000 -> 54474 | HA51: 35 | HB51: =-Male!Y37*1000 -> -56942 | HC51: =Female!Y37*1000 -> 55573 | HJ51: 35 | HK51: =-Male!Z37*1000 -> -57705 | HL51: =Female!Z37*1000 -> 56251 | HS51: 35 | HT51: =-Male!AA37*1000 -> -58276 | HU51: =Female!AA37*1000 -> 56725 | IB51: 35 | IC51: =-Male!AB37*1000 -> -58871 | ID51: =Female!AB37*1000 -> 57205 | IK51: 35 | IL51: =-Male!AC37*1000 -> -59744 | IM51: =Female!AC37*1000 -> 57979 | IT51: 35 | IU51: =-Male!AD37*1000 -> -60510 | IV51: =Female!AD37*1000 -> 58637 | JC51: 35 | JD51: =-Male!AE37*1000 -> -60908 | JE51: =Female!AE37*1000 -> 58916 | JL51: 35 | JM51: =-Male!AF37*1000 -> -61027 | JN51: =Female!AF37*1000 -> 58931 | JU51: 35 | JV51: =-Male!AG37*1000 -> -61237 | JW51: =Female!AG37*1000 -> 59088 | KD51: 35 | KE51: =-Male!AH37*1000 -> -60939 | KF51: =Female!AH37*1000 -> 58776 | KM51: 35 | KN51: =-Male!AI37*1000 -> -61390 | KO51: =Female!AI37*1000 -> 59356 | KV51: 35 | KW51: =-Male!AJ37*1000 -> -63304 | KX51: =Female!AJ37*1000 -> 61561 | LE51: 35 | LF51: =-Male!AK37*1000 -> -66203 | LG51: =Female!AK37*1000 -> 64818 | LN51: 35 | LO51: =-Male!AL37*1000 -> -69317 | LP51: =Female!AL37*1000 -> 68202 | LW51: 35 | LX51: =-Male!AM37*1000 -> -73336 | LY51: =Female!AM37*1000 -> 72472
B52: 36 | C52: =-Male!B38*1000 -> -40223 | D52: =Female!B38*1000 -> 39379 | K52: 36 | L52: =-Male!C38*1000 -> -40377 | M52: =Female!C38*1000 -> 39541 | T52: 36 | U52: =-Male!D38*1000 -> -40432 | V52: =Female!D38*1000 -> 39596 | AC52: 36 | AD52: =-Male!E38*1000 -> -40445 | AE52: =Female!E38*1000 -> 39566 | AL52: 36 | AM52: =-Male!F38*1000 -> -40548 | AN52: =Female!F38*1000 -> 39736 | AU52: 36 | AV52: =-Male!G38*1000 -> -40809 | AW52: =Female!G38*1000 -> 40247 | BD52: 36 | BE52: =-Male!H38*1000 -> -40963 | BF52: =Female!H38*1000 -> 40728 | BM52: 36 | BN52: =-Male!I38*1000 -> -41306 | BO52: =Female!I38*1000 -> 41361 | BV52: 36 | BW52: =-Male!J38*1000 -> -41740 | BX52: =Female!J38*1000 -> 42079 | CE52: 36 | CF52: =-Male!K38*1000 -> -42297 | CG52: =Female!K38*1000 -> 42812 | CN52: 36 | CO52: =-Male!L38*1000 -> -42978 | CP52: =Female!L38*1000 -> 43496 | CW52: 36 | CX52: =-Male!M38*1000 -> -43895 | CY52: =Female!M38*1000 -> 44299 | DF52: 36 | DG52: =-Male!N38*1000 -> -44582 | DH52: =Female!N38*1000 -> 44877 | DO52: 36 | DP52: =-Male!O38*1000 -> -45204 | DQ52: =Female!O38*1000 -> 45380 | DX52: 36 | DY52: =-Male!P38*1000 -> -45814 | DZ52: =Female!P38*1000 -> 45884 | EG52: 36 | EH52: =-Male!Q38*1000 -> -46424 | EI52: =Female!Q38*1000 -> 46411 | EP52: 36 | EQ52: =-Male!R38*1000 -> -46655 | ER52: =Female!R38*1000 -> 46491 | EY52: 36 | EZ52: =-Male!S38*1000 -> -47241 | FA52: =Female!S38*1000 -> 46918 | FH52: 36 | FI52: =-Male!T38*1000 -> -47953 | FJ52: =Female!T38*1000 -> 47479 | FQ52: 36 | FR52: =-Male!U38*1000 -> -48902 | FS52: =Female!U38*1000 -> 48272 | FZ52: 36 | GA52: =-Male!V38*1000 -> -50159 | GB52: =Female!V38*1000 -> 49348 | GI52: 36 | GJ52: =-Male!W38*1000 -> -52026 | GK52: =Female!W38*1000 -> 51041 | GR52: 36 | GS52: =-Male!X38*1000 -> -53616 | GT52: =Female!X38*1000 -> 52499 | HA52: 36 | HB52: =-Male!Y38*1000 -> -55098 | HC52: =Female!Y38*1000 -> 53879 | HJ52: 36 | HK52: =-Male!Z38*1000 -> -56329 | HL52: =Female!Z38*1000 -> 55021 | HS52: 36 | HT52: =-Male!AA38*1000 -> -57208 | HU52: =Female!AA38*1000 -> 55805 | IB52: 36 | IC52: =-Male!AB38*1000 -> -57708 | ID52: =Female!AB38*1000 -> 56171 | IK52: 36 | IL52: =-Male!AC38*1000 -> -58481 | IM52: =Female!AC38*1000 -> 56820 | IT52: 36 | IU52: =-Male!AD38*1000 -> -59447 | IV52: =Female!AD38*1000 -> 57688 | JC52: 36 | JD52: =-Male!AE38*1000 -> -60130 | JE52: =Female!AE38*1000 -> 58280 | JL52: 36 | JM52: =-Male!AF38*1000 -> -60363 | JN52: =Female!AF38*1000 -> 58419 | JU52: 36 | JV52: =-Male!AG38*1000 -> -60586 | JW52: =Female!AG38*1000 -> 58566 | KD52: 36 | KE52: =-Male!AH38*1000 -> -60502 | KF52: =Female!AH38*1000 -> 58470 | KM52: 36 | KN52: =-Male!AI38*1000 -> -60067 | KO52: =Female!AI38*1000 -> 58042 | KV52: 36 | KW52: =-Male!AJ38*1000 -> -60597 | KX52: =Female!AJ38*1000 -> 58695 | LE52: 36 | LF52: =-Male!AK38*1000 -> -62684 | LG52: =Female!AK38*1000 -> 61047 | LN52: 36 | LO52: =-Male!AL38*1000 -> -65710 | LP52: =Female!AL38*1000 -> 64362 | LW52: 36 | LX52: =-Male!AM38*1000 -> -69058 | LY52: =Female!AM38*1000 -> 67955
B53: 37 | C53: =-Male!B39*1000 -> -39818 | D53: =Female!B39*1000 -> 38852 | K53: 37 | L53: =-Male!C39*1000 -> -40060 | M53: =Female!C39*1000 -> 39247 | T53: 37 | U53: =-Male!D39*1000 -> -40072 | V53: =Female!D39*1000 -> 39271 | AC53: 37 | AD53: =-Male!E39*1000 -> -40054 | AE53: =Female!E39*1000 -> 39265 | AL53: 37 | AM53: =-Male!F39*1000 -> -40112 | AN53: =Female!F39*1000 -> 39292 | AU53: 37 | AV53: =-Male!G39*1000 -> -40304 | AW53: =Female!G39*1000 -> 39553 | BD53: 37 | BE53: =-Male!H39*1000 -> -40388 | BF53: =Female!H39*1000 -> 39864 | BM53: 37 | BN53: =-Male!I39*1000 -> -40696 | BO53: =Female!I39*1000 -> 40510 | BV53: 37 | BW53: =-Male!J39*1000 -> -41106 | BX53: =Female!J39*1000 -> 41211 | CE53: 37 | CF53: =-Male!K39*1000 -> -41487 | CG53: =Female!K39*1000 -> 41871 | CN53: 37 | CO53: =-Male!L39*1000 -> -41927 | CP53: =Female!L39*1000 -> 42481 | CW53: 37 | CX53: =-Male!M39*1000 -> -42676 | CY53: =Female!M39*1000 -> 43217 | DF53: 37 | DG53: =-Male!N39*1000 -> -43321 | DH53: =Female!N39*1000 -> 43740 | DO53: 37 | DP53: =-Male!O39*1000 -> -43861 | DQ53: =Female!O39*1000 -> 44168 | DX53: 37 | DY53: =-Male!P39*1000 -> -44532 | DZ53: =Female!P39*1000 -> 44721 | EG53: 37 | EH53: =-Male!Q39*1000 -> -45273 | EI53: =Female!Q39*1000 -> 45356 | EP53: 37 | EQ53: =-Male!R39*1000 -> -45566 | ER53: =Female!R39*1000 -> 45481 | EY53: 37 | EZ53: =-Male!S39*1000 -> -46101 | FA53: =Female!S39*1000 -> 45865 | FH53: 37 | FI53: =-Male!T39*1000 -> -46838 | FJ53: =Female!T39*1000 -> 46449 | FQ53: 37 | FR53: =-Male!U39*1000 -> -47486 | FS53: =Female!U39*1000 -> 46963 | FZ53: 37 | GA53: =-Male!V39*1000 -> -48290 | GB53: =Female!V39*1000 -> 47631 | GI53: 37 | GJ53: =-Male!W39*1000 -> -49880 | GK53: =Female!W39*1000 -> 49073 | GR53: 37 | GS53: =-Male!X39*1000 -> -51524 | GT53: =Female!X39*1000 -> 50570 | HA53: 37 | HB53: =-Male!Y39*1000 -> -52979 | HC53: =Female!Y39*1000 -> 51911 | HJ53: 37 | HK53: =-Male!Z39*1000 -> -54497 | HL53: =Female!Z39*1000 -> 53333 | HS53: 37 | HT53: =-Male!AA39*1000 -> -55839 | HU53: =Female!AA39*1000 -> 54580 | IB53: 37 | IC53: =-Male!AB39*1000 -> -56648 | ID53: =Female!AB39*1000 -> 55251 | IK53: 37 | IL53: =-Male!AC39*1000 -> -57323 | IM53: =Female!AC39*1000 -> 55785 | IT53: 37 | IU53: =-Male!AD39*1000 -> -58187 | IV53: =Female!AD39*1000 -> 56526 | JC53: 37 | JD53: =-Male!AE39*1000 -> -59071 | JE53: =Female!AE39*1000 -> 57331 | JL53: 37 | JM53: =-Male!AF39*1000 -> -59590 | JN53: =Female!AF39*1000 -> 57787 | JU53: 37 | JV53: =-Male!AG39*1000 -> -59932 | JW53: =Female!AG39*1000 -> 58053 | KD53: 37 | KE53: =-Male!AH39*1000 -> -59865 | KF53: =Female!AH39*1000 -> 57950 | KM53: 37 | KN53: =-Male!AI39*1000 -> -59645 | KO53: =Female!AI39*1000 -> 57738 | KV53: 37 | KW53: =-Male!AJ39*1000 -> -59291 | KX53: =Female!AJ39*1000 -> 57387 | LE53: 37 | LF53: =-Male!AK39*1000 -> -59988 | LG53: =Female!AK39*1000 -> 58189 | LN53: 37 | LO53: =-Male!AL39*1000 -> -62206 | LP53: =Female!AL39*1000 -> 60603 | LW53: 37 | LX53: =-Male!AM39*1000 -> -65454 | LY53: =Female!AM39*1000 -> 64115
B54: 38 | C54: =-Male!B40*1000 -> -39250 | D54: =Female!B40*1000 -> 37944 | K54: 38 | L54: =-Male!C40*1000 -> -39646 | M54: =Female!C40*1000 -> 38715 | T54: 38 | U54: =-Male!D40*1000 -> -39747 | V54: =Female!D40*1000 -> 38972 | AC54: 38 | AD54: =-Male!E40*1000 -> -39687 | AE54: =Female!E40*1000 -> 38937 | AL54: 38 | AM54: =-Male!F40*1000 -> -39715 | AN54: =Female!F40*1000 -> 38987 | AU54: 38 | AV54: =-Male!G40*1000 -> -39862 | AW54: =Female!G40*1000 -> 39105 | BD54: 38 | BE54: =-Male!H40*1000 -> -39880 | BF54: =Female!H40*1000 -> 39171 | BM54: 38 | BN54: =-Male!I40*1000 -> -40118 | BO54: =Female!I40*1000 -> 39643 | BV54: 38 | BW54: =-Male!J40*1000 -> -40492 | BX54: =Female!J40*1000 -> 40357 | CE54: 38 | CF54: =-Male!K40*1000 -> -40850 | CG54: =Female!K40*1000 -> 41000 | CN54: 38 | CO54: =-Male!L40*1000 -> -41117 | CP54: =Female!L40*1000 -> 41541 | CW54: 38 | CX54: =-Male!M40*1000 -> -41628 | CY54: =Female!M40*1000 -> 42202 | DF54: 38 | DG54: =-Male!N40*1000 -> -42113 | DH54: =Female!N40*1000 -> 42658 | DO54: 38 | DP54: =-Male!O40*1000 -> -42615 | DQ54: =Female!O40*1000 -> 43036 | DX54: 38 | DY54: =-Male!P40*1000 -> -43203 | DZ54: =Female!P40*1000 -> 43514 | EG54: 38 | EH54: =-Male!Q40*1000 -> -44000 | EI54: =Female!Q40*1000 -> 44196 | EP54: 38 | EQ54: =-Male!R40*1000 -> -44434 | ER54: =Female!R40*1000 -> 44442 | EY54: 38 | EZ54: =-Male!S40*1000 -> -45023 | FA54: =Female!S40*1000 -> 44856 | FH54: 38 | FI54: =-Male!T40*1000 -> -45705 | FJ54: =Female!T40*1000 -> 45396 | FQ54: 38 | FR54: =-Male!U40*1000 -> -46380 | FS54: =Female!U40*1000 -> 45933 | FZ54: 38 | GA54: =-Male!V40*1000 -> -46885 | GB54: =Female!V40*1000 -> 46326 | GI54: 38 | GJ54: =-Male!W40*1000 -> -48013 | GK54: =Female!W40*1000 -> 47355 | GR54: 38 | GS54: =-Male!X40*1000 -> -49390 | GT54: =Female!X40*1000 -> 48603 | HA54: 38 | HB54: =-Male!Y40*1000 -> -50903 | HC54: =Female!Y40*1000 -> 49988 | HJ54: 38 | HK54: =-Male!Z40*1000 -> -52393 | HL54: =Female!Z40*1000 -> 51369 | HS54: 38 | HT54: =-Male!AA40*1000 -> -54016 | HU54: =Female!AA40*1000 -> 52893 | IB54: 38 | IC54: =-Male!AB40*1000 -> -55287 | ID54: =Female!AB40*1000 -> 54032 | IK54: 38 | IL54: =-Male!AC40*1000 -> -56267 | IM54: =Female!AC40*1000 -> 54862 | IT54: 38 | IU54: =-Male!AD40*1000 -> -57031 | IV54: =Female!AD40*1000 -> 55488 | JC54: 38 | JD54: =-Male!AE40*1000 -> -57815 | JE54: =Female!AE40*1000 -> 56167 | JL54: 38 | JM54: =-Male!AF40*1000 -> -58538 | JN54: =Female!AF40*1000 -> 56840 | JU54: 38 | JV54: =-Male!AG40*1000 -> -59169 | JW54: =Female!AG40*1000 -> 57426 | KD54: 38 | KE54: =-Male!AH40*1000 -> -59226 | KF54: =Female!AH40*1000 -> 57437 | KM54: 38 | KN54: =-Male!AI40*1000 -> -59024 | KO54: =Female!AI40*1000 -> 57221 | KV54: 38 | KW54: =-Male!AJ40*1000 -> -58883 | KX54: =Female!AJ40*1000 -> 57085 | LE54: 38 | LF54: =-Male!AK40*1000 -> -58694 | LG54: =Female!AK40*1000 -> 56884 | LN54: 38 | LO54: =-Male!AL40*1000 -> -59520 | LP54: =Female!AL40*1000 -> 57754 | LW54: 38 | LX54: =-Male!AM40*1000 -> -61953 | LY54: =Female!AM40*1000 -> 60356
B55: 39 | C55: =-Male!B41*1000 -> -38575 | D55: =Female!B41*1000 -> 36778 | K55: 39 | L55: =-Male!C41*1000 -> -39070 | M55: =Female!C41*1000 -> 37805 | T55: 39 | U55: =-Male!D41*1000 -> -39326 | V55: =Female!D41*1000 -> 38438 | AC55: 39 | AD55: =-Male!E41*1000 -> -39356 | AE55: =Female!E41*1000 -> 38633 | AL55: 39 | AM55: =-Male!F41*1000 -> -39342 | AN55: =Female!F41*1000 -> 38654 | AU55: 39 | AV55: =-Male!G41*1000 -> -39458 | AW55: =Female!G41*1000 -> 38795 | BD55: 39 | BE55: =-Male!H41*1000 -> -39434 | BF55: =Female!H41*1000 -> 38724 | BM55: 39 | BN55: =-Male!I41*1000 -> -39606 | BO55: =Female!I41*1000 -> 38948 | BV55: 39 | BW55: =-Male!J41*1000 -> -39910 | BX55: =Female!J41*1000 -> 39485 | CE55: 39 | CF55: =-Male!K41*1000 -> -40233 | CG55: =Female!K41*1000 -> 40143 | CN55: 39 | CO55: =-Male!L41*1000 -> -40479 | CP55: =Female!L41*1000 -> 40669 | CW55: 39 | CX55: =-Male!M41*1000 -> -40820 | CY55: =Female!M41*1000 -> 41273 | DF55: 39 | DG55: =-Male!N41*1000 -> -41074 | DH55: =Female!N41*1000 -> 41651 | DO55: 39 | DP55: =-Male!O41*1000 -> -41421 | DQ55: =Female!O41*1000 -> 41959 | DX55: 39 | DY55: =-Male!P41*1000 -> -41970 | DZ55: =Female!P41*1000 -> 42387 | EG55: 39 | EH55: =-Male!Q41*1000 -> -42680 | EI55: =Female!Q41*1000 -> 42990 | EP55: 39 | EQ55: =-Male!R41*1000 -> -43180 | ER55: =Female!R41*1000 -> 43312 | EY55: 39 | EZ55: =-Male!S41*1000 -> -43902 | FA55: =Female!S41*1000 -> 43827 | FH55: 39 | FI55: =-Male!T41*1000 -> -44635 | FJ55: =Female!T41*1000 -> 44384 | FQ55: 39 | FR55: =-Male!U41*1000 -> -45255 | FS55: =Female!U41*1000 -> 44879 | FZ55: 39 | GA55: =-Male!V41*1000 -> -45791 | GB55: =Female!V41*1000 -> 45298 | GI55: 39 | GJ55: =-Male!W41*1000 -> -46610 | GK55: =Female!W41*1000 -> 46059 | GR55: 39 | GS55: =-Male!X41*1000 -> -47533 | GT55: =Female!X41*1000 -> 46891 | HA55: 39 | HB55: =-Male!Y41*1000 -> -48786 | HC55: =Female!Y41*1000 -> 48026 | HJ55: 39 | HK55: =-Male!Z41*1000 -> -50332 | HL55: =Female!Z41*1000 -> 49451 | HS55: 39 | HT55: =-Male!AA41*1000 -> -51922 | HU55: =Female!AA41*1000 -> 50930 | IB55: 39 | IC55: =-Male!AB41*1000 -> -53473 | ID55: =Female!AB41*1000 -> 52361 | IK55: 39 | IL55: =-Male!AC41*1000 -> -54909 | IM55: =Female!AC41*1000 -> 53646 | IT55: 39 | IU55: =-Male!AD41*1000 -> -55977 | IV55: =Female!AD41*1000 -> 54561 | JC55: 39 | JD55: =-Male!AE41*1000 -> -56663 | JE55: =Female!AE41*1000 -> 55127 | JL55: 39 | JM55: =-Male!AF41*1000 -> -57289 | JN55: =Female!AF41*1000 -> 55676 | JU55: 39 | JV55: =-Male!AG41*1000 -> -58123 | JW55: =Female!AG41*1000 -> 56493 | KD55: 39 | KE55: =-Male!AH41*1000 -> -58476 | KF55: =Female!AH41*1000 -> 56817 | KM55: 39 | KN55: =-Male!AI41*1000 -> -58401 | KO55: =Female!AI41*1000 -> 56710 | KV55: 39 | KW55: =-Male!AJ41*1000 -> -58276 | KX55: =Female!AJ41*1000 -> 56570 | LE55: 39 | LF55: =-Male!AK41*1000 -> -58299 | LG55: =Female!AK41*1000 -> 56582 | LN55: 39 | LO55: =-Male!AL41*1000 -> -58226 | LP55: =Female!AL41*1000 -> 56455 | LW55: 39 | LX55: =-Male!AM41*1000 -> -59267 | LY55: =Female!AM41*1000 -> 57508
B56: 40 | C56: =-Male!B42*1000 -> -37869 | D56: =Female!B42*1000 -> 35605 | K56: 40 | L56: =-Male!C42*1000 -> -38386 | M56: =Female!C42*1000 -> 36638 | T56: 40 | U56: =-Male!D42*1000 -> -38744 | V56: =Female!D42*1000 -> 37529 | AC56: 40 | AD56: =-Male!E42*1000 -> -38929 | AE56: =Female!E42*1000 -> 38097 | AL56: 40 | AM56: =-Male!F42*1000 -> -39004 | AN56: =Female!F42*1000 -> 38345 | AU56: 40 | AV56: =-Male!G42*1000 -> -39078 | AW56: =Female!G42*1000 -> 38457 | BD56: 40 | BE56: =-Male!H42*1000 -> -39026 | BF56: =Female!H42*1000 -> 38416 | BM56: 40 | BN56: =-Male!I42*1000 -> -39155 | BO56: =Female!I42*1000 -> 38501 | BV56: 40 | BW56: =-Male!J42*1000 -> -39392 | BX56: =Female!J42*1000 -> 38787 | CE56: 40 | CF56: =-Male!K42*1000 -> -39647 | CG56: =Female!K42*1000 -> 39268 | CN56: 40 | CO56: =-Male!L42*1000 -> -39861 | CP56: =Female!L42*1000 -> 39811 | CW56: 40 | CX56: =-Male!M42*1000 -> -40184 | CY56: =Female!M42*1000 -> 40419 | DF56: 40 | DG56: =-Male!N42*1000 -> -40273 | DH56: =Female!N42*1000 -> 40739 | DO56: 40 | DP56: =-Male!O42*1000 -> -40395 | DQ56: =Female!O42*1000 -> 40963 | DX56: 40 | DY56: =-Male!P42*1000 -> -40788 | DZ56: =Female!P42*1000 -> 41314 | EG56: 40 | EH56: =-Male!Q42*1000 -> -41455 | EI56: =Female!Q42*1000 -> 41864 | EP56: 40 | EQ56: =-Male!R42*1000 -> -41878 | ER56: =Female!R42*1000 -> 42144 | EY56: 40 | EZ56: =-Male!S42*1000 -> -42657 | FA56: =Female!S42*1000 -> 42719 | FH56: 40 | FI56: =-Male!T42*1000 -> -43521 | FJ56: =Female!T42*1000 -> 43361 | FQ56: 40 | FR56: =-Male!U42*1000 -> -44194 | FS56: =Female!U42*1000 -> 43866 | FZ56: 40 | GA56: =-Male!V42*1000 -> -44678 | GB56: =Female!V42*1000 -> 44247 | GI56: 40 | GJ56: =-Male!W42*1000 -> -45517 | GK56: =Female!W42*1000 -> 45046 | GR56: 40 | GS56: =-Male!X42*1000 -> -46138 | GT56: =Female!X42*1000 -> 45609 | HA56: 40 | HB56: =-Male!Y42*1000 -> -46943 | HC56: =Female!Y42*1000 -> 46325 | HJ56: 40 | HK56: =-Male!Z42*1000 -> -48229 | HL56: =Female!Z42*1000 -> 47493 | HS56: 40 | HT56: =-Male!AA42*1000 -> -49870 | HU56: =Female!AA42*1000 -> 49013 | IB56: 40 | IC56: =-Male!AB42*1000 -> -51388 | ID56: =Female!AB42*1000 -> 50419 | IK56: 40 | IL56: =-Male!AC42*1000 -> -53099 | IM56: =Female!AC42*1000 -> 51985 | IT56: 40 | IU56: =-Male!AD42*1000 -> -54621 | IV56: =Female!AD42*1000 -> 53345 | JC56: 40 | JD56: =-Male!AE42*1000 -> -55612 | JE56: =Female!AE42*1000 -> 54197 | JL56: 40 | JM56: =-Male!AF42*1000 -> -56144 | JN56: =Female!AF42*1000 -> 54637 | JU56: 40 | JV56: =-Male!AG42*1000 -> -56877 | JW56: =Female!AG42*1000 -> 55349 | KD56: 40 | KE56: =-Male!AH42*1000 -> -57440 | KF56: =Female!AH42*1000 -> 55903 | KM56: 40 | KN56: =-Male!AI42*1000 -> -57665 | KO56: =Female!AI42*1000 -> 56099 | KV56: 40 | KW56: =-Male!AJ42*1000 -> -57668 | KX56: =Female!AJ42*1000 -> 56059 | LE56: 40 | LF56: =-Male!AK42*1000 -> -57705 | LG56: =Female!AK42*1000 -> 56068 | LN56: 40 | LO56: =-Male!AL42*1000 -> -57825 | LP56: =Female!AL42*1000 -> 56156 | LW56: 40 | LX56: =-Male!AM42*1000 -> -57969 | LY56: =Female!AM42*1000 -> 56210
B57: 41 | C57: =-Male!B43*1000 -> -37066 | D57: =Female!B43*1000 -> 34359 | K57: 41 | L57: =-Male!C43*1000 -> -37672 | M57: =Female!C43*1000 -> 35466 | T57: 41 | U57: =-Male!D43*1000 -> -38054 | V57: =Female!D43*1000 -> 36366 | AC57: 41 | AD57: =-Male!E43*1000 -> -38342 | AE57: =Female!E43*1000 -> 37191 | AL57: 41 | AM57: =-Male!F43*1000 -> -38570 | AN57: =Female!F43*1000 -> 37807 | AU57: 41 | AV57: =-Male!G43*1000 -> -38732 | AW57: =Female!G43*1000 -> 38142 | BD57: 41 | BE57: =-Male!H43*1000 -> -38641 | BF57: =Female!H43*1000 -> 38079 | BM57: 41 | BN57: =-Male!I43*1000 -> -38741 | BO57: =Female!I43*1000 -> 38193 | BV57: 41 | BW57: =-Male!J43*1000 -> -38936 | BX57: =Female!J43*1000 -> 38339 | CE57: 41 | CF57: =-Male!K43*1000 -> -39125 | CG57: =Female!K43*1000 -> 38567 | CN57: 41 | CO57: =-Male!L43*1000 -> -39273 | CP57: =Female!L43*1000 -> 38935 | CW57: 41 | CX57: =-Male!M43*1000 -> -39568 | CY57: =Female!M43*1000 -> 39578 | DF57: 41 | DG57: =-Male!N43*1000 -> -39643 | DH57: =Female!N43*1000 -> 39908 | DO57: 41 | DP57: =-Male!O43*1000 -> -39603 | DQ57: =Female!O43*1000 -> 40071 | DX57: 41 | DY57: =-Male!P43*1000 -> -39773 | DZ57: =Female!P43*1000 -> 40326 | EG57: 41 | EH57: =-Male!Q43*1000 -> -40283 | EI57: =Female!Q43*1000 -> 40791 | EP57: 41 | EQ57: =-Male!R43*1000 -> -40671 | ER57: =Female!R43*1000 -> 41055 | EY57: 41 | EZ57: =-Male!S43*1000 -> -41365 | FA57: =Female!S43*1000 -> 41580 | FH57: 41 | FI57: =-Male!T43*1000 -> -42282 | FJ57: =Female!T43*1000 -> 42271 | FQ57: 41 | FR57: =-Male!U43*1000 -> -43088 | FS57: =Female!U43*1000 -> 42850 | FZ57: 41 | GA57: =-Male!V43*1000 -> -43629 | GB57: =Female!V43*1000 -> 43235 | GI57: 41 | GJ57: =-Male!W43*1000 -> -44406 | GK57: =Female!W43*1000 -> 44009 | GR57: 41 | GS57: =-Male!X43*1000 -> -45051 | GT57: =Female!X43*1000 -> 44614 | HA57: 41 | HB57: =-Male!Y43*1000 -> -45559 | HC57: =Female!Y43*1000 -> 45060 | HJ57: 41 | HK57: =-Male!Z43*1000 -> -46399 | HL57: =Female!Z43*1000 -> 45800 | HS57: 41 | HT57: =-Male!AA43*1000 -> -47777 | HU57: =Female!AA43*1000 -> 47055 | IB57: 41 | IC57: =-Male!AB43*1000 -> -49346 | ID57: =Female!AB43*1000 -> 48522 | IK57: 41 | IL57: =-Male!AC43*1000 -> -51016 | IM57: =Female!AC43*1000 -> 50058 | IT57: 41 | IU57: =-Male!AD43*1000 -> -52811 | IV57: =Female!AD43*1000 -> 51692 | JC57: 41 | JD57: =-Male!AE43*1000 -> -54259 | JE57: =Female!AE43*1000 -> 52983 | JL57: 41 | JM57: =-Male!AF43*1000 -> -55100 | JN57: =Female!AF43*1000 -> 53706 | JU57: 41 | JV57: =-Male!AG43*1000 -> -55736 | JW57: =Female!AG43*1000 -> 54330 | KD57: 41 | KE57: =-Male!AH43*1000 -> -56204 | KF57: =Female!AH43*1000 -> 54784 | KM57: 41 | KN57: =-Male!AI43*1000 -> -56642 | KO57: =Female!AI43*1000 -> 55204 | KV57: 41 | KW57: =-Male!AJ43*1000 -> -56944 | KX57: =Female!AJ43*1000 -> 55456 | LE57: 41 | LF57: =-Male!AK43*1000 -> -57109 | LG57: =Female!AK43*1000 -> 55557 | LN57: 41 | LO57: =-Male!AL43*1000 -> -57225 | LP57: =Female!AL43*1000 -> 55645 | LW57: 41 | LX57: =-Male!AM43*1000 -> -57560 | LY57: =Female!AM43*1000 -> 55912
